Workbook

Sheet 資料輸入
B2: 安達人壽紅運旺旺美元分紅終身壽險_建議書 資料輸入頁
B4: 客戶資料 | L4: PS2025-02 BR-SS
C8: 被保險人 | E8: 被保人 | F8: 先生 | G8: 要保人 | H8: 要保人 | I8: 先生/小姐 | J8: 繳費人 | K8: 繳費人 | L8: 先生/小姐
C10: 被保險人出生年月日 | E10: 740303 | F10: 格式(yyymmdd) | G10: 要保人出生年月日 | H10: 380101 | I10: 格式(yyymmdd) | J10: 繳費人出生年月日 | K10: 360101 | L10: 格式(yyymmdd)
C12: 性 別 | E12: 男性 | F12: 下拉選單 | G12: 性 別 | H12: 男性 | I12: 下拉選單 | J12: 性 別 | K12: 男性 | L12: 下拉選單
C14: 保險年齡 | E14: =age -> 40 | G14: 保險年齡 | H14: =holderAge -> 76 | J14: 保險年齡 | K14: =payerAge -> 78
B15: 投保內容
C17: 商品名稱 | E17: 紅運旺旺美元分紅終身壽險
C19: 商品幣別 | E19: 美元
C21: 繳別 | E21: 年繳 | F21: 下拉選單
C23: 保險年期 | E23: 保險年齡達110歲
C25: 繳費期間 | E25: 6年期
C27: 繳費方式(首期) | E27: 匯款 | F27: 下拉選單
C29: 繳費方式(續期) | E29: 匯款 | F29: 下拉選單
C31: 保險金額(元） | E31: 2500000 | F31: 15足歲以下:3000美元~9萬美元；15足歲(含以上): 3000美元~250萬美元
B34: 分期保險金給付設定
C36: 分期定期保險金給付期間 | E36: 5 | F36: 請輸入5~20年
C38: 一次給付比例 | E38: 40 | F38: %
C40: 每期給付比例 | E40: 60 | F40: %
B42: 保險費合計
C45: 首期保費 | E45: =TEXT(GP_bf_disc,"###,###,###.00") -> 1,087,500.00 | F45: 元
C47: 首期折扣後保費 | E47: =TEXT(GP_af_disc,"###,###,###.00") -> 1,071,187.50 | F47: ="元 ( " & TEXT(參數!$B$26*100, "0.00") & "% 折扣）" -> 元 ( 1.50% 折扣）
C49: 續期保費 | E49: =TEXT(RP_bf_disc,"###,###,###.00") -> 1,087,500.00 | F49: 元
C51: 續期折扣後保費 | E51: =TEXT(RP_af_disc,"###,###,###.00") -> 1,071,187.50 | F51: ="元 ( " & TEXT(參數!$B$27*100, "0.00") & "% 折扣）" -> 元 ( 1.50% 折扣）
B56: 超過免體檢保額,需體檢。
B63: 錄音提示稿相關資料
B64: 保經代公司名稱： | G64: 請輸入保經代公司名稱，例如: 安達保經
B65: 業務員姓名： | E65: TEST
B66: 業務員登錄證字號： | E66: TEST123456789 | G66: 請輸入登錄證字號，共10碼
B68: 投保目的(可複選) | F68: 保障 | H68: 【適用投保目的】請輸入V，【取消】請空白
F69: 子女教育經費 | H69: 【適用投保目的】請輸入V，【取消】請空白
F70: 退休規劃 | H70: 【適用投保目的】請輸入V，【取消】請空白
F71: 房屋貸款 | H71: 【適用投保目的】請輸入V，【取消】請空白
F72: 其他 (請於右方填入內容) | H72: 【適用投保目的】請輸入V，【取消】請空白
B75: ※ 提醒您，本試算表所提出之部份提領申請為繳費期滿後【減少保險金額】，保險金額減少均會減少保單保障、保單價值準備金及解約金等，客戶必須依照自身的財務及保障需求妥適規劃。
B76: ※ 要保人在本契約有效期間內，得申請減少保險金額，但是減額後的基本保險金額，不得低於本保險最低承保金額，其減少部分依契約終止之約定處理。
B77: ※ 下列【減少保險金額】之數值為預估值，如投保後需減少保險金額請自行提出契變辦理，詳細規則可參閱保全規則。
B78: ※ 本公司辦理「減少保險金額」，係先減少基本保險金額。減額後的基本保險金額，不得低於本保險最低承保金額 3000 美元。
B79: 部分提領
C81: ※減額後的「基本保險金額」不得低於本保險最低承保金額!
C82: 定額提領(減少保險金額)
E83: 建議提領試算年齡須至少大於投保年齡加6歲!
C84: 年齡一 | E84: 47 | F84: 歲起 | G84: 每年提領金額 | H84: 1000 | J84: 美元
E85: =IF(E86="","",IF(定額提領年齡二<=定額提領年齡一,"定額提領試算年齡二需大於定額提領試算年齡一","")) ->  | K85: =IF(COUNTIF(減少保險金影響表!J9:J126, 0) > 0, "提醒，依此方式提領，基本保險金額將於保險契約有效期間內歸零", "") -> 
C86: 年齡二 | F86: 歲起 | G86: 每年提領金額 | J86: 美元
E87: =IF(E88="","",IF(定額提領年齡三<=定額提領年齡二,"定額提領試算年齡三需大於定額提領試算年齡一及年齡二","")) -> 
C88: 年齡三 | F88: 歲起 | G88: 每年提領金額 | J88: 美元
C91: 額外一次提領(減少保險金額)
E92: 建議提領試算年齡須至少大於投保年齡加6歲!
C93: 年齡一 | F93: 歲 | G93: 當次提領金額 | J93: 美元
E94: =IF($E95="","",IF($E95<=E93,"定額提領試算年齡二需大於定額提領試算年齡一","")) ->  | K94: =IF(COUNTIF(減少保險金影響表!J9:J126, 0) > 0, "提醒，依此方式提領，基本保險金額將於保險契約有效期間內歸零", "") -> 
C95: 年齡二 | F95: 歲 | G95: 當次提領金額 | J95: 美元
E96: =IF(E97="","",IF(E97<=E95,"定額提領試算年齡三需大於定額提領試算年齡一及年齡二","")) -> 
C97: 年齡三 | F97: 歲 | G97: 當次提領金額 | J97: 美元
B104: 建議書列印頁 | D104: 商品利益說明表 (不含紅利部份) | G104: 商品利益分析表 | I104: 減少保險金額 | L104: 分期定期保險金給付
E105: 建議書列印頁

Sheet 減少保險金影響表 (hidden)
B1: ="安達人壽"&ProductName &" - 減少保險金影響表" -> 安達人壽紅運旺旺美元分紅終身壽險 - 減少保險金影響表
B3: 要保險人： | C3: =參數!H8 -> 被保人 | D3: ="保險年齡： "&age & " 歲" -> 保險年齡： 40 歲 | E3: ="繳 別： "&ChargeMode -> 繳 別： 年繳 | F3: ="首期繳費方式 :"&PayMode1 -> 首期繳費方式 :匯款 | G3: ="首期保費："&TEXT(GP_bf_disc,"###,###,###.00") & " 美元" -> 首期保費：1,087,500.00 美元 | I3: ="首期折扣後保費："&TEXT(GP_af_disc,"###,###,###.00") & " 美元" -> 首期折扣後保費：1,071,187.50 美元 | K3: ="基本保險金額："&TEXT(SA,"###,###,###.00")&" 美元" -> 基本保險金額：2,500,000.00 美元 | M3: ="高保費折扣:"&TEXT(Prem_disc,"0.00%") -> 高保費折扣:1.50% | Q3: 列印
B4: 被保險人： | C4: =InsName -> 被保人 | D4: ="性 別： "&EntryGender -> 性 別： 男性 | E4: ="繳費年期： "&plan & " 年期" -> 繳費年期： 6 年期 | F4: ="續期繳費方式 :"&PayMode2 -> 續期繳費方式 :匯款 | G4: ="續期保費："&TEXT(RP_bf_disc,"###,###,###.00") & " 美元" -> 續期保費：1,087,500.00 美元 | I4: ="續期折扣後保費："&TEXT(RP_af_disc,"###,###,###.00") & " 美元" -> 續期折扣後保費：1,071,187.50 美元 | K4: ="繳費方式折扣 : "&IF(PayModeDisc1=1%,TEXT(PayModeDisc1,"0.00%"),IF(PayModeDisc2=1%,TEXT(PayModeDisc2,"0.00%"),TEXT(0,"0.00%"))) -> 繳費方式折扣 : 0.00%
M5: (幣別/單位：美元/元)
B6: 年度 | C6: 年齡 | D6: 折扣後 當年度 所繳保險費 | E6: 折扣後 累計 所繳保險費 | F6: 【非保證給付項目】假設分紅-最可能紅利金額(保額)(中分紅) | Q6: 回到資料輸入
F7: 原保險金額試算 | H7: 減少保險金額試算
F8: 當年度末 壽險保障及 假設紅利_分紅保額 (預估值) (中) | G8: 當年度末 可能領取 解約金總額 (預估值) (中) | H8: 該次減少 基本保險金額 可領取之解約金 (預估值) (年初) | I8: 歷年減少 基本保險金額 領取之解約金總額 (預估值) A | J8: 減少基本保險金額後 當年度末壽險保障及 假設紅利_分紅保額 (預估值) | K8: 減少基本保險金額後 當年度末解約 可能領取之解約金 (預估值) B | L8: 累計至當年度末解約可能總領金額 (預估值) A+B=C
B9: 1 | C9: =IF(B9="","",age+B9-1) -> 40 | D9: =IF(C9="","***以下空白***",IF($B9="","",IF($B9>plan,"",VLOOKUP($B9,formula!$A$15:$BI$124,formula!$AM$9,FALSE)))) -> 1071187.5 | E9: =IF($B9="","",VLOOKUP($B9,formula!$A$15:$BI$124,formula!$AN$9,FALSE)) -> 1071187.5 | F9: =IF($B9="","",VLOOKUP($B9,formula!$A$15:$BI$124,formula!$AD$9+1,FALSE)) -> 1087500 | G9: =IF($B9="","",VLOOKUP($B9,formula!$A$15:$BI$124,formula!$AG$9+1,FALSE)) -> 362207.5 | H9: =IF($B9="","",VLOOKUP($B9,formula!$A$15:$EV$124,formula!$EM$9,FALSE)) -> 0 | I9: =IF($B9="","",VLOOKUP($B9,formula!$A$15:$EV$124,formula!$EN$9,FALSE)) -> 0 | J9: =IF($B9="","",VLOOKUP($B9,formula!$A$15:$BI$124,formula!$AV$9,FALSE)) -> 1087500 | K9: =IF($B9="","",VLOOKUP($B9,formula!$A$15:$BI$124,formula!$AU$9,FALSE)) -> 362207.5 | L9: =IF($B9="","",VLOOKUP($B9,formula!$A$15:$BI$124,formula!$AX$9,FALSE)) -> 362207.5
B10: =IF(B9>=109-age+1,"",B9+1) -> 2 | C10: 41 | D10: =IF(C9=MaxCoverageYear-1,"***以下空白***",IF($B10="","",IF($B10>plan,"",VLOOKUP($B10,formula!$A$15:$BI$124,formula!$AM$9,FALSE)))) -> 1071187.5 | E10: =IF($B10="","",VLOOKUP($B10,formula!$A$15:$BI$124,formula!$AN$9,FALSE)) -> 2142375 | F10: =IF($B10="","",VLOOKUP($B10,formula!$A$15:$BI$124,formula!$AD$9+1,FALSE)) -> 2175000 | G10: =IF($B10="","",VLOOKUP($B10,formula!$A$15:$BI$124,formula!$AG$9+1,FALSE)) -> 971885 | H10: =IF($B10="","",VLOOKUP($B10,formula!$A$15:$EV$124,formula!$EM$9,FALSE)) -> 0 | I10: =IF($B10="","",VLOOKUP($B10,formula!$A$15:$EV$124,formula!$EN$9,FALSE)) -> 0 | J10: =IF($B10="","",VLOOKUP($B10,formula!$A$15:$BI$124,formula!$AV$9,FALSE)) -> 2175000 | K10: =IF($B10="","",VLOOKUP($B10,formula!$A$15:$BI$124,formula!$AU$9,FALSE)) -> 971885 | L10: =IF($B10="","",VLOOKUP($B10,formula!$A$15:$BI$124,formula!$AX$9,FALSE)) -> 971885
B11: 3 | C11: 42 | D11: =IF(C10=MaxCoverageYear-1,"***以下空白***",IF($B11="","",IF($B11>plan,"",VLOOKUP($B11,formula!$A$15:$BI$124,formula!$AM$9,FALSE)))) -> 1071187.5 | E11: =IF($B11="","",VLOOKUP($B11,formula!$A$15:$BI$124,formula!$AN$9,FALSE)) -> 3213562.5 | F11: =IF($B11="","",VLOOKUP($B11,formula!$A$15:$BI$124,formula!$AD$9+1,FALSE)) -> 3402264 | G11: =IF($B11="","",VLOOKUP($B11,formula!$A$15:$BI$124,formula!$AG$9+1,FALSE)) -> 1594812.5 | H11: =IF($B11="","",VLOOKUP($B11,formula!$A$15:$EV$124,formula!$EM$9,FALSE)) -> 0 | I11: =IF($B11="","",VLOOKUP($B11,formula!$A$15:$EV$124,formula!$EN$9,FALSE)) -> 0 | J11: =IF($B11="","",VLOOKUP($B11,formula!$A$15:$BI$124,formula!$AV$9,FALSE)) -> 3402264 | K11: =IF($B11="","",VLOOKUP($B11,formula!$A$15:$BI$124,formula!$AU$9,FALSE)) -> 1594812.5 | L11: =IF($B11="","",VLOOKUP($B11,formula!$A$15:$BI$124,formula!$AX$9,FALSE)) -> 1594812.5
B12: 4 | C12: 43 | D12: =IF(C11=MaxCoverageYear-1,"***以下空白***",IF($B12="","",IF($B12>plan,"",VLOOKUP($B12,formula!$A$15:$BI$124,formula!$AM$9,FALSE)))) -> 1071187.5 | E12: =IF($B12="","",VLOOKUP($B12,formula!$A$15:$BI$124,formula!$AN$9,FALSE)) -> 4284750 | F12: =IF($B12="","",VLOOKUP($B12,formula!$A$15:$BI$124,formula!$AD$9+1,FALSE)) -> 10000000 | G12: =IF($B12="","",VLOOKUP($B12,formula!$A$15:$BI$124,formula!$AG$9+1,FALSE)) -> 2667332.5 | H12: =IF($B12="","",VLOOKUP($B12,formula!$A$15:$EV$124,formula!$EM$9,FALSE)) -> 0 | I12: =IF($B12="","",VLOOKUP($B12,formula!$A$15:$EV$124,formula!$EN$9,FALSE)) -> 0 | J12: =IF($B12="","",VLOOKUP($B12,formula!$A$15:$BI$124,formula!$AV$9,FALSE)) -> 10000000 | K12: =IF($B12="","",VLOOKUP($B12,formula!$A$15:$BI$124,formula!$AU$9,FALSE)) -> 2667332.5 | L12: =IF($B12="","",VLOOKUP($B12,formula!$A$15:$BI$124,formula!$AX$9,FALSE)) -> 2667332.5
B13: 5 | C13: 44 | D13: =IF(C12=MaxCoverageYear-1,"***以下空白***",IF($B13="","",IF($B13>plan,"",VLOOKUP($B13,formula!$A$15:$BI$124,formula!$AM$9,FALSE)))) -> 1071187.5 | E13: =IF($B13="","",VLOOKUP($B13,formula!$A$15:$BI$124,formula!$AN$9,FALSE)) -> 5355937.5 | F13: =IF($B13="","",VLOOKUP($B13,formula!$A$15:$BI$124,formula!$AD$9+1,FALSE)) -> 12500000 | G13: =IF($B13="","",VLOOKUP($B13,formula!$A$15:$BI$124,formula!$AG$9+1,FALSE)) -> 3624280 | H13: =IF($B13="","",VLOOKUP($B13,formula!$A$15:$EV$124,formula!$EM$9,FALSE)) -> 0 | I13: =IF($B13="","",VLOOKUP($B13,formula!$A$15:$EV$124,formula!$EN$9,FALSE)) -> 0 | J13: =IF($B13="","",VLOOKUP($B13,formula!$A$15:$BI$124,formula!$AV$9,FALSE)) -> 12500000 | K13: =IF($B13="","",VLOOKUP($B13,formula!$A$15:$BI$124,formula!$AU$9,FALSE)) -> 3624280 | L13: =IF($B13="","",VLOOKUP($B13,formula!$A$15:$BI$124,formula!$AX$9,FALSE)) -> 3624280
B14: 6 | C14: 45 | D14: =IF(C13=MaxCoverageYear-1,"***以下空白***",IF($B14="","",IF($B14>plan,"",VLOOKUP($B14,formula!$A$15:$BI$124,formula!$AM$9,FALSE)))) -> 1071187.5 | E14: =IF($B14="","",VLOOKUP($B14,formula!$A$15:$BI$124,formula!$AN$9,FALSE)) -> 6427125 | F14: =IF($B14="","",VLOOKUP($B14,formula!$A$15:$BI$124,formula!$AD$9+1,FALSE)) -> 26842525 | G14: =IF($B14="","",VLOOKUP($B14,formula!$A$15:$BI$124,formula!$AG$9+1,FALSE)) -> 6531978.86 | H14: =IF($B14="","",VLOOKUP($B14,formula!$A$15:$EV$124,formula!$EM$9,FALSE)) -> 0 | I14: =IF($B14="","",VLOOKUP($B14,formula!$A$15:$EV$124,formula!$EN$9,FALSE)) -> 0 | J14: =IF($B14="","",VLOOKUP($B14,formula!$A$15:$BI$124,formula!$AV$9,FALSE)) -> 26842525 | K14: =IF($B14="","",VLOOKUP($B14,formula!$A$15:$BI$124,formula!$AU$9,FALSE)) -> 6531978.86 | L14: =IF($B14="","",VLOOKUP($B14,formula!$A$15:$BI$124,formula!$AX$9,FALSE)) -> 6531978.86
B15: 7 | C15: 46 | D15: =IF(C14=MaxCoverageYear-1,"***以下空白***",IF($B15="","",IF($B15>plan,"",VLOOKUP($B15,formula!$A$15:$BI$124,formula!$AM$9,FALSE)))) ->  | E15: =IF($B15="","",VLOOKUP($B15,formula!$A$15:$BI$124,formula!$AN$9,FALSE)) -> 6427125 | F15: =IF($B15="","",VLOOKUP($B15,formula!$A$15:$BI$124,formula!$AD$9+1,FALSE)) -> 27048045.4 | G15: =IF($B15="","",VLOOKUP($B15,formula!$A$15:$BI$124,formula!$AG$9+1,FALSE)) -> 6670163.34 | H15: =IF($B15="","",VLOOKUP($B15,formula!$A$15:$EV$124,formula!$EM$9,FALSE)) -> 0 | I15: =IF($B15="","",VLOOKUP($B15,formula!$A$15:$EV$124,formula!$EN$9,FALSE)) -> 0 | J15: =IF($B15="","",VLOOKUP($B15,formula!$A$15:$BI$124,formula!$AV$9,FALSE)) -> 27043988.2 | K15: =IF($B15="","",VLOOKUP($B15,formula!$A$15:$BI$124,formula!$AU$9,FALSE)) -> 6669162.82 | L15: =IF($B15="","",VLOOKUP($B15,formula!$A$15:$BI$124,formula!$AX$9,FALSE)) -> 6670163.82
B16: 8 | C16: 47 | D16: =IF(C15=MaxCoverageYear-1,"***以下空白***",IF($B16="","",IF($B16>plan,"",VLOOKUP($B16,formula!$A$15:$BI$124,formula!$AM$9,FALSE)))) ->  | E16: =IF($B16="","",VLOOKUP($B16,formula!$A$15:$BI$124,formula!$AN$9,FALSE)) -> 6427125 | F16: =IF($B16="","",VLOOKUP($B16,formula!$A$15:$BI$124,formula!$AD$9+1,FALSE)) -> 27261657.2 | G16: =IF($B16="","",VLOOKUP($B16,formula!$A$15:$BI$124,formula!$AG$9+1,FALSE)) -> 6814674.76 | H16: =IF($B16="","",VLOOKUP($B16,formula!$A$15:$EV$124,formula!$EM$9,FALSE)) -> 1001 | I16: =IF($B16="","",VLOOKUP($B16,formula!$A$15:$EV$124,formula!$EN$9,FALSE)) -> 1001 | J16: =IF($B16="","",VLOOKUP($B16,formula!$A$15:$BI$124,formula!$AV$9,FALSE)) -> 27253565.95 | K16: =IF($B16="","",VLOOKUP($B16,formula!$A$15:$BI$124,formula!$AU$9,FALSE)) -> 6812652.17 | L16: =IF($B16="","",VLOOKUP($B16,formula!$A$15:$BI$124,formula!$AX$9,FALSE)) -> 6814653.17
B17: 9 | C17: 48 | D17: =IF(C16=MaxCoverageYear-1,"***以下空白***",IF($B17="","",IF($B17>plan,"",VLOOKUP($B17,formula!$A$15:$BI$124,formula!$AM$9,FALSE)))) ->  | E17: =IF($B17="","",VLOOKUP($B17,formula!$A$15:$BI$124,formula!$AN$9,FALSE)) -> 6427125 | F17: =IF($B17="","",VLOOKUP($B17,formula!$A$15:$BI$124,formula!$AD$9+1,FALSE)) -> 27481326 | G17: =IF($B17="","",VLOOKUP($B17,formula!$A$15:$BI$124,formula!$AG$9+1,FALSE)) -> 6961734.54 | H17: =IF($B17="","",VLOOKUP($B17,formula!$A$15:$EV$124,formula!$EM$9,FALSE)) -> 1000 | I17: =IF($B17="","",VLOOKUP($B17,formula!$A$15:$EV$124,formula!$EN$9,FALSE)) -> 2001 | J17: =IF($B17="","",VLOOKUP($B17,formula!$A$15:$BI$124,formula!$AV$9,FALSE)) -> 27469212.24 | K17: =IF($B17="","",VLOOKUP($B17,formula!$A$15:$BI$124,formula!$AU$9,FALSE)) -> 6958665.81 | L17: =IF($B17="","",VLOOKUP($B17,formula!$A$15:$BI$124,formula!$AX$9,FALSE)) -> 6961668.81
B18: 10 | C18: 49 | D18: =IF(C17=MaxCoverageYear-1,"***以下空白***",IF($B18="","",IF($B18>plan,"",VLOOKUP($B18,formula!$A$15:$BI$124,formula!$AM$9,FALSE)))) ->  | E18: =IF($B18="","",VLOOKUP($B18,formula!$A$15:$BI$124,formula!$AN$9,FALSE)) -> 6427125 | F18: =IF($B18="","",VLOOKUP($B18,formula!$A$15:$BI$124,formula!$AD$9+1,FALSE)) -> 27708405 | G18: =IF($B18="","",VLOOKUP($B18,formula!$A$15:$BI$124,formula!$AG$9+1,FALSE)) -> 7111561.47 | H18: =IF($B18="","",VLOOKUP($B18,formula!$A$15:$EV$124,formula!$EM$9,FALSE)) -> 1002 | I18: =IF($B18="","",VLOOKUP($B18,formula!$A$15:$EV$124,formula!$EN$9,FALSE)) -> 3003 | J18: =IF($B18="","",VLOOKUP($B18,formula!$A$15:$BI$124,formula!$AV$9,FALSE)) -> 27692289.8 | K18: =IF($B18="","",VLOOKUP($B18,formula!$A$15:$BI$124,formula!$AU$9,FALSE)) -> 7107425.39 | L18: =IF($B18="","",VLOOKUP($B18,formula!$A$15:$BI$124,formula!$AX$9,FALSE)) -> 7111429.39
B19: 11 | C19: 50 | D19: =IF(C18=MaxCoverageYear-1,"***以下空白***",IF($B19="","",IF($B19>plan,"",VLOOKUP($B19,formula!$A$15:$BI$124,formula!$AM$9,FALSE)))) ->  | E19: =IF($B19="","",VLOOKUP($B19,formula!$A$15:$BI$124,formula!$AN$9,FALSE)) -> 6427125 | F19: =IF($B19="","",VLOOKUP($B19,formula!$A$15:$BI$124,formula!$AD$9+1,FALSE)) -> 27942223 | G19: =IF($B19="","",VLOOKUP($B19,formula!$A$15:$BI$124,formula!$AG$9+1,FALSE)) -> 7268033.89 | H19: =IF($B19="","",VLOOKUP($B19,formula!$A$15:$EV$124,formula!$EM$9,FALSE)) -> 1001 | I19: =IF($B19="","",VLOOKUP($B19,formula!$A$15:$EV$124,formula!$EN$9,FALSE)) -> 4004 | J19: =IF($B19="","",VLOOKUP($B19,formula!$A$15:$BI$124,formula!$AV$9,FALSE)) -> 27922126.96 | K19: =IF($B19="","",VLOOKUP($B19,formula!$A$15:$BI$124,formula!$AU$9,FALSE)) -> 7262806.73 | L19: =IF($B19="","",VLOOKUP($B19,formula!$A$15:$BI$124,formula!$AX$9,FALSE)) -> 7267810.73
B20: 12 | C20: 51 | D20: =IF(C19=MaxCoverageYear-1,"***以下空白***",IF($B20="","",IF($B20>plan,"",VLOOKUP($B20,formula!$A$15:$BI$124,formula!$AM$9,FALSE)))) ->  | E20: =IF($B20="","",VLOOKUP($B20,formula!$A$15:$BI$124,formula!$AN$9,FALSE)) -> 6427125 | F20: =IF($B20="","",VLOOKUP($B20,formula!$A$15:$BI$124,formula!$AD$9+1,FALSE)) -> 28183457.2 | G20: =IF($B20="","",VLOOKUP($B20,formula!$A$15:$BI$124,formula!$AG$9+1,FALSE)) -> 7427778.67 | H20: =IF($B20="","",VLOOKUP($B20,formula!$A$15:$EV$124,formula!$EM$9,FALSE)) -> 1000 | I20: =IF($B20="","",VLOOKUP($B20,formula!$A$15:$EV$124,formula!$EN$9,FALSE)) -> 5004 | J20: =IF($B20="","",VLOOKUP($B20,formula!$A$15:$BI$124,formula!$AV$9,FALSE)) -> 28159388.53 | K20: =IF($B20="","",VLOOKUP($B20,formula!$A$15:$BI$124,formula!$AU$9,FALSE)) -> 7421435.35 | L20: =IF($B20="","",VLOOKUP($B20,formula!$A$15:$BI$124,formula!$AX$9,FALSE)) -> 7427440.35
B21: 13 | C21: 52 | D21: =IF(C20=MaxCoverageYear-1,"***以下空白***",IF($B21="","",IF($B21>plan,"",VLOOKUP($B21,formula!$A$15:$BI$124,formula!$AM$9,FALSE)))) ->  | E21: =IF($B21="","",VLOOKUP($B21,formula!$A$15:$BI$124,formula!$AN$9,FALSE)) -> 6427125 | F21: =IF($B21="","",VLOOKUP($B21,formula!$A$15:$BI$124,formula!$AD$9+1,FALSE)) -> 28432101.2 | G21: =IF($B21="","",VLOOKUP($B21,formula!$A$15:$BI$124,formula!$AG$9+1,FALSE)) -> 7591146.31 | H21: =IF($B21="","",VLOOKUP($B21,formula!$A$15:$EV$124,formula!$EM$9,FALSE)) -> 1001 | I21: =IF($B21="","",VLOOKUP($B21,formula!$A$15:$EV$124,formula!$EN$9,FALSE)) -> 6005 | J21: =IF($B21="","",VLOOKUP($B21,formula!$A$15:$BI$124,formula!$AV$9,FALSE)) -> 28404067.15 | K21: =IF($B21="","",VLOOKUP($B21,formula!$A$15:$BI$124,formula!$AU$9,FALSE)) -> 7583661.44 | L21: =IF($B21="","",VLOOKUP($B21,formula!$A$15:$BI$124,formula!$AX$9,FALSE)) -> 7590668.44
B22: 14 | C22: 53 | D22: =IF(C21=MaxCoverageYear-1,"***以下空白***",IF($B22="","",IF($B22>plan,"",VLOOKUP($B22,formula!$A$15:$BI$124,formula!$AM$9,FALSE)))) ->  | E22: =IF($B22="","",VLOOKUP($B22,formula!$A$15:$BI$124,formula!$AN$9,FALSE)) -> 6427125 | F22: =IF($B22="","",VLOOKUP($B22,formula!$A$15:$BI$124,formula!$AD$9+1,FALSE)) -> 28688155 | G22: =IF($B22="","",VLOOKUP($B22,formula!$A$15:$BI$124,formula!$AG$9+1,FALSE)) -> 7758481.23 | H22: =IF($B22="","",VLOOKUP($B22,formula!$A$15:$EV$124,formula!$EM$9,FALSE)) -> 1002 | I22: =IF($B22="","",VLOOKUP($B22,formula!$A$15:$EV$124,formula!$EN$9,FALSE)) -> 7007 | J22: =IF($B22="","",VLOOKUP($B22,formula!$A$15:$BI$124,formula!$AV$9,FALSE)) -> 28656161.97 | K22: =IF($B22="","",VLOOKUP($B22,formula!$A$15:$BI$124,formula!$AU$9,FALSE)) -> 7749828.98 | L22: =IF($B22="","",VLOOKUP($B22,formula!$A$15:$BI$124,formula!$AX$9,FALSE)) -> 7757837.98
B23: 15 | C23: 54 | D23: =IF(C22=MaxCoverageYear-1,"***以下空白***",IF($B23="","",IF($B23>plan,"",VLOOKUP($B23,formula!$A$15:$BI$124,formula!$AM$9,FALSE)))) ->  | E23: =IF($B23="","",VLOOKUP($B23,formula!$A$15:$BI$124,formula!$AN$9,FALSE)) -> 6427125 | F23: =IF($B23="","",VLOOKUP($B23,formula!$A$15:$BI$124,formula!$AD$9+1,FALSE)) -> 28950949.6 | G23: =IF($B23="","",VLOOKUP($B23,formula!$A$15:$BI$124,formula!$AG$9+1,FALSE)) -> 7930188.06 | H23: =IF($B23="","",VLOOKUP($B23,formula!$A$15:$EV$124,formula!$EM$9,FALSE)) -> 1002 | I23: =IF($B23="","",VLOOKUP($B23,formula!$A$15:$EV$124,formula!$EN$9,FALSE)) -> 8009 | J23: =IF($B23="","",VLOOKUP($B23,formula!$A$15:$BI$124,formula!$AV$9,FALSE)) -> 28915004.11 | K23: =IF($B23="","",VLOOKUP($B23,formula!$A$15:$BI$124,formula!$AU$9,FALSE)) -> 7920341.94 | L23: =IF($B23="","",VLOOKUP($B23,formula!$A$15:$BI$124,formula!$AX$9,FALSE)) -> 7929352.94
B24: 16 | C24: 55 | D24: =IF(C23=MaxCoverageYear-1,"***以下空白***",IF($B24="","",IF($B24>plan,"",VLOOKUP($B24,formula!$A$15:$BI$124,formula!$AM$9,FALSE)))) ->  | E24: =IF($B24="","",VLOOKUP($B24,formula!$A$15:$BI$124,formula!$AN$9,FALSE)) -> 6427125 | F24: =IF($B24="","",VLOOKUP($B24,formula!$A$15:$BI$124,formula!$AD$9+1,FALSE)) -> 29221150 | G24: =IF($B24="","",VLOOKUP($B24,formula!$A$15:$BI$124,formula!$AG$9+1,FALSE)) -> 8106034.69 | H24: =IF($B24="","",VLOOKUP($B24,formula!$A$15:$EV$124,formula!$EM$9,FALSE)) -> 1002 | I24: =IF($B24="","",VLOOKUP($B24,formula!$A$15:$EV$124,formula!$EN$9,FALSE)) -> 9011 | J24: =IF($B24="","",VLOOKUP($B24,formula!$A$15:$BI$124,formula!$AV$9,FALSE)) -> 29181257.29 | K24: =IF($B24="","",VLOOKUP($B24,formula!$A$15:$BI$124,formula!$AU$9,FALSE)) -> 8094968.34 | L24: =IF($B24="","",VLOOKUP($B24,formula!$A$15:$BI$124,formula!$AX$9,FALSE)) -> 8104981.34
B25: 17 | C25: 56 | D25: =IF(C24=MaxCoverageYear-1,"***以下空白***",IF($B25="","",IF($B25>plan,"",VLOOKUP($B25,formula!$A$15:$BI$124,formula!$AM$9,FALSE)))) ->  | E25: =IF($B25="","",VLOOKUP($B25,formula!$A$15:$BI$124,formula!$AN$9,FALSE)) -> 6427125 | F25: =IF($B25="","",VLOOKUP($B25,formula!$A$15:$BI$124,formula!$AD$9+1,FALSE)) -> 29467104 | G25: =IF($B25="","",VLOOKUP($B25,formula!$A$15:$BI$124,formula!$AG$9+1,FALSE)) -> 8284467.14 | H25: =IF($B25="","",VLOOKUP($B25,formula!$A$15:$EV$124,formula!$EM$9,FALSE)) -> 1002 | I25: =IF($B25="","",VLOOKUP($B25,formula!$A$15:$EV$124,formula!$EN$9,FALSE)) -> 10013 | J25: =IF($B25="","",VLOOKUP($B25,formula!$A$15:$BI$124,formula!$AV$9,FALSE)) -> 29423315.89 | K25: =IF($B25="","",VLOOKUP($B25,formula!$A$15:$BI$124,formula!$AU$9,FALSE)) -> 8272156.43 | L25: =IF($B25="","",VLOOKUP($B25,formula!$A$15:$BI$124,formula!$AX$9,FALSE)) -> 8283170.43
B26: 18 | C26: 57 | D26: =IF(C25=MaxCoverageYear-1,"***以下空白***",IF($B26="","",IF($B26>plan,"",VLOOKUP($B26,formula!$A$15:$BI$124,formula!$AM$9,FALSE)))) ->  | E26: =IF($B26="","",VLOOKUP($B26,formula!$A$15:$BI$124,formula!$AN$9,FALSE)) -> 6427125 | F26: =IF($B26="","",VLOOKUP($B26,formula!$A$15:$BI$124,formula!$AD$9+1,FALSE)) -> 29714402 | G26: =IF($B26="","",VLOOKUP($B26,formula!$A$15:$BI$124,formula!$AG$9+1,FALSE)) -> 8465373.01 | H26: =IF($B26="","",VLOOKUP($B26,formula!$A$15:$EV$124,formula!$EM$9,FALSE)) -> 1001 | I26: =IF($B26="","",VLOOKUP($B26,formula!$A$15:$EV$124,formula!$EN$9,FALSE)) -> 11014 | J26: =IF($B26="","",VLOOKUP($B26,formula!$A$15:$BI$124,formula!$AV$9,FALSE)) -> 29666728.22 | K26: =IF($B26="","",VLOOKUP($B26,formula!$A$15:$BI$124,formula!$AU$9,FALSE)) -> 8451791.17 | L26: =IF($B26="","",VLOOKUP($B26,formula!$A$15:$BI$124,formula!$AX$9,FALSE)) -> 8463807.17
B27: 19 | C27: 58 | D27: =IF(C26=MaxCoverageYear-1,"***以下空白***",IF($B27="","",IF($B27>plan,"",VLOOKUP($B27,formula!$A$15:$BI$124,formula!$AM$9,FALSE)))) ->  | E27: =IF($B27="","",VLOOKUP($B27,formula!$A$15:$BI$124,formula!$AN$9,FALSE)) -> 6427125 | F27: =IF($B27="","",VLOOKUP($B27,formula!$A$15:$BI$124,formula!$AD$9+1,FALSE)) -> 29963722 | G27: =IF($B27="","",VLOOKUP($B27,formula!$A$15:$BI$124,formula!$AG$9+1,FALSE)) -> 8648698.51 | H27: =IF($B27="","",VLOOKUP($B27,formula!$A$15:$EV$124,formula!$EM$9,FALSE)) -> 1002 | I27: =IF($B27="","",VLOOKUP($B27,formula!$A$15:$EV$124,formula!$EN$9,FALSE)) -> 12016 | J27: =IF($B27="","",VLOOKUP($B27,formula!$A$15:$BI$124,formula!$AV$9,FALSE)) -> 29912172.42 | K27: =IF($B27="","",VLOOKUP($B27,formula!$A$15:$BI$124,formula!$AU$9,FALSE)) -> 8633819.29 | L27: =IF($B27="","",VLOOKUP($B27,formula!$A$15:$BI$124,formula!$AX$9,FALSE)) -> 8646838.29
B28: 20 | C28: 59 | D28: =IF(C27=MaxCoverageYear-1,"***以下空白***",IF($B28="","",IF($B28>plan,"",VLOOKUP($B28,formula!$A$15:$BI$124,formula!$AM$9,FALSE)))) ->  | E28: =IF($B28="","",VLOOKUP($B28,formula!$A$15:$BI$124,formula!$AN$9,FALSE)) -> 6427125 | F28: =IF($B28="","",VLOOKUP($B28,formula!$A$15:$BI$124,formula!$AD$9+1,FALSE)) -> 30215063 | G28: =IF($B28="","",VLOOKUP($B28,formula!$A$15:$BI$124,formula!$AG$9+1,FALSE)) -> 8834405.11 | H28: =IF($B28="","",VLOOKUP($B28,formula!$A$15:$EV$124,formula!$EM$9,FALSE)) -> 1003 | I28: =IF($B28="","",VLOOKUP($B28,formula!$A$15:$EV$124,formula!$EN$9,FALSE)) -> 13019 | J28: =IF($B28="","",VLOOKUP($B28,formula!$A$15:$BI$124,formula!$AV$9,FALSE)) -> 30159660.67 | K28: =IF($B28="","",VLOOKUP($B28,formula!$A$15:$BI$124,formula!$AU$9,FALSE)) -> 8818206.35 | L28: =IF($B28="","",VLOOKUP($B28,formula!$A$15:$BI$124,formula!$AX$9,FALSE)) -> 8832225.35
B29: 21 | C29: 60 | D29: =IF(C28=MaxCoverageYear-1,"***以下空白***",IF($B29="","",IF($B29>plan,"",VLOOKUP($B29,formula!$A$15:$BI$124,formula!$AM$9,FALSE)))) ->  | E29: =IF($B29="","",VLOOKUP($B29,formula!$A$15:$BI$124,formula!$AN$9,FALSE)) -> 6427125 | F29: =IF($B29="","",VLOOKUP($B29,formula!$A$15:$BI$124,formula!$AD$9+1,FALSE)) -> 30468423 | G29: =IF($B29="","",VLOOKUP($B29,formula!$A$15:$BI$124,formula!$AG$9+1,FALSE)) -> 9045767.68 | H29: =IF($B29="","",VLOOKUP($B29,formula!$A$15:$EV$124,formula!$EM$9,FALSE)) -> 1000 | I29: =IF($B29="","",VLOOKUP($B29,formula!$A$15:$EV$124,formula!$EN$9,FALSE)) -> 14019 | J29: =IF($B29="","",VLOOKUP($B29,formula!$A$15:$BI$124,formula!$AV$9,FALSE)) -> 30409180.2 | K29: =IF($B29="","",VLOOKUP($B29,formula!$A$15:$BI$124,formula!$AU$9,FALSE)) -> 9028179.09 | L29: =IF($B29="","",VLOOKUP($B29,formula!$A$15:$BI$124,formula!$AX$9,FALSE)) -> 9043200.09
B30: 22 | C30: 61 | D30: =IF(C29=MaxCoverageYear-1,"***以下空白***",IF($B30="","",IF($B30>plan,"",VLOOKUP($B30,formula!$A$15:$BI$124,formula!$AM$9,FALSE)))) ->  | E30: =IF($B30="","",VLOOKUP($B30,formula!$A$15:$BI$124,formula!$AN$9,FALSE)) -> 6427125 | F30: =IF($B30="","",VLOOKUP($B30,formula!$A$15:$BI$124,formula!$AD$9+1,FALSE)) -> 30723801 | G30: =IF($B30="","",VLOOKUP($B30,formula!$A$15:$BI$124,formula!$AG$9+1,FALSE)) -> 9261495.57 | H30: =IF($B30="","",VLOOKUP($B30,formula!$A$15:$EV$124,formula!$EM$9,FALSE)) -> 1002 | I30: =IF($B30="","",VLOOKUP($B30,formula!$A$15:$EV$124,formula!$EN$9,FALSE)) -> 15021 | J30: =IF($B30="","",VLOOKUP($B30,formula!$A$15:$BI$124,formula!$AV$9,FALSE)) -> 30660743.48 | K30: =IF($B30="","",VLOOKUP($B30,formula!$A$15:$BI$124,formula!$AU$9,FALSE)) -> 9242487.28 | L30: =IF($B30="","",VLOOKUP($B30,formula!$A$15:$BI$124,formula!$AX$9,FALSE)) -> 9258508.28
B31: 23 | C31: 62 | D31: =IF(C30=MaxCoverageYear-1,"***以下空白***",IF($B31="","",IF($B31>plan,"",VLOOKUP($B31,formula!$A$15:$BI$124,formula!$AM$9,FALSE)))) ->  | E31: =IF($B31="","",VLOOKUP($B31,formula!$A$15:$BI$124,formula!$AN$9,FALSE)) -> 6427125 | F31: =IF($B31="","",VLOOKUP($B31,formula!$A$15:$BI$124,formula!$AD$9+1,FALSE)) -> 30981199 | G31: =IF($B31="","",VLOOKUP($B31,formula!$A$15:$BI$124,formula!$AG$9+1,FALSE)) -> 9481453.18 | H31: =IF($B31="","",VLOOKUP($B31,formula!$A$15:$EV$124,formula!$EM$9,FALSE)) -> 1000 | I31: =IF($B31="","",VLOOKUP($B31,formula!$A$15:$EV$124,formula!$EN$9,FALSE)) -> 16021 | J31: =IF($B31="","",VLOOKUP($B31,formula!$A$15:$BI$124,formula!$AV$9,FALSE)) -> 30914341.58 | K31: =IF($B31="","",VLOOKUP($B31,formula!$A$15:$BI$124,formula!$AU$9,FALSE)) -> 9460992.21 | L31: =IF($B31="","",VLOOKUP($B31,formula!$A$15:$BI$124,formula!$AX$9,FALSE)) -> 9478014.21
B32: 24 | C32: 63 | D32: =IF(C31=MaxCoverageYear-1,"***以下空白***",IF($B32="","",IF($B32>plan,"",VLOOKUP($B32,formula!$A$15:$BI$124,formula!$AM$9,FALSE)))) ->  | E32: =IF($B32="","",VLOOKUP($B32,formula!$A$15:$BI$124,formula!$AN$9,FALSE)) -> 6427125 | F32: =IF($B32="","",VLOOKUP($B32,formula!$A$15:$BI$124,formula!$AD$9+1,FALSE)) -> 31240628 | G32: =IF($B32="","",VLOOKUP($B32,formula!$A$15:$BI$124,formula!$AG$9+1,FALSE)) -> 9705577.78 | H32: =IF($B32="","",VLOOKUP($B32,formula!$A$15:$EV$124,formula!$EM$9,FALSE)) -> 1001 | I32: =IF($B32="","",VLOOKUP($B32,formula!$A$15:$EV$124,formula!$EN$9,FALSE)) -> 17022 | J32: =IF($B32="","",VLOOKUP($B32,formula!$A$15:$BI$124,formula!$AV$9,FALSE)) -> 31169986.7 | K32: =IF($B32="","",VLOOKUP($B32,formula!$A$15:$BI$124,formula!$AU$9,FALSE)) -> 9683631.53 | L32: =IF($B32="","",VLOOKUP($B32,formula!$A$15:$BI$124,formula!$AX$9,FALSE)) -> 9701655.53
B33: 25 | C33: 64 | D33: =IF(C32=MaxCoverageYear-1,"***以下空白***",IF($B33="","",IF($B33>plan,"",VLOOKUP($B33,formula!$A$15:$BI$124,formula!$AM$9,FALSE)))) ->  | E33: =IF($B33="","",VLOOKUP($B33,formula!$A$15:$BI$124,formula!$AN$9,FALSE)) -> 6427125 | F33: =IF($B33="","",VLOOKUP($B33,formula!$A$15:$BI$124,formula!$AD$9+1,FALSE)) -> 31502076 | G33: =IF($B33="","",VLOOKUP($B33,formula!$A$15:$BI$124,formula!$AG$9+1,FALSE)) -> 9933748.38 | H33: =IF($B33="","",VLOOKUP($B33,formula!$A$15:$EV$124,formula!$EM$9,FALSE)) -> 1002 | I33: =IF($B33="","",VLOOKUP($B33,formula!$A$15:$EV$124,formula!$EN$9,FALSE)) -> 18024 | J33: =IF($B33="","",VLOOKUP($B33,formula!$A$15:$BI$124,formula!$AV$9,FALSE)) -> 31427668.1 | K33: =IF($B33="","",VLOOKUP($B33,formula!$A$15:$BI$124,formula!$AU$9,FALSE)) -> 9910284.87 | L33: =IF($B33="","",VLOOKUP($B33,formula!$A$15:$BI$124,formula!$AX$9,FALSE)) -> 9929309.87
B34: 26 | C34: 65 | D34: =IF(C33=MaxCoverageYear-1,"***以下空白***",IF($B34="","",IF($B34>plan,"",VLOOKUP($B34,formula!$A$15:$BI$124,formula!$AM$9,FALSE)))) ->  | E34: =IF($B34="","",VLOOKUP($B34,formula!$A$15:$BI$124,formula!$AN$9,FALSE)) -> 6427125 | F34: =IF($B34="","",VLOOKUP($B34,formula!$A$15:$BI$124,formula!$AD$9+1,FALSE)) -> 31765550 | G34: =IF($B34="","",VLOOKUP($B34,formula!$A$15:$BI$124,formula!$AG$9+1,FALSE)) -> 10164404.99 | H34: =IF($B34="","",VLOOKUP($B34,formula!$A$15:$EV$124,formula!$EM$9,FALSE)) -> 1001 | I34: =IF($B34="","",VLOOKUP($B34,formula!$A$15:$EV$124,formula!$EN$9,FALSE)) -> 19025 | J34: =IF($B34="","",VLOOKUP($B34,formula!$A$15:$BI$124,formula!$AV$9,FALSE)) -> 31687394.05 | K34: =IF($B34="","",VLOOKUP($B34,formula!$A$15:$BI$124,formula!$AU$9,FALSE)) -> 10139396.49 | L34: =IF($B34="","",VLOOKUP($B34,formula!$A$15:$BI$124,formula!$AX$9,FALSE)) -> 10159421.49
B35: 27 | C35: 66 | D35: =IF(C34=MaxCoverageYear-1,"***以下空白***",IF($B35="","",IF($B35>plan,"",VLOOKUP($B35,formula!$A$15:$BI$124,formula!$AM$9,FALSE)))) ->  | E35: =IF($B35="","",VLOOKUP($B35,formula!$A$15:$BI$124,formula!$AN$9,FALSE)) -> 6427125 | F35: =IF($B35="","",VLOOKUP($B35,formula!$A$15:$BI$124,formula!$AD$9+1,FALSE)) -> 32031043 | G35: =IF($B35="","",VLOOKUP($B35,formula!$A$15:$BI$124,formula!$AG$9+1,FALSE)) -> 10399106.89 | H35: =IF($B35="","",VLOOKUP($B35,formula!$A$15:$EV$124,formula!$EM$9,FALSE)) -> 1000 | I35: =IF($B35="","",VLOOKUP($B35,formula!$A$15:$EV$124,formula!$EN$9,FALSE)) -> 20025 | J35: =IF($B35="","",VLOOKUP($B35,formula!$A$15:$BI$124,formula!$AV$9,FALSE)) -> 31949146.03 | K35: =IF($B35="","",VLOOKUP($B35,formula!$A$15:$BI$124,formula!$AU$9,FALSE)) -> 10372518.46 | L35: =IF($B35="","",VLOOKUP($B35,formula!$A$15:$BI$124,formula!$AX$9,FALSE)) -> 10393545.46
B36: 28 | C36: 67 | D36: =IF(C35=MaxCoverageYear-1,"***以下空白***",IF($B36="","",IF($B36>plan,"",VLOOKUP($B36,formula!$A$15:$BI$124,formula!$AM$9,FALSE)))) ->  | E36: =IF($B36="","",VLOOKUP($B36,formula!$A$15:$BI$124,formula!$AN$9,FALSE)) -> 6427125 | F36: =IF($B36="","",VLOOKUP($B36,formula!$A$15:$BI$124,formula!$AD$9+1,FALSE)) -> 32297886 | G36: =IF($B36="","",VLOOKUP($B36,formula!$A$15:$BI$124,formula!$AG$9+1,FALSE)) -> 10637425.54 | H36: =IF($B36="","",VLOOKUP($B36,formula!$A$15:$EV$124,formula!$EM$9,FALSE)) -> 1002 | I36: =IF($B36="","",VLOOKUP($B36,formula!$A$15:$EV$124,formula!$EN$9,FALSE)) -> 21027 | J36: =IF($B36="","",VLOOKUP($B36,formula!$A$15:$BI$124,formula!$AV$9,FALSE)) -> 32212257.85 | K36: =IF($B36="","",VLOOKUP($B36,formula!$A$15:$BI$124,formula!$AU$9,FALSE)) -> 10609223.6 | L36: =IF($B36="","",VLOOKUP($B36,formula!$A$15:$BI$124,formula!$AX$9,FALSE)) -> 10631254.6
B37: 29 | C37: 68 | D37: =IF(C36=MaxCoverageYear-1,"***以下空白***",IF($B37="","",IF($B37>plan,"",VLOOKUP($B37,formula!$A$15:$BI$124,formula!$AM$9,FALSE)))) ->  | E37: =IF($B37="","",VLOOKUP($B37,formula!$A$15:$BI$124,formula!$AN$9,FALSE)) -> 6427125 | F37: =IF($B37="","",VLOOKUP($B37,formula!$A$15:$BI$124,formula!$AD$9+1,FALSE)) -> 32567414 | G37: =IF($B37="","",VLOOKUP($B37,formula!$A$15:$BI$124,formula!$AG$9+1,FALSE)) -> 10879205.03 | H37: =IF($B37="","",VLOOKUP($B37,formula!$A$15:$EV$124,formula!$EM$9,FALSE)) -> 1004 | I37: =IF($B37="","",VLOOKUP($B37,formula!$A$15:$EV$124,formula!$EN$9,FALSE)) -> 22031 | J37: =IF($B37="","",VLOOKUP($B37,formula!$A$15:$BI$124,formula!$AV$9,FALSE)) -> 32478075.07 | K37: =IF($B37="","",VLOOKUP($B37,formula!$A$15:$BI$124,formula!$AU$9,FALSE)) -> 10849361.2 | L37: =IF($B37="","",VLOOKUP($B37,formula!$A$15:$BI$124,formula!$AX$9,FALSE)) -> 10872393.2
B38: 30 | C38: 69 | D38: =IF(C37=MaxCoverageYear-1,"***以下空白***",IF($B38="","",IF($B38>plan,"",VLOOKUP($B38,formula!$A$15:$BI$124,formula!$AM$9,FALSE)))) ->  | E38: =IF($B38="","",VLOOKUP($B38,formula!$A$15:$BI$124,formula!$AN$9,FALSE)) -> 6427125 | F38: =IF($B38="","",VLOOKUP($B38,formula!$A$15:$BI$124,formula!$AD$9+1,FALSE)) -> 32839641 | G38: =IF($B38="","",VLOOKUP($B38,formula!$A$15:$BI$124,formula!$AG$9+1,FALSE)) -> 11124283.92 | H38: =IF($B38="","",VLOOKUP($B38,formula!$A$15:$EV$124,formula!$EM$9,FALSE)) -> 1001 | I38: =IF($B38="","",VLOOKUP($B38,formula!$A$15:$EV$124,formula!$EN$9,FALSE)) -> 23032 | J38: =IF($B38="","",VLOOKUP($B38,formula!$A$15:$BI$124,formula!$AV$9,FALSE)) -> 32746599.73 | K38: =IF($B38="","",VLOOKUP($B38,formula!$A$15:$BI$124,formula!$AU$9,FALSE)) -> 11092766.6 | L38: =IF($B38="","",VLOOKUP($B38,formula!$A$15:$BI$124,formula!$AX$9,FALSE)) -> 11116799.6
B39: 31 | C39: 70 | D39: =IF(C38=MaxCoverageYear-1,"***以下空白***",IF($B39="","",IF($B39>plan,"",VLOOKUP($B39,formula!$A$15:$BI$124,formula!$AM$9,FALSE)))) ->  | E39: =IF($B39="","",VLOOKUP($B39,formula!$A$15:$BI$124,formula!$AN$9,FALSE)) -> 6427125 | F39: =IF($B39="","",VLOOKUP($B39,formula!$A$15:$BI$124,formula!$AD$9+1,FALSE)) -> 32900597 | G39: =IF($B39="","",VLOOKUP($B39,formula!$A$15:$BI$124,formula!$AG$9+1,FALSE)) -> 11425606.15 | H39: =IF($B39="","",VLOOKUP($B39,formula!$A$15:$EV$124,formula!$EM$9,FALSE)) -> 1001 | I39: =IF($B39="","",VLOOKUP($B39,formula!$A$15:$EV$124,formula!$EN$9,FALSE)) -> 24033 | J39: =IF($B39="","",VLOOKUP($B39,formula!$A$15:$BI$124,formula!$AV$9,FALSE)) -> 32804500.94 | K39: =IF($B39="","",VLOOKUP($B39,formula!$A$15:$BI$124,formula!$AU$9,FALSE)) -> 11392234.24 | L39: =IF($B39="","",VLOOKUP($B39,formula!$A$15:$BI$124,formula!$AX$9,FALSE)) -> 11417268.24
B40: 32 | C40: 71 | D40: =IF(C39=MaxCoverageYear-1,"***以下空白***",IF($B40="","",IF($B40>plan,"",VLOOKUP($B40,formula!$A$15:$BI$124,formula!$AM$9,FALSE)))) ->  | E40: =IF($B40="","",VLOOKUP($B40,formula!$A$15:$BI$124,formula!$AN$9,FALSE)) -> 6427125 | F40: =IF($B40="","",VLOOKUP($B40,formula!$A$15:$BI$124,formula!$AD$9+1,FALSE)) -> 32963184 | G40: =IF($B40="","",VLOOKUP($B40,formula!$A$15:$BI$124,formula!$AG$9+1,FALSE)) -> 11734670.64 | H40: =IF($B40="","",VLOOKUP($B40,formula!$A$15:$EV$124,formula!$EM$9,FALSE)) -> 1001 | I40: =IF($B40="","",VLOOKUP($B40,formula!$A$15:$EV$124,formula!$EN$9,FALSE)) -> 25034 | J40: =IF($B40="","",VLOOKUP($B40,formula!$A$15:$BI$124,formula!$AV$9,FALSE)) -> 32864083.49 | K40: =IF($B40="","",VLOOKUP($B40,formula!$A$15:$BI$124,formula!$AU$9,FALSE)) -> 11699391.53 | L40: =IF($B40="","",VLOOKUP($B40,formula!$A$15:$BI$124,formula!$AX$9,FALSE)) -> 11725429.53
B41: 33 | C41: 72 | D41: =IF(C40=MaxCoverageYear-1,"***以下空白***",IF($B41="","",IF($B41>plan,"",VLOOKUP($B41,formula!$A$15:$BI$124,formula!$AM$9,FALSE)))) ->  | E41: =IF($B41="","",VLOOKUP($B41,formula!$A$15:$BI$124,formula!$AN$9,FALSE)) -> 6427125 | F41: =IF($B41="","",VLOOKUP($B41,formula!$A$15:$BI$124,formula!$AD$9+1,FALSE)) -> 33027443 | G41: =IF($B41="","",VLOOKUP($B41,formula!$A$15:$BI$124,formula!$AG$9+1,FALSE)) -> 12051042.47 | H41: =IF($B41="","",VLOOKUP($B41,formula!$A$15:$EV$124,formula!$EM$9,FALSE)) -> 1004 | I41: =IF($B41="","",VLOOKUP($B41,formula!$A$15:$EV$124,formula!$EN$9,FALSE)) -> 26038 | J41: =IF($B41="","",VLOOKUP($B41,formula!$A$15:$BI$124,formula!$AV$9,FALSE)) -> 32925401.42 | K41: =IF($B41="","",VLOOKUP($B41,formula!$A$15:$BI$124,formula!$AU$9,FALSE)) -> 12013809.57 | L41: =IF($B41="","",VLOOKUP($B41,formula!$A$15:$BI$124,formula!$AX$9,FALSE)) -> 12040850.57
B42: 34 | C42: 73 | D42: =IF(C41=MaxCoverageYear-1,"***以下空白***",IF($B42="","",IF($B42>plan,"",VLOOKUP($B42,formula!$A$15:$BI$124,formula!$AM$9,FALSE)))) ->  | E42: =IF($B42="","",VLOOKUP($B42,formula!$A$15:$BI$124,formula!$AN$9,FALSE)) -> 6427125 | F42: =IF($B42="","",VLOOKUP($B42,formula!$A$15:$BI$124,formula!$AD$9+1,FALSE)) -> 33090869 | G42: =IF($B42="","",VLOOKUP($B42,formula!$A$15:$BI$124,formula!$AG$9+1,FALSE)) -> 12374934.11 | H42: =IF($B42="","",VLOOKUP($B42,formula!$A$15:$EV$124,formula!$EM$9,FALSE)) -> 1003 | I42: =IF($B42="","",VLOOKUP($B42,formula!$A$15:$EV$124,formula!$EN$9,FALSE)) -> 27041 | J42: =IF($B42="","",VLOOKUP($B42,formula!$A$15:$BI$124,formula!$AV$9,FALSE)) -> 32985944.48 | K42: =IF($B42="","",VLOOKUP($B42,formula!$A$15:$BI$124,formula!$AU$9,FALSE)) -> 12335695.67 | L42: =IF($B42="","",VLOOKUP($B42,formula!$A$15:$BI$124,formula!$AX$9,FALSE)) -> 12363741.67
B43: 35 | C43: 74 | D43: =IF(C42=MaxCoverageYear-1,"***以下空白***",IF($B43="","",IF($B43>plan,"",VLOOKUP($B43,formula!$A$15:$BI$124,formula!$AM$9,FALSE)))) ->  | E43: =IF($B43="","",VLOOKUP($B43,formula!$A$15:$BI$124,formula!$AN$9,FALSE)) -> 6427125 | F43: =IF($B43="","",VLOOKUP($B43,formula!$A$15:$BI$124,formula!$AD$9+1,FALSE)) -> 33155989 | G43: =IF($B43="","",VLOOKUP($B43,formula!$A$15:$BI$124,formula!$AG$9+1,FALSE)) -> 12706498.73 | H43: =IF($B43="","",VLOOKUP($B43,formula!$A$15:$EV$124,formula!$EM$9,FALSE)) -> 1005 | I43: =IF($B43="","",VLOOKUP($B43,formula!$A$15:$EV$124,formula!$EN$9,FALSE)) -> 28046 | J43: =IF($B43="","",VLOOKUP($B43,formula!$A$15:$BI$124,formula!$AV$9,FALSE)) -> 33048245.3 | K43: =IF($B43="","",VLOOKUP($B43,formula!$A$15:$BI$124,formula!$AU$9,FALSE)) -> 12665207.7 | L43: =IF($B43="","",VLOOKUP($B43,formula!$A$15:$BI$124,formula!$AX$9,FALSE)) -> 12694254.7
M44: (幣別/單位：美元/元)
B45: 年度 | C45: 年齡 | D45: 折扣後 當年度 所繳保險費 | E45: 折扣後 累計 所繳保險費 | F45: 【非保證給付項目】假設分紅-最可能紅利金額(保額)(中分紅)
F46: 原保險金額試算 | H46: 減少保險金額試算
F47: 當年度末 壽險保障及 假設紅利_分紅保額 (預估值) (中) | G47: 當年度末 可能領取 解約金總額 (預估值) (中) | H47: 該次減少 基本保險金額 可領取之解約金 (預估值) (年初) | I47: 歷年減少 基本保險金額 領取之解約金總額 (預估值) A | J47: 減少基本保險金額後 當年度末壽險保障及 假設紅利_分紅保額 (預估值) | K47: 減少基本保險金額後 當年度末解約 可能領取之解約金 (預估值) B | L47: 累計至當年度末解約可能總領金額 (預估值) A+B=C
B48: =IF(B43>=109-age+1,"",B43+1) -> 36 | C48: 75 | D48: =IF(C43=MaxCoverageYear-1,"***以下空白***",IF($B48="","",IF($B48>plan,"",VLOOKUP($B48,formula!$A$15:$BI$124,formula!$AM$9,FALSE)))) ->  | E48: =IF($B48="","",VLOOKUP($B48,formula!$A$15:$BI$124,formula!$AN$9,FALSE)) -> 6427125 | F48: =IF($B48="","",VLOOKUP($B48,formula!$A$15:$BI$124,formula!$AD$9+1,FALSE)) -> 33219591 | G48: =IF($B48="","",VLOOKUP($B48,formula!$A$15:$BI$124,formula!$AG$9+1,FALSE)) -> 13046549.29 | H48: =IF($B48="","",VLOOKUP($B48,formula!$A$15:$EV$124,formula!$EM$9,FALSE)) -> 1001 | I48: =IF($B48="","",VLOOKUP($B48,formula!$A$15:$EV$124,formula!$EN$9,FALSE)) -> 29047 | J48: =IF($B48="","",VLOOKUP($B48,formula!$A$15:$BI$124,formula!$AV$9,FALSE)) -> 33109089.36 | K48: =IF($B48="","",VLOOKUP($B48,formula!$A$15:$BI$124,formula!$AU$9,FALSE)) -> 13003151.25 | L48: =IF($B48="","",VLOOKUP($B48,formula!$A$15:$BI$124,formula!$AX$9,FALSE)) -> 13033200.25
B49: 37 | C49: 76 | D49: =IF(C48=MaxCoverageYear-1,"***以下空白***",IF($B49="","",IF($B49>plan,"",VLOOKUP($B49,formula!$A$15:$BI$124,formula!$AM$9,FALSE)))) ->  | E49: =IF($B49="","",VLOOKUP($B49,formula!$A$15:$BI$124,formula!$AN$9,FALSE)) -> 6427125 | F49: =IF($B49="","",VLOOKUP($B49,formula!$A$15:$BI$124,formula!$AD$9+1,FALSE)) -> 33284927 | G49: =IF($B49="","",VLOOKUP($B49,formula!$A$15:$BI$124,formula!$AG$9+1,FALSE)) -> 13394550.24 | H49: =IF($B49="","",VLOOKUP($B49,formula!$A$15:$EV$124,formula!$EM$9,FALSE)) -> 1002 | I49: =IF($B49="","",VLOOKUP($B49,formula!$A$15:$EV$124,formula!$EN$9,FALSE)) -> 30049 | J49: =IF($B49="","",VLOOKUP($B49,formula!$A$15:$BI$124,formula!$AV$9,FALSE)) -> 33171718.31 | K49: =IF($B49="","",VLOOKUP($B49,formula!$A$15:$BI$124,formula!$AU$9,FALSE)) -> 13348992.7 | L49: =IF($B49="","",VLOOKUP($B49,formula!$A$15:$BI$124,formula!$AX$9,FALSE)) -> 13380043.7
B50: 38 | C50: 77 | D50: =IF(C49=MaxCoverageYear-1,"***以下空白***",IF($B50="","",IF($B50>plan,"",VLOOKUP($B50,formula!$A$15:$BI$124,formula!$AM$9,FALSE)))) ->  | E50: =IF($B50="","",VLOOKUP($B50,formula!$A$15:$BI$124,formula!$AN$9,FALSE)) -> 6427125 | F50: =IF($B50="","",VLOOKUP($B50,formula!$A$15:$BI$124,formula!$AD$9+1,FALSE)) -> 33349359 | G50: =IF($B50="","",VLOOKUP($B50,formula!$A$15:$BI$124,formula!$AG$9+1,FALSE)) -> 13750794.21 | H50: =IF($B50="","",VLOOKUP($B50,formula!$A$15:$EV$124,formula!$EM$9,FALSE)) -> 1002 | I50: =IF($B50="","",VLOOKUP($B50,formula!$A$15:$EV$124,formula!$EN$9,FALSE)) -> 31051 | J50: =IF($B50="","",VLOOKUP($B50,formula!$A$15:$BI$124,formula!$AV$9,FALSE)) -> 33233503.33 | K50: =IF($B50="","",VLOOKUP($B50,formula!$A$15:$BI$124,formula!$AU$9,FALSE)) -> 13703023.96 | L50: =IF($B50="","",VLOOKUP($B50,formula!$A$15:$BI$124,formula!$AX$9,FALSE)) -> 13735075.96
B51: 39 | C51: 78 | D51: =IF(C50=MaxCoverageYear-1,"***以下空白***",IF($B51="","",IF($B51>plan,"",VLOOKUP($B51,formula!$A$15:$BI$124,formula!$AM$9,FALSE)))) ->  | E51: =IF($B51="","",VLOOKUP($B51,formula!$A$15:$BI$124,formula!$AN$9,FALSE)) -> 6427125 | F51: =IF($B51="","",VLOOKUP($B51,formula!$A$15:$BI$124,formula!$AD$9+1,FALSE)) -> 33415553 | G51: =IF($B51="","",VLOOKUP($B51,formula!$A$15:$BI$124,formula!$AG$9+1,FALSE)) -> 14115465.97 | H51: =IF($B51="","",VLOOKUP($B51,formula!$A$15:$EV$124,formula!$EM$9,FALSE)) -> 1001 | I51: =IF($B51="","",VLOOKUP($B51,formula!$A$15:$EV$124,formula!$EN$9,FALSE)) -> 32052 | J51: =IF($B51="","",VLOOKUP($B51,formula!$A$15:$BI$124,formula!$AV$9,FALSE)) -> 33297088.19 | K51: =IF($B51="","",VLOOKUP($B51,formula!$A$15:$BI$124,formula!$AU$9,FALSE)) -> 14065423.83 | L51: =IF($B51="","",VLOOKUP($B51,formula!$A$15:$BI$124,formula!$AX$9,FALSE)) -> 14098480.83
B52: 40 | C52: 79 | D52: =IF(C51=MaxCoverageYear-1,"***以下空白***",IF($B52="","",IF($B52>plan,"",VLOOKUP($B52,formula!$A$15:$BI$124,formula!$AM$9,FALSE)))) ->  | E52: =IF($B52="","",VLOOKUP($B52,formula!$A$15:$BI$124,formula!$AN$9,FALSE)) -> 6427125 | F52: =IF($B52="","",VLOOKUP($B52,formula!$A$15:$BI$124,formula!$AD$9+1,FALSE)) -> 33685655 | G52: =IF($B52="","",VLOOKUP($B52,formula!$A$15:$BI$124,formula!$AG$9+1,FALSE)) -> 14488821.64 | H52: =IF($B52="","",VLOOKUP($B52,formula!$A$15:$EV$124,formula!$EM$9,FALSE)) -> 1005 | I52: =IF($B52="","",VLOOKUP($B52,formula!$A$15:$EV$124,formula!$EN$9,FALSE)) -> 33057 | J52: =IF($B52="","",VLOOKUP($B52,formula!$A$15:$BI$124,formula!$AV$9,FALSE)) -> 33563901.57 | K52: =IF($B52="","",VLOOKUP($B52,formula!$A$15:$BI$124,formula!$AU$9,FALSE)) -> 14436453.25 | L52: =IF($B52="","",VLOOKUP($B52,formula!$A$15:$BI$124,formula!$AX$9,FALSE)) -> 14470513.25
B53: 41 | C53: 80 | D53: =IF(C52=MaxCoverageYear-1,"***以下空白***",IF($B53="","",IF($B53>plan,"",VLOOKUP($B53,formula!$A$15:$BI$124,formula!$AM$9,FALSE)))) ->  | E53: =IF($B53="","",VLOOKUP($B53,formula!$A$15:$BI$124,formula!$AN$9,FALSE)) -> 6427125 | F53: =IF($B53="","",VLOOKUP($B53,formula!$A$15:$BI$124,formula!$AD$9+1,FALSE)) -> 33964991 | G53: =IF($B53="","",VLOOKUP($B53,formula!$A$15:$BI$124,formula!$AG$9+1,FALSE)) -> 14871197.16 | H53: =IF($B53="","",VLOOKUP($B53,formula!$A$15:$EV$124,formula!$EM$9,FALSE)) -> 1003 | I53: =IF($B53="","",VLOOKUP($B53,formula!$A$15:$EV$124,formula!$EN$9,FALSE)) -> 34060 | J53: =IF($B53="","",VLOOKUP($B53,formula!$A$15:$BI$124,formula!$AV$9,FALSE)) -> 33839931.91 | K53: =IF($B53="","",VLOOKUP($B53,formula!$A$15:$BI$124,formula!$AU$9,FALSE)) -> 14816441.42 | L53: =IF($B53="","",VLOOKUP($B53,formula!$A$15:$BI$124,formula!$AX$9,FALSE)) -> 14851506.42
B54: 42 | C54: 81 | D54: =IF(C53=MaxCoverageYear-1,"***以下空白***",IF($B54="","",IF($B54>plan,"",VLOOKUP($B54,formula!$A$15:$BI$124,formula!$AM$9,FALSE)))) ->  | E54: =IF($B54="","",VLOOKUP($B54,formula!$A$15:$BI$124,formula!$AN$9,FALSE)) -> 6427125 | F54: =IF($B54="","",VLOOKUP($B54,formula!$A$15:$BI$124,formula!$AD$9+1,FALSE)) -> 34245597 | G54: =IF($B54="","",VLOOKUP($B54,formula!$A$15:$BI$124,formula!$AG$9+1,FALSE)) -> 15262978.18 | H54: =IF($B54="","",VLOOKUP($B54,formula!$A$15:$EV$124,formula!$EM$9,FALSE)) -> 1005 | I54: =IF($B54="","",VLOOKUP($B54,formula!$A$15:$EV$124,formula!$EN$9,FALSE)) -> 35065 | J54: =IF($B54="","",VLOOKUP($B54,formula!$A$15:$BI$124,formula!$AV$9,FALSE)) -> 34117258.21 | K54: =IF($B54="","",VLOOKUP($B54,formula!$A$15:$BI$124,formula!$AU$9,FALSE)) -> 15205778.65 | L54: =IF($B54="","",VLOOKUP($B54,formula!$A$15:$BI$124,formula!$AX$9,FALSE)) -> 15241844.65
B55: 43 | C55: 82 | D55: =IF(C54=MaxCoverageYear-1,"***以下空白***",IF($B55="","",IF($B55>plan,"",VLOOKUP($B55,formula!$A$15:$BI$124,formula!$AM$9,FALSE)))) ->  | E55: =IF($B55="","",VLOOKUP($B55,formula!$A$15:$BI$124,formula!$AN$9,FALSE)) -> 6427125 | F55: =IF($B55="","",VLOOKUP($B55,formula!$A$15:$BI$124,formula!$AD$9+1,FALSE)) -> 34529384 | G55: =IF($B55="","",VLOOKUP($B55,formula!$A$15:$BI$124,formula!$AG$9+1,FALSE)) -> 15664571.58 | H55: =IF($B55="","",VLOOKUP($B55,formula!$A$15:$EV$124,formula!$EM$9,FALSE)) -> 1001 | I55: =IF($B55="","",VLOOKUP($B55,formula!$A$15:$EV$124,formula!$EN$9,FALSE)) -> 36066 | J55: =IF($B55="","",VLOOKUP($B55,formula!$A$15:$BI$124,formula!$AV$9,FALSE)) -> 34397771.8 | K55: =IF($B55="","",VLOOKUP($B55,formula!$A$15:$BI$124,formula!$AU$9,FALSE)) -> 15604864.5 | L55: =IF($B55="","",VLOOKUP($B55,formula!$A$15:$BI$124,formula!$AX$9,FALSE)) -> 15641933.5
B56: 44 | C56: 83 | D56: =IF(C55=MaxCoverageYear-1,"***以下空白***",IF($B56="","",IF($B56>plan,"",VLOOKUP($B56,formula!$A$15:$BI$124,formula!$AM$9,FALSE)))) ->  | E56: =IF($B56="","",VLOOKUP($B56,formula!$A$15:$BI$124,formula!$AN$9,FALSE)) -> 6427125 | F56: =IF($B56="","",VLOOKUP($B56,formula!$A$15:$BI$124,formula!$AD$9+1,FALSE)) -> 34814447 | G56: =IF($B56="","",VLOOKUP($B56,formula!$A$15:$BI$124,formula!$AG$9+1,FALSE)) -> 16076368.87 | H56: =IF($B56="","",VLOOKUP($B56,formula!$A$15:$EV$124,formula!$EM$9,FALSE)) -> 1003 | I56: =IF($B56="","",VLOOKUP($B56,formula!$A$15:$EV$124,formula!$EN$9,FALSE)) -> 37069 | J56: =IF($B56="","",VLOOKUP($B56,formula!$A$15:$BI$124,formula!$AV$9,FALSE)) -> 34679575.84 | K56: =IF($B56="","",VLOOKUP($B56,formula!$A$15:$BI$124,formula!$AU$9,FALSE)) -> 16014089.02 | L56: =IF($B56="","",VLOOKUP($B56,formula!$A$15:$BI$124,formula!$AX$9,FALSE)) -> 16052161.02
B57: 45 | C57: 84 | D57: =IF(C56=MaxCoverageYear-1,"***以下空白***",IF($B57="","",IF($B57>plan,"",VLOOKUP($B57,formula!$A$15:$BI$124,formula!$AM$9,FALSE)))) ->  | E57: =IF($B57="","",VLOOKUP($B57,formula!$A$15:$BI$124,formula!$AN$9,FALSE)) -> 6427125 | F57: =IF($B57="","",VLOOKUP($B57,formula!$A$15:$BI$124,formula!$AD$9+1,FALSE)) -> 35102053 | G57: =IF($B57="","",VLOOKUP($B57,formula!$A$15:$BI$124,formula!$AG$9+1,FALSE)) -> 16498742.95 | H57: =IF($B57="","",VLOOKUP($B57,formula!$A$15:$EV$124,formula!$EM$9,FALSE)) -> 1003 | I57: =IF($B57="","",VLOOKUP($B57,formula!$A$15:$EV$124,formula!$EN$9,FALSE)) -> 38072 | J57: =IF($B57="","",VLOOKUP($B57,formula!$A$15:$BI$124,formula!$AV$9,FALSE)) -> 34963933.45 | K57: =IF($B57="","",VLOOKUP($B57,formula!$A$15:$BI$124,formula!$AU$9,FALSE)) -> 16433823.7 | L57: =IF($B57="","",VLOOKUP($B57,formula!$A$15:$BI$124,formula!$AX$9,FALSE)) -> 16472898.7
B58: 46 | C58: 85 | D58: =IF(C57=MaxCoverageYear-1,"***以下空白***",IF($B58="","",IF($B58>plan,"",VLOOKUP($B58,formula!$A$15:$BI$124,formula!$AM$9,FALSE)))) ->  | E58: =IF($B58="","",VLOOKUP($B58,formula!$A$15:$BI$124,formula!$AN$9,FALSE)) -> 6427125 | F58: =IF($B58="","",VLOOKUP($B58,formula!$A$15:$BI$124,formula!$AD$9+1,FALSE)) -> 35392198 | G58: =IF($B58="","",VLOOKUP($B58,formula!$A$15:$BI$124,formula!$AG$9+1,FALSE)) -> 16932039.1 | H58: =IF($B58="","",VLOOKUP($B58,formula!$A$15:$EV$124,formula!$EM$9,FALSE)) -> 1003 | I58: =IF($B58="","",VLOOKUP($B58,formula!$A$15:$EV$124,formula!$EN$9,FALSE)) -> 39075 | J58: =IF($B58="","",VLOOKUP($B58,formula!$A$15:$BI$124,formula!$AV$9,FALSE)) -> 35250841.57 | K58: =IF($B58="","",VLOOKUP($B58,formula!$A$15:$BI$124,formula!$AU$9,FALSE)) -> 16864412.54 | L58: =IF($B58="","",VLOOKUP($B58,formula!$A$15:$BI$124,formula!$AX$9,FALSE)) -> 16904489.54
B59: 47 | C59: 86 | D59: =IF(C58=MaxCoverageYear-1,"***以下空白***",IF($B59="","",IF($B59>plan,"",VLOOKUP($B59,formula!$A$15:$BI$124,formula!$AM$9,FALSE)))) ->  | E59: =IF($B59="","",VLOOKUP($B59,formula!$A$15:$BI$124,formula!$AN$9,FALSE)) -> 6427125 | F59: =IF($B59="","",VLOOKUP($B59,formula!$A$15:$BI$124,formula!$AD$9+1,FALSE)) -> 35684251 | G59: =IF($B59="","",VLOOKUP($B59,formula!$A$15:$BI$124,formula!$AG$9+1,FALSE)) -> 17376597.11 | H59: =IF($B59="","",VLOOKUP($B59,formula!$A$15:$EV$124,formula!$EM$9,FALSE)) -> 1002 | I59: =IF($B59="","",VLOOKUP($B59,formula!$A$15:$EV$124,formula!$EN$9,FALSE)) -> 40077 | J59: =IF($B59="","",VLOOKUP($B59,formula!$A$15:$BI$124,formula!$AV$9,FALSE)) -> 35539672.69 | K59: =IF($B59="","",VLOOKUP($B59,formula!$A$15:$BI$124,formula!$AU$9,FALSE)) -> 17306194.09 | L59: =IF($B59="","",VLOOKUP($B59,formula!$A$15:$BI$124,formula!$AX$9,FALSE)) -> 17347272.09
B60: 48 | C60: 87 | D60: =IF(C59=MaxCoverageYear-1,"***以下空白***",IF($B60="","",IF($B60>plan,"",VLOOKUP($B60,formula!$A$15:$BI$124,formula!$AM$9,FALSE)))) ->  | E60: =IF($B60="","",VLOOKUP($B60,formula!$A$15:$BI$124,formula!$AN$9,FALSE)) -> 6427125 | F60: =IF($B60="","",VLOOKUP($B60,formula!$A$15:$BI$124,formula!$AD$9+1,FALSE)) -> 35978214 | G60: =IF($B60="","",VLOOKUP($B60,formula!$A$15:$BI$124,formula!$AG$9+1,FALSE)) -> 17832764.07 | H60: =IF($B60="","",VLOOKUP($B60,formula!$A$15:$EV$124,formula!$EM$9,FALSE)) -> 1001 | I60: =IF($B60="","",VLOOKUP($B60,formula!$A$15:$EV$124,formula!$EN$9,FALSE)) -> 41078 | J60: =IF($B60="","",VLOOKUP($B60,formula!$A$15:$BI$124,formula!$AV$9,FALSE)) -> 35830415.5 | K60: =IF($B60="","",VLOOKUP($B60,formula!$A$15:$BI$124,formula!$AU$9,FALSE)) -> 17759507.08 | L60: =IF($B60="","",VLOOKUP($B60,formula!$A$15:$BI$124,formula!$AX$9,FALSE)) -> 17801591.08
B61: 49 | C61: 88 | D61: =IF(C60=MaxCoverageYear-1,"***以下空白***",IF($B61="","",IF($B61>plan,"",VLOOKUP($B61,formula!$A$15:$BI$124,formula!$AM$9,FALSE)))) ->  | E61: =IF($B61="","",VLOOKUP($B61,formula!$A$15:$BI$124,formula!$AN$9,FALSE)) -> 6427125 | F61: =IF($B61="","",VLOOKUP($B61,formula!$A$15:$BI$124,formula!$AD$9+1,FALSE)) -> 36274722 | G61: =IF($B61="","",VLOOKUP($B61,formula!$A$15:$BI$124,formula!$AG$9+1,FALSE)) -> 18301385.24 | H61: =IF($B61="","",VLOOKUP($B61,formula!$A$15:$EV$124,formula!$EM$9,FALSE)) -> 1006 | I61: =IF($B61="","",VLOOKUP($B61,formula!$A$15:$EV$124,formula!$EN$9,FALSE)) -> 42084 | J61: =IF($B61="","",VLOOKUP($B61,formula!$A$15:$BI$124,formula!$AV$9,FALSE)) -> 36123717.59 | K61: =IF($B61="","",VLOOKUP($B61,formula!$A$15:$BI$124,formula!$AU$9,FALSE)) -> 18225200.24 | L61: =IF($B61="","",VLOOKUP($B61,formula!$A$15:$BI$124,formula!$AX$9,FALSE)) -> 18268287.24
B62: 50 | C62: 89 | D62: =IF(C61=MaxCoverageYear-1,"***以下空白***",IF($B62="","",IF($B62>plan,"",VLOOKUP($B62,formula!$A$15:$BI$124,formula!$AM$9,FALSE)))) ->  | E62: =IF($B62="","",VLOOKUP($B62,formula!$A$15:$BI$124,formula!$AN$9,FALSE)) -> 6427125 | F62: =IF($B62="","",VLOOKUP($B62,formula!$A$15:$BI$124,formula!$AD$9+1,FALSE)) -> 36573785 | G62: =IF($B62="","",VLOOKUP($B62,formula!$A$15:$BI$124,formula!$AG$9+1,FALSE)) -> 18783402.52 | H62: =IF($B62="","",VLOOKUP($B62,formula!$A$15:$EV$124,formula!$EM$9,FALSE)) -> 1003 | I62: =IF($B62="","",VLOOKUP($B62,formula!$A$15:$EV$124,formula!$EN$9,FALSE)) -> 43087 | J62: =IF($B62="","",VLOOKUP($B62,formula!$A$15:$BI$124,formula!$AV$9,FALSE)) -> 36419575.3 | K62: =IF($B62="","",VLOOKUP($B62,formula!$A$15:$BI$124,formula!$AU$9,FALSE)) -> 18704204.19 | L62: =IF($B62="","",VLOOKUP($B62,formula!$A$15:$BI$124,formula!$AX$9,FALSE)) -> 18748298.19
B63: 51 | C63: 90 | D63: =IF(C62=MaxCoverageYear-1,"***以下空白***",IF($B63="","",IF($B63>plan,"",VLOOKUP($B63,formula!$A$15:$BI$124,formula!$AM$9,FALSE)))) ->  | E63: =IF($B63="","",VLOOKUP($B63,formula!$A$15:$BI$124,formula!$AN$9,FALSE)) -> 6427125 | F63: =IF($B63="","",VLOOKUP($B63,formula!$A$15:$BI$124,formula!$AD$9+1,FALSE)) -> 36874747 | G63: =IF($B63="","",VLOOKUP($B63,formula!$A$15:$BI$124,formula!$AG$9+1,FALSE)) -> 19278520.54 | H63: =IF($B63="","",VLOOKUP($B63,formula!$A$15:$EV$124,formula!$EM$9,FALSE)) -> 1007 | I63: =IF($B63="","",VLOOKUP($B63,formula!$A$15:$EV$124,formula!$EN$9,FALSE)) -> 44094 | J63: =IF($B63="","",VLOOKUP($B63,formula!$A$15:$BI$124,formula!$AV$9,FALSE)) -> 36717350.83 | K63: =IF($B63="","",VLOOKUP($B63,formula!$A$15:$BI$124,formula!$AU$9,FALSE)) -> 19196232.11 | L63: =IF($B63="","",VLOOKUP($B63,formula!$A$15:$BI$124,formula!$AX$9,FALSE)) -> 19241328.11
B64: 52 | C64: 91 | D64: =IF(C63=MaxCoverageYear-1,"***以下空白***",IF($B64="","",IF($B64>plan,"",VLOOKUP($B64,formula!$A$15:$BI$124,formula!$AM$9,FALSE)))) ->  | E64: =IF($B64="","",VLOOKUP($B64,formula!$A$15:$BI$124,formula!$AN$9,FALSE)) -> 6427125 | F64: =IF($B64="","",VLOOKUP($B64,formula!$A$15:$BI$124,formula!$AD$9+1,FALSE)) -> 37177620 | G64: =IF($B64="","",VLOOKUP($B64,formula!$A$15:$BI$124,formula!$AG$9+1,FALSE)) -> 19786344.55 | H64: =IF($B64="","",VLOOKUP($B64,formula!$A$15:$EV$124,formula!$EM$9,FALSE)) -> 1002 | I64: =IF($B64="","",VLOOKUP($B64,formula!$A$15:$EV$124,formula!$EN$9,FALSE)) -> 45096 | J64: =IF($B64="","",VLOOKUP($B64,formula!$A$15:$BI$124,formula!$AV$9,FALSE)) -> 37017042.43 | K64: =IF($B64="","",VLOOKUP($B64,formula!$A$15:$BI$124,formula!$AU$9,FALSE)) -> 19700883.38 | L64: =IF($B64="","",VLOOKUP($B64,formula!$A$15:$BI$124,formula!$AX$9,FALSE)) -> 19746984.38
B65: 53 | C65: 92 | D65: =IF(C64=MaxCoverageYear-1,"***以下空白***",IF($B65="","",IF($B65>plan,"",VLOOKUP($B65,formula!$A$15:$BI$124,formula!$AM$9,FALSE)))) ->  | E65: =IF($B65="","",VLOOKUP($B65,formula!$A$15:$BI$124,formula!$AN$9,FALSE)) -> 6427125 | F65: =IF($B65="","",VLOOKUP($B65,formula!$A$15:$BI$124,formula!$AD$9+1,FALSE)) -> 37483676 | G65: =IF($B65="","",VLOOKUP($B65,formula!$A$15:$BI$124,formula!$AG$9+1,FALSE)) -> 20308973.49 | H65: =IF($B65="","",VLOOKUP($B65,formula!$A$15:$EV$124,formula!$EM$9,FALSE)) -> 1005 | I65: =IF($B65="","",VLOOKUP($B65,formula!$A$15:$EV$124,formula!$EN$9,FALSE)) -> 46101 | J65: =IF($B65="","",VLOOKUP($B65,formula!$A$15:$BI$124,formula!$AV$9,FALSE)) -> 37319917.32 | K65: =IF($B65="","",VLOOKUP($B65,formula!$A$15:$BI$124,formula!$AU$9,FALSE)) -> 20220247.65 | L65: =IF($B65="","",VLOOKUP($B65,formula!$A$15:$BI$124,formula!$AX$9,FALSE)) -> 20267355.65
B66: 54 | C66: 93 | D66: =IF(C65=MaxCoverageYear-1,"***以下空白***",IF($B66="","",IF($B66>plan,"",VLOOKUP($B66,formula!$A$15:$BI$124,formula!$AM$9,FALSE)))) ->  | E66: =IF($B66="","",VLOOKUP($B66,formula!$A$15:$BI$124,formula!$AN$9,FALSE)) -> 6427125 | F66: =IF($B66="","",VLOOKUP($B66,formula!$A$15:$BI$124,formula!$AD$9+1,FALSE)) -> 37791005 | G66: =IF($B66="","",VLOOKUP($B66,formula!$A$15:$BI$124,formula!$AG$9+1,FALSE)) -> 20847033.44 | H66: =IF($B66="","",VLOOKUP($B66,formula!$A$15:$EV$124,formula!$EM$9,FALSE)) -> 1007 | I66: =IF($B66="","",VLOOKUP($B66,formula!$A$15:$EV$124,formula!$EN$9,FALSE)) -> 47108 | J66: =IF($B66="","",VLOOKUP($B66,formula!$A$15:$BI$124,formula!$AV$9,FALSE)) -> 37624089.69 | K66: =IF($B66="","",VLOOKUP($B66,formula!$A$15:$BI$124,formula!$AU$9,FALSE)) -> 20754956.27 | L66: =IF($B66="","",VLOOKUP($B66,formula!$A$15:$BI$124,formula!$AX$9,FALSE)) -> 20803065.27
B67: 55 | C67: 94 | D67: =IF(C66=MaxCoverageYear-1,"***以下空白***",IF($B67="","",IF($B67>plan,"",VLOOKUP($B67,formula!$A$15:$BI$124,formula!$AM$9,FALSE)))) ->  | E67: =IF($B67="","",VLOOKUP($B67,formula!$A$15:$BI$124,formula!$AN$9,FALSE)) -> 6427125 | F67: =IF($B67="","",VLOOKUP($B67,formula!$A$15:$BI$124,formula!$AD$9+1,FALSE)) -> 38101515 | G67: =IF($B67="","",VLOOKUP($B67,formula!$A$15:$BI$124,formula!$AG$9+1,FALSE)) -> 21401244.67 | H67: =IF($B67="","",VLOOKUP($B67,formula!$A$15:$EV$124,formula!$EM$9,FALSE)) -> 1001 | I67: =IF($B67="","",VLOOKUP($B67,formula!$A$15:$EV$124,formula!$EN$9,FALSE)) -> 48109 | J67: =IF($B67="","",VLOOKUP($B67,formula!$A$15:$BI$124,formula!$AV$9,FALSE)) -> 37931445.08 | K67: =IF($B67="","",VLOOKUP($B67,formula!$A$15:$BI$124,formula!$AU$9,FALSE)) -> 21305718.08 | L67: =IF($B67="","",VLOOKUP($B67,formula!$A$15:$BI$124,formula!$AX$9,FALSE)) -> 21354829.08
B68: 56 | C68: 95 | D68: =IF(C67=MaxCoverageYear-1,"***以下空白***",IF($B68="","",IF($B68>plan,"",VLOOKUP($B68,formula!$A$15:$BI$124,formula!$AM$9,FALSE)))) ->  | E68: =IF($B68="","",VLOOKUP($B68,formula!$A$15:$BI$124,formula!$AN$9,FALSE)) -> 6427125 | F68: =IF($B68="","",VLOOKUP($B68,formula!$A$15:$BI$124,formula!$AD$9+1,FALSE)) -> 38413930 | G68: =IF($B68="","",VLOOKUP($B68,formula!$A$15:$BI$124,formula!$AG$9+1,FALSE)) -> 21972368.02 | H68: =IF($B68="","",VLOOKUP($B68,formula!$A$15:$EV$124,formula!$EM$9,FALSE)) -> 1002 | I68: =IF($B68="","",VLOOKUP($B68,formula!$A$15:$EV$124,formula!$EN$9,FALSE)) -> 49111 | J68: =IF($B68="","",VLOOKUP($B68,formula!$A$15:$BI$124,formula!$AV$9,FALSE)) -> 38240713.91 | K68: =IF($B68="","",VLOOKUP($B68,formula!$A$15:$BI$124,formula!$AU$9,FALSE)) -> 21873290.22 | L68: =IF($B68="","",VLOOKUP($B68,formula!$A$15:$BI$124,formula!$AX$9,FALSE)) -> 21923403.22
B69: 57 | C69: 96 | D69: =IF(C68=MaxCoverageYear-1,"***以下空白***",IF($B69="","",IF($B69>plan,"",VLOOKUP($B69,formula!$A$15:$BI$124,formula!$AM$9,FALSE)))) ->  | E69: =IF($B69="","",VLOOKUP($B69,formula!$A$15:$BI$124,formula!$AN$9,FALSE)) -> 6427125 | F69: =IF($B69="","",VLOOKUP($B69,formula!$A$15:$BI$124,formula!$AD$9+1,FALSE)) -> 38728892 | G69: =IF($B69="","",VLOOKUP($B69,formula!$A$15:$BI$124,formula!$AG$9+1,FALSE)) -> 22561185.48 | H69: =IF($B69="","",VLOOKUP($B69,formula!$A$15:$EV$124,formula!$EM$9,FALSE)) -> 1002 | I69: =IF($B69="","",VLOOKUP($B69,formula!$A$15:$EV$124,formula!$EN$9,FALSE)) -> 50113 | J69: =IF($B69="","",VLOOKUP($B69,formula!$A$15:$BI$124,formula!$AV$9,FALSE)) -> 38552536.12 | K69: =IF($B69="","",VLOOKUP($B69,formula!$A$15:$BI$124,formula!$AU$9,FALSE)) -> 22458450.87 | L69: =IF($B69="","",VLOOKUP($B69,formula!$A$15:$BI$124,formula!$AX$9,FALSE)) -> 22509565.87
B70: 58 | C70: 97 | D70: =IF(C69=MaxCoverageYear-1,"***以下空白***",IF($B70="","",IF($B70>plan,"",VLOOKUP($B70,formula!$A$15:$BI$124,formula!$AM$9,FALSE)))) ->  | E70: =IF($B70="","",VLOOKUP($B70,formula!$A$15:$BI$124,formula!$AN$9,FALSE)) -> 6427125 | F70: =IF($B70="","",VLOOKUP($B70,formula!$A$15:$BI$124,formula!$AD$9+1,FALSE)) -> 39046395 | G70: =IF($B70="","",VLOOKUP($B70,formula!$A$15:$BI$124,formula!$AG$9+1,FALSE)) -> 23168511.77 | H70: =IF($B70="","",VLOOKUP($B70,formula!$A$15:$EV$124,formula!$EM$9,FALSE)) -> 1002 | I70: =IF($B70="","",VLOOKUP($B70,formula!$A$15:$EV$124,formula!$EN$9,FALSE)) -> 51115 | J70: =IF($B70="","",VLOOKUP($B70,formula!$A$15:$BI$124,formula!$AV$9,FALSE)) -> 38866906.54 | K70: =IF($B70="","",VLOOKUP($B70,formula!$A$15:$BI$124,formula!$AU$9,FALSE)) -> 23062010.76 | L70: =IF($B70="","",VLOOKUP($B70,formula!$A$15:$BI$124,formula!$AX$9,FALSE)) -> 23114126.76
B71: 59 | C71: 98 | D71: =IF(C70=MaxCoverageYear-1,"***以下空白***",IF($B71="","",IF($B71>plan,"",VLOOKUP($B71,formula!$A$15:$BI$124,formula!$AM$9,FALSE)))) ->  | E71: =IF($B71="","",VLOOKUP($B71,formula!$A$15:$BI$124,formula!$AN$9,FALSE)) -> 6427125 | F71: =IF($B71="","",VLOOKUP($B71,formula!$A$15:$BI$124,formula!$AD$9+1,FALSE)) -> 39365812 | G71: =IF($B71="","",VLOOKUP($B71,formula!$A$15:$BI$124,formula!$AG$9+1,FALSE)) -> 23795208.95 | H71: =IF($B71="","",VLOOKUP($B71,formula!$A$15:$EV$124,formula!$EM$9,FALSE)) -> 1001 | I71: =IF($B71="","",VLOOKUP($B71,formula!$A$15:$EV$124,formula!$EN$9,FALSE)) -> 52116 | J71: =IF($B71="","",VLOOKUP($B71,formula!$A$15:$BI$124,formula!$AV$9,FALSE)) -> 39183186.13 | K71: =IF($B71="","",VLOOKUP($B71,formula!$A$15:$BI$124,formula!$AU$9,FALSE)) -> 23684818.22 | L71: =IF($B71="","",VLOOKUP($B71,formula!$A$15:$BI$124,formula!$AX$9,FALSE)) -> 23737943.22
B72: 60 | C72: 99 | D72: =IF(C71=MaxCoverageYear-1,"***以下空白***",IF($B72="","",IF($B72>plan,"",VLOOKUP($B72,formula!$A$15:$BI$124,formula!$AM$9,FALSE)))) ->  | E72: =IF($B72="","",VLOOKUP($B72,formula!$A$15:$BI$124,formula!$AN$9,FALSE)) -> 6427125 | F72: =IF($B72="","",VLOOKUP($B72,formula!$A$15:$BI$124,formula!$AD$9+1,FALSE)) -> 39687770 | G72: =IF($B72="","",VLOOKUP($B72,formula!$A$15:$BI$124,formula!$AG$9+1,FALSE)) -> 24442126.14 | H72: =IF($B72="","",VLOOKUP($B72,formula!$A$15:$EV$124,formula!$EM$9,FALSE)) -> 1009 | I72: =IF($B72="","",VLOOKUP($B72,formula!$A$15:$EV$124,formula!$EN$9,FALSE)) -> 53125 | J72: =IF($B72="","",VLOOKUP($B72,formula!$A$15:$BI$124,formula!$AV$9,FALSE)) -> 39502015.37 | K72: =IF($B72="","",VLOOKUP($B72,formula!$A$15:$BI$124,formula!$AU$9,FALSE)) -> 24327727.22 | L72: =IF($B72="","",VLOOKUP($B72,formula!$A$15:$BI$124,formula!$AX$9,FALSE)) -> 24381859.22
B73: 61 | C73: 100 | D73: =IF(C72=MaxCoverageYear-1,"***以下空白***",IF($B73="","",IF($B73>plan,"",VLOOKUP($B73,formula!$A$15:$BI$124,formula!$AM$9,FALSE)))) ->  | E73: =IF($B73="","",VLOOKUP($B73,formula!$A$15:$BI$124,formula!$AN$9,FALSE)) -> 6427125 | F73: =IF($B73="","",VLOOKUP($B73,formula!$A$15:$BI$124,formula!$AD$9+1,FALSE)) -> 40012277 | G73: =IF($B73="","",VLOOKUP($B73,formula!$A$15:$BI$124,formula!$AG$9+1,FALSE)) -> 25110074.85 | H73: =IF($B73="","",VLOOKUP($B73,formula!$A$15:$EV$124,formula!$EM$9,FALSE)) -> 1007 | I73: =IF($B73="","",VLOOKUP($B73,formula!$A$15:$EV$124,formula!$EN$9,FALSE)) -> 54132 | J73: =IF($B73="","",VLOOKUP($B73,formula!$A$15:$BI$124,formula!$AV$9,FALSE)) -> 39823403.05 | K73: =IF($B73="","",VLOOKUP($B73,formula!$A$15:$BI$124,formula!$AU$9,FALSE)) -> 24991545.26 | L73: =IF($B73="","",VLOOKUP($B73,formula!$A$15:$BI$124,formula!$AX$9,FALSE)) -> 25046681.26
B74: 62 | C74: 101 | D74: =IF(C73=MaxCoverageYear-1,"***以下空白***",IF($B74="","",IF($B74>plan,"",VLOOKUP($B74,formula!$A$15:$BI$124,formula!$AM$9,FALSE)))) ->  | E74: =IF($B74="","",VLOOKUP($B74,formula!$A$15:$BI$124,formula!$AN$9,FALSE)) -> 6427125 | F74: =IF($B74="","",VLOOKUP($B74,formula!$A$15:$BI$124,formula!$AD$9+1,FALSE)) -> 40339330 | G74: =IF($B74="","",VLOOKUP($B74,formula!$A$15:$BI$124,formula!$AG$9+1,FALSE)) -> 25800551.92 | H74: =IF($B74="","",VLOOKUP($B74,formula!$A$15:$EV$124,formula!$EM$9,FALSE)) -> 1004 | I74: =IF($B74="","",VLOOKUP($B74,formula!$A$15:$EV$124,formula!$EN$9,FALSE)) -> 55136 | J74: =IF($B74="","",VLOOKUP($B74,formula!$A$15:$BI$124,formula!$AV$9,FALSE)) -> 40147347.07 | K74: =IF($B74="","",VLOOKUP($B74,formula!$A$15:$BI$124,formula!$AU$9,FALSE)) -> 25677761.94 | L74: =IF($B74="","",VLOOKUP($B74,formula!$A$15:$BI$124,formula!$AX$9,FALSE)) -> 25733898.94
B75: 63 | C75: 102 | D75: =IF(C74=MaxCoverageYear-1,"***以下空白***",IF($B75="","",IF($B75>plan,"",VLOOKUP($B75,formula!$A$15:$BI$124,formula!$AM$9,FALSE)))) ->  | E75: =IF($B75="","",VLOOKUP($B75,formula!$A$15:$BI$124,formula!$AN$9,FALSE)) -> 6427125 | F75: =IF($B75="","",VLOOKUP($B75,formula!$A$15:$BI$124,formula!$AD$9+1,FALSE)) -> 40668923 | G75: =IF($B75="","",VLOOKUP($B75,formula!$A$15:$BI$124,formula!$AG$9+1,FALSE)) -> 26515869.38 | H75: =IF($B75="","",VLOOKUP($B75,formula!$A$15:$EV$124,formula!$EM$9,FALSE)) -> 1001 | I75: =IF($B75="","",VLOOKUP($B75,formula!$A$15:$EV$124,formula!$EN$9,FALSE)) -> 56137 | J75: =IF($B75="","",VLOOKUP($B75,formula!$A$15:$BI$124,formula!$AV$9,FALSE)) -> 40473826.05 | K75: =IF($B75="","",VLOOKUP($B75,formula!$A$15:$BI$124,formula!$AU$9,FALSE)) -> 26388667.46 | L75: =IF($B75="","",VLOOKUP($B75,formula!$A$15:$BI$124,formula!$AX$9,FALSE)) -> 26445812.46
B76: 64 | C76: 103 | D76: =IF(C75=MaxCoverageYear-1,"***以下空白***",IF($B76="","",IF($B76>plan,"",VLOOKUP($B76,formula!$A$15:$BI$124,formula!$AM$9,FALSE)))) ->  | E76: =IF($B76="","",VLOOKUP($B76,formula!$A$15:$BI$124,formula!$AN$9,FALSE)) -> 6427125 | F76: =IF($B76="","",VLOOKUP($B76,formula!$A$15:$BI$124,formula!$AD$9+1,FALSE)) -> 41001059 | G76: =IF($B76="","",VLOOKUP($B76,formula!$A$15:$BI$124,formula!$AG$9+1,FALSE)) -> 27258149.9 | H76: =IF($B76="","",VLOOKUP($B76,formula!$A$15:$EV$124,formula!$EM$9,FALSE)) -> 1008 | I76: =IF($B76="","",VLOOKUP($B76,formula!$A$15:$EV$124,formula!$EN$9,FALSE)) -> 57145 | J76: =IF($B76="","",VLOOKUP($B76,formula!$A$15:$BI$124,formula!$AV$9,FALSE)) -> 40802859.89 | K76: =IF($B76="","",VLOOKUP($B76,formula!$A$15:$BI$124,formula!$AU$9,FALSE)) -> 27126384.01 | L76: =IF($B76="","",VLOOKUP($B76,formula!$A$15:$BI$124,formula!$AX$9,FALSE)) -> 27184532.01
B77: 65 | C77: =IF(B77="","",age+B77-1) -> 104 | D77: =IF(C76=MaxCoverageYear-1,"***以下空白***",IF($B77="","",IF($B77>plan,"",VLOOKUP($B77,formula!$A$15:$BI$124,formula!$AM$9,FALSE)))) ->  | E77: =IF($B77="","",VLOOKUP($B77,formula!$A$15:$BI$124,formula!$AN$9,FALSE)) -> 6427125 | F77: =IF($B77="","",VLOOKUP($B77,formula!$A$15:$BI$124,formula!$AD$9+1,FALSE)) -> 41335115 | G77: =IF($B77="","",VLOOKUP($B77,formula!$A$15:$BI$124,formula!$AG$9+1,FALSE)) -> 28030711.92 | H77: =IF($B77="","",VLOOKUP($B77,formula!$A$15:$EV$124,formula!$EM$9,FALSE)) -> 1003 | I77: =IF($B77="","",VLOOKUP($B77,formula!$A$15:$EV$124,formula!$EN$9,FALSE)) -> 58148 | J77: =IF($B77="","",VLOOKUP($B77,formula!$A$15:$BI$124,formula!$AV$9,FALSE)) -> 41133812.99 | K77: =IF($B77="","",VLOOKUP($B77,formula!$A$15:$BI$124,formula!$AU$9,FALSE)) -> 27894202.36 | L77: =IF($B77="","",VLOOKUP($B77,formula!$A$15:$BI$124,formula!$AX$9,FALSE)) -> 27953359.36
B78: =IF(B77>=109-age+1,"",B77+1) -> 66 | C78: 105 | D78: =IF(C77=MaxCoverageYear-1,"***以下空白***",IF($B78="","",IF($B78>plan,"",VLOOKUP($B78,formula!$A$15:$BI$124,formula!$AM$9,FALSE)))) ->  | E78: =IF($B78="","",VLOOKUP($B78,formula!$A$15:$BI$124,formula!$AN$9,FALSE)) -> 6427125 | F78: =IF($B78="","",VLOOKUP($B78,formula!$A$15:$BI$124,formula!$AD$9+1,FALSE)) -> 41671716 | G78: =IF($B78="","",VLOOKUP($B78,formula!$A$15:$BI$124,formula!$AG$9+1,FALSE)) -> 28838920.55 | H78: =IF($B78="","",VLOOKUP($B78,formula!$A$15:$EV$124,formula!$EM$9,FALSE)) -> 1009 | I78: =IF($B78="","",VLOOKUP($B78,formula!$A$15:$EV$124,formula!$EN$9,FALSE)) -> 59157 | J78: =IF($B78="","",VLOOKUP($B78,formula!$A$15:$BI$124,formula!$AV$9,FALSE)) -> 41467324.57 | K78: =IF($B78="","",VLOOKUP($B78,formula!$A$15:$BI$124,formula!$AU$9,FALSE)) -> 28697471.42 | L78: =IF($B78="","",VLOOKUP($B78,formula!$A$15:$BI$124,formula!$AX$9,FALSE)) -> 28757632.42
B79: 67 | C79: 106 | D79: =IF(C78=MaxCoverageYear-1,"***以下空白***",IF($B79="","",IF($B79>plan,"",VLOOKUP($B79,formula!$A$15:$BI$124,formula!$AM$9,FALSE)))) ->  | E79: =IF($B79="","",VLOOKUP($B79,formula!$A$15:$BI$124,formula!$AN$9,FALSE)) -> 6427125 | F79: =IF($B79="","",VLOOKUP($B79,formula!$A$15:$BI$124,formula!$AD$9+1,FALSE)) -> 42011487 | G79: =IF($B79="","",VLOOKUP($B79,formula!$A$15:$BI$124,formula!$AG$9+1,FALSE)) -> 29680465.56 | H79: =IF($B79="","",VLOOKUP($B79,formula!$A$15:$EV$124,formula!$EM$9,FALSE)) -> 1004 | I79: =IF($B79="","",VLOOKUP($B79,formula!$A$15:$EV$124,formula!$EN$9,FALSE)) -> 60161 | J79: =IF($B79="","",VLOOKUP($B79,formula!$A$15:$BI$124,formula!$AV$9,FALSE)) -> 41804000.67 | K79: =IF($B79="","",VLOOKUP($B79,formula!$A$15:$BI$124,formula!$AU$9,FALSE)) -> 29533879.68 | L79: =IF($B79="","",VLOOKUP($B79,formula!$A$15:$BI$124,formula!$AX$9,FALSE)) -> 29595049.68
B80: 68 | C80: 107 | D80: =IF(C79=MaxCoverageYear-1,"***以下空白***",IF($B80="","",IF($B80>plan,"",VLOOKUP($B80,formula!$A$15:$BI$124,formula!$AM$9,FALSE)))) ->  | E80: =IF($B80="","",VLOOKUP($B80,formula!$A$15:$BI$124,formula!$AN$9,FALSE)) -> 6427125 | F80: =IF($B80="","",VLOOKUP($B80,formula!$A$15:$BI$124,formula!$AD$9+1,FALSE)) -> 42353170 | G80: =IF($B80="","",VLOOKUP($B80,formula!$A$15:$BI$124,formula!$AG$9+1,FALSE)) -> 30566280.68 | H80: =IF($B80="","",VLOOKUP($B80,formula!$A$15:$EV$124,formula!$EM$9,FALSE)) -> 1009 | I80: =IF($B80="","",VLOOKUP($B80,formula!$A$15:$EV$124,formula!$EN$9,FALSE)) -> 61170 | J80: =IF($B80="","",VLOOKUP($B80,formula!$A$15:$BI$124,formula!$AV$9,FALSE)) -> 42142606.99 | K80: =IF($B80="","",VLOOKUP($B80,formula!$A$15:$BI$124,formula!$AU$9,FALSE)) -> 30414317.36 | L80: =IF($B80="","",VLOOKUP($B80,formula!$A$15:$BI$124,formula!$AX$9,FALSE)) -> 30476490.36
B81: 69 | C81: 108 | D81: =IF(C80=MaxCoverageYear-1,"***以下空白***",IF($B81="","",IF($B81>plan,"",VLOOKUP($B81,formula!$A$15:$BI$124,formula!$AM$9,FALSE)))) ->  | E81: =IF($B81="","",VLOOKUP($B81,formula!$A$15:$BI$124,formula!$AN$9,FALSE)) -> 6427125 | F81: =IF($B81="","",VLOOKUP($B81,formula!$A$15:$BI$124,formula!$AD$9+1,FALSE)) -> 42698041 | G81: =IF($B81="","",VLOOKUP($B81,formula!$A$15:$BI$124,formula!$AG$9+1,FALSE)) -> 31524408.65 | H81: =IF($B81="","",VLOOKUP($B81,formula!$A$15:$EV$124,formula!$EM$9,FALSE)) -> 1003 | I81: =IF($B81="","",VLOOKUP($B81,formula!$A$15:$EV$124,formula!$EN$9,FALSE)) -> 62173 | J81: =IF($B81="","",VLOOKUP($B81,formula!$A$15:$BI$124,formula!$AV$9,FALSE)) -> 42484397.09 | K81: =IF($B81="","",VLOOKUP($B81,formula!$A$15:$BI$124,formula!$AU$9,FALSE)) -> 31366673.12 | L81: =IF($B81="","",VLOOKUP($B81,formula!$A$15:$BI$124,formula!$AX$9,FALSE)) -> 31429855.12
B82: 70 | C82: 109 | D82: =IF(C81=MaxCoverageYear-1,"***以下空白***",IF($B82="","",IF($B82>plan,"",VLOOKUP($B82,formula!$A$15:$BI$124,formula!$AM$9,FALSE)))) ->  | E82: =IF($B82="","",VLOOKUP($B82,formula!$A$15:$BI$124,formula!$AN$9,FALSE)) -> 6427125 | F82: =IF($B82="","",VLOOKUP($B82,formula!$A$15:$BI$124,formula!$AD$9+1,FALSE)) -> 43044816 | G82: =IF($B82="","",VLOOKUP($B82,formula!$A$15:$BI$124,formula!$AG$9+1,FALSE)) -> 32627229 | H82: =IF($B82="","",VLOOKUP($B82,formula!$A$15:$EV$124,formula!$EM$9,FALSE)) -> 1009 | I82: =IF($B82="","",VLOOKUP($B82,formula!$A$15:$EV$124,formula!$EN$9,FALSE)) -> 63182 | J82: =IF($B82="","",VLOOKUP($B82,formula!$A$15:$BI$124,formula!$AV$9,FALSE)) -> 42828111.18 | K82: =IF($B82="","",VLOOKUP($B82,formula!$A$15:$BI$124,formula!$AU$9,FALSE)) -> 32462970.48 | L82: =IF($B82="","",VLOOKUP($B82,formula!$A$15:$BI$124,formula!$AX$9,FALSE)) -> 32527157.48
D83: =IF(C82=MaxCoverageYear-1,"***以下空白***",IF($B83="","",IF($B83>plan,"",VLOOKUP($B83,formula!$A$15:$BI$124,formula!$AM$9,FALSE)))) -> ***以下空白*** | E83: =IF($B83="","",VLOOKUP($B83,formula!$A$15:$BI$124,formula!$AN$9,FALSE)) ->  | F83: =IF($B83="","",VLOOKUP($B83,formula!$A$15:$BI$124,formula!$AD$9+1,FALSE)) ->  | G83: =IF($B83="","",VLOOKUP($B83,formula!$A$15:$BI$124,formula!$AG$9+1,FALSE)) ->  | H83: =IF($B83="","",VLOOKUP($B83,formula!$A$15:$EV$124,formula!$EM$9,FALSE)) ->  | I83: =IF($B83="","",VLOOKUP($B83,formula!$A$15:$EV$124,formula!$EN$9,FALSE)) ->  | J83: =IF($B83="","",VLOOKUP($B83,formula!$A$15:$BI$124,formula!$AV$9,FALSE)) ->  | K83: =IF($B83="","",VLOOKUP($B83,formula!$A$15:$BI$124,formula!$AU$9,FALSE)) ->  | L83: =IF($B83="","",VLOOKUP($B83,formula!$A$15:$BI$124,formula!$AX$9,FALSE)) -> 
D84: =IF(C83=MaxCoverageYear-1,"***以下空白***",IF($B84="","",IF($B84>plan,"",VLOOKUP($B84,formula!$A$15:$BI$124,formula!$AM$9,FALSE)))) ->  | E84: =IF($B84="","",VLOOKUP($B84,formula!$A$15:$BI$124,formula!$AN$9,FALSE)) ->  | F84: =IF($B84="","",VLOOKUP($B84,formula!$A$15:$BI$124,formula!$AD$9+1,FALSE)) ->  | G84: =IF($B84="","",VLOOKUP($B84,formula!$A$15:$BI$124,formula!$AG$9+1,FALSE)) ->  | H84: =IF($B84="","",VLOOKUP($B84,formula!$A$15:$EV$124,formula!$EM$9,FALSE)) ->  | I84: =IF($B84="","",VLOOKUP($B84,formula!$A$15:$EV$124,formula!$EN$9,FALSE)) ->  | J84: =IF($B84="","",VLOOKUP($B84,formula!$A$15:$BI$124,formula!$AV$9,FALSE)) ->  | K84: =IF($B84="","",VLOOKUP($B84,formula!$A$15:$BI$124,formula!$AU$9,FALSE)) ->  | L84: =IF($B84="","",VLOOKUP($B84,formula!$A$15:$BI$124,formula!$AX$9,FALSE)) -> 
D85: =IF(C84=MaxCoverageYear-1,"***以下空白***",IF($B85="","",IF($B85>plan,"",VLOOKUP($B85,formula!$A$15:$BI$124,formula!$AM$9,FALSE)))) ->  | E85: =IF($B85="","",VLOOKUP($B85,formula!$A$15:$BI$124,formula!$AN$9,FALSE)) ->  | F85: =IF($B85="","",VLOOKUP($B85,formula!$A$15:$BI$124,formula!$AD$9+1,FALSE)) ->  | G85: =IF($B85="","",VLOOKUP($B85,formula!$A$15:$BI$124,formula!$AG$9+1,FALSE)) ->  | H85: =IF($B85="","",VLOOKUP($B85,formula!$A$15:$EV$124,formula!$EM$9,FALSE)) ->  | I85: =IF($B85="","",VLOOKUP($B85,formula!$A$15:$EV$124,formula!$EN$9,FALSE)) ->  | J85: =IF($B85="","",VLOOKUP($B85,formula!$A$15:$BI$124,formula!$AV$9,FALSE)) ->  | K85: =IF($B85="","",VLOOKUP($B85,formula!$A$15:$BI$124,formula!$AU$9,FALSE)) ->  | L85: =IF($B85="","",VLOOKUP($B85,formula!$A$15:$BI$124,formula!$AX$9,FALSE)) -> 
D86: =IF(C85=MaxCoverageYear-1,"***以下空白***",IF($B86="","",IF($B86>plan,"",VLOOKUP($B86,formula!$A$15:$BI$124,formula!$AM$9,FALSE)))) ->  | E86: =IF($B86="","",VLOOKUP($B86,formula!$A$15:$BI$124,formula!$AN$9,FALSE)) ->  | F86: =IF($B86="","",VLOOKUP($B86,formula!$A$15:$BI$124,formula!$AD$9+1,FALSE)) ->  | G86: =IF($B86="","",VLOOKUP($B86,formula!$A$15:$BI$124,formula!$AG$9+1,FALSE)) ->  | H86: =IF($B86="","",VLOOKUP($B86,formula!$A$15:$EV$124,formula!$EM$9,FALSE)) ->  | I86: =IF($B86="","",VLOOKUP($B86,formula!$A$15:$EV$124,formula!$EN$9,FALSE)) ->  | J86: =IF($B86="","",VLOOKUP($B86,formula!$A$15:$BI$124,formula!$AV$9,FALSE)) ->  | K86: =IF($B86="","",VLOOKUP($B86,formula!$A$15:$BI$124,formula!$AU$9,FALSE)) ->  | L86: =IF($B86="","",VLOOKUP($B86,formula!$A$15:$BI$124,formula!$AX$9,FALSE)) -> 
D87: =IF(C86=MaxCoverageYear-1,"***以下空白***",IF($B87="","",IF($B87>plan,"",VLOOKUP($B87,formula!$A$15:$BI$124,formula!$AM$9,FALSE)))) ->  | E87: =IF($B87="","",VLOOKUP($B87,formula!$A$15:$BI$124,formula!$AN$9,FALSE)) ->  | F87: =IF($B87="","",VLOOKUP($B87,formula!$A$15:$BI$124,formula!$AD$9+1,FALSE)) ->  | G87: =IF($B87="","",VLOOKUP($B87,formula!$A$15:$BI$124,formula!$AG$9+1,FALSE)) ->  | H87: =IF($B87="","",VLOOKUP($B87,formula!$A$15:$EV$124,formula!$EM$9,FALSE)) ->  | I87: =IF($B87="","",VLOOKUP($B87,formula!$A$15:$EV$124,formula!$EN$9,FALSE)) ->  | J87: =IF($B87="","",VLOOKUP($B87,formula!$A$15:$BI$124,formula!$AV$9,FALSE)) ->  | K87: =IF($B87="","",VLOOKUP($B87,formula!$A$15:$BI$124,formula!$AU$9,FALSE)) ->  | L87: =IF($B87="","",VLOOKUP($B87,formula!$A$15:$BI$124,formula!$AX$9,FALSE)) -> 
D88: =IF(C87=MaxCoverageYear-1,"***以下空白***",IF($B88="","",IF($B88>plan,"",VLOOKUP($B88,formula!$A$15:$BI$124,formula!$AM$9,FALSE)))) ->  | E88: =IF($B88="","",VLOOKUP($B88,formula!$A$15:$BI$124,formula!$AN$9,FALSE)) ->  | F88: =IF($B88="","",VLOOKUP($B88,formula!$A$15:$BI$124,formula!$AD$9+1,FALSE)) ->  | G88: =IF($B88="","",VLOOKUP($B88,formula!$A$15:$BI$124,formula!$AG$9+1,FALSE)) ->  | H88: =IF($B88="","",VLOOKUP($B88,formula!$A$15:$EV$124,formula!$EM$9,FALSE)) ->  | I88: =IF($B88="","",VLOOKUP($B88,formula!$A$15:$EV$124,formula!$EN$9,FALSE)) ->  | J88: =IF($B88="","",VLOOKUP($B88,formula!$A$15:$BI$124,formula!$AV$9,FALSE)) ->  | K88: =IF($B88="","",VLOOKUP($B88,formula!$A$15:$BI$124,formula!$AU$9,FALSE)) ->  | L88: =IF($B88="","",VLOOKUP($B88,formula!$A$15:$BI$124,formula!$AX$9,FALSE)) -> 
D89: =IF(C88=MaxCoverageYear-1,"***以下空白***",IF($B89="","",IF($B89>plan,"",VLOOKUP($B89,formula!$A$15:$BI$124,formula!$AM$9,FALSE)))) ->  | E89: =IF($B89="","",VLOOKUP($B89,formula!$A$15:$BI$124,formula!$AN$9,FALSE)) ->  | F89: =IF($B89="","",VLOOKUP($B89,formula!$A$15:$BI$124,formula!$AD$9+1,FALSE)) ->  | G89: =IF($B89="","",VLOOKUP($B89,formula!$A$15:$BI$124,formula!$AG$9+1,FALSE)) ->  | H89: =IF($B89="","",VLOOKUP($B89,formula!$A$15:$EV$124,formula!$EM$9,FALSE)) ->  | I89: =IF($B89="","",VLOOKUP($B89,formula!$A$15:$EV$124,formula!$EN$9,FALSE)) ->  | J89: =IF($B89="","",VLOOKUP($B89,formula!$A$15:$BI$124,formula!$AV$9,FALSE)) ->  | K89: =IF($B89="","",VLOOKUP($B89,formula!$A$15:$BI$124,formula!$AU$9,FALSE)) ->  | L89: =IF($B89="","",VLOOKUP($B89,formula!$A$15:$BI$124,formula!$AX$9,FALSE)) -> 
D90: =IF(C89=MaxCoverageYear-1,"***以下空白***",IF($B90="","",IF($B90>plan,"",VLOOKUP($B90,formula!$A$15:$BI$124,formula!$AM$9,FALSE)))) ->  | E90: =IF($B90="","",VLOOKUP($B90,formula!$A$15:$BI$124,formula!$AN$9,FALSE)) ->  | F90: =IF($B90="","",VLOOKUP($B90,formula!$A$15:$BI$124,formula!$AD$9+1,FALSE)) ->  | G90: =IF($B90="","",VLOOKUP($B90,formula!$A$15:$BI$124,formula!$AG$9+1,FALSE)) ->  | H90: =IF($B90="","",VLOOKUP($B90,formula!$A$15:$EV$124,formula!$EM$9,FALSE)) ->  | I90: =IF($B90="","",VLOOKUP($B90,formula!$A$15:$EV$124,formula!$EN$9,FALSE)) ->  | J90: =IF($B90="","",VLOOKUP($B90,formula!$A$15:$BI$124,formula!$AV$9,FALSE)) ->  | K90: =IF($B90="","",VLOOKUP($B90,formula!$A$15:$BI$124,formula!$AU$9,FALSE)) ->  | L90: =IF($B90="","",VLOOKUP($B90,formula!$A$15:$BI$124,formula!$AX$9,FALSE)) -> 
D91: =IF(C90=MaxCoverageYear-1,"***以下空白***",IF($B91="","",IF($B91>plan,"",VLOOKUP($B91,formula!$A$15:$BI$124,formula!$AM$9,FALSE)))) ->  | E91: =IF($B91="","",VLOOKUP($B91,formula!$A$15:$BI$124,formula!$AN$9,FALSE)) ->  | F91: =IF($B91="","",VLOOKUP($B91,formula!$A$15:$BI$124,formula!$AD$9+1,FALSE)) ->  | G91: =IF($B91="","",VLOOKUP($B91,formula!$A$15:$BI$124,formula!$AG$9+1,FALSE)) ->  | H91: =IF($B91="","",VLOOKUP($B91,formula!$A$15:$EV$124,formula!$EM$9,FALSE)) ->  | I91: =IF($B91="","",VLOOKUP($B91,formula!$A$15:$EV$124,formula!$EN$9,FALSE)) ->  | J91: =IF($B91="","",VLOOKUP($B91,formula!$A$15:$BI$124,formula!$AV$9,FALSE)) ->  | K91: =IF($B91="","",VLOOKUP($B91,formula!$A$15:$BI$124,formula!$AU$9,FALSE)) ->  | L91: =IF($B91="","",VLOOKUP($B91,formula!$A$15:$BI$124,formula!$AX$9,FALSE)) -> 
D92: =IF(C91=MaxCoverageYear-1,"***以下空白***",IF($B92="","",IF($B92>plan,"",VLOOKUP($B92,formula!$A$15:$BI$124,formula!$AM$9,FALSE)))) ->  | E92: =IF($B92="","",VLOOKUP($B92,formula!$A$15:$BI$124,formula!$AN$9,FALSE)) ->  | F92: =IF($B92="","",VLOOKUP($B92,formula!$A$15:$BI$124,formula!$AD$9+1,FALSE)) ->  | G92: =IF($B92="","",VLOOKUP($B92,formula!$A$15:$BI$124,formula!$AG$9+1,FALSE)) ->  | H92: =IF($B92="","",VLOOKUP($B92,formula!$A$15:$EV$124,formula!$EM$9,FALSE)) ->  | I92: =IF($B92="","",VLOOKUP($B92,formula!$A$15:$EV$124,formula!$EN$9,FALSE)) ->  | J92: =IF($B92="","",VLOOKUP($B92,formula!$A$15:$BI$124,formula!$AV$9,FALSE)) ->  | K92: =IF($B92="","",VLOOKUP($B92,formula!$A$15:$BI$124,formula!$AU$9,FALSE)) ->  | L92: =IF($B92="","",VLOOKUP($B92,formula!$A$15:$BI$124,formula!$AX$9,FALSE)) -> 
M93: (幣別/單位：美元/元)
B94: 年度 | C94: 年齡 | D94: 折扣後 當年度 所繳保險費 | E94: 折扣後 累計 所繳保險費 | F94: 【非保證給付項目】假設分紅-最可能紅利金額(保額)(中分紅)
F95: 原保險金額試算 | H95: 減少保險金額試算
F96: 當年度末 壽險保障及 假設紅利_分紅保額 (預估值) (中) | G96: 當年度末 可能領取 解約金總額 (預估值) (中) | H96: 該次減少 基本保險金額 可領取之解約金 (預估值) (年初) | I96: 歷年減少 基本保險金額 領取之解約金總額 (預估值) A | J96: 減少基本保險金額後 當年度末壽險保障及 假設紅利_分紅保額 (預估值) | K96: 減少基本保險金額後 當年度末解約 可能領取之解約金 (預估值) B | L96: 累計至當年度末解約可能總領金額 (預估值) A+B=C
B97: =IF(B92>=109-age+1,"",B92+1) ->  | D97: =IF(C92=MaxCoverageYear-1,"***以下空白***",IF($B97="","",IF($B97>plan,"",VLOOKUP($B97,formula!$A$15:$BI$124,formula!$AM$9,FALSE)))) ->  | E97: =IF($B97="","",VLOOKUP($B97,formula!$A$15:$BI$124,formula!$AN$9,FALSE)) ->  | F97: =IF($B97="","",VLOOKUP($B97,formula!$A$15:$BI$124,formula!$AD$9+1,FALSE)) ->  | G97: =IF($B97="","",VLOOKUP($B97,formula!$A$15:$BI$124,formula!$AG$9+1,FALSE)) ->  | H97: =IF($B97="","",VLOOKUP($B97,formula!$A$15:$EV$124,formula!$EM$9,FALSE)) ->  | I97: =IF($B97="","",VLOOKUP($B97,formula!$A$15:$EV$124,formula!$EN$9,FALSE)) ->  | J97: =IF($B97="","",VLOOKUP($B97,formula!$A$15:$BI$124,formula!$AV$9,FALSE)) ->  | K97: =IF($B97="","",VLOOKUP($B97,formula!$A$15:$BI$124,formula!$AU$9,FALSE)) ->  | L97: =IF($B97="","",VLOOKUP($B97,formula!$A$15:$BI$124,formula!$AX$9,FALSE)) -> 
D98: =IF(C97=MaxCoverageYear-1,"***以下空白***",IF($B98="","",IF($B98>plan,"",VLOOKUP($B98,formula!$A$15:$BI$124,formula!$AM$9,FALSE)))) ->  | E98: =IF($B98="","",VLOOKUP($B98,formula!$A$15:$BI$124,formula!$AN$9,FALSE)) ->  | F98: =IF($B98="","",VLOOKUP($B98,formula!$A$15:$BI$124,formula!$AD$9+1,FALSE)) ->  | G98: =IF($B98="","",VLOOKUP($B98,formula!$A$15:$BI$124,formula!$AG$9+1,FALSE)) ->  | H98: =IF($B98="","",VLOOKUP($B98,formula!$A$15:$EV$124,formula!$EM$9,FALSE)) ->  | I98: =IF($B98="","",VLOOKUP($B98,formula!$A$15:$EV$124,formula!$EN$9,FALSE)) ->  | J98: =IF($B98="","",VLOOKUP($B98,formula!$A$15:$BI$124,formula!$AV$9,FALSE)) ->  | K98: =IF($B98="","",VLOOKUP($B98,formula!$A$15:$BI$124,formula!$AU$9,FALSE)) ->  | L98: =IF($B98="","",VLOOKUP($B98,formula!$A$15:$BI$124,formula!$AX$9,FALSE)) -> 
D99: =IF(C98=MaxCoverageYear-1,"***以下空白***",IF($B99="","",IF($B99>plan,"",VLOOKUP($B99,formula!$A$15:$BI$124,formula!$AM$9,FALSE)))) ->  | E99: =IF($B99="","",VLOOKUP($B99,formula!$A$15:$BI$124,formula!$AN$9,FALSE)) ->  | F99: =IF($B99="","",VLOOKUP($B99,formula!$A$15:$BI$124,formula!$AD$9+1,FALSE)) ->  | G99: =IF($B99="","",VLOOKUP($B99,formula!$A$15:$BI$124,formula!$AG$9+1,FALSE)) ->  | H99: =IF($B99="","",VLOOKUP($B99,formula!$A$15:$EV$124,formula!$EM$9,FALSE)) ->  | I99: =IF($B99="","",VLOOKUP($B99,formula!$A$15:$EV$124,formula!$EN$9,FALSE)) ->  | J99: =IF($B99="","",VLOOKUP($B99,formula!$A$15:$BI$124,formula!$AV$9,FALSE)) ->  | K99: =IF($B99="","",VLOOKUP($B99,formula!$A$15:$BI$124,formula!$AU$9,FALSE)) ->  | L99: =IF($B99="","",VLOOKUP($B99,formula!$A$15:$BI$124,formula!$AX$9,FALSE)) -> 
D100: =IF(C99=MaxCoverageYear-1,"***以下空白***",IF($B100="","",IF($B100>plan,"",VLOOKUP($B100,formula!$A$15:$BI$124,formula!$AM$9,FALSE)))) ->  | E100: =IF($B100="","",VLOOKUP($B100,formula!$A$15:$BI$124,formula!$AN$9,FALSE)) ->  | F100: =IF($B100="","",VLOOKUP($B100,formula!$A$15:$BI$124,formula!$AD$9+1,FALSE)) ->  | G100: =IF($B100="","",VLOOKUP($B100,formula!$A$15:$BI$124,formula!$AG$9+1,FALSE)) ->  | H100: =IF($B100="","",VLOOKUP($B100,formula!$A$15:$EV$124,formula!$EM$9,FALSE)) ->  | I100: =IF($B100="","",VLOOKUP($B100,formula!$A$15:$EV$124,formula!$EN$9,FALSE)) ->  | J100: =IF($B100="","",VLOOKUP($B100,formula!$A$15:$BI$124,formula!$AV$9,FALSE)) ->  | K100: =IF($B100="","",VLOOKUP($B100,formula!$A$15:$BI$124,formula!$AU$9,FALSE)) ->  | L100: =IF($B100="","",VLOOKUP($B100,formula!$A$15:$BI$124,formula!$AX$9,FALSE)) -> 
D101: =IF(C100=MaxCoverageYear-1,"***以下空白***",IF($B101="","",IF($B101>plan,"",VLOOKUP($B101,formula!$A$15:$BI$124,formula!$AM$9,FALSE)))) ->  | E101: =IF($B101="","",VLOOKUP($B101,formula!$A$15:$BI$124,formula!$AN$9,FALSE)) ->  | F101: =IF($B101="","",VLOOKUP($B101,formula!$A$15:$BI$124,formula!$AD$9+1,FALSE)) ->  | G101: =IF($B101="","",VLOOKUP($B101,formula!$A$15:$BI$124,formula!$AG$9+1,FALSE)) ->  | H101: =IF($B101="","",VLOOKUP($B101,formula!$A$15:$EV$124,formula!$EM$9,FALSE)) ->  | I101: =IF($B101="","",VLOOKUP($B101,formula!$A$15:$EV$124,formula!$EN$9,FALSE)) ->  | J101: =IF($B101="","",VLOOKUP($B101,formula!$A$15:$BI$124,formula!$AV$9,FALSE)) ->  | K101: =IF($B101="","",VLOOKUP($B101,formula!$A$15:$BI$124,formula!$AU$9,FALSE)) ->  | L101: =IF($B101="","",VLOOKUP($B101,formula!$A$15:$BI$124,formula!$AX$9,FALSE)) -> 
D102: =IF(C101=MaxCoverageYear-1,"***以下空白***",IF($B102="","",IF($B102>plan,"",VLOOKUP($B102,formula!$A$15:$BI$124,formula!$AM$9,FALSE)))) ->  | E102: =IF($B102="","",VLOOKUP($B102,formula!$A$15:$BI$124,formula!$AN$9,FALSE)) ->  | F102: =IF($B102="","",VLOOKUP($B102,formula!$A$15:$BI$124,formula!$AD$9+1,FALSE)) ->  | G102: =IF($B102="","",VLOOKUP($B102,formula!$A$15:$BI$124,formula!$AG$9+1,FALSE)) ->  | H102: =IF($B102="","",VLOOKUP($B102,formula!$A$15:$EV$124,formula!$EM$9,FALSE)) ->  | I102: =IF($B102="","",VLOOKUP($B102,formula!$A$15:$EV$124,formula!$EN$9,FALSE)) ->  | J102: =IF($B102="","",VLOOKUP($B102,formula!$A$15:$BI$124,formula!$AV$9,FALSE)) ->  | K102: =IF($B102="","",VLOOKUP($B102,formula!$A$15:$BI$124,formula!$AU$9,FALSE)) ->  | L102: =IF($B102="","",VLOOKUP($B102,formula!$A$15:$BI$124,formula!$AX$9,FALSE)) -> 
D103: =IF(C102=MaxCoverageYear-1,"***以下空白***",IF($B103="","",IF($B103>plan,"",VLOOKUP($B103,formula!$A$15:$BI$124,formula!$AM$9,FALSE)))) ->  | E103: =IF($B103="","",VLOOKUP($B103,formula!$A$15:$BI$124,formula!$AN$9,FALSE)) ->  | F103: =IF($B103="","",VLOOKUP($B103,formula!$A$15:$BI$124,formula!$AD$9+1,FALSE)) ->  | G103: =IF($B103="","",VLOOKUP($B103,formula!$A$15:$BI$124,formula!$AG$9+1,FALSE)) ->  | H103: =IF($B103="","",VLOOKUP($B103,formula!$A$15:$EV$124,formula!$EM$9,FALSE)) ->  | I103: =IF($B103="","",VLOOKUP($B103,formula!$A$15:$EV$124,formula!$EN$9,FALSE)) ->  | J103: =IF($B103="","",VLOOKUP($B103,formula!$A$15:$BI$124,formula!$AV$9,FALSE)) ->  | K103: =IF($B103="","",VLOOKUP($B103,formula!$A$15:$BI$124,formula!$AU$9,FALSE)) ->  | L103: =IF($B103="","",VLOOKUP($B103,formula!$A$15:$BI$124,formula!$AX$9,FALSE)) -> 
D104: =IF(C103=MaxCoverageYear-1,"***以下空白***",IF($B104="","",IF($B104>plan,"",VLOOKUP($B104,formula!$A$15:$BI$124,formula!$AM$9,FALSE)))) ->  | E104: =IF($B104="","",VLOOKUP($B104,formula!$A$15:$BI$124,formula!$AN$9,FALSE)) ->  | F104: =IF($B104="","",VLOOKUP($B104,formula!$A$15:$BI$124,formula!$AD$9+1,FALSE)) ->  | G104: =IF($B104="","",VLOOKUP($B104,formula!$A$15:$BI$124,formula!$AG$9+1,FALSE)) ->  | H104: =IF($B104="","",VLOOKUP($B104,formula!$A$15:$EV$124,formula!$EM$9,FALSE)) ->  | I104: =IF($B104="","",VLOOKUP($B104,formula!$A$15:$EV$124,formula!$EN$9,FALSE)) ->  | J104: =IF($B104="","",VLOOKUP($B104,formula!$A$15:$BI$124,formula!$AV$9,FALSE)) ->  | K104: =IF($B104="","",VLOOKUP($B104,formula!$A$15:$BI$124,formula!$AU$9,FALSE)) ->  | L104: =IF($B104="","",VLOOKUP($B104,formula!$A$15:$BI$124,formula!$AX$9,FALSE)) -> 
D105: =IF(C104=MaxCoverageYear-1,"***以下空白***",IF($B105="","",IF($B105>plan,"",VLOOKUP($B105,formula!$A$15:$BI$124,formula!$AM$9,FALSE)))) ->  | E105: =IF($B105="","",VLOOKUP($B105,formula!$A$15:$BI$124,formula!$AN$9,FALSE)) ->  | F105: =IF($B105="","",VLOOKUP($B105,formula!$A$15:$BI$124,formula!$AD$9+1,FALSE)) ->  | G105: =IF($B105="","",VLOOKUP($B105,formula!$A$15:$BI$124,formula!$AG$9+1,FALSE)) ->  | H105: =IF($B105="","",VLOOKUP($B105,formula!$A$15:$EV$124,formula!$EM$9,FALSE)) ->  | I105: =IF($B105="","",VLOOKUP($B105,formula!$A$15:$EV$124,formula!$EN$9,FALSE)) ->  | J105: =IF($B105="","",VLOOKUP($B105,formula!$A$15:$BI$124,formula!$AV$9,FALSE)) ->  | K105: =IF($B105="","",VLOOKUP($B105,formula!$A$15:$BI$124,formula!$AU$9,FALSE)) ->  | L105: =IF($B105="","",VLOOKUP($B105,formula!$A$15:$BI$124,formula!$AX$9,FALSE)) -> 
D106: =IF(C105=MaxCoverageYear-1,"***以下空白***",IF($B106="","",IF($B106>plan,"",VLOOKUP($B106,formula!$A$15:$BI$124,formula!$AM$9,FALSE)))) ->  | E106: =IF($B106="","",VLOOKUP($B106,formula!$A$15:$BI$124,formula!$AN$9,FALSE)) ->  | F106: =IF($B106="","",VLOOKUP($B106,formula!$A$15:$BI$124,formula!$AD$9+1,FALSE)) ->  | G106: =IF($B106="","",VLOOKUP($B106,formula!$A$15:$BI$124,formula!$AG$9+1,FALSE)) ->  | H106: =IF($B106="","",VLOOKUP($B106,formula!$A$15:$EV$124,formula!$EM$9,FALSE)) ->  | I106: =IF($B106="","",VLOOKUP($B106,formula!$A$15:$EV$124,formula!$EN$9,FALSE)) ->  | J106: =IF($B106="","",VLOOKUP($B106,formula!$A$15:$BI$124,formula!$AV$9,FALSE)) ->  | K106: =IF($B106="","",VLOOKUP($B106,formula!$A$15:$BI$124,formula!$AU$9,FALSE)) ->  | L106: =IF($B106="","",VLOOKUP($B106,formula!$A$15:$BI$124,formula!$AX$9,FALSE)) -> 
D107: =IF(C106=MaxCoverageYear-1,"***以下空白***",IF($B107="","",IF($B107>plan,"",VLOOKUP($B107,formula!$A$15:$BI$124,formula!$AM$9,FALSE)))) ->  | E107: =IF($B107="","",VLOOKUP($B107,formula!$A$15:$BI$124,formula!$AN$9,FALSE)) ->  | F107: =IF($B107="","",VLOOKUP($B107,formula!$A$15:$BI$124,formula!$AD$9+1,FALSE)) ->  | G107: =IF($B107="","",VLOOKUP($B107,formula!$A$15:$BI$124,formula!$AG$9+1,FALSE)) ->  | H107: =IF($B107="","",VLOOKUP($B107,formula!$A$15:$EV$124,formula!$EM$9,FALSE)) ->  | I107: =IF($B107="","",VLOOKUP($B107,formula!$A$15:$EV$124,formula!$EN$9,FALSE)) ->  | J107: =IF($B107="","",VLOOKUP($B107,formula!$A$15:$BI$124,formula!$AV$9,FALSE)) ->  | K107: =IF($B107="","",VLOOKUP($B107,formula!$A$15:$BI$124,formula!$AU$9,FALSE)) ->  | L107: =IF($B107="","",VLOOKUP($B107,formula!$A$15:$BI$124,formula!$AX$9,FALSE)) -> 
D108: =IF(C107=MaxCoverageYear-1,"***以下空白***",IF($B108="","",IF($B108>plan,"",VLOOKUP($B108,formula!$A$15:$BI$124,formula!$AM$9,FALSE)))) ->  | E108: =IF($B108="","",VLOOKUP($B108,formula!$A$15:$BI$124,formula!$AN$9,FALSE)) ->  | F108: =IF($B108="","",VLOOKUP($B108,formula!$A$15:$BI$124,formula!$AD$9+1,FALSE)) ->  | G108: =IF($B108="","",VLOOKUP($B108,formula!$A$15:$BI$124,formula!$AG$9+1,FALSE)) ->  | H108: =IF($B108="","",VLOOKUP($B108,formula!$A$15:$EV$124,formula!$EM$9,FALSE)) ->  | I108: =IF($B108="","",VLOOKUP($B108,formula!$A$15:$EV$124,formula!$EN$9,FALSE)) ->  | J108: =IF($B108="","",VLOOKUP($B108,formula!$A$15:$BI$124,formula!$AV$9,FALSE)) ->  | K108: =IF($B108="","",VLOOKUP($B108,formula!$A$15:$BI$124,formula!$AU$9,FALSE)) ->  | L108: =IF($B108="","",VLOOKUP($B108,formula!$A$15:$BI$124,formula!$AX$9,FALSE)) -> 
D109: =IF(C108=MaxCoverageYear-1,"***以下空白***",IF($B109="","",IF($B109>plan,"",VLOOKUP($B109,formula!$A$15:$BI$124,formula!$AM$9,FALSE)))) ->  | E109: =IF($B109="","",VLOOKUP($B109,formula!$A$15:$BI$124,formula!$AN$9,FALSE)) ->  | F109: =IF($B109="","",VLOOKUP($B109,formula!$A$15:$BI$124,formula!$AD$9+1,FALSE)) ->  | G109: =IF($B109="","",VLOOKUP($B109,formula!$A$15:$BI$124,formula!$AG$9+1,FALSE)) ->  | H109: =IF($B109="","",VLOOKUP($B109,formula!$A$15:$EV$124,formula!$EM$9,FALSE)) ->  | I109: =IF($B109="","",VLOOKUP($B109,formula!$A$15:$EV$124,formula!$EN$9,FALSE)) ->  | J109: =IF($B109="","",VLOOKUP($B109,formula!$A$15:$BI$124,formula!$AV$9,FALSE)) ->  | K109: =IF($B109="","",VLOOKUP($B109,formula!$A$15:$BI$124,formula!$AU$9,FALSE)) ->  | L109: =IF($B109="","",VLOOKUP($B109,formula!$A$15:$BI$124,formula!$AX$9,FALSE)) -> 
D110: =IF(C109=MaxCoverageYear-1,"***以下空白***",IF($B110="","",IF($B110>plan,"",VLOOKUP($B110,formula!$A$15:$BI$124,formula!$AM$9,FALSE)))) ->  | E110: =IF($B110="","",VLOOKUP($B110,formula!$A$15:$BI$124,formula!$AN$9,FALSE)) ->  | F110: =IF($B110="","",VLOOKUP($B110,formula!$A$15:$BI$124,formula!$AD$9+1,FALSE)) ->  | G110: =IF($B110="","",VLOOKUP($B110,formula!$A$15:$BI$124,formula!$AG$9+1,FALSE)) ->  | H110: =IF($B110="","",VLOOKUP($B110,formula!$A$15:$EV$124,formula!$EM$9,FALSE)) ->  | I110: =IF($B110="","",VLOOKUP($B110,formula!$A$15:$EV$124,formula!$EN$9,FALSE)) ->  | J110: =IF($B110="","",VLOOKUP($B110,formula!$A$15:$BI$124,formula!$AV$9,FALSE)) ->  | K110: =IF($B110="","",VLOOKUP($B110,formula!$A$15:$BI$124,formula!$AU$9,FALSE)) ->  | L110: =IF($B110="","",VLOOKUP($B110,formula!$A$15:$BI$124,formula!$AX$9,FALSE)) -> 
D111: =IF(C110=MaxCoverageYear-1,"***以下空白***",IF($B111="","",IF($B111>plan,"",VLOOKUP($B111,formula!$A$15:$BI$124,formula!$AM$9,FALSE)))) ->  | E111: =IF($B111="","",VLOOKUP($B111,formula!$A$15:$BI$124,formula!$AN$9,FALSE)) ->  | F111: =IF($B111="","",VLOOKUP($B111,formula!$A$15:$BI$124,formula!$AD$9+1,FALSE)) ->  | G111: =IF($B111="","",VLOOKUP($B111,formula!$A$15:$BI$124,formula!$AG$9+1,FALSE)) ->  | H111: =IF($B111="","",VLOOKUP($B111,formula!$A$15:$EV$124,formula!$EM$9,FALSE)) ->  | I111: =IF($B111="","",VLOOKUP($B111,formula!$A$15:$EV$124,formula!$EN$9,FALSE)) ->  | J111: =IF($B111="","",VLOOKUP($B111,formula!$A$15:$BI$124,formula!$AV$9,FALSE)) ->  | K111: =IF($B111="","",VLOOKUP($B111,formula!$A$15:$BI$124,formula!$AU$9,FALSE)) ->  | L111: =IF($B111="","",VLOOKUP($B111,formula!$A$15:$BI$124,formula!$AX$9,FALSE)) -> 
D112: =IF(C111=MaxCoverageYear-1,"***以下空白***",IF($B112="","",IF($B112>plan,"",VLOOKUP($B112,formula!$A$15:$BI$124,formula!$AM$9,FALSE)))) ->  | E112: =IF($B112="","",VLOOKUP($B112,formula!$A$15:$BI$124,formula!$AN$9,FALSE)) ->  | F112: =IF($B112="","",VLOOKUP($B112,formula!$A$15:$BI$124,formula!$AD$9+1,FALSE)) ->  | G112: =IF($B112="","",VLOOKUP($B112,formula!$A$15:$BI$124,formula!$AG$9+1,FALSE)) ->  | H112: =IF($B112="","",VLOOKUP($B112,formula!$A$15:$EV$124,formula!$EM$9,FALSE)) ->  | I112: =IF($B112="","",VLOOKUP($B112,formula!$A$15:$EV$124,formula!$EN$9,FALSE)) ->  | J112: =IF($B112="","",VLOOKUP($B112,formula!$A$15:$BI$124,formula!$AV$9,FALSE)) ->  | K112: =IF($B112="","",VLOOKUP($B112,formula!$A$15:$BI$124,formula!$AU$9,FALSE)) ->  | L112: =IF($B112="","",VLOOKUP($B112,formula!$A$15:$BI$124,formula!$AX$9,FALSE)) -> 
D113: =IF(C112=MaxCoverageYear-1,"***以下空白***",IF($B113="","",IF($B113>plan,"",VLOOKUP($B113,formula!$A$15:$BI$124,formula!$AM$9,FALSE)))) ->  | E113: =IF($B113="","",VLOOKUP($B113,formula!$A$15:$BI$124,formula!$AN$9,FALSE)) ->  | F113: =IF($B113="","",VLOOKUP($B113,formula!$A$15:$BI$124,formula!$AD$9+1,FALSE)) ->  | G113: =IF($B113="","",VLOOKUP($B113,formula!$A$15:$BI$124,formula!$AG$9+1,FALSE)) ->  | H113: =IF($B113="","",VLOOKUP($B113,formula!$A$15:$EV$124,formula!$EM$9,FALSE)) ->  | I113: =IF($B113="","",VLOOKUP($B113,formula!$A$15:$EV$124,formula!$EN$9,FALSE)) ->  | J113: =IF($B113="","",VLOOKUP($B113,formula!$A$15:$BI$124,formula!$AV$9,FALSE)) ->  | K113: =IF($B113="","",VLOOKUP($B113,formula!$A$15:$BI$124,formula!$AU$9,FALSE)) ->  | L113: =IF($B113="","",VLOOKUP($B113,formula!$A$15:$BI$124,formula!$AX$9,FALSE)) -> 
D114: =IF(C113=MaxCoverageYear-1,"***以下空白***",IF($B114="","",IF($B114>plan,"",VLOOKUP($B114,formula!$A$15:$BI$124,formula!$AM$9,FALSE)))) ->  | E114: =IF($B114="","",VLOOKUP($B114,formula!$A$15:$BI$124,formula!$AN$9,FALSE)) ->  | F114: =IF($B114="","",VLOOKUP($B114,formula!$A$15:$BI$124,formula!$AD$9+1,FALSE)) ->  | G114: =IF($B114="","",VLOOKUP($B114,formula!$A$15:$BI$124,formula!$AG$9+1,FALSE)) ->  | H114: =IF($B114="","",VLOOKUP($B114,formula!$A$15:$EV$124,formula!$EM$9,FALSE)) ->  | I114: =IF($B114="","",VLOOKUP($B114,formula!$A$15:$EV$124,formula!$EN$9,FALSE)) ->  | J114: =IF($B114="","",VLOOKUP($B114,formula!$A$15:$BI$124,formula!$AV$9,FALSE)) ->  | K114: =IF($B114="","",VLOOKUP($B114,formula!$A$15:$BI$124,formula!$AU$9,FALSE)) ->  | L114: =IF($B114="","",VLOOKUP($B114,formula!$A$15:$BI$124,formula!$AX$9,FALSE)) -> 
D115: =IF(C114=MaxCoverageYear-1,"***以下空白***",IF($B115="","",IF($B115>plan,"",VLOOKUP($B115,formula!$A$15:$BI$124,formula!$AM$9,FALSE)))) ->  | E115: =IF($B115="","",VLOOKUP($B115,formula!$A$15:$BI$124,formula!$AN$9,FALSE)) ->  | F115: =IF($B115="","",VLOOKUP($B115,formula!$A$15:$BI$124,formula!$AD$9+1,FALSE)) ->  | G115: =IF($B115="","",VLOOKUP($B115,formula!$A$15:$BI$124,formula!$AG$9+1,FALSE)) ->  | H115: =IF($B115="","",VLOOKUP($B115,formula!$A$15:$EV$124,formula!$EM$9,FALSE)) ->  | I115: =IF($B115="","",VLOOKUP($B115,formula!$A$15:$EV$124,formula!$EN$9,FALSE)) ->  | J115: =IF($B115="","",VLOOKUP($B115,formula!$A$15:$BI$124,formula!$AV$9,FALSE)) ->  | K115: =IF($B115="","",VLOOKUP($B115,formula!$A$15:$BI$124,formula!$AU$9,FALSE)) ->  | L115: =IF($B115="","",VLOOKUP($B115,formula!$A$15:$BI$124,formula!$AX$9,FALSE)) -> 
D116: =IF(C115=MaxCoverageYear-1,"***以下空白***",IF($B116="","",IF($B116>plan,"",VLOOKUP($B116,formula!$A$15:$BI$124,formula!$AM$9,FALSE)))) ->  | E116: =IF($B116="","",VLOOKUP($B116,formula!$A$15:$BI$124,formula!$AN$9,FALSE)) ->  | F116: =IF($B116="","",VLOOKUP($B116,formula!$A$15:$BI$124,formula!$AD$9+1,FALSE)) ->  | G116: =IF($B116="","",VLOOKUP($B116,formula!$A$15:$BI$124,formula!$AG$9+1,FALSE)) ->  | H116: =IF($B116="","",VLOOKUP($B116,formula!$A$15:$EV$124,formula!$EM$9,FALSE)) ->  | I116: =IF($B116="","",VLOOKUP($B116,formula!$A$15:$EV$124,formula!$EN$9,FALSE)) ->  | J116: =IF($B116="","",VLOOKUP($B116,formula!$A$15:$BI$124,formula!$AV$9,FALSE)) ->  | K116: =IF($B116="","",VLOOKUP($B116,formula!$A$15:$BI$124,formula!$AU$9,FALSE)) ->  | L116: =IF($B116="","",VLOOKUP($B116,formula!$A$15:$BI$124,formula!$AX$9,FALSE)) -> 
D117: =IF(C116=MaxCoverageYear-1,"***以下空白***",IF($B117="","",IF($B117>plan,"",VLOOKUP($B117,formula!$A$15:$BI$124,formula!$AM$9,FALSE)))) ->  | E117: =IF($B117="","",VLOOKUP($B117,formula!$A$15:$BI$124,formula!$AN$9,FALSE)) ->  | F117: =IF($B117="","",VLOOKUP($B117,formula!$A$15:$BI$124,formula!$AD$9+1,FALSE)) ->  | G117: =IF($B117="","",VLOOKUP($B117,formula!$A$15:$BI$124,formula!$AG$9+1,FALSE)) ->  | H117: =IF($B117="","",VLOOKUP($B117,formula!$A$15:$EV$124,formula!$EM$9,FALSE)) ->  | I117: =IF($B117="","",VLOOKUP($B117,formula!$A$15:$EV$124,formula!$EN$9,FALSE)) ->  | J117: =IF($B117="","",VLOOKUP($B117,formula!$A$15:$BI$124,formula!$AV$9,FALSE)) ->  | K117: =IF($B117="","",VLOOKUP($B117,formula!$A$15:$BI$124,formula!$AU$9,FALSE)) ->  | L117: =IF($B117="","",VLOOKUP($B117,formula!$A$15:$BI$124,formula!$AX$9,FALSE)) -> 
D118: =IF(C117=MaxCoverageYear-1,"***以下空白***",IF($B118="","",IF($B118>plan,"",VLOOKUP($B118,formula!$A$15:$BI$124,formula!$AM$9,FALSE)))) ->  | E118: =IF($B118="","",VLOOKUP($B118,formula!$A$15:$BI$124,formula!$AN$9,FALSE)) ->  | F118: =IF($B118="","",VLOOKUP($B118,formula!$A$15:$BI$124,formula!$AD$9+1,FALSE)) ->  | G118: =IF($B118="","",VLOOKUP($B118,formula!$A$15:$BI$124,formula!$AG$9+1,FALSE)) ->  | H118: =IF($B118="","",VLOOKUP($B118,formula!$A$15:$EV$124,formula!$EM$9,FALSE)) ->  | I118: =IF($B118="","",VLOOKUP($B118,formula!$A$15:$EV$124,formula!$EN$9,FALSE)) ->  | J118: =IF($B118="","",VLOOKUP($B118,formula!$A$15:$BI$124,formula!$AV$9,FALSE)) ->  | K118: =IF($B118="","",VLOOKUP($B118,formula!$A$15:$BI$124,formula!$AU$9,FALSE)) ->  | L118: =IF($B118="","",VLOOKUP($B118,formula!$A$15:$BI$124,formula!$AX$9,FALSE)) -> 
D119: =IF(C118=MaxCoverageYear-1,"***以下空白***",IF($B119="","",IF($B119>plan,"",VLOOKUP($B119,formula!$A$15:$BI$124,formula!$AM$9,FALSE)))) ->  | E119: =IF($B119="","",VLOOKUP($B119,formula!$A$15:$BI$124,formula!$AN$9,FALSE)) ->  | F119: =IF($B119="","",VLOOKUP($B119,formula!$A$15:$BI$124,formula!$AD$9+1,FALSE)) ->  | G119: =IF($B119="","",VLOOKUP($B119,formula!$A$15:$BI$124,formula!$AG$9+1,FALSE)) ->  | H119: =IF($B119="","",VLOOKUP($B119,formula!$A$15:$EV$124,formula!$EM$9,FALSE)) ->  | I119: =IF($B119="","",VLOOKUP($B119,formula!$A$15:$EV$124,formula!$EN$9,FALSE)) ->  | J119: =IF($B119="","",VLOOKUP($B119,formula!$A$15:$BI$124,formula!$AV$9,FALSE)) ->  | K119: =IF($B119="","",VLOOKUP($B119,formula!$A$15:$BI$124,formula!$AU$9,FALSE)) ->  | L119: =IF($B119="","",VLOOKUP($B119,formula!$A$15:$BI$124,formula!$AX$9,FALSE)) -> 
D120: =IF(C119=MaxCoverageYear-1,"***以下空白***",IF($B120="","",IF($B120>plan,"",VLOOKUP($B120,formula!$A$15:$BI$124,formula!$AM$9,FALSE)))) ->  | E120: =IF($B120="","",VLOOKUP($B120,formula!$A$15:$BI$124,formula!$AN$9,FALSE)) ->  | F120: =IF($B120="","",VLOOKUP($B120,formula!$A$15:$BI$124,formula!$AD$9+1,FALSE)) ->  | G120: =IF($B120="","",VLOOKUP($B120,formula!$A$15:$BI$124,formula!$AG$9+1,FALSE)) ->  | H120: =IF($B120="","",VLOOKUP($B120,formula!$A$15:$EV$124,formula!$EM$9,FALSE)) ->  | I120: =IF($B120="","",VLOOKUP($B120,formula!$A$15:$EV$124,formula!$EN$9,FALSE)) ->  | J120: =IF($B120="","",VLOOKUP($B120,formula!$A$15:$BI$124,formula!$AV$9,FALSE)) ->  | K120: =IF($B120="","",VLOOKUP($B120,formula!$A$15:$BI$124,formula!$AU$9,FALSE)) ->  | L120: =IF($B120="","",VLOOKUP($B120,formula!$A$15:$BI$124,formula!$AX$9,FALSE)) -> 
D121: =IF(C120=MaxCoverageYear-1,"***以下空白***",IF($B121="","",IF($B121>plan,"",VLOOKUP($B121,formula!$A$15:$BI$124,formula!$AM$9,FALSE)))) ->  | E121: =IF($B121="","",VLOOKUP($B121,formula!$A$15:$BI$124,formula!$AN$9,FALSE)) ->  | F121: =IF($B121="","",VLOOKUP($B121,formula!$A$15:$BI$124,formula!$AD$9+1,FALSE)) ->  | G121: =IF($B121="","",VLOOKUP($B121,formula!$A$15:$BI$124,formula!$AG$9+1,FALSE)) ->  | H121: =IF($B121="","",VLOOKUP($B121,formula!$A$15:$EV$124,formula!$EM$9,FALSE)) ->  | I121: =IF($B121="","",VLOOKUP($B121,formula!$A$15:$EV$124,formula!$EN$9,FALSE)) ->  | J121: =IF($B121="","",VLOOKUP($B121,formula!$A$15:$BI$124,formula!$AV$9,FALSE)) ->  | K121: =IF($B121="","",VLOOKUP($B121,formula!$A$15:$BI$124,formula!$AU$9,FALSE)) ->  | L121: =IF($B121="","",VLOOKUP($B121,formula!$A$15:$BI$124,formula!$AX$9,FALSE)) -> 
D122: =IF(C121=MaxCoverageYear-1,"***以下空白***",IF($B122="","",IF($B122>plan,"",VLOOKUP($B122,formula!$A$15:$BI$124,formula!$AM$9,FALSE)))) ->  | E122: =IF($B122="","",VLOOKUP($B122,formula!$A$15:$BI$124,formula!$AN$9,FALSE)) ->  | F122: =IF($B122="","",VLOOKUP($B122,formula!$A$15:$BI$124,formula!$AD$9+1,FALSE)) ->  | G122: =IF($B122="","",VLOOKUP($B122,formula!$A$15:$BI$124,formula!$AG$9+1,FALSE)) ->  | H122: =IF($B122="","",VLOOKUP($B122,formula!$A$15:$EV$124,formula!$EM$9,FALSE)) ->  | I122: =IF($B122="","",VLOOKUP($B122,formula!$A$15:$EV$124,formula!$EN$9,FALSE)) ->  | J122: =IF($B122="","",VLOOKUP($B122,formula!$A$15:$BI$124,formula!$AV$9,FALSE)) ->  | K122: =IF($B122="","",VLOOKUP($B122,formula!$A$15:$BI$124,formula!$AU$9,FALSE)) ->  | L122: =IF($B122="","",VLOOKUP($B122,formula!$A$15:$BI$124,formula!$AX$9,FALSE)) -> 
D123: =IF(C122=MaxCoverageYear-1,"***以下空白***",IF($B123="","",IF($B123>plan,"",VLOOKUP($B123,formula!$A$15:$BI$124,formula!$AM$9,FALSE)))) ->  | E123: =IF($B123="","",VLOOKUP($B123,formula!$A$15:$BI$124,formula!$AN$9,FALSE)) ->  | F123: =IF($B123="","",VLOOKUP($B123,formula!$A$15:$BI$124,formula!$AD$9+1,FALSE)) ->  | G123: =IF($B123="","",VLOOKUP($B123,formula!$A$15:$BI$124,formula!$AG$9+1,FALSE)) ->  | H123: =IF($B123="","",VLOOKUP($B123,formula!$A$15:$EV$124,formula!$EM$9,FALSE)) ->  | I123: =IF($B123="","",VLOOKUP($B123,formula!$A$15:$EV$124,formula!$EN$9,FALSE)) ->  | J123: =IF($B123="","",VLOOKUP($B123,formula!$A$15:$BI$124,formula!$AV$9,FALSE)) ->  | K123: =IF($B123="","",VLOOKUP($B123,formula!$A$15:$BI$124,formula!$AU$9,FALSE)) ->  | L123: =IF($B123="","",VLOOKUP($B123,formula!$A$15:$BI$124,formula!$AX$9,FALSE)) -> 
D124: =IF(C123=MaxCoverageYear-1,"***以下空白***",IF($B124="","",IF($B124>plan,"",VLOOKUP($B124,formula!$A$15:$BI$124,formula!$AM$9,FALSE)))) ->  | E124: =IF($B124="","",VLOOKUP($B124,formula!$A$15:$BI$124,formula!$AN$9,FALSE)) ->  | F124: =IF($B124="","",VLOOKUP($B124,formula!$A$15:$BI$124,formula!$AD$9+1,FALSE)) ->  | G124: =IF($B124="","",VLOOKUP($B124,formula!$A$15:$BI$124,formula!$AG$9+1,FALSE)) ->  | H124: =IF($B124="","",VLOOKUP($B124,formula!$A$15:$EV$124,formula!$EM$9,FALSE)) ->  | I124: =IF($B124="","",VLOOKUP($B124,formula!$A$15:$EV$124,formula!$EN$9,FALSE)) ->  | J124: =IF($B124="","",VLOOKUP($B124,formula!$A$15:$BI$124,formula!$AV$9,FALSE)) ->  | K124: =IF($B124="","",VLOOKUP($B124,formula!$A$15:$BI$124,formula!$AU$9,FALSE)) ->  | L124: =IF($B124="","",VLOOKUP($B124,formula!$A$15:$BI$124,formula!$AX$9,FALSE)) -> 
D125: =IF(C124=MaxCoverageYear-1,"***以下空白***",IF($B125="","",IF($B125>plan,"",VLOOKUP($B125,formula!$A$15:$BI$124,formula!$AM$9,FALSE)))) ->  | E125: =IF($B125="","",VLOOKUP($B125,formula!$A$15:$BI$124,formula!$AN$9,FALSE)) ->  | F125: =IF($B125="","",VLOOKUP($B125,formula!$A$15:$BI$124,formula!$AD$9+1,FALSE)) ->  | G125: =IF($B125="","",VLOOKUP($B125,formula!$A$15:$BI$124,formula!$AG$9+1,FALSE)) ->  | H125: =IF($B125="","",VLOOKUP($B125,formula!$A$15:$EV$124,formula!$EM$9,FALSE)) ->  | I125: =IF($B125="","",VLOOKUP($B125,formula!$A$15:$EV$124,formula!$EN$9,FALSE)) ->  | J125: =IF($B125="","",VLOOKUP($B125,formula!$A$15:$BI$124,formula!$AV$9,FALSE)) ->  | K125: =IF($B125="","",VLOOKUP($B125,formula!$A$15:$BI$124,formula!$AU$9,FALSE)) ->  | L125: =IF($B125="","",VLOOKUP($B125,formula!$A$15:$BI$124,formula!$AX$9,FALSE)) -> 
D126: =IF(C125=MaxCoverageYear-1,"***以下空白***",IF($B126="","",IF($B126>plan,"",VLOOKUP($B126,formula!$A$15:$BI$124,formula!$AM$9,FALSE)))) ->  | E126: =IF($B126="","",VLOOKUP($B126,formula!$A$15:$BI$124,formula!$AN$9,FALSE)) ->  | F126: =IF($B126="","",VLOOKUP($B126,formula!$A$15:$BI$124,formula!$AD$9+1,FALSE)) ->  | G126: =IF($B126="","",VLOOKUP($B126,formula!$A$15:$BI$124,formula!$AG$9+1,FALSE)) ->  | H126: =IF($B126="","",VLOOKUP($B126,formula!$A$15:$EV$124,formula!$EM$9,FALSE)) ->  | I126: =IF($B126="","",VLOOKUP($B126,formula!$A$15:$EV$124,formula!$EN$9,FALSE)) ->  | J126: =IF($B126="","",VLOOKUP($B126,formula!$A$15:$BI$124,formula!$AV$9,FALSE)) ->  | K126: =IF($B126="","",VLOOKUP($B126,formula!$A$15:$BI$124,formula!$AU$9,FALSE)) ->  | L126: =IF($B126="","",VLOOKUP($B126,formula!$A$15:$BI$124,formula!$AX$9,FALSE)) -> 
M128: (幣別/單位：美元/元)
B129: 年度 | C129: 年齡 | D129: 折扣後 當年度 所繳保險費 | E129: 折扣後 累計 所繳保險費 | F129: 【非保證給付項目】假設分紅-較低紅利金額(保額)(低分紅)
F130: 原保險金額試算 | H130: 減少保險金額試算
F132: 當年度末 壽險保障及 假設紅利_分紅保額 (預估值) (低) | G132: 當年度末 可能領取 解約金總額 (預估值) (低) | H132: 該次減少 基本保險金額 可領取之解約金 (預估值) (年初) | I132: 歷年減少 基本保險金額 領取之解約金總額 (預估值) A | J132: 減少基本保險金額後 當年度末壽險保障及 假設紅利_分紅保額 (預估值) | K132: 減少基本保險金額後 當年度末解約 可能領取之解約金 (預估值) B | L132: 累計至當年度末解約可能總領金額 (預估值) A+B=C
B133: 1 | C133: =IF(B133="","",age+B133-1) -> 40 | D133: =IF(C133="","***以下空白***",IF($B133="","",IF($B133>plan,"",VLOOKUP($B133,formula!$A$15:$BI$124,formula!$AM$9,FALSE)))) -> 1071187.5 | E133: =IF($B133="","",VLOOKUP($B133,formula!$A$15:$BI$124,formula!$AN$9,FALSE)) -> 1071187.5 | F133: =IF($B133="","",VLOOKUP($B133,formula!$A$15:$BI$124,formula!$AD$9+2,FALSE)) -> 1087500 | G133: =IF($B133="","",VLOOKUP($B133,formula!$A$15:$BI$124,formula!$AG$9+2,FALSE)) -> 362207.5 | H133: =IF($B133="","",VLOOKUP($B133,formula!$A$15:$EV$124,formula!$EO$9,FALSE)) -> 0 | I133: =IF($B133="","",VLOOKUP($B133,formula!$A$15:$EV$124,formula!$EP$9,FALSE)) -> 0 | J133: =IF($B133="","",VLOOKUP($B133,formula!$A$15:$BI$124,formula!$BE$9,FALSE)) -> 1087500 | K133: =IF($B133="","",VLOOKUP($B133,formula!$A$15:$BI$124,formula!$BD$9,FALSE)) -> 362207.5 | L133: =IF($B133="","",VLOOKUP($B133,formula!$A$15:$BI$124,formula!$BG$9,FALSE)) -> 362207.5
B134: =IF(B133>=109-age+1,"",B133+1) -> 2 | C134: 41 | D134: =IF(C133=MaxCoverageYear-1,"***以下空白***",IF($B134="","",IF($B134>plan,"",VLOOKUP($B134,formula!$A$15:$BI$124,formula!$AM$9,FALSE)))) -> 1071187.5 | E134: =IF($B134="","",VLOOKUP($B134,formula!$A$15:$BI$124,formula!$AN$9,FALSE)) -> 2142375 | F134: =IF($B134="","",VLOOKUP($B134,formula!$A$15:$BI$124,formula!$AD$9+2,FALSE)) -> 2175000 | G134: =IF($B134="","",VLOOKUP($B134,formula!$A$15:$BI$124,formula!$AG$9+2,FALSE)) -> 971885 | H134: =IF($B134="","",VLOOKUP($B134,formula!$A$15:$EV$124,formula!$EO$9,FALSE)) -> 0 | I134: =IF($B134="","",VLOOKUP($B134,formula!$A$15:$EV$124,formula!$EP$9,FALSE)) -> 0 | J134: =IF($B134="","",VLOOKUP($B134,formula!$A$15:$BI$124,formula!$BE$9,FALSE)) -> 2175000 | K134: =IF($B134="","",VLOOKUP($B134,formula!$A$15:$BI$124,formula!$BD$9,FALSE)) -> 971885 | L134: =IF($B134="","",VLOOKUP($B134,formula!$A$15:$BI$124,formula!$BG$9,FALSE)) -> 971885
B135: 3 | C135: 42 | D135: =IF(C134=MaxCoverageYear-1,"***以下空白***",IF($B135="","",IF($B135>plan,"",VLOOKUP($B135,formula!$A$15:$BI$124,formula!$AM$9,FALSE)))) -> 1071187.5 | E135: =IF($B135="","",VLOOKUP($B135,formula!$A$15:$BI$124,formula!$AN$9,FALSE)) -> 3213562.5 | F135: =IF($B135="","",VLOOKUP($B135,formula!$A$15:$BI$124,formula!$AD$9+2,FALSE)) -> 3402264 | G135: =IF($B135="","",VLOOKUP($B135,formula!$A$15:$BI$124,formula!$AG$9+2,FALSE)) -> 1594812.5 | H135: =IF($B135="","",VLOOKUP($B135,formula!$A$15:$EV$124,formula!$EO$9,FALSE)) -> 0 | I135: =IF($B135="","",VLOOKUP($B135,formula!$A$15:$EV$124,formula!$EP$9,FALSE)) -> 0 | J135: =IF($B135="","",VLOOKUP($B135,formula!$A$15:$BI$124,formula!$BE$9,FALSE)) -> 3402264 | K135: =IF($B135="","",VLOOKUP($B135,formula!$A$15:$BI$124,formula!$BD$9,FALSE)) -> 1594812.5 | L135: =IF($B135="","",VLOOKUP($B135,formula!$A$15:$BI$124,formula!$BG$9,FALSE)) -> 1594812.5
B136: 4 | C136: 43 | D136: =IF(C135=MaxCoverageYear-1,"***以下空白***",IF($B136="","",IF($B136>plan,"",VLOOKUP($B136,formula!$A$15:$BI$124,formula!$AM$9,FALSE)))) -> 1071187.5 | E136: =IF($B136="","",VLOOKUP($B136,formula!$A$15:$BI$124,formula!$AN$9,FALSE)) -> 4284750 | F136: =IF($B136="","",VLOOKUP($B136,formula!$A$15:$BI$124,formula!$AD$9+2,FALSE)) -> 10000000 | G136: =IF($B136="","",VLOOKUP($B136,formula!$A$15:$BI$124,formula!$AG$9+2,FALSE)) -> 2667332.5 | H136: =IF($B136="","",VLOOKUP($B136,formula!$A$15:$EV$124,formula!$EO$9,FALSE)) -> 0 | I136: =IF($B136="","",VLOOKUP($B136,formula!$A$15:$EV$124,formula!$EP$9,FALSE)) -> 0 | J136: =IF($B136="","",VLOOKUP($B136,formula!$A$15:$BI$124,formula!$BE$9,FALSE)) -> 10000000 | K136: =IF($B136="","",VLOOKUP($B136,formula!$A$15:$BI$124,formula!$BD$9,FALSE)) -> 2667332.5 | L136: =IF($B136="","",VLOOKUP($B136,formula!$A$15:$BI$124,formula!$BG$9,FALSE)) -> 2667332.5
B137: 5 | C137: 44 | D137: =IF(C136=MaxCoverageYear-1,"***以下空白***",IF($B137="","",IF($B137>plan,"",VLOOKUP($B137,formula!$A$15:$BI$124,formula!$AM$9,FALSE)))) -> 1071187.5 | E137: =IF($B137="","",VLOOKUP($B137,formula!$A$15:$BI$124,formula!$AN$9,FALSE)) -> 5355937.5 | F137: =IF($B137="","",VLOOKUP($B137,formula!$A$15:$BI$124,formula!$AD$9+2,FALSE)) -> 12500000 | G137: =IF($B137="","",VLOOKUP($B137,formula!$A$15:$BI$124,formula!$AG$9+2,FALSE)) -> 3624280 | H137: =IF($B137="","",VLOOKUP($B137,formula!$A$15:$EV$124,formula!$EO$9,FALSE)) -> 0 | I137: =IF($B137="","",VLOOKUP($B137,formula!$A$15:$EV$124,formula!$EP$9,FALSE)) -> 0 | J137: =IF($B137="","",VLOOKUP($B137,formula!$A$15:$BI$124,formula!$BE$9,FALSE)) -> 12500000 | K137: =IF($B137="","",VLOOKUP($B137,formula!$A$15:$BI$124,formula!$BD$9,FALSE)) -> 3624280 | L137: =IF($B137="","",VLOOKUP($B137,formula!$A$15:$BI$124,formula!$BG$9,FALSE)) -> 3624280
B138: 6 | C138: 45 | D138: =IF(C137=MaxCoverageYear-1,"***以下空白***",IF($B138="","",IF($B138>plan,"",VLOOKUP($B138,formula!$A$15:$BI$124,formula!$AM$9,FALSE)))) -> 1071187.5 | E138: =IF($B138="","",VLOOKUP($B138,formula!$A$15:$BI$124,formula!$AN$9,FALSE)) -> 6427125 | F138: =IF($B138="","",VLOOKUP($B138,formula!$A$15:$BI$124,formula!$AD$9+2,FALSE)) -> 16076603 | G138: =IF($B138="","",VLOOKUP($B138,formula!$A$15:$BI$124,formula!$AG$9+2,FALSE)) -> 4847510.41 | H138: =IF($B138="","",VLOOKUP($B138,formula!$A$15:$EV$124,formula!$EO$9,FALSE)) -> 0 | I138: =IF($B138="","",VLOOKUP($B138,formula!$A$15:$EV$124,formula!$EP$9,FALSE)) -> 0 | J138: =IF($B138="","",VLOOKUP($B138,formula!$A$15:$BI$124,formula!$BE$9,FALSE)) -> 16076603 | K138: =IF($B138="","",VLOOKUP($B138,formula!$A$15:$BI$124,formula!$BD$9,FALSE)) -> 4847510.41 | L138: =IF($B138="","",VLOOKUP($B138,formula!$A$15:$BI$124,formula!$BG$9,FALSE)) -> 4847510.41
B139: 7 | C139: 46 | D139: =IF(C138=MaxCoverageYear-1,"***以下空白***",IF($B139="","",IF($B139>plan,"",VLOOKUP($B139,formula!$A$15:$BI$124,formula!$AM$9,FALSE)))) ->  | E139: =IF($B139="","",VLOOKUP($B139,formula!$A$15:$BI$124,formula!$AN$9,FALSE)) -> 6427125 | F139: =IF($B139="","",VLOOKUP($B139,formula!$A$15:$BI$124,formula!$AD$9+2,FALSE)) -> 15640021.2 | G139: =IF($B139="","",VLOOKUP($B139,formula!$A$15:$BI$124,formula!$AG$9+2,FALSE)) -> 4932198.11 | H139: =IF($B139="","",VLOOKUP($B139,formula!$A$15:$EV$124,formula!$EO$9,FALSE)) -> 0 | I139: =IF($B139="","",VLOOKUP($B139,formula!$A$15:$EV$124,formula!$EP$9,FALSE)) -> 0 | J139: =IF($B139="","",VLOOKUP($B139,formula!$A$15:$BI$124,formula!$BE$9,FALSE)) -> 15636849.41 | K139: =IF($B139="","",VLOOKUP($B139,formula!$A$15:$BI$124,formula!$BD$9,FALSE)) -> 4931197.87 | L139: =IF($B139="","",VLOOKUP($B139,formula!$A$15:$BI$124,formula!$BG$9,FALSE)) -> 4932197.87
B140: 8 | C140: 47 | D140: =IF(C139=MaxCoverageYear-1,"***以下空白***",IF($B140="","",IF($B140>plan,"",VLOOKUP($B140,formula!$A$15:$BI$124,formula!$AM$9,FALSE)))) ->  | E140: =IF($B140="","",VLOOKUP($B140,formula!$A$15:$BI$124,formula!$AN$9,FALSE)) -> 6427125 | F140: =IF($B140="","",VLOOKUP($B140,formula!$A$15:$BI$124,formula!$AD$9+2,FALSE)) -> 15204078.8 | G140: =IF($B140="","",VLOOKUP($B140,formula!$A$15:$BI$124,formula!$AG$9+2,FALSE)) -> 5018748.56 | H140: =IF($B140="","",VLOOKUP($B140,formula!$A$15:$EV$124,formula!$EO$9,FALSE)) -> 1000 | I140: =IF($B140="","",VLOOKUP($B140,formula!$A$15:$EV$124,formula!$EP$9,FALSE)) -> 1000 | J140: =IF($B140="","",VLOOKUP($B140,formula!$A$15:$BI$124,formula!$BE$9,FALSE)) -> 15197960.68 | K140: =IF($B140="","",VLOOKUP($B140,formula!$A$15:$BI$124,formula!$BD$9,FALSE)) -> 5016729.02 | L140: =IF($B140="","",VLOOKUP($B140,formula!$A$15:$BI$124,formula!$BG$9,FALSE)) -> 5018731.02
B141: 9 | C141: 48 | D141: =IF(C140=MaxCoverageYear-1,"***以下空白***",IF($B141="","",IF($B141>plan,"",VLOOKUP($B141,formula!$A$15:$BI$124,formula!$AM$9,FALSE)))) ->  | E141: =IF($B141="","",VLOOKUP($B141,formula!$A$15:$BI$124,formula!$AN$9,FALSE)) -> 6427125 | F141: =IF($B141="","",VLOOKUP($B141,formula!$A$15:$BI$124,formula!$AD$9+2,FALSE)) -> 14768578 | G141: =IF($B141="","",VLOOKUP($B141,formula!$A$15:$BI$124,formula!$AG$9+2,FALSE)) -> 5106977.87 | H141: =IF($B141="","",VLOOKUP($B141,formula!$A$15:$EV$124,formula!$EO$9,FALSE)) -> 1002 | I141: =IF($B141="","",VLOOKUP($B141,formula!$A$15:$EV$124,formula!$EP$9,FALSE)) -> 2002 | J141: =IF($B141="","",VLOOKUP($B141,formula!$A$15:$BI$124,formula!$BE$9,FALSE)) -> 14759740.49 | K141: =IF($B141="","",VLOOKUP($B141,formula!$A$15:$BI$124,formula!$BD$9,FALSE)) -> 5103921.86 | L141: =IF($B141="","",VLOOKUP($B141,formula!$A$15:$BI$124,formula!$BG$9,FALSE)) -> 5106924.86
B142: 10 | C142: 49 | D142: =IF(C141=MaxCoverageYear-1,"***以下空白***",IF($B142="","",IF($B142>plan,"",VLOOKUP($B142,formula!$A$15:$BI$124,formula!$AM$9,FALSE)))) ->  | E142: =IF($B142="","",VLOOKUP($B142,formula!$A$15:$BI$124,formula!$AN$9,FALSE)) -> 6427125 | F142: =IF($B142="","",VLOOKUP($B142,formula!$A$15:$BI$124,formula!$AD$9+2,FALSE)) -> 14333652 | G142: =IF($B142="","",VLOOKUP($B142,formula!$A$15:$BI$124,formula!$AG$9+2,FALSE)) -> 5197067.95 | H142: =IF($B142="","",VLOOKUP($B142,formula!$A$15:$EV$124,formula!$EO$9,FALSE)) -> 1001 | I142: =IF($B142="","",VLOOKUP($B142,formula!$A$15:$EV$124,formula!$EP$9,FALSE)) -> 3003 | J142: =IF($B142="","",VLOOKUP($B142,formula!$A$15:$BI$124,formula!$BE$9,FALSE)) -> 14322311.22 | K142: =IF($B142="","",VLOOKUP($B142,formula!$A$15:$BI$124,formula!$BD$9,FALSE)) -> 5192956.03 | L142: =IF($B142="","",VLOOKUP($B142,formula!$A$15:$BI$124,formula!$BG$9,FALSE)) -> 5196961.03
B143: 11 | C143: 50 | D143: =IF(C142=MaxCoverageYear-1,"***以下空白***",IF($B143="","",IF($B143>plan,"",VLOOKUP($B143,formula!$A$15:$BI$124,formula!$AM$9,FALSE)))) ->  | E143: =IF($B143="","",VLOOKUP($B143,formula!$A$15:$BI$124,formula!$AN$9,FALSE)) -> 6427125 | F143: =IF($B143="","",VLOOKUP($B143,formula!$A$15:$BI$124,formula!$AD$9+2,FALSE)) -> 13899223 | G143: =IF($B143="","",VLOOKUP($B143,formula!$A$15:$BI$124,formula!$AG$9+2,FALSE)) -> 5289758.55 | H143: =IF($B143="","",VLOOKUP($B143,formula!$A$15:$EV$124,formula!$EO$9,FALSE)) -> 1002 | I143: =IF($B143="","",VLOOKUP($B143,formula!$A$15:$EV$124,formula!$EP$9,FALSE)) -> 4005 | J143: =IF($B143="","",VLOOKUP($B143,formula!$A$15:$BI$124,formula!$BE$9,FALSE)) -> 13885596.21 | K143: =IF($B143="","",VLOOKUP($B143,formula!$A$15:$BI$124,formula!$BD$9,FALSE)) -> 5284572.48 | L143: =IF($B143="","",VLOOKUP($B143,formula!$A$15:$BI$124,formula!$BG$9,FALSE)) -> 5289578.48
B144: 12 | C144: 51 | D144: =IF(C143=MaxCoverageYear-1,"***以下空白***",IF($B144="","",IF($B144>plan,"",VLOOKUP($B144,formula!$A$15:$BI$124,formula!$AM$9,FALSE)))) ->  | E144: =IF($B144="","",VLOOKUP($B144,formula!$A$15:$BI$124,formula!$AN$9,FALSE)) -> 6427125 | F144: =IF($B144="","",VLOOKUP($B144,formula!$A$15:$BI$124,formula!$AD$9+2,FALSE)) -> 13465376.4 | G144: =IF($B144="","",VLOOKUP($B144,formula!$A$15:$BI$124,formula!$AG$9+2,FALSE)) -> 5384763.96 | H144: =IF($B144="","",VLOOKUP($B144,formula!$A$15:$EV$124,formula!$EO$9,FALSE)) -> 1001 | I144: =IF($B144="","",VLOOKUP($B144,formula!$A$15:$EV$124,formula!$EP$9,FALSE)) -> 5006 | J144: =IF($B144="","",VLOOKUP($B144,formula!$A$15:$BI$124,formula!$BE$9,FALSE)) -> 13449670.39 | K144: =IF($B144="","",VLOOKUP($B144,formula!$A$15:$BI$124,formula!$BD$9,FALSE)) -> 5378483.18 | L144: =IF($B144="","",VLOOKUP($B144,formula!$A$15:$BI$124,formula!$BG$9,FALSE)) -> 5384491.18
B145: 13 | C145: 52 | D145: =IF(C144=MaxCoverageYear-1,"***以下空白***",IF($B145="","",IF($B145>plan,"",VLOOKUP($B145,formula!$A$15:$BI$124,formula!$AM$9,FALSE)))) ->  | E145: =IF($B145="","",VLOOKUP($B145,formula!$A$15:$BI$124,formula!$AN$9,FALSE)) -> 6427125 | F145: =IF($B145="","",VLOOKUP($B145,formula!$A$15:$BI$124,formula!$AD$9+2,FALSE)) -> 13032098.4 | G145: =IF($B145="","",VLOOKUP($B145,formula!$A$15:$BI$124,formula!$AG$9+2,FALSE)) -> 5482341.94 | H145: =IF($B145="","",VLOOKUP($B145,formula!$A$15:$EV$124,formula!$EO$9,FALSE)) -> 1002 | I145: =IF($B145="","",VLOOKUP($B145,formula!$A$15:$EV$124,formula!$EP$9,FALSE)) -> 6008 | J145: =IF($B145="","",VLOOKUP($B145,formula!$A$15:$BI$124,formula!$BE$9,FALSE)) -> 13014515.5 | K145: =IF($B145="","",VLOOKUP($B145,formula!$A$15:$BI$124,formula!$BD$9,FALSE)) -> 5474945.17 | L145: =IF($B145="","",VLOOKUP($B145,formula!$A$15:$BI$124,formula!$BG$9,FALSE)) -> 5481955.17
B146: 14 | C146: 53 | D146: =IF(C145=MaxCoverageYear-1,"***以下空白***",IF($B146="","",IF($B146>plan,"",VLOOKUP($B146,formula!$A$15:$BI$124,formula!$AM$9,FALSE)))) ->  | E146: =IF($B146="","",VLOOKUP($B146,formula!$A$15:$BI$124,formula!$AN$9,FALSE)) -> 6427125 | F146: =IF($B146="","",VLOOKUP($B146,formula!$A$15:$BI$124,formula!$AD$9+2,FALSE)) -> 12599392.2 | G146: =IF($B146="","",VLOOKUP($B146,formula!$A$15:$BI$124,formula!$AG$9+2,FALSE)) -> 5582786.8 | H146: =IF($B146="","",VLOOKUP($B146,formula!$A$15:$EV$124,formula!$EO$9,FALSE)) -> 1002 | I146: =IF($B146="","",VLOOKUP($B146,formula!$A$15:$EV$124,formula!$EP$9,FALSE)) -> 7010 | J146: =IF($B146="","",VLOOKUP($B146,formula!$A$15:$BI$124,formula!$BE$9,FALSE)) -> 12580135.29 | K146: =IF($B146="","",VLOOKUP($B146,formula!$A$15:$BI$124,formula!$BD$9,FALSE)) -> 5574254.07 | L146: =IF($B146="","",VLOOKUP($B146,formula!$A$15:$BI$124,formula!$BG$9,FALSE)) -> 5582264.07
B147: 15 | C147: 54 | D147: =IF(C146=MaxCoverageYear-1,"***以下空白***",IF($B147="","",IF($B147>plan,"",VLOOKUP($B147,formula!$A$15:$BI$124,formula!$AM$9,FALSE)))) ->  | E147: =IF($B147="","",VLOOKUP($B147,formula!$A$15:$BI$124,formula!$AN$9,FALSE)) -> 6427125 | F147: =IF($B147="","",VLOOKUP($B147,formula!$A$15:$BI$124,formula!$AD$9+2,FALSE)) -> 12167210.6 | G147: =IF($B147="","",VLOOKUP($B147,formula!$A$15:$BI$124,formula!$AG$9+2,FALSE)) -> 5686426.56 | H147: =IF($B147="","",VLOOKUP($B147,formula!$A$15:$EV$124,formula!$EO$9,FALSE)) -> 1000 | I147: =IF($B147="","",VLOOKUP($B147,formula!$A$15:$EV$124,formula!$EP$9,FALSE)) -> 8010 | J147: =IF($B147="","",VLOOKUP($B147,formula!$A$15:$BI$124,formula!$BE$9,FALSE)) -> 12146472.81 | K147: =IF($B147="","",VLOOKUP($B147,formula!$A$15:$BI$124,formula!$BD$9,FALSE)) -> 5676734.62 | L147: =IF($B147="","",VLOOKUP($B147,formula!$A$15:$BI$124,formula!$BG$9,FALSE)) -> 5685745.62
B148: 16 | C148: 55 | D148: =IF(C147=MaxCoverageYear-1,"***以下空白***",IF($B148="","",IF($B148>plan,"",VLOOKUP($B148,formula!$A$15:$BI$124,formula!$AM$9,FALSE)))) ->  | E148: =IF($B148="","",VLOOKUP($B148,formula!$A$15:$BI$124,formula!$AN$9,FALSE)) -> 6427125 | F148: =IF($B148="","",VLOOKUP($B148,formula!$A$15:$BI$124,formula!$AD$9+2,FALSE)) -> 11735605 | G148: =IF($B148="","",VLOOKUP($B148,formula!$A$15:$BI$124,formula!$AG$9+2,FALSE)) -> 5792967.43 | H148: =IF($B148="","",VLOOKUP($B148,formula!$A$15:$EV$124,formula!$EO$9,FALSE)) -> 1001 | I148: =IF($B148="","",VLOOKUP($B148,formula!$A$15:$EV$124,formula!$EP$9,FALSE)) -> 9011 | J148: =IF($B148="","",VLOOKUP($B148,formula!$A$15:$BI$124,formula!$BE$9,FALSE)) -> 11713574.93 | K148: =IF($B148="","",VLOOKUP($B148,formula!$A$15:$BI$124,formula!$BD$9,FALSE)) -> 5782092.88 | L148: =IF($B148="","",VLOOKUP($B148,formula!$A$15:$BI$124,formula!$BG$9,FALSE)) -> 5792104.88
B149: 17 | C149: 56 | D149: =IF(C148=MaxCoverageYear-1,"***以下空白***",IF($B149="","",IF($B149>plan,"",VLOOKUP($B149,formula!$A$15:$BI$124,formula!$AM$9,FALSE)))) ->  | E149: =IF($B149="","",VLOOKUP($B149,formula!$A$15:$BI$124,formula!$AN$9,FALSE)) -> 6427125 | F149: =IF($B149="","",VLOOKUP($B149,formula!$A$15:$BI$124,formula!$AD$9+2,FALSE)) -> 11756529 | G149: =IF($B149="","",VLOOKUP($B149,formula!$A$15:$BI$124,formula!$AG$9+2,FALSE)) -> 5900790.24 | H149: =IF($B149="","",VLOOKUP($B149,formula!$A$15:$EV$124,formula!$EO$9,FALSE)) -> 1001 | I149: =IF($B149="","",VLOOKUP($B149,formula!$A$15:$EV$124,formula!$EP$9,FALSE)) -> 10012 | J149: =IF($B149="","",VLOOKUP($B149,formula!$A$15:$BI$124,formula!$BE$9,FALSE)) -> 11732465.74 | K149: =IF($B149="","",VLOOKUP($B149,formula!$A$15:$BI$124,formula!$BD$9,FALSE)) -> 5888712.51 | L149: =IF($B149="","",VLOOKUP($B149,formula!$A$15:$BI$124,formula!$BG$9,FALSE)) -> 5899725.51
B150: 18 | C150: 57 | D150: =IF(C149=MaxCoverageYear-1,"***以下空白***",IF($B150="","",IF($B150>plan,"",VLOOKUP($B150,formula!$A$15:$BI$124,formula!$AM$9,FALSE)))) ->  | E150: =IF($B150="","",VLOOKUP($B150,formula!$A$15:$BI$124,formula!$AN$9,FALSE)) -> 6427125 | F150: =IF($B150="","",VLOOKUP($B150,formula!$A$15:$BI$124,formula!$AD$9+2,FALSE)) -> 11777532 | G150: =IF($B150="","",VLOOKUP($B150,formula!$A$15:$BI$124,formula!$AG$9+2,FALSE)) -> 6009858.64 | H150: =IF($B150="","",VLOOKUP($B150,formula!$A$15:$EV$124,formula!$EO$9,FALSE)) -> 1001 | I150: =IF($B150="","",VLOOKUP($B150,formula!$A$15:$EV$124,formula!$EP$9,FALSE)) -> 11013 | J150: =IF($B150="","",VLOOKUP($B150,formula!$A$15:$BI$124,formula!$BE$9,FALSE)) -> 11751465.97 | K150: =IF($B150="","",VLOOKUP($B150,formula!$A$15:$BI$124,formula!$BD$9,FALSE)) -> 5996557.63 | L150: =IF($B150="","",VLOOKUP($B150,formula!$A$15:$BI$124,formula!$BG$9,FALSE)) -> 6008570.63
B151: 19 | C151: 58 | D151: =IF(C150=MaxCoverageYear-1,"***以下空白***",IF($B151="","",IF($B151>plan,"",VLOOKUP($B151,formula!$A$15:$BI$124,formula!$AM$9,FALSE)))) ->  | E151: =IF($B151="","",VLOOKUP($B151,formula!$A$15:$BI$124,formula!$AN$9,FALSE)) -> 6427125 | F151: =IF($B151="","",VLOOKUP($B151,formula!$A$15:$BI$124,formula!$AD$9+2,FALSE)) -> 11798667 | G151: =IF($B151="","",VLOOKUP($B151,formula!$A$15:$BI$124,formula!$AG$9+2,FALSE)) -> 6120139.13 | H151: =IF($B151="","",VLOOKUP($B151,formula!$A$15:$EV$124,formula!$EO$9,FALSE)) -> 1000 | I151: =IF($B151="","",VLOOKUP($B151,formula!$A$15:$EV$124,formula!$EP$9,FALSE)) -> 12013 | J151: =IF($B151="","",VLOOKUP($B151,formula!$A$15:$BI$124,formula!$BE$9,FALSE)) -> 11770623.93 | K151: =IF($B151="","",VLOOKUP($B151,formula!$A$15:$BI$124,formula!$BD$9,FALSE)) -> 6105592.79 | L151: =IF($B151="","",VLOOKUP($B151,formula!$A$15:$BI$124,formula!$BG$9,FALSE)) -> 6118606.79
B152: 20 | C152: 59 | D152: =IF(C151=MaxCoverageYear-1,"***以下空白***",IF($B152="","",IF($B152>plan,"",VLOOKUP($B152,formula!$A$15:$BI$124,formula!$AM$9,FALSE)))) ->  | E152: =IF($B152="","",VLOOKUP($B152,formula!$A$15:$BI$124,formula!$AN$9,FALSE)) -> 6427125 | F152: =IF($B152="","",VLOOKUP($B152,formula!$A$15:$BI$124,formula!$AD$9+2,FALSE)) -> 11819941 | G152: =IF($B152="","",VLOOKUP($B152,formula!$A$15:$BI$124,formula!$AG$9+2,FALSE)) -> 6231603.78 | H152: =IF($B152="","",VLOOKUP($B152,formula!$A$15:$EV$124,formula!$EO$9,FALSE)) -> 1001 | I152: =IF($B152="","",VLOOKUP($B152,formula!$A$15:$EV$124,formula!$EP$9,FALSE)) -> 13014 | J152: =IF($B152="","",VLOOKUP($B152,formula!$A$15:$BI$124,formula!$BE$9,FALSE)) -> 11789946.72 | K152: =IF($B152="","",VLOOKUP($B152,formula!$A$15:$BI$124,formula!$BD$9,FALSE)) -> 6215790.47 | L152: =IF($B152="","",VLOOKUP($B152,formula!$A$15:$BI$124,formula!$BG$9,FALSE)) -> 6229806.47
B153: 21 | C153: 60 | D153: =IF(C152=MaxCoverageYear-1,"***以下空白***",IF($B153="","",IF($B153>plan,"",VLOOKUP($B153,formula!$A$15:$BI$124,formula!$AM$9,FALSE)))) ->  | E153: =IF($B153="","",VLOOKUP($B153,formula!$A$15:$BI$124,formula!$AN$9,FALSE)) -> 6427125 | F153: =IF($B153="","",VLOOKUP($B153,formula!$A$15:$BI$124,formula!$AD$9+2,FALSE)) -> 11841351 | G153: =IF($B153="","",VLOOKUP($B153,formula!$A$15:$BI$124,formula!$AG$9+2,FALSE)) -> 6345253 | H153: =IF($B153="","",VLOOKUP($B153,formula!$A$15:$EV$124,formula!$EO$9,FALSE)) -> 1002 | I153: =IF($B153="","",VLOOKUP($B153,formula!$A$15:$EV$124,formula!$EP$9,FALSE)) -> 14016 | J153: =IF($B153="","",VLOOKUP($B153,formula!$A$15:$BI$124,formula!$BE$9,FALSE)) -> 11809436.2 | K153: =IF($B153="","",VLOOKUP($B153,formula!$A$15:$BI$124,formula!$BD$9,FALSE)) -> 6328151.28 | L153: =IF($B153="","",VLOOKUP($B153,formula!$A$15:$BI$124,formula!$BG$9,FALSE)) -> 6343167.28
B154: 22 | C154: 61 | D154: =IF(C153=MaxCoverageYear-1,"***以下空白***",IF($B154="","",IF($B154>plan,"",VLOOKUP($B154,formula!$A$15:$BI$124,formula!$AM$9,FALSE)))) ->  | E154: =IF($B154="","",VLOOKUP($B154,formula!$A$15:$BI$124,formula!$AN$9,FALSE)) -> 6427125 | F154: =IF($B154="","",VLOOKUP($B154,formula!$A$15:$BI$124,formula!$AD$9+2,FALSE)) -> 11862894 | G154: =IF($B154="","",VLOOKUP($B154,formula!$A$15:$BI$124,formula!$AG$9+2,FALSE)) -> 6460175.12 | H154: =IF($B154="","",VLOOKUP($B154,formula!$A$15:$EV$124,formula!$EO$9,FALSE)) -> 1000 | I154: =IF($B154="","",VLOOKUP($B154,formula!$A$15:$EV$124,formula!$EP$9,FALSE)) -> 15016 | J154: =IF($B154="","",VLOOKUP($B154,formula!$A$15:$BI$124,formula!$BE$9,FALSE)) -> 11829084.76 | K154: =IF($B154="","",VLOOKUP($B154,formula!$A$15:$BI$124,formula!$BD$9,FALSE)) -> 6441763.63 | L154: =IF($B154="","",VLOOKUP($B154,formula!$A$15:$BI$124,formula!$BG$9,FALSE)) -> 6457779.63
B155: 23 | C155: 62 | D155: =IF(C154=MaxCoverageYear-1,"***以下空白***",IF($B155="","",IF($B155>plan,"",VLOOKUP($B155,formula!$A$15:$BI$124,formula!$AM$9,FALSE)))) ->  | E155: =IF($B155="","",VLOOKUP($B155,formula!$A$15:$BI$124,formula!$AN$9,FALSE)) -> 6427125 | F155: =IF($B155="","",VLOOKUP($B155,formula!$A$15:$BI$124,formula!$AD$9+2,FALSE)) -> 11884568 | G155: =IF($B155="","",VLOOKUP($B155,formula!$A$15:$BI$124,formula!$AG$9+2,FALSE)) -> 6576268.45 | H155: =IF($B155="","",VLOOKUP($B155,formula!$A$15:$EV$124,formula!$EO$9,FALSE)) -> 1000 | I155: =IF($B155="","",VLOOKUP($B155,formula!$A$15:$EV$124,formula!$EP$9,FALSE)) -> 16016 | J155: =IF($B155="","",VLOOKUP($B155,formula!$A$15:$BI$124,formula!$BE$9,FALSE)) -> 11848885.78 | K155: =IF($B155="","",VLOOKUP($B155,formula!$A$15:$BI$124,formula!$BD$9,FALSE)) -> 6556523.87 | L155: =IF($B155="","",VLOOKUP($B155,formula!$A$15:$BI$124,formula!$BG$9,FALSE)) -> 6573541.87
B156: 24 | C156: 63 | D156: =IF(C155=MaxCoverageYear-1,"***以下空白***",IF($B156="","",IF($B156>plan,"",VLOOKUP($B156,formula!$A$15:$BI$124,formula!$AM$9,FALSE)))) ->  | E156: =IF($B156="","",VLOOKUP($B156,formula!$A$15:$BI$124,formula!$AN$9,FALSE)) -> 6427125 | F156: =IF($B156="","",VLOOKUP($B156,formula!$A$15:$BI$124,formula!$AD$9+2,FALSE)) -> 11906378 | G156: =IF($B156="","",VLOOKUP($B156,formula!$A$15:$BI$124,formula!$AG$9+2,FALSE)) -> 6693448.49 | H156: =IF($B156="","",VLOOKUP($B156,formula!$A$15:$EV$124,formula!$EO$9,FALSE)) -> 1002 | I156: =IF($B156="","",VLOOKUP($B156,formula!$A$15:$EV$124,formula!$EP$9,FALSE)) -> 17018 | J156: =IF($B156="","",VLOOKUP($B156,formula!$A$15:$BI$124,formula!$BE$9,FALSE)) -> 11868849.1 | K156: =IF($B156="","",VLOOKUP($B156,formula!$A$15:$BI$124,formula!$BD$9,FALSE)) -> 6672350.75 | L156: =IF($B156="","",VLOOKUP($B156,formula!$A$15:$BI$124,formula!$BG$9,FALSE)) -> 6690369.75
B157: 25 | C157: 64 | D157: =IF(C156=MaxCoverageYear-1,"***以下空白***",IF($B157="","",IF($B157>plan,"",VLOOKUP($B157,formula!$A$15:$BI$124,formula!$AM$9,FALSE)))) ->  | E157: =IF($B157="","",VLOOKUP($B157,formula!$A$15:$BI$124,formula!$AN$9,FALSE)) -> 6427125 | F157: =IF($B157="","",VLOOKUP($B157,formula!$A$15:$BI$124,formula!$AD$9+2,FALSE)) -> 11928322 | G157: =IF($B157="","",VLOOKUP($B157,formula!$A$15:$BI$124,formula!$AG$9+2,FALSE)) -> 6811577.97 | H157: =IF($B157="","",VLOOKUP($B157,formula!$A$15:$EV$124,formula!$EO$9,FALSE)) -> 1001 | I157: =IF($B157="","",VLOOKUP($B157,formula!$A$15:$EV$124,formula!$EP$9,FALSE)) -> 18019 | J157: =IF($B157="","",VLOOKUP($B157,formula!$A$15:$BI$124,formula!$BE$9,FALSE)) -> 11888968.09 | K157: =IF($B157="","",VLOOKUP($B157,formula!$A$15:$BI$124,formula!$BD$9,FALSE)) -> 6789105.22 | L157: =IF($B157="","",VLOOKUP($B157,formula!$A$15:$BI$124,formula!$BG$9,FALSE)) -> 6808127.22
B158: 26 | C158: 65 | D158: =IF(C157=MaxCoverageYear-1,"***以下空白***",IF($B158="","",IF($B158>plan,"",VLOOKUP($B158,formula!$A$15:$BI$124,formula!$AM$9,FALSE)))) ->  | E158: =IF($B158="","",VLOOKUP($B158,formula!$A$15:$BI$124,formula!$AN$9,FALSE)) -> 6427125 | F158: =IF($B158="","",VLOOKUP($B158,formula!$A$15:$BI$124,formula!$AD$9+2,FALSE)) -> 11950399 | G158: =IF($B158="","",VLOOKUP($B158,formula!$A$15:$BI$124,formula!$AG$9+2,FALSE)) -> 6929185.34 | H158: =IF($B158="","",VLOOKUP($B158,formula!$A$15:$EV$124,formula!$EO$9,FALSE)) -> 1003 | I158: =IF($B158="","",VLOOKUP($B158,formula!$A$15:$EV$124,formula!$EP$9,FALSE)) -> 19022 | J158: =IF($B158="","",VLOOKUP($B158,formula!$A$15:$BI$124,formula!$BE$9,FALSE)) -> 11909246.61 | K158: =IF($B158="","",VLOOKUP($B158,formula!$A$15:$BI$124,formula!$BD$9,FALSE)) -> 6905324 | L158: =IF($B158="","",VLOOKUP($B158,formula!$A$15:$BI$124,formula!$BG$9,FALSE)) -> 6925347
B159: 27 | C159: 66 | D159: =IF(C158=MaxCoverageYear-1,"***以下空白***",IF($B159="","",IF($B159>plan,"",VLOOKUP($B159,formula!$A$15:$BI$124,formula!$AM$9,FALSE)))) ->  | E159: =IF($B159="","",VLOOKUP($B159,formula!$A$15:$BI$124,formula!$AN$9,FALSE)) -> 6427125 | F159: =IF($B159="","",VLOOKUP($B159,formula!$A$15:$BI$124,formula!$AD$9+2,FALSE)) -> 11972600 | G159: =IF($B159="","",VLOOKUP($B159,formula!$A$15:$BI$124,formula!$AG$9+2,FALSE)) -> 7047412 | H159: =IF($B159="","",VLOOKUP($B159,formula!$A$15:$EV$124,formula!$EO$9,FALSE)) -> 1001 | I159: =IF($B159="","",VLOOKUP($B159,formula!$A$15:$EV$124,formula!$EP$9,FALSE)) -> 20023 | J159: =IF($B159="","",VLOOKUP($B159,formula!$A$15:$BI$124,formula!$BE$9,FALSE)) -> 11929671.05 | K159: =IF($B159="","",VLOOKUP($B159,formula!$A$15:$BI$124,formula!$BD$9,FALSE)) -> 7022142.8 | L159: =IF($B159="","",VLOOKUP($B159,formula!$A$15:$BI$124,formula!$BG$9,FALSE)) -> 7043166.8
B160: 28 | C160: 67 | D160: =IF(C159=MaxCoverageYear-1,"***以下空白***",IF($B160="","",IF($B160>plan,"",VLOOKUP($B160,formula!$A$15:$BI$124,formula!$AM$9,FALSE)))) ->  | E160: =IF($B160="","",VLOOKUP($B160,formula!$A$15:$BI$124,formula!$AN$9,FALSE)) -> 6427125 | F160: =IF($B160="","",VLOOKUP($B160,formula!$A$15:$BI$124,formula!$AD$9+2,FALSE)) -> 11994878 | G160: =IF($B160="","",VLOOKUP($B160,formula!$A$15:$BI$124,formula!$AG$9+2,FALSE)) -> 7165992.96 | H160: =IF($B160="","",VLOOKUP($B160,formula!$A$15:$EV$124,formula!$EO$9,FALSE)) -> 1001 | I160: =IF($B160="","",VLOOKUP($B160,formula!$A$15:$EV$124,formula!$EP$9,FALSE)) -> 21024 | J160: =IF($B160="","",VLOOKUP($B160,formula!$A$15:$BI$124,formula!$BE$9,FALSE)) -> 11950194.69 | K160: =IF($B160="","",VLOOKUP($B160,formula!$A$15:$BI$124,formula!$BD$9,FALSE)) -> 7139298.21 | L160: =IF($B160="","",VLOOKUP($B160,formula!$A$15:$BI$124,formula!$BG$9,FALSE)) -> 7161322.21
B161: 29 | C161: 68 | D161: =IF(C160=MaxCoverageYear-1,"***以下空白***",IF($B161="","",IF($B161>plan,"",VLOOKUP($B161,formula!$A$15:$BI$124,formula!$AM$9,FALSE)))) ->  | E161: =IF($B161="","",VLOOKUP($B161,formula!$A$15:$BI$124,formula!$AN$9,FALSE)) -> 6427125 | F161: =IF($B161="","",VLOOKUP($B161,formula!$A$15:$BI$124,formula!$AD$9+2,FALSE)) -> 12017341 | G161: =IF($B161="","",VLOOKUP($B161,formula!$A$15:$BI$124,formula!$AG$9+2,FALSE)) -> 7284682.54 | H161: =IF($B161="","",VLOOKUP($B161,formula!$A$15:$EV$124,formula!$EO$9,FALSE)) -> 1000 | I161: =IF($B161="","",VLOOKUP($B161,formula!$A$15:$EV$124,formula!$EP$9,FALSE)) -> 22024 | J161: =IF($B161="","",VLOOKUP($B161,formula!$A$15:$BI$124,formula!$BE$9,FALSE)) -> 11970920.42 | K161: =IF($B161="","",VLOOKUP($B161,formula!$A$15:$BI$124,formula!$BD$9,FALSE)) -> 7256543.27 | L161: =IF($B161="","",VLOOKUP($B161,formula!$A$15:$BI$124,formula!$BG$9,FALSE)) -> 7279569.27
B162: 30 | C162: 69 | D162: =IF(C161=MaxCoverageYear-1,"***以下空白***",IF($B162="","",IF($B162>plan,"",VLOOKUP($B162,formula!$A$15:$BI$124,formula!$AM$9,FALSE)))) ->  | E162: =IF($B162="","",VLOOKUP($B162,formula!$A$15:$BI$124,formula!$AN$9,FALSE)) -> 6427125 | F162: =IF($B162="","",VLOOKUP($B162,formula!$A$15:$BI$124,formula!$AD$9+2,FALSE)) -> 12039996 | G162: =IF($B162="","",VLOOKUP($B162,formula!$A$15:$BI$124,formula!$AG$9+2,FALSE)) -> 7403276.9 | H162: =IF($B162="","",VLOOKUP($B162,formula!$A$15:$EV$124,formula!$EO$9,FALSE)) -> 1002 | I162: =IF($B162="","",VLOOKUP($B162,formula!$A$15:$EV$124,formula!$EP$9,FALSE)) -> 23026 | J162: =IF($B162="","",VLOOKUP($B162,formula!$A$15:$BI$124,formula!$BE$9,FALSE)) -> 11991860.1 | K162: =IF($B162="","",VLOOKUP($B162,formula!$A$15:$BI$124,formula!$BD$9,FALSE)) -> 7373678.6 | L162: =IF($B162="","",VLOOKUP($B162,formula!$A$15:$BI$124,formula!$BG$9,FALSE)) -> 7397705.6
B163: 31 | C163: 70 | D163: =IF(C162=MaxCoverageYear-1,"***以下空白***",IF($B163="","",IF($B163>plan,"",VLOOKUP($B163,formula!$A$15:$BI$124,formula!$AM$9,FALSE)))) ->  | E163: =IF($B163="","",VLOOKUP($B163,formula!$A$15:$BI$124,formula!$AN$9,FALSE)) -> 6427125 | F163: =IF($B163="","",VLOOKUP($B163,formula!$A$15:$BI$124,formula!$AD$9+2,FALSE)) -> 12043688 | G163: =IF($B163="","",VLOOKUP($B163,formula!$A$15:$BI$124,formula!$AG$9+2,FALSE)) -> 7523873.99 | H163: =IF($B163="","",VLOOKUP($B163,formula!$A$15:$EV$124,formula!$EO$9,FALSE)) -> 1001 | I163: =IF($B163="","",VLOOKUP($B163,formula!$A$15:$EV$124,formula!$EP$9,FALSE)) -> 24027 | J163: =IF($B163="","",VLOOKUP($B163,formula!$A$15:$BI$124,formula!$BE$9,FALSE)) -> 11993933.12 | K163: =IF($B163="","",VLOOKUP($B163,formula!$A$15:$BI$124,formula!$BD$9,FALSE)) -> 7492791.37 | L163: =IF($B163="","",VLOOKUP($B163,formula!$A$15:$BI$124,formula!$BG$9,FALSE)) -> 7517820.37
B164: 32 | C164: 71 | D164: =IF(C163=MaxCoverageYear-1,"***以下空白***",IF($B164="","",IF($B164>plan,"",VLOOKUP($B164,formula!$A$15:$BI$124,formula!$AM$9,FALSE)))) ->  | E164: =IF($B164="","",VLOOKUP($B164,formula!$A$15:$BI$124,formula!$AN$9,FALSE)) -> 6427125 | F164: =IF($B164="","",VLOOKUP($B164,formula!$A$15:$BI$124,formula!$AD$9+2,FALSE)) -> 12047492 | G164: =IF($B164="","",VLOOKUP($B164,formula!$A$15:$BI$124,formula!$AG$9+2,FALSE)) -> 7644489.47 | H164: =IF($B164="","",VLOOKUP($B164,formula!$A$15:$EV$124,formula!$EO$9,FALSE)) -> 1002 | I164: =IF($B164="","",VLOOKUP($B164,formula!$A$15:$EV$124,formula!$EP$9,FALSE)) -> 25029 | J164: =IF($B164="","",VLOOKUP($B164,formula!$A$15:$BI$124,formula!$BE$9,FALSE)) -> 11996140.78 | K164: =IF($B164="","",VLOOKUP($B164,formula!$A$15:$BI$124,formula!$BD$9,FALSE)) -> 7611905.6 | L164: =IF($B164="","",VLOOKUP($B164,formula!$A$15:$BI$124,formula!$BG$9,FALSE)) -> 7637937.6
B165: 33 | C165: 72 | D165: =IF(C164=MaxCoverageYear-1,"***以下空白***",IF($B165="","",IF($B165>plan,"",VLOOKUP($B165,formula!$A$15:$BI$124,formula!$AM$9,FALSE)))) ->  | E165: =IF($B165="","",VLOOKUP($B165,formula!$A$15:$BI$124,formula!$AN$9,FALSE)) -> 6427125 | F165: =IF($B165="","",VLOOKUP($B165,formula!$A$15:$BI$124,formula!$AD$9+2,FALSE)) -> 12051417 | G165: =IF($B165="","",VLOOKUP($B165,formula!$A$15:$BI$124,formula!$AG$9+2,FALSE)) -> 7764952.86 | H165: =IF($B165="","",VLOOKUP($B165,formula!$A$15:$EV$124,formula!$EO$9,FALSE)) -> 1003 | I165: =IF($B165="","",VLOOKUP($B165,formula!$A$15:$EV$124,formula!$EP$9,FALSE)) -> 26032 | J165: =IF($B165="","",VLOOKUP($B165,formula!$A$15:$BI$124,formula!$BE$9,FALSE)) -> 11998496.82 | K165: =IF($B165="","",VLOOKUP($B165,formula!$A$15:$BI$124,formula!$BD$9,FALSE)) -> 7730855.4 | L165: =IF($B165="","",VLOOKUP($B165,formula!$A$15:$BI$124,formula!$BG$9,FALSE)) -> 7757887.4
B166: 34 | C166: 73 | D166: =IF(C165=MaxCoverageYear-1,"***以下空白***",IF($B166="","",IF($B166>plan,"",VLOOKUP($B166,formula!$A$15:$BI$124,formula!$AM$9,FALSE)))) ->  | E166: =IF($B166="","",VLOOKUP($B166,formula!$A$15:$BI$124,formula!$AN$9,FALSE)) -> 6427125 | F166: =IF($B166="","",VLOOKUP($B166,formula!$A$15:$BI$124,formula!$AD$9+2,FALSE)) -> 12055237 | G166: =IF($B166="","",VLOOKUP($B166,formula!$A$15:$BI$124,formula!$AG$9+2,FALSE)) -> 7885175.08 | H166: =IF($B166="","",VLOOKUP($B166,formula!$A$15:$EV$124,formula!$EO$9,FALSE)) -> 1000 | I166: =IF($B166="","",VLOOKUP($B166,formula!$A$15:$EV$124,formula!$EP$9,FALSE)) -> 27032 | J166: =IF($B166="","",VLOOKUP($B166,formula!$A$15:$BI$124,formula!$BE$9,FALSE)) -> 12000766.62 | K166: =IF($B166="","",VLOOKUP($B166,formula!$A$15:$BI$124,formula!$BD$9,FALSE)) -> 7849546.71 | L166: =IF($B166="","",VLOOKUP($B166,formula!$A$15:$BI$124,formula!$BG$9,FALSE)) -> 7877581.71
B167: 35 | C167: 74 | D167: =IF(C166=MaxCoverageYear-1,"***以下空白***",IF($B167="","",IF($B167>plan,"",VLOOKUP($B167,formula!$A$15:$BI$124,formula!$AM$9,FALSE)))) ->  | E167: =IF($B167="","",VLOOKUP($B167,formula!$A$15:$BI$124,formula!$AN$9,FALSE)) -> 6427125 | F167: =IF($B167="","",VLOOKUP($B167,formula!$A$15:$BI$124,formula!$AD$9+2,FALSE)) -> 12059178 | G167: =IF($B167="","",VLOOKUP($B167,formula!$A$15:$BI$124,formula!$AG$9+2,FALSE)) -> 8005048.6 | H167: =IF($B167="","",VLOOKUP($B167,formula!$A$15:$EV$124,formula!$EO$9,FALSE)) -> 1003 | I167: =IF($B167="","",VLOOKUP($B167,formula!$A$15:$EV$124,formula!$EP$9,FALSE)) -> 28035 | J167: =IF($B167="","",VLOOKUP($B167,formula!$A$15:$BI$124,formula!$BE$9,FALSE)) -> 12003180.01 | K167: =IF($B167="","",VLOOKUP($B167,formula!$A$15:$BI$124,formula!$BD$9,FALSE)) -> 7967876.36 | L167: =IF($B167="","",VLOOKUP($B167,formula!$A$15:$BI$124,formula!$BG$9,FALSE)) -> 7996913.36
B168: 36 | C168: 75 | D168: =IF(C167=MaxCoverageYear-1,"***以下空白***",IF($B168="","",IF($B168>plan,"",VLOOKUP($B168,formula!$A$15:$BI$124,formula!$AM$9,FALSE)))) ->  | E168: =IF($B168="","",VLOOKUP($B168,formula!$A$15:$BI$124,formula!$AN$9,FALSE)) -> 6427125 | F168: =IF($B168="","",VLOOKUP($B168,formula!$A$15:$BI$124,formula!$AD$9+2,FALSE)) -> 12062959 | G168: =IF($B168="","",VLOOKUP($B168,formula!$A$15:$BI$124,formula!$AG$9+2,FALSE)) -> 8124988.13 | H168: =IF($B168="","",VLOOKUP($B168,formula!$A$15:$EV$124,formula!$EO$9,FALSE)) -> 1002 | I168: =IF($B168="","",VLOOKUP($B168,formula!$A$15:$EV$124,formula!$EP$9,FALSE)) -> 29037 | J168: =IF($B168="","",VLOOKUP($B168,formula!$A$15:$BI$124,formula!$BE$9,FALSE)) -> 12005457.29 | K168: =IF($B168="","",VLOOKUP($B168,formula!$A$15:$BI$124,formula!$BD$9,FALSE)) -> 8086257.94 | L168: =IF($B168="","",VLOOKUP($B168,formula!$A$15:$BI$124,formula!$BG$9,FALSE)) -> 8116295.94
B169: 37 | C169: 76 | D169: =IF(C168=MaxCoverageYear-1,"***以下空白***",IF($B169="","",IF($B169>plan,"",VLOOKUP($B169,formula!$A$15:$BI$124,formula!$AM$9,FALSE)))) ->  | E169: =IF($B169="","",VLOOKUP($B169,formula!$A$15:$BI$124,formula!$AN$9,FALSE)) -> 6427125 | F169: =IF($B169="","",VLOOKUP($B169,formula!$A$15:$BI$124,formula!$AD$9+2,FALSE)) -> 12066860 | G169: =IF($B169="","",VLOOKUP($B169,formula!$A$15:$BI$124,formula!$AG$9+2,FALSE)) -> 8244322.43 | H169: =IF($B169="","",VLOOKUP($B169,formula!$A$15:$EV$124,formula!$EO$9,FALSE)) -> 1001 | I169: =IF($B169="","",VLOOKUP($B169,formula!$A$15:$EV$124,formula!$EP$9,FALSE)) -> 30038 | J169: =IF($B169="","",VLOOKUP($B169,formula!$A$15:$BI$124,formula!$BE$9,FALSE)) -> 12007872.37 | K169: =IF($B169="","",VLOOKUP($B169,formula!$A$15:$BI$124,formula!$BD$9,FALSE)) -> 8204020.89 | L169: =IF($B169="","",VLOOKUP($B169,formula!$A$15:$BI$124,formula!$BG$9,FALSE)) -> 8235061.89
B170: 38 | C170: 77 | D170: =IF(C169=MaxCoverageYear-1,"***以下空白***",IF($B170="","",IF($B170>plan,"",VLOOKUP($B170,formula!$A$15:$BI$124,formula!$AM$9,FALSE)))) ->  | E170: =IF($B170="","",VLOOKUP($B170,formula!$A$15:$BI$124,formula!$AN$9,FALSE)) -> 6427125 | F170: =IF($B170="","",VLOOKUP($B170,formula!$A$15:$BI$124,formula!$AD$9+2,FALSE)) -> 12070648 | G170: =IF($B170="","",VLOOKUP($B170,formula!$A$15:$BI$124,formula!$AG$9+2,FALSE)) -> 8362910.71 | H170: =IF($B170="","",VLOOKUP($B170,formula!$A$15:$EV$124,formula!$EO$9,FALSE)) -> 1003 | I170: =IF($B170="","",VLOOKUP($B170,formula!$A$15:$EV$124,formula!$EP$9,FALSE)) -> 31041 | J170: =IF($B170="","",VLOOKUP($B170,formula!$A$15:$BI$124,formula!$BE$9,FALSE)) -> 12010198.2 | K170: =IF($B170="","",VLOOKUP($B170,formula!$A$15:$BI$124,formula!$BD$9,FALSE)) -> 8321029.26 | L170: =IF($B170="","",VLOOKUP($B170,formula!$A$15:$BI$124,formula!$BG$9,FALSE)) -> 8353070.26
B171: 39 | C171: 78 | D171: =IF(C170=MaxCoverageYear-1,"***以下空白***",IF($B171="","",IF($B171>plan,"",VLOOKUP($B171,formula!$A$15:$BI$124,formula!$AM$9,FALSE)))) ->  | E171: =IF($B171="","",VLOOKUP($B171,formula!$A$15:$BI$124,formula!$AN$9,FALSE)) -> 6427125 | F171: =IF($B171="","",VLOOKUP($B171,formula!$A$15:$BI$124,formula!$AD$9+2,FALSE)) -> 12074563 | G171: =IF($B171="","",VLOOKUP($B171,formula!$A$15:$BI$124,formula!$AG$9+2,FALSE)) -> 8480613.97 | H171: =IF($B171="","",VLOOKUP($B171,formula!$A$15:$EV$124,formula!$EO$9,FALSE)) -> 1000 | I171: =IF($B171="","",VLOOKUP($B171,formula!$A$15:$EV$124,formula!$EP$9,FALSE)) -> 32041 | J171: =IF($B171="","",VLOOKUP($B171,formula!$A$15:$BI$124,formula!$BE$9,FALSE)) -> 12012668.8 | K171: =IF($B171="","",VLOOKUP($B171,formula!$A$15:$BI$124,formula!$BD$9,FALSE)) -> 8437142.35 | L171: =IF($B171="","",VLOOKUP($B171,formula!$A$15:$BI$124,formula!$BG$9,FALSE)) -> 8470184.35
B172: 40 | C172: 79 | D172: =IF(C171=MaxCoverageYear-1,"***以下空白***",IF($B172="","",IF($B172>plan,"",VLOOKUP($B172,formula!$A$15:$BI$124,formula!$AM$9,FALSE)))) ->  | E172: =IF($B172="","",VLOOKUP($B172,formula!$A$15:$BI$124,formula!$AN$9,FALSE)) -> 6427125 | F172: =IF($B172="","",VLOOKUP($B172,formula!$A$15:$BI$124,formula!$AD$9+2,FALSE)) -> 12096582 | G172: =IF($B172="","",VLOOKUP($B172,formula!$A$15:$BI$124,formula!$AG$9+2,FALSE)) -> 8597328.77 | H172: =IF($B172="","",VLOOKUP($B172,formula!$A$15:$EV$124,formula!$EO$9,FALSE)) -> 1001 | I172: =IF($B172="","",VLOOKUP($B172,formula!$A$15:$EV$124,formula!$EP$9,FALSE)) -> 33042 | J172: =IF($B172="","",VLOOKUP($B172,formula!$A$15:$BI$124,formula!$BE$9,FALSE)) -> 12033166.88 | K172: =IF($B172="","",VLOOKUP($B172,formula!$A$15:$BI$124,formula!$BD$9,FALSE)) -> 8552258.14 | L172: =IF($B172="","",VLOOKUP($B172,formula!$A$15:$BI$124,formula!$BG$9,FALSE)) -> 8586301.14
M174: (幣別/單位：美元/元)
B175: 年度 | C175: 年齡 | D175: 折扣後 當年度 所繳保險費 | E175: 折扣後 累計 所繳保險費 | F175: 【非保證給付項目】假設分紅-較低紅利金額(保額)(低分紅)
F176: 原保險金額試算 | H176: 減少保險金額試算
F178: 當年度末 壽險保障及 假設紅利_分紅保額 (預估值) (低) | G178: 當年度末 可能領取 解約金總額 (預估值) (低) | H178: 該次減少 基本保險金額 可領取之解約金 (預估值) (年初) | I178: 歷年減少 基本保險金額 領取之解約金總額 (預估值) A | J178: 減少基本保險金額後 當年度末壽險保障及 假設紅利_分紅保額 (預估值) | K178: 減少基本保險金額後 當年度末解約 可能領取之解約金 (預估值) B | L178: 累計至當年度末解約可能總領金額 (預估值) A+B=C
B179: =IF(B172>=109-age+1,"",B172+1) -> 41 | C179: 80 | D179: =IF(C172=MaxCoverageYear-1,"***以下空白***",IF($B179="","",IF($B179>plan,"",VLOOKUP($B179,formula!$A$15:$BI$124,formula!$AM$9,FALSE)))) ->  | E179: =IF($B179="","",VLOOKUP($B179,formula!$A$15:$BI$124,formula!$AN$9,FALSE)) -> 6427125 | F179: =IF($B179="","",VLOOKUP($B179,formula!$A$15:$BI$124,formula!$AD$9+2,FALSE)) -> 12119370 | G179: =IF($B179="","",VLOOKUP($B179,formula!$A$15:$BI$124,formula!$AG$9+2,FALSE)) -> 8713040.67 | H179: =IF($B179="","",VLOOKUP($B179,formula!$A$15:$EV$124,formula!$EO$9,FALSE)) -> 1001 | I179: =IF($B179="","",VLOOKUP($B179,formula!$A$15:$EV$124,formula!$EP$9,FALSE)) -> 34043 | J179: =IF($B179="","",VLOOKUP($B179,formula!$A$15:$BI$124,formula!$BE$9,FALSE)) -> 12054444.12 | K179: =IF($B179="","",VLOOKUP($B179,formula!$A$15:$BI$124,formula!$BD$9,FALSE)) -> 8666363.17 | L179: =IF($B179="","",VLOOKUP($B179,formula!$A$15:$BI$124,formula!$BG$9,FALSE)) -> 8701406.17
B180: 42 | C180: 81 | D180: =IF(C179=MaxCoverageYear-1,"***以下空白***",IF($B180="","",IF($B180>plan,"",VLOOKUP($B180,formula!$A$15:$BI$124,formula!$AM$9,FALSE)))) ->  | E180: =IF($B180="","",VLOOKUP($B180,formula!$A$15:$BI$124,formula!$AN$9,FALSE)) -> 6427125 | F180: =IF($B180="","",VLOOKUP($B180,formula!$A$15:$BI$124,formula!$AD$9+2,FALSE)) -> 12142210 | G180: =IF($B180="","",VLOOKUP($B180,formula!$A$15:$BI$124,formula!$AG$9+2,FALSE)) -> 8827766.08 | H180: =IF($B180="","",VLOOKUP($B180,formula!$A$15:$EV$124,formula!$EO$9,FALSE)) -> 1000 | I180: =IF($B180="","",VLOOKUP($B180,formula!$A$15:$EV$124,formula!$EP$9,FALSE)) -> 35043 | J180: =IF($B180="","",VLOOKUP($B180,formula!$A$15:$BI$124,formula!$BE$9,FALSE)) -> 12075782.4 | K180: =IF($B180="","",VLOOKUP($B180,formula!$A$15:$BI$124,formula!$BD$9,FALSE)) -> 8779471.14 | L180: =IF($B180="","",VLOOKUP($B180,formula!$A$15:$BI$124,formula!$BG$9,FALSE)) -> 8815517.14
B181: 43 | C181: 82 | D181: =IF(C180=MaxCoverageYear-1,"***以下空白***",IF($B181="","",IF($B181>plan,"",VLOOKUP($B181,formula!$A$15:$BI$124,formula!$AM$9,FALSE)))) ->  | E181: =IF($B181="","",VLOOKUP($B181,formula!$A$15:$BI$124,formula!$AN$9,FALSE)) -> 6427125 | F181: =IF($B181="","",VLOOKUP($B181,formula!$A$15:$BI$124,formula!$AD$9+2,FALSE)) -> 12165277 | G181: =IF($B181="","",VLOOKUP($B181,formula!$A$15:$BI$124,formula!$AG$9+2,FALSE)) -> 8941536.95 | H181: =IF($B181="","",VLOOKUP($B181,formula!$A$15:$EV$124,formula!$EO$9,FALSE)) -> 1003 | I181: =IF($B181="","",VLOOKUP($B181,formula!$A$15:$EV$124,formula!$EP$9,FALSE)) -> 36046 | J181: =IF($B181="","",VLOOKUP($B181,formula!$A$15:$BI$124,formula!$BE$9,FALSE)) -> 12097360.7 | K181: =IF($B181="","",VLOOKUP($B181,formula!$A$15:$BI$124,formula!$BD$9,FALSE)) -> 8891618.14 | L181: =IF($B181="","",VLOOKUP($B181,formula!$A$15:$BI$124,formula!$BG$9,FALSE)) -> 8928665.14
B182: 44 | C182: 83 | D182: =IF(C181=MaxCoverageYear-1,"***以下空白***",IF($B182="","",IF($B182>plan,"",VLOOKUP($B182,formula!$A$15:$BI$124,formula!$AM$9,FALSE)))) ->  | E182: =IF($B182="","",VLOOKUP($B182,formula!$A$15:$BI$124,formula!$AN$9,FALSE)) -> 6427125 | F182: =IF($B182="","",VLOOKUP($B182,formula!$A$15:$BI$124,formula!$AD$9+2,FALSE)) -> 12188403 | G182: =IF($B182="","",VLOOKUP($B182,formula!$A$15:$BI$124,formula!$AG$9+2,FALSE)) -> 9054341.86 | H182: =IF($B182="","",VLOOKUP($B182,formula!$A$15:$EV$124,formula!$EO$9,FALSE)) -> 1001 | I182: =IF($B182="","",VLOOKUP($B182,formula!$A$15:$EV$124,formula!$EP$9,FALSE)) -> 37047 | J182: =IF($B182="","",VLOOKUP($B182,formula!$A$15:$BI$124,formula!$BE$9,FALSE)) -> 12119007.11 | K182: =IF($B182="","",VLOOKUP($B182,formula!$A$15:$BI$124,formula!$BD$9,FALSE)) -> 9002790.06 | L182: =IF($B182="","",VLOOKUP($B182,formula!$A$15:$BI$124,formula!$BG$9,FALSE)) -> 9040840.06
B183: 45 | C183: 84 | D183: =IF(C182=MaxCoverageYear-1,"***以下空白***",IF($B183="","",IF($B183>plan,"",VLOOKUP($B183,formula!$A$15:$BI$124,formula!$AM$9,FALSE)))) ->  | E183: =IF($B183="","",VLOOKUP($B183,formula!$A$15:$BI$124,formula!$AN$9,FALSE)) -> 6427125 | F183: =IF($B183="","",VLOOKUP($B183,formula!$A$15:$BI$124,formula!$AD$9+2,FALSE)) -> 12211694 | G183: =IF($B183="","",VLOOKUP($B183,formula!$A$15:$BI$124,formula!$AG$9+2,FALSE)) -> 9166120.77 | H183: =IF($B183="","",VLOOKUP($B183,formula!$A$15:$EV$124,formula!$EO$9,FALSE)) -> 1003 | I183: =IF($B183="","",VLOOKUP($B183,formula!$A$15:$EV$124,formula!$EP$9,FALSE)) -> 38050 | J183: =IF($B183="","",VLOOKUP($B183,formula!$A$15:$BI$124,formula!$BE$9,FALSE)) -> 12140831.99 | K183: =IF($B183="","",VLOOKUP($B183,formula!$A$15:$BI$124,formula!$BD$9,FALSE)) -> 9112931.61 | L183: =IF($B183="","",VLOOKUP($B183,formula!$A$15:$BI$124,formula!$BG$9,FALSE)) -> 9151982.61
B184: 46 | C184: 85 | D184: =IF(C183=MaxCoverageYear-1,"***以下空白***",IF($B184="","",IF($B184>plan,"",VLOOKUP($B184,formula!$A$15:$BI$124,formula!$AM$9,FALSE)))) ->  | E184: =IF($B184="","",VLOOKUP($B184,formula!$A$15:$BI$124,formula!$AN$9,FALSE)) -> 6427125 | F184: =IF($B184="","",VLOOKUP($B184,formula!$A$15:$BI$124,formula!$AD$9+2,FALSE)) -> 12235146 | G184: =IF($B184="","",VLOOKUP($B184,formula!$A$15:$BI$124,formula!$AG$9+2,FALSE)) -> 9276772.8 | H184: =IF($B184="","",VLOOKUP($B184,formula!$A$15:$EV$124,formula!$EO$9,FALSE)) -> 1001 | I184: =IF($B184="","",VLOOKUP($B184,formula!$A$15:$EV$124,formula!$EP$9,FALSE)) -> 39051 | J184: =IF($B184="","",VLOOKUP($B184,formula!$A$15:$BI$124,formula!$BE$9,FALSE)) -> 12162826.5 | K184: =IF($B184="","",VLOOKUP($B184,formula!$A$15:$BI$124,formula!$BD$9,FALSE)) -> 9221939.66 | L184: =IF($B184="","",VLOOKUP($B184,formula!$A$15:$BI$124,formula!$BG$9,FALSE)) -> 9261992.66
B185: 47 | C185: 86 | D185: =IF(C184=MaxCoverageYear-1,"***以下空白***",IF($B185="","",IF($B185>plan,"",VLOOKUP($B185,formula!$A$15:$BI$124,formula!$AM$9,FALSE)))) ->  | E185: =IF($B185="","",VLOOKUP($B185,formula!$A$15:$BI$124,formula!$AN$9,FALSE)) -> 6427125 | F185: =IF($B185="","",VLOOKUP($B185,formula!$A$15:$BI$124,formula!$AD$9+2,FALSE)) -> 12258709 | G185: =IF($B185="","",VLOOKUP($B185,formula!$A$15:$BI$124,formula!$AG$9+2,FALSE)) -> 9386172.08 | H185: =IF($B185="","",VLOOKUP($B185,formula!$A$15:$EV$124,formula!$EO$9,FALSE)) -> 1002 | I185: =IF($B185="","",VLOOKUP($B185,formula!$A$15:$EV$124,formula!$EP$9,FALSE)) -> 40053 | J185: =IF($B185="","",VLOOKUP($B185,formula!$A$15:$BI$124,formula!$BE$9,FALSE)) -> 12184941 | K185: =IF($B185="","",VLOOKUP($B185,formula!$A$15:$BI$124,formula!$BD$9,FALSE)) -> 9329689.86 | L185: =IF($B185="","",VLOOKUP($B185,formula!$A$15:$BI$124,formula!$BG$9,FALSE)) -> 9370744.86
B186: 48 | C186: 87 | D186: =IF(C185=MaxCoverageYear-1,"***以下空白***",IF($B186="","",IF($B186>plan,"",VLOOKUP($B186,formula!$A$15:$BI$124,formula!$AM$9,FALSE)))) ->  | E186: =IF($B186="","",VLOOKUP($B186,formula!$A$15:$BI$124,formula!$AN$9,FALSE)) -> 6427125 | F186: =IF($B186="","",VLOOKUP($B186,formula!$A$15:$BI$124,formula!$AD$9+2,FALSE)) -> 12282375 | G186: =IF($B186="","",VLOOKUP($B186,formula!$A$15:$BI$124,formula!$AG$9+2,FALSE)) -> 9494178.11 | H186: =IF($B186="","",VLOOKUP($B186,formula!$A$15:$EV$124,formula!$EO$9,FALSE)) -> 1002 | I186: =IF($B186="","",VLOOKUP($B186,formula!$A$15:$EV$124,formula!$EP$9,FALSE)) -> 41055 | J186: =IF($B186="","",VLOOKUP($B186,formula!$A$15:$BI$124,formula!$BE$9,FALSE)) -> 12207167.57 | K186: =IF($B186="","",VLOOKUP($B186,formula!$A$15:$BI$124,formula!$BD$9,FALSE)) -> 9436043.36 | L186: =IF($B186="","",VLOOKUP($B186,formula!$A$15:$BI$124,formula!$BG$9,FALSE)) -> 9478101.36
B187: 49 | C187: 88 | D187: =IF(C186=MaxCoverageYear-1,"***以下空白***",IF($B187="","",IF($B187>plan,"",VLOOKUP($B187,formula!$A$15:$BI$124,formula!$AM$9,FALSE)))) ->  | E187: =IF($B187="","",VLOOKUP($B187,formula!$A$15:$BI$124,formula!$AN$9,FALSE)) -> 6427125 | F187: =IF($B187="","",VLOOKUP($B187,formula!$A$15:$BI$124,formula!$AD$9+2,FALSE)) -> 12306198 | G187: =IF($B187="","",VLOOKUP($B187,formula!$A$15:$BI$124,formula!$AG$9+2,FALSE)) -> 9601050.61 | H187: =IF($B187="","",VLOOKUP($B187,formula!$A$15:$EV$124,formula!$EO$9,FALSE)) -> 1003 | I187: =IF($B187="","",VLOOKUP($B187,formula!$A$15:$EV$124,formula!$EP$9,FALSE)) -> 42058 | J187: =IF($B187="","",VLOOKUP($B187,formula!$A$15:$BI$124,formula!$BE$9,FALSE)) -> 12229559.93 | K187: =IF($B187="","",VLOOKUP($B187,formula!$A$15:$BI$124,formula!$BD$9,FALSE)) -> 9541259.11 | L187: =IF($B187="","",VLOOKUP($B187,formula!$A$15:$BI$124,formula!$BG$9,FALSE)) -> 9584319.11
B188: 50 | C188: 89 | D188: =IF(C187=MaxCoverageYear-1,"***以下空白***",IF($B188="","",IF($B188>plan,"",VLOOKUP($B188,formula!$A$15:$BI$124,formula!$AM$9,FALSE)))) ->  | E188: =IF($B188="","",VLOOKUP($B188,formula!$A$15:$BI$124,formula!$AN$9,FALSE)) -> 6427125 | F188: =IF($B188="","",VLOOKUP($B188,formula!$A$15:$BI$124,formula!$AD$9+2,FALSE)) -> 12330184 | G188: =IF($B188="","",VLOOKUP($B188,formula!$A$15:$BI$124,formula!$AG$9+2,FALSE)) -> 9707190.29 | H188: =IF($B188="","",VLOOKUP($B188,formula!$A$15:$EV$124,formula!$EO$9,FALSE)) -> 1002 | I188: =IF($B188="","",VLOOKUP($B188,formula!$A$15:$EV$124,formula!$EP$9,FALSE)) -> 43060 | J188: =IF($B188="","",VLOOKUP($B188,formula!$A$15:$BI$124,formula!$BE$9,FALSE)) -> 12252124.08 | K188: =IF($B188="","",VLOOKUP($B188,formula!$A$15:$BI$124,formula!$BD$9,FALSE)) -> 9645736.01 | L188: =IF($B188="","",VLOOKUP($B188,formula!$A$15:$BI$124,formula!$BG$9,FALSE)) -> 9689798.01
B189: 51 | C189: 90 | D189: =IF(C188=MaxCoverageYear-1,"***以下空白***",IF($B189="","",IF($B189>plan,"",VLOOKUP($B189,formula!$A$15:$BI$124,formula!$AM$9,FALSE)))) ->  | E189: =IF($B189="","",VLOOKUP($B189,formula!$A$15:$BI$124,formula!$AN$9,FALSE)) -> 6427125 | F189: =IF($B189="","",VLOOKUP($B189,formula!$A$15:$BI$124,formula!$AD$9+2,FALSE)) -> 12354290 | G189: =IF($B189="","",VLOOKUP($B189,formula!$A$15:$BI$124,formula!$AG$9+2,FALSE)) -> 9812006.51 | H189: =IF($B189="","",VLOOKUP($B189,formula!$A$15:$EV$124,formula!$EO$9,FALSE)) -> 1002 | I189: =IF($B189="","",VLOOKUP($B189,formula!$A$15:$EV$124,formula!$EP$9,FALSE)) -> 44062 | J189: =IF($B189="","",VLOOKUP($B189,formula!$A$15:$BI$124,formula!$BE$9,FALSE)) -> 12274817.33 | K189: =IF($B189="","",VLOOKUP($B189,formula!$A$15:$BI$124,formula!$BD$9,FALSE)) -> 9748887.84 | L189: =IF($B189="","",VLOOKUP($B189,formula!$A$15:$BI$124,formula!$BG$9,FALSE)) -> 9793950.84
B190: 52 | C190: 91 | D190: =IF(C189=MaxCoverageYear-1,"***以下空白***",IF($B190="","",IF($B190>plan,"",VLOOKUP($B190,formula!$A$15:$BI$124,formula!$AM$9,FALSE)))) ->  | E190: =IF($B190="","",VLOOKUP($B190,formula!$A$15:$BI$124,formula!$AN$9,FALSE)) -> 6427125 | F190: =IF($B190="","",VLOOKUP($B190,formula!$A$15:$BI$124,formula!$AD$9+2,FALSE)) -> 12378497 | G190: =IF($B190="","",VLOOKUP($B190,formula!$A$15:$BI$124,formula!$AG$9+2,FALSE)) -> 9914686.73 | H190: =IF($B190="","",VLOOKUP($B190,formula!$A$15:$EV$124,formula!$EO$9,FALSE)) -> 1001 | I190: =IF($B190="","",VLOOKUP($B190,formula!$A$15:$EV$124,formula!$EP$9,FALSE)) -> 45063 | J190: =IF($B190="","",VLOOKUP($B190,formula!$A$15:$BI$124,formula!$BE$9,FALSE)) -> 12297615.91 | K190: =IF($B190="","",VLOOKUP($B190,formula!$A$15:$BI$124,formula!$BD$9,FALSE)) -> 9849904.17 | L190: =IF($B190="","",VLOOKUP($B190,formula!$A$15:$BI$124,formula!$BG$9,FALSE)) -> 9895970.17
B191: 53 | C191: 92 | D191: =IF(C190=MaxCoverageYear-1,"***以下空白***",IF($B191="","",IF($B191>plan,"",VLOOKUP($B191,formula!$A$15:$BI$124,formula!$AM$9,FALSE)))) ->  | E191: =IF($B191="","",VLOOKUP($B191,formula!$A$15:$BI$124,formula!$AN$9,FALSE)) -> 6427125 | F191: =IF($B191="","",VLOOKUP($B191,formula!$A$15:$BI$124,formula!$AD$9+2,FALSE)) -> 12402917 | G191: =IF($B191="","",VLOOKUP($B191,formula!$A$15:$BI$124,formula!$AG$9+2,FALSE)) -> 10016419.43 | H191: =IF($B191="","",VLOOKUP($B191,formula!$A$15:$EV$124,formula!$EO$9,FALSE)) -> 1003 | I191: =IF($B191="","",VLOOKUP($B191,formula!$A$15:$EV$124,formula!$EP$9,FALSE)) -> 46066 | J191: =IF($B191="","",VLOOKUP($B191,formula!$A$15:$BI$124,formula!$BE$9,FALSE)) -> 12320636.05 | K191: =IF($B191="","",VLOOKUP($B191,formula!$A$15:$BI$124,formula!$BD$9,FALSE)) -> 9949970.51 | L191: =IF($B191="","",VLOOKUP($B191,formula!$A$15:$BI$124,formula!$BG$9,FALSE)) -> 9997038.51
B192: 54 | C192: 93 | D192: =IF(C191=MaxCoverageYear-1,"***以下空白***",IF($B192="","",IF($B192>plan,"",VLOOKUP($B192,formula!$A$15:$BI$124,formula!$AM$9,FALSE)))) ->  | E192: =IF($B192="","",VLOOKUP($B192,formula!$A$15:$BI$124,formula!$AN$9,FALSE)) -> 6427125 | F192: =IF($B192="","",VLOOKUP($B192,formula!$A$15:$BI$124,formula!$AD$9+2,FALSE)) -> 12427397 | G192: =IF($B192="","",VLOOKUP($B192,formula!$A$15:$BI$124,formula!$AG$9+2,FALSE)) -> 10117248.01 | H192: =IF($B192="","",VLOOKUP($B192,formula!$A$15:$EV$124,formula!$EO$9,FALSE)) -> 1002 | I192: =IF($B192="","",VLOOKUP($B192,formula!$A$15:$EV$124,formula!$EP$9,FALSE)) -> 47068 | J192: =IF($B192="","",VLOOKUP($B192,formula!$A$15:$BI$124,formula!$BE$9,FALSE)) -> 12343720.86 | K192: =IF($B192="","",VLOOKUP($B192,formula!$A$15:$BI$124,formula!$BD$9,FALSE)) -> 10049126.56 | L192: =IF($B192="","",VLOOKUP($B192,formula!$A$15:$BI$124,formula!$BG$9,FALSE)) -> 10097198.56
B193: 55 | C193: 94 | D193: =IF(C192=MaxCoverageYear-1,"***以下空白***",IF($B193="","",IF($B193>plan,"",VLOOKUP($B193,formula!$A$15:$BI$124,formula!$AM$9,FALSE)))) ->  | E193: =IF($B193="","",VLOOKUP($B193,formula!$A$15:$BI$124,formula!$AN$9,FALSE)) -> 6427125 | F193: =IF($B193="","",VLOOKUP($B193,formula!$A$15:$BI$124,formula!$AD$9+2,FALSE)) -> 12452090 | G193: =IF($B193="","",VLOOKUP($B193,formula!$A$15:$BI$124,formula!$AG$9+2,FALSE)) -> 10217207.67 | H193: =IF($B193="","",VLOOKUP($B193,formula!$A$15:$EV$124,formula!$EO$9,FALSE)) -> 1004 | I193: =IF($B193="","",VLOOKUP($B193,formula!$A$15:$EV$124,formula!$EP$9,FALSE)) -> 48072 | J193: =IF($B193="","",VLOOKUP($B193,formula!$A$15:$BI$124,formula!$BE$9,FALSE)) -> 12367027.29 | K193: =IF($B193="","",VLOOKUP($B193,formula!$A$15:$BI$124,formula!$BD$9,FALSE)) -> 10147411.89 | L193: =IF($B193="","",VLOOKUP($B193,formula!$A$15:$BI$124,formula!$BG$9,FALSE)) -> 10196484.89
B194: 56 | C194: 95 | D194: =IF(C193=MaxCoverageYear-1,"***以下空白***",IF($B194="","",IF($B194>plan,"",VLOOKUP($B194,formula!$A$15:$BI$124,formula!$AM$9,FALSE)))) ->  | E194: =IF($B194="","",VLOOKUP($B194,formula!$A$15:$BI$124,formula!$AN$9,FALSE)) -> 6427125 | F194: =IF($B194="","",VLOOKUP($B194,formula!$A$15:$BI$124,formula!$AD$9+2,FALSE)) -> 12476889 | G194: =IF($B194="","",VLOOKUP($B194,formula!$A$15:$BI$124,formula!$AG$9+2,FALSE)) -> 10316353.27 | H194: =IF($B194="","",VLOOKUP($B194,formula!$A$15:$EV$124,formula!$EO$9,FALSE)) -> 1001 | I194: =IF($B194="","",VLOOKUP($B194,formula!$A$15:$EV$124,formula!$EP$9,FALSE)) -> 49073 | J194: =IF($B194="","",VLOOKUP($B194,formula!$A$15:$BI$124,formula!$BE$9,FALSE)) -> 12390444.13 | K194: =IF($B194="","",VLOOKUP($B194,formula!$A$15:$BI$124,formula!$BD$9,FALSE)) -> 10244877.45 | L194: =IF($B194="","",VLOOKUP($B194,formula!$A$15:$BI$124,formula!$BG$9,FALSE)) -> 10294953.45
B195: 57 | C195: 96 | D195: =IF(C194=MaxCoverageYear-1,"***以下空白***",IF($B195="","",IF($B195>plan,"",VLOOKUP($B195,formula!$A$15:$BI$124,formula!$AM$9,FALSE)))) ->  | E195: =IF($B195="","",VLOOKUP($B195,formula!$A$15:$BI$124,formula!$AN$9,FALSE)) -> 6427125 | F195: =IF($B195="","",VLOOKUP($B195,formula!$A$15:$BI$124,formula!$AD$9+2,FALSE)) -> 12501849 | G195: =IF($B195="","",VLOOKUP($B195,formula!$A$15:$BI$124,formula!$AG$9+2,FALSE)) -> 10414740.92 | H195: =IF($B195="","",VLOOKUP($B195,formula!$A$15:$EV$124,formula!$EO$9,FALSE)) -> 1003 | I195: =IF($B195="","",VLOOKUP($B195,formula!$A$15:$EV$124,formula!$EP$9,FALSE)) -> 50076 | J195: =IF($B195="","",VLOOKUP($B195,formula!$A$15:$BI$124,formula!$BE$9,FALSE)) -> 12414026.02 | K195: =IF($B195="","",VLOOKUP($B195,formula!$A$15:$BI$124,formula!$BD$9,FALSE)) -> 10341579.45 | L195: =IF($B195="","",VLOOKUP($B195,formula!$A$15:$BI$124,formula!$BG$9,FALSE)) -> 10392659.45
B196: 58 | C196: 97 | D196: =IF(C195=MaxCoverageYear-1,"***以下空白***",IF($B196="","",IF($B196>plan,"",VLOOKUP($B196,formula!$A$15:$BI$124,formula!$AM$9,FALSE)))) ->  | E196: =IF($B196="","",VLOOKUP($B196,formula!$A$15:$BI$124,formula!$AN$9,FALSE)) -> 6427125 | F196: =IF($B196="","",VLOOKUP($B196,formula!$A$15:$BI$124,formula!$AD$9+2,FALSE)) -> 12526967 | G196: =IF($B196="","",VLOOKUP($B196,formula!$A$15:$BI$124,formula!$AG$9+2,FALSE)) -> 10512417.4 | H196: =IF($B196="","",VLOOKUP($B196,formula!$A$15:$EV$124,formula!$EO$9,FALSE)) -> 1004 | I196: =IF($B196="","",VLOOKUP($B196,formula!$A$15:$EV$124,formula!$EP$9,FALSE)) -> 51080 | J196: =IF($B196="","",VLOOKUP($B196,formula!$A$15:$BI$124,formula!$BE$9,FALSE)) -> 12437775 | K196: =IF($B196="","",VLOOKUP($B196,formula!$A$15:$BI$124,formula!$BD$9,FALSE)) -> 10437568.99 | L196: =IF($B196="","",VLOOKUP($B196,formula!$A$15:$BI$124,formula!$BG$9,FALSE)) -> 10489649.99
B197: 59 | C197: 98 | D197: =IF(C196=MaxCoverageYear-1,"***以下空白***",IF($B197="","",IF($B197>plan,"",VLOOKUP($B197,formula!$A$15:$BI$124,formula!$AM$9,FALSE)))) ->  | E197: =IF($B197="","",VLOOKUP($B197,formula!$A$15:$BI$124,formula!$AN$9,FALSE)) -> 6427125 | F197: =IF($B197="","",VLOOKUP($B197,formula!$A$15:$BI$124,formula!$AD$9+2,FALSE)) -> 12552192 | G197: =IF($B197="","",VLOOKUP($B197,formula!$A$15:$BI$124,formula!$AG$9+2,FALSE)) -> 10609433.05 | H197: =IF($B197="","",VLOOKUP($B197,formula!$A$15:$EV$124,formula!$EO$9,FALSE)) -> 1001 | I197: =IF($B197="","",VLOOKUP($B197,formula!$A$15:$EV$124,formula!$EP$9,FALSE)) -> 52081 | J197: =IF($B197="","",VLOOKUP($B197,formula!$A$15:$BI$124,formula!$BE$9,FALSE)) -> 12461635.47 | K197: =IF($B197="","",VLOOKUP($B197,formula!$A$15:$BI$124,formula!$BD$9,FALSE)) -> 10532892.36 | L197: =IF($B197="","",VLOOKUP($B197,formula!$A$15:$BI$124,formula!$BG$9,FALSE)) -> 10585975.36
B198: 60 | C198: 99 | D198: =IF(C197=MaxCoverageYear-1,"***以下空白***",IF($B198="","",IF($B198>plan,"",VLOOKUP($B198,formula!$A$15:$BI$124,formula!$AM$9,FALSE)))) ->  | E198: =IF($B198="","",VLOOKUP($B198,formula!$A$15:$BI$124,formula!$AN$9,FALSE)) -> 6427125 | F198: =IF($B198="","",VLOOKUP($B198,formula!$A$15:$BI$124,formula!$AD$9+2,FALSE)) -> 12577571 | G198: =IF($B198="","",VLOOKUP($B198,formula!$A$15:$BI$124,formula!$AG$9+2,FALSE)) -> 10705804.05 | H198: =IF($B198="","",VLOOKUP($B198,formula!$A$15:$EV$124,formula!$EO$9,FALSE)) -> 1002 | I198: =IF($B198="","",VLOOKUP($B198,formula!$A$15:$EV$124,formula!$EP$9,FALSE)) -> 53083 | J198: =IF($B198="","",VLOOKUP($B198,formula!$A$15:$BI$124,formula!$BE$9,FALSE)) -> 12485654.12 | K198: =IF($B198="","",VLOOKUP($B198,formula!$A$15:$BI$124,formula!$BD$9,FALSE)) -> 10627566.04 | L198: =IF($B198="","",VLOOKUP($B198,formula!$A$15:$BI$124,formula!$BG$9,FALSE)) -> 10681651.04
B199: 61 | C199: 100 | D199: =IF(C198=MaxCoverageYear-1,"***以下空白***",IF($B199="","",IF($B199>plan,"",VLOOKUP($B199,formula!$A$15:$BI$124,formula!$AM$9,FALSE)))) ->  | E199: =IF($B199="","",VLOOKUP($B199,formula!$A$15:$BI$124,formula!$AN$9,FALSE)) -> 6427125 | F199: =IF($B199="","",VLOOKUP($B199,formula!$A$15:$BI$124,formula!$AD$9+2,FALSE)) -> 12603115 | G199: =IF($B199="","",VLOOKUP($B199,formula!$A$15:$BI$124,formula!$AG$9+2,FALSE)) -> 10801506.51 | H199: =IF($B199="","",VLOOKUP($B199,formula!$A$15:$EV$124,formula!$EO$9,FALSE)) -> 1002 | I199: =IF($B199="","",VLOOKUP($B199,formula!$A$15:$EV$124,formula!$EP$9,FALSE)) -> 54085 | J199: =IF($B199="","",VLOOKUP($B199,formula!$A$15:$BI$124,formula!$BE$9,FALSE)) -> 12509841.87 | K199: =IF($B199="","",VLOOKUP($B199,formula!$A$15:$BI$124,formula!$BD$9,FALSE)) -> 10721566.73 | L199: =IF($B199="","",VLOOKUP($B199,formula!$A$15:$BI$124,formula!$BG$9,FALSE)) -> 10776653.73
B200: 62 | C200: 101 | D200: =IF(C199=MaxCoverageYear-1,"***以下空白***",IF($B200="","",IF($B200>plan,"",VLOOKUP($B200,formula!$A$15:$BI$124,formula!$AM$9,FALSE)))) ->  | E200: =IF($B200="","",VLOOKUP($B200,formula!$A$15:$BI$124,formula!$AN$9,FALSE)) -> 6427125 | F200: =IF($B200="","",VLOOKUP($B200,formula!$A$15:$BI$124,formula!$AD$9+2,FALSE)) -> 12628820 | G200: =IF($B200="","",VLOOKUP($B200,formula!$A$15:$BI$124,formula!$AG$9+2,FALSE)) -> 10896988.58 | H200: =IF($B200="","",VLOOKUP($B200,formula!$A$15:$EV$124,formula!$EO$9,FALSE)) -> 1002 | I200: =IF($B200="","",VLOOKUP($B200,formula!$A$15:$EV$124,formula!$EP$9,FALSE)) -> 55087 | J200: =IF($B200="","",VLOOKUP($B200,formula!$A$15:$BI$124,formula!$BE$9,FALSE)) -> 12534194.78 | K200: =IF($B200="","",VLOOKUP($B200,formula!$A$15:$BI$124,formula!$BD$9,FALSE)) -> 10815339.63 | L200: =IF($B200="","",VLOOKUP($B200,formula!$A$15:$BI$124,formula!$BG$9,FALSE)) -> 10871429.63
B201: 63 | C201: 102 | D201: =IF(C200=MaxCoverageYear-1,"***以下空白***",IF($B201="","",IF($B201>plan,"",VLOOKUP($B201,formula!$A$15:$BI$124,formula!$AM$9,FALSE)))) ->  | E201: =IF($B201="","",VLOOKUP($B201,formula!$A$15:$BI$124,formula!$AN$9,FALSE)) -> 6427125 | F201: =IF($B201="","",VLOOKUP($B201,formula!$A$15:$BI$124,formula!$AD$9+2,FALSE)) -> 12654679 | G201: =IF($B201="","",VLOOKUP($B201,formula!$A$15:$BI$124,formula!$AG$9+2,FALSE)) -> 10993338.53 | H201: =IF($B201="","",VLOOKUP($B201,formula!$A$15:$EV$124,formula!$EO$9,FALSE)) -> 1003 | I201: =IF($B201="","",VLOOKUP($B201,formula!$A$15:$EV$124,formula!$EP$9,FALSE)) -> 56090 | J201: =IF($B201="","",VLOOKUP($B201,formula!$A$15:$BI$124,formula!$BE$9,FALSE)) -> 12558705.92 | K201: =IF($B201="","",VLOOKUP($B201,formula!$A$15:$BI$124,formula!$BD$9,FALSE)) -> 10909965.06 | L201: =IF($B201="","",VLOOKUP($B201,formula!$A$15:$BI$124,formula!$BG$9,FALSE)) -> 10967058.06
B202: 64 | C202: 103 | D202: =IF(C201=MaxCoverageYear-1,"***以下空白***",IF($B202="","",IF($B202>plan,"",VLOOKUP($B202,formula!$A$15:$BI$124,formula!$AM$9,FALSE)))) ->  | E202: =IF($B202="","",VLOOKUP($B202,formula!$A$15:$BI$124,formula!$AN$9,FALSE)) -> 6427125 | F202: =IF($B202="","",VLOOKUP($B202,formula!$A$15:$BI$124,formula!$AD$9+2,FALSE)) -> 12680699 | G202: =IF($B202="","",VLOOKUP($B202,formula!$A$15:$BI$124,formula!$AG$9+2,FALSE)) -> 11091524.75 | H202: =IF($B202="","",VLOOKUP($B202,formula!$A$15:$EV$124,formula!$EO$9,FALSE)) -> 1003 | I202: =IF($B202="","",VLOOKUP($B202,formula!$A$15:$EV$124,formula!$EP$9,FALSE)) -> 57093 | J202: =IF($B202="","",VLOOKUP($B202,formula!$A$15:$BI$124,formula!$BE$9,FALSE)) -> 12583382.25 | K202: =IF($B202="","",VLOOKUP($B202,formula!$A$15:$BI$124,formula!$BD$9,FALSE)) -> 11006403.96 | L202: =IF($B202="","",VLOOKUP($B202,formula!$A$15:$BI$124,formula!$BG$9,FALSE)) -> 11064499.96
B203: 65 | C203: =IF(B203="","",age+B203-1) -> 104 | D203: =IF(C202=MaxCoverageYear-1,"***以下空白***",IF($B203="","",IF($B203>plan,"",VLOOKUP($B203,formula!$A$15:$BI$124,formula!$AM$9,FALSE)))) ->  | E203: =IF($B203="","",VLOOKUP($B203,formula!$A$15:$BI$124,formula!$AN$9,FALSE)) -> 6427125 | F203: =IF($B203="","",VLOOKUP($B203,formula!$A$15:$BI$124,formula!$AD$9+2,FALSE)) -> 12706835 | G203: =IF($B203="","",VLOOKUP($B203,formula!$A$15:$BI$124,formula!$AG$9+2,FALSE)) -> 11193294.12 | H203: =IF($B203="","",VLOOKUP($B203,formula!$A$15:$EV$124,formula!$EO$9,FALSE)) -> 1003 | I203: =IF($B203="","",VLOOKUP($B203,formula!$A$15:$EV$124,formula!$EP$9,FALSE)) -> 58096 | J203: =IF($B203="","",VLOOKUP($B203,formula!$A$15:$BI$124,formula!$BE$9,FALSE)) -> 12608179.14 | K203: =IF($B203="","",VLOOKUP($B203,formula!$A$15:$BI$124,formula!$BD$9,FALSE)) -> 11106389.39 | L203: =IF($B203="","",VLOOKUP($B203,formula!$A$15:$BI$124,formula!$BG$9,FALSE)) -> 11165488.39
B204: =IF(B203>=109-age+1,"",B203+1) -> 66 | C204: 105 | D204: =IF(C203=MaxCoverageYear-1,"***以下空白***",IF($B204="","",IF($B204>plan,"",VLOOKUP($B204,formula!$A$15:$BI$124,formula!$AM$9,FALSE)))) ->  | E204: =IF($B204="","",VLOOKUP($B204,formula!$A$15:$BI$124,formula!$AN$9,FALSE)) -> 6427125 | F204: =IF($B204="","",VLOOKUP($B204,formula!$A$15:$BI$124,formula!$AD$9+2,FALSE)) -> 12733128 | G204: =IF($B204="","",VLOOKUP($B204,formula!$A$15:$BI$124,formula!$AG$9+2,FALSE)) -> 11301882.21 | H204: =IF($B204="","",VLOOKUP($B204,formula!$A$15:$EV$124,formula!$EO$9,FALSE)) -> 1003 | I204: =IF($B204="","",VLOOKUP($B204,formula!$A$15:$EV$124,formula!$EP$9,FALSE)) -> 59099 | J204: =IF($B204="","",VLOOKUP($B204,formula!$A$15:$BI$124,formula!$BE$9,FALSE)) -> 12633137.3 | K204: =IF($B204="","",VLOOKUP($B204,formula!$A$15:$BI$124,formula!$BD$9,FALSE)) -> 11213130.79 | L204: =IF($B204="","",VLOOKUP($B204,formula!$A$15:$BI$124,formula!$BG$9,FALSE)) -> 11273233.79
B205: 67 | C205: 106 | D205: =IF(C204=MaxCoverageYear-1,"***以下空白***",IF($B205="","",IF($B205>plan,"",VLOOKUP($B205,formula!$A$15:$BI$124,formula!$AM$9,FALSE)))) ->  | E205: =IF($B205="","",VLOOKUP($B205,formula!$A$15:$BI$124,formula!$AN$9,FALSE)) -> 6427125 | F205: =IF($B205="","",VLOOKUP($B205,formula!$A$15:$BI$124,formula!$AD$9+2,FALSE)) -> 12759649 | G205: =IF($B205="","",VLOOKUP($B205,formula!$A$15:$BI$124,formula!$AG$9+2,FALSE)) -> 11414737.01 | H205: =IF($B205="","",VLOOKUP($B205,formula!$A$15:$EV$124,formula!$EO$9,FALSE)) -> 1004 | I205: =IF($B205="","",VLOOKUP($B205,formula!$A$15:$EV$124,formula!$EP$9,FALSE)) -> 60103 | J205: =IF($B205="","",VLOOKUP($B205,formula!$A$15:$BI$124,formula!$BE$9,FALSE)) -> 12658327.18 | K205: =IF($B205="","",VLOOKUP($B205,formula!$A$15:$BI$124,formula!$BD$9,FALSE)) -> 11324094.87 | L205: =IF($B205="","",VLOOKUP($B205,formula!$A$15:$BI$124,formula!$BG$9,FALSE)) -> 11385201.87
... 169 more rows

Sheet 商品利益說明表(不含紅利部份) (hidden)
B1: ="安達人壽"&ProductName &" - 商品利益說明表(不含紅利部份)" -> 安達人壽紅運旺旺美元分紅終身壽險 - 商品利益說明表(不含紅利部份)
B3: ="要保險人："&參數!H8 -> 要保險人：被保人 | D3: ="保險年齡："&age & " 歲" -> 保險年齡：40 歲 | E3: ="繳 別："&ChargeMode -> 繳 別：年繳 | H3: ="首期繳費方式 : "&PayMode1 -> 首期繳費方式 : 匯款 | J3: 首期保費： | K3: =TEXT(GP_bf_disc,"###,###,###.00") & " 美元" -> 1,087,500.00 美元 | L3: 首期折扣後保費： | M3: =TEXT(GP_af_disc,"###,###,###.00") & " 美元" -> 1,071,187.50 美元 | N3: 基本保險金額： | O3: =TEXT(SA,"###,###,###.00")&" 美元" -> 2,500,000.00 美元 | P3: ="高保費折扣:"& TEXT(Prem_disc,"0.00%") -> 高保費折扣:1.50% | R3: 列印
B4: ="被保險人："&InsName -> 被保險人：被保人 | D4: ="性 別："&EntryGender -> 性 別：男性 | E4: ="繳費年期："&plan & " 年期" -> 繳費年期：6 年期 | H4: ="續期繳費方式 :"&PayMode2 -> 續期繳費方式 :匯款 | J4: 續期保費： | K4: =TEXT(RP_bf_disc,"###,###,###.00") & " 美元" -> 1,087,500.00 美元 | L4: 續期折扣後保費： | M4: =TEXT(RP_af_disc,"###,###,###.00") & " 美元" -> 1,071,187.50 美元 | N4: 繳費方式折扣: | O4: =IF(PayModeDisc1=1%,PayModeDisc1,IF(PayModeDisc2=1%,PayModeDisc2,0)) -> 0
P5: (幣別/單位：美元/元)
B6: 保單年度末 | C6: 保險年齡 | D6: 每期折扣後 所繳保險費 | E6: 累計折扣後 所繳保險費 | H6: 當年度末壽險保障 | K6: 當年度末解約金 | M6: 當年度末 保單價值準備金 | O6: 當年度末 減額繳清保險金額
R7: 回到資料輸入
B10: 1 | C10: =IF(B10="","",age+B10-1) -> 40 | D10: =IF(C10="","***以下空白***",IF($B10="","",IF($B10>plan,"",VLOOKUP($B10,formula!$A$15:$BI$124,formula!$AM$9,FALSE)))) -> 1071187.5 | E10: =IF($B10="","",VLOOKUP($B10,formula!$A$15:$BI$124,formula!$AN$9,FALSE)) -> 1071187.5 | H10: =IF($B10="","",VLOOKUP($B10,formula!$A$15:$BI$124,formula!$C$9,FALSE)) -> 1087500 | K10: =IF($B10="","",VLOOKUP($B10,formula!$A$15:$BI$124,formula!$E$9,FALSE)) -> 362207.5 | M10: =IF($B10="","",VLOOKUP($B10,formula!$A$15:$BI$124,formula!$D$9,FALSE)) -> 482942.5 | O10: =IF(B10="", "", IFERROR(IF(SA * VLOOKUP(index, RPU_Tab, 4 + B10, FALSE) / 10000 = 0, "", SA * VLOOKUP(index, RPU_Tab, 4 + B10, FALSE) / 10000), "")) -> 270667.5
B11: =IF(B10>=109-age+1,"",B10+1) -> 2 | C11: 41 | D11: =IF(C10=MaxCoverageYear-1,"***以下空白***",IF($B11="","",IF($B11>plan,"",VLOOKUP($B11,formula!$A$15:$BI$124,formula!$AM$9,FALSE)))) -> 1071187.5 | E11: =IF($B11="","",VLOOKUP($B11,formula!$A$15:$BI$124,formula!$AN$9,FALSE)) -> 2142375 | H11: =IF($B11="","",VLOOKUP($B11,formula!$A$15:$BI$124,formula!$C$9,FALSE)) -> 2175000 | K11: =IF($B11="","",VLOOKUP($B11,formula!$A$15:$BI$124,formula!$E$9,FALSE)) -> 971885 | M11: =IF($B11="","",VLOOKUP($B11,formula!$A$15:$BI$124,formula!$D$9,FALSE)) -> 1295845 | O11: 734007.5
B12: 3 | C12: 42 | D12: =IF(C11=MaxCoverageYear-1,"***以下空白***",IF($B12="","",IF($B12>plan,"",VLOOKUP($B12,formula!$A$15:$BI$124,formula!$AM$9,FALSE)))) -> 1071187.5 | E12: =IF($B12="","",VLOOKUP($B12,formula!$A$15:$BI$124,formula!$AN$9,FALSE)) -> 3213562.5 | H12: =IF($B12="","",VLOOKUP($B12,formula!$A$15:$BI$124,formula!$C$9,FALSE)) -> 3402264 | K12: =IF($B12="","",VLOOKUP($B12,formula!$A$15:$BI$124,formula!$E$9,FALSE)) -> 1594812.5 | M12: =IF($B12="","",VLOOKUP($B12,formula!$A$15:$BI$124,formula!$D$9,FALSE)) -> 2126415 | O12: 1186467.5
B13: 4 | C13: 43 | D13: =IF(C12=MaxCoverageYear-1,"***以下空白***",IF($B13="","",IF($B13>plan,"",VLOOKUP($B13,formula!$A$15:$BI$124,formula!$AM$9,FALSE)))) -> 1071187.5 | E13: =IF($B13="","",VLOOKUP($B13,formula!$A$15:$BI$124,formula!$AN$9,FALSE)) -> 4284750 | H13: =IF($B13="","",VLOOKUP($B13,formula!$A$15:$BI$124,formula!$C$9,FALSE)) -> 10000000 | K13: =IF($B13="","",VLOOKUP($B13,formula!$A$15:$BI$124,formula!$E$9,FALSE)) -> 2667332.5 | M13: =IF($B13="","",VLOOKUP($B13,formula!$A$15:$BI$124,formula!$D$9,FALSE)) -> 2963702.5 | O13: 1626655
B14: 5 | C14: 44 | D14: =IF(C13=MaxCoverageYear-1,"***以下空白***",IF($B14="","",IF($B14>plan,"",VLOOKUP($B14,formula!$A$15:$BI$124,formula!$AM$9,FALSE)))) -> 1071187.5 | E14: =IF($B14="","",VLOOKUP($B14,formula!$A$15:$BI$124,formula!$AN$9,FALSE)) -> 5355937.5 | H14: =IF($B14="","",VLOOKUP($B14,formula!$A$15:$BI$124,formula!$C$9,FALSE)) -> 12500000 | K14: =IF($B14="","",VLOOKUP($B14,formula!$A$15:$BI$124,formula!$E$9,FALSE)) -> 3624280 | M14: =IF($B14="","",VLOOKUP($B14,formula!$A$15:$BI$124,formula!$D$9,FALSE)) -> 3815030 | O14: 2059402.5
B15: 6 | C15: 45 | D15: =IF(C14=MaxCoverageYear-1,"***以下空白***",IF($B15="","",IF($B15>plan,"",VLOOKUP($B15,formula!$A$15:$BI$124,formula!$AM$9,FALSE)))) -> 1071187.5 | E15: =IF($B15="","",VLOOKUP($B15,formula!$A$15:$BI$124,formula!$AN$9,FALSE)) -> 6427125 | H15: =IF($B15="","",VLOOKUP($B15,formula!$A$15:$BI$124,formula!$C$9,FALSE)) -> 15000000 | K15: =IF($B15="","",VLOOKUP($B15,formula!$A$15:$BI$124,formula!$E$9,FALSE)) -> 4679057.5 | M15: =IF($B15="","",VLOOKUP($B15,formula!$A$15:$BI$124,formula!$D$9,FALSE)) -> 4679057.5
B16: 7 | C16: 46 | D16: =IF(C15=MaxCoverageYear-1,"***以下空白***",IF($B16="","",IF($B16>plan,"",VLOOKUP($B16,formula!$A$15:$BI$124,formula!$AM$9,FALSE)))) ->  | E16: =IF($B16="","",VLOOKUP($B16,formula!$A$15:$BI$124,formula!$AN$9,FALSE)) -> 6427125 | H16: =IF($B16="","",VLOOKUP($B16,formula!$A$15:$BI$124,formula!$C$9,FALSE)) -> 14500000 | K16: =IF($B16="","",VLOOKUP($B16,formula!$A$15:$BI$124,formula!$E$9,FALSE)) -> 4758517.5 | M16: =IF($B16="","",VLOOKUP($B16,formula!$A$15:$BI$124,formula!$D$9,FALSE)) -> 4758517.5
B17: 8 | C17: 47 | D17: =IF(C16=MaxCoverageYear-1,"***以下空白***",IF($B17="","",IF($B17>plan,"",VLOOKUP($B17,formula!$A$15:$BI$124,formula!$AM$9,FALSE)))) ->  | E17: =IF($B17="","",VLOOKUP($B17,formula!$A$15:$BI$124,formula!$AN$9,FALSE)) -> 6427125 | H17: =IF($B17="","",VLOOKUP($B17,formula!$A$15:$BI$124,formula!$C$9,FALSE)) -> 14000000 | K17: =IF($B17="","",VLOOKUP($B17,formula!$A$15:$BI$124,formula!$E$9,FALSE)) -> 4839410 | M17: =IF($B17="","",VLOOKUP($B17,formula!$A$15:$BI$124,formula!$D$9,FALSE)) -> 4839410
B18: 9 | C18: 48 | D18: =IF(C17=MaxCoverageYear-1,"***以下空白***",IF($B18="","",IF($B18>plan,"",VLOOKUP($B18,formula!$A$15:$BI$124,formula!$AM$9,FALSE)))) ->  | E18: =IF($B18="","",VLOOKUP($B18,formula!$A$15:$BI$124,formula!$AN$9,FALSE)) -> 6427125 | H18: =IF($B18="","",VLOOKUP($B18,formula!$A$15:$BI$124,formula!$C$9,FALSE)) -> 13500000 | K18: =IF($B18="","",VLOOKUP($B18,formula!$A$15:$BI$124,formula!$E$9,FALSE)) -> 4921910 | M18: =IF($B18="","",VLOOKUP($B18,formula!$A$15:$BI$124,formula!$D$9,FALSE)) -> 4921910
B19: 10 | C19: 49 | D19: =IF(C18=MaxCoverageYear-1,"***以下空白***",IF($B19="","",IF($B19>plan,"",VLOOKUP($B19,formula!$A$15:$BI$124,formula!$AM$9,FALSE)))) ->  | E19: =IF($B19="","",VLOOKUP($B19,formula!$A$15:$BI$124,formula!$AN$9,FALSE)) -> 6427125 | H19: =IF($B19="","",VLOOKUP($B19,formula!$A$15:$BI$124,formula!$C$9,FALSE)) -> 13000000 | K19: =IF($B19="","",VLOOKUP($B19,formula!$A$15:$BI$124,formula!$E$9,FALSE)) -> 5006200 | M19: =IF($B19="","",VLOOKUP($B19,formula!$A$15:$BI$124,formula!$D$9,FALSE)) -> 5006200
B20: 11 | C20: 50 | D20: =IF(C19=MaxCoverageYear-1,"***以下空白***",IF($B20="","",IF($B20>plan,"",VLOOKUP($B20,formula!$A$15:$BI$124,formula!$AM$9,FALSE)))) ->  | E20: =IF($B20="","",VLOOKUP($B20,formula!$A$15:$BI$124,formula!$AN$9,FALSE)) -> 6427125 | H20: =IF($B20="","",VLOOKUP($B20,formula!$A$15:$BI$124,formula!$C$9,FALSE)) -> 12500000 | K20: =IF($B20="","",VLOOKUP($B20,formula!$A$15:$BI$124,formula!$E$9,FALSE)) -> 5092712.5 | M20: =IF($B20="","",VLOOKUP($B20,formula!$A$15:$BI$124,formula!$D$9,FALSE)) -> 5092712.5
B21: 12 | C21: 51 | D21: =IF(C20=MaxCoverageYear-1,"***以下空白***",IF($B21="","",IF($B21>plan,"",VLOOKUP($B21,formula!$A$15:$BI$124,formula!$AM$9,FALSE)))) ->  | E21: =IF($B21="","",VLOOKUP($B21,formula!$A$15:$BI$124,formula!$AN$9,FALSE)) -> 6427125 | H21: =IF($B21="","",VLOOKUP($B21,formula!$A$15:$BI$124,formula!$C$9,FALSE)) -> 12000000 | K21: =IF($B21="","",VLOOKUP($B21,formula!$A$15:$BI$124,formula!$E$9,FALSE)) -> 5181460 | M21: =IF($B21="","",VLOOKUP($B21,formula!$A$15:$BI$124,formula!$D$9,FALSE)) -> 5181460
B22: 13 | C22: 52 | D22: =IF(C21=MaxCoverageYear-1,"***以下空白***",IF($B22="","",IF($B22>plan,"",VLOOKUP($B22,formula!$A$15:$BI$124,formula!$AM$9,FALSE)))) ->  | E22: =IF($B22="","",VLOOKUP($B22,formula!$A$15:$BI$124,formula!$AN$9,FALSE)) -> 6427125 | H22: =IF($B22="","",VLOOKUP($B22,formula!$A$15:$BI$124,formula!$C$9,FALSE)) -> 11500000 | K22: =IF($B22="","",VLOOKUP($B22,formula!$A$15:$BI$124,formula!$E$9,FALSE)) -> 5272702.5 | M22: =IF($B22="","",VLOOKUP($B22,formula!$A$15:$BI$124,formula!$D$9,FALSE)) -> 5272702.5
B23: 14 | C23: 53 | D23: =IF(C22=MaxCoverageYear-1,"***以下空白***",IF($B23="","",IF($B23>plan,"",VLOOKUP($B23,formula!$A$15:$BI$124,formula!$AM$9,FALSE)))) ->  | E23: =IF($B23="","",VLOOKUP($B23,formula!$A$15:$BI$124,formula!$AN$9,FALSE)) -> 6427125 | H23: =IF($B23="","",VLOOKUP($B23,formula!$A$15:$BI$124,formula!$C$9,FALSE)) -> 11000000 | K23: =IF($B23="","",VLOOKUP($B23,formula!$A$15:$BI$124,formula!$E$9,FALSE)) -> 5366725 | M23: =IF($B23="","",VLOOKUP($B23,formula!$A$15:$BI$124,formula!$D$9,FALSE)) -> 5366725
B24: 15 | C24: 54 | D24: =IF(C23=MaxCoverageYear-1,"***以下空白***",IF($B24="","",IF($B24>plan,"",VLOOKUP($B24,formula!$A$15:$BI$124,formula!$AM$9,FALSE)))) ->  | E24: =IF($B24="","",VLOOKUP($B24,formula!$A$15:$BI$124,formula!$AN$9,FALSE)) -> 6427125 | H24: =IF($B24="","",VLOOKUP($B24,formula!$A$15:$BI$124,formula!$C$9,FALSE)) -> 10500000 | K24: =IF($B24="","",VLOOKUP($B24,formula!$A$15:$BI$124,formula!$E$9,FALSE)) -> 5463845 | M24: =IF($B24="","",VLOOKUP($B24,formula!$A$15:$BI$124,formula!$D$9,FALSE)) -> 5463845
B25: 16 | C25: 55 | D25: =IF(C24=MaxCoverageYear-1,"***以下空白***",IF($B25="","",IF($B25>plan,"",VLOOKUP($B25,formula!$A$15:$BI$124,formula!$AM$9,FALSE)))) ->  | E25: =IF($B25="","",VLOOKUP($B25,formula!$A$15:$BI$124,formula!$AN$9,FALSE)) -> 6427125 | H25: =IF($B25="","",VLOOKUP($B25,formula!$A$15:$BI$124,formula!$C$9,FALSE)) -> 10000000 | K25: =IF($B25="","",VLOOKUP($B25,formula!$A$15:$BI$124,formula!$E$9,FALSE)) -> 5563770 | M25: =IF($B25="","",VLOOKUP($B25,formula!$A$15:$BI$124,formula!$D$9,FALSE)) -> 5563770
B26: 17 | C26: 56 | D26: =IF(C25=MaxCoverageYear-1,"***以下空白***",IF($B26="","",IF($B26>plan,"",VLOOKUP($B26,formula!$A$15:$BI$124,formula!$AM$9,FALSE)))) ->  | E26: =IF($B26="","",VLOOKUP($B26,formula!$A$15:$BI$124,formula!$AN$9,FALSE)) -> 6427125 | H26: =IF($B26="","",VLOOKUP($B26,formula!$A$15:$BI$124,formula!$C$9,FALSE)) -> 10000000 | K26: =IF($B26="","",VLOOKUP($B26,formula!$A$15:$BI$124,formula!$E$9,FALSE)) -> 5664870 | M26: =IF($B26="","",VLOOKUP($B26,formula!$A$15:$BI$124,formula!$D$9,FALSE)) -> 5664870
B27: 18 | C27: 57 | D27: =IF(C26=MaxCoverageYear-1,"***以下空白***",IF($B27="","",IF($B27>plan,"",VLOOKUP($B27,formula!$A$15:$BI$124,formula!$AM$9,FALSE)))) ->  | E27: =IF($B27="","",VLOOKUP($B27,formula!$A$15:$BI$124,formula!$AN$9,FALSE)) -> 6427125 | H27: =IF($B27="","",VLOOKUP($B27,formula!$A$15:$BI$124,formula!$C$9,FALSE)) -> 10000000 | K27: =IF($B27="","",VLOOKUP($B27,formula!$A$15:$BI$124,formula!$E$9,FALSE)) -> 5767120 | M27: =IF($B27="","",VLOOKUP($B27,formula!$A$15:$BI$124,formula!$D$9,FALSE)) -> 5767120
B28: 19 | C28: 58 | D28: =IF(C27=MaxCoverageYear-1,"***以下空白***",IF($B28="","",IF($B28>plan,"",VLOOKUP($B28,formula!$A$15:$BI$124,formula!$AM$9,FALSE)))) ->  | E28: =IF($B28="","",VLOOKUP($B28,formula!$A$15:$BI$124,formula!$AN$9,FALSE)) -> 6427125 | H28: =IF($B28="","",VLOOKUP($B28,formula!$A$15:$BI$124,formula!$C$9,FALSE)) -> 10000000 | K28: =IF($B28="","",VLOOKUP($B28,formula!$A$15:$BI$124,formula!$E$9,FALSE)) -> 5870490 | M28: =IF($B28="","",VLOOKUP($B28,formula!$A$15:$BI$124,formula!$D$9,FALSE)) -> 5870490
B29: 20 | C29: 59 | D29: =IF(C28=MaxCoverageYear-1,"***以下空白***",IF($B29="","",IF($B29>plan,"",VLOOKUP($B29,formula!$A$15:$BI$124,formula!$AM$9,FALSE)))) ->  | E29: =IF($B29="","",VLOOKUP($B29,formula!$A$15:$BI$124,formula!$AN$9,FALSE)) -> 6427125 | H29: =IF($B29="","",VLOOKUP($B29,formula!$A$15:$BI$124,formula!$C$9,FALSE)) -> 10000000 | K29: =IF($B29="","",VLOOKUP($B29,formula!$A$15:$BI$124,formula!$E$9,FALSE)) -> 5974950 | M29: =IF($B29="","",VLOOKUP($B29,formula!$A$15:$BI$124,formula!$D$9,FALSE)) -> 5974950
B30: 21 | C30: 60 | D30: =IF(C29=MaxCoverageYear-1,"***以下空白***",IF($B30="","",IF($B30>plan,"",VLOOKUP($B30,formula!$A$15:$BI$124,formula!$AM$9,FALSE)))) ->  | E30: =IF($B30="","",VLOOKUP($B30,formula!$A$15:$BI$124,formula!$AN$9,FALSE)) -> 6427125 | H30: =IF($B30="","",VLOOKUP($B30,formula!$A$15:$BI$124,formula!$C$9,FALSE)) -> 10000000 | K30: =IF($B30="","",VLOOKUP($B30,formula!$A$15:$BI$124,formula!$E$9,FALSE)) -> 6079300 | M30: =IF($B30="","",VLOOKUP($B30,formula!$A$15:$BI$124,formula!$D$9,FALSE)) -> 6079300
B31: 22 | C31: 61 | D31: =IF(C30=MaxCoverageYear-1,"***以下空白***",IF($B31="","",IF($B31>plan,"",VLOOKUP($B31,formula!$A$15:$BI$124,formula!$AM$9,FALSE)))) ->  | E31: =IF($B31="","",VLOOKUP($B31,formula!$A$15:$BI$124,formula!$AN$9,FALSE)) -> 6427125 | H31: =IF($B31="","",VLOOKUP($B31,formula!$A$15:$BI$124,formula!$C$9,FALSE)) -> 10000000 | K31: =IF($B31="","",VLOOKUP($B31,formula!$A$15:$BI$124,formula!$E$9,FALSE)) -> 6184647.5 | M31: =IF($B31="","",VLOOKUP($B31,formula!$A$15:$BI$124,formula!$D$9,FALSE)) -> 6184647.5
B32: 23 | C32: 62 | D32: =IF(C31=MaxCoverageYear-1,"***以下空白***",IF($B32="","",IF($B32>plan,"",VLOOKUP($B32,formula!$A$15:$BI$124,formula!$AM$9,FALSE)))) ->  | E32: =IF($B32="","",VLOOKUP($B32,formula!$A$15:$BI$124,formula!$AN$9,FALSE)) -> 6427125 | H32: =IF($B32="","",VLOOKUP($B32,formula!$A$15:$BI$124,formula!$C$9,FALSE)) -> 10000000 | K32: =IF($B32="","",VLOOKUP($B32,formula!$A$15:$BI$124,formula!$E$9,FALSE)) -> 6290902.5 | M32: =IF($B32="","",VLOOKUP($B32,formula!$A$15:$BI$124,formula!$D$9,FALSE)) -> 6290902.5
B33: 24 | C33: 63 | D33: =IF(C32=MaxCoverageYear-1,"***以下空白***",IF($B33="","",IF($B33>plan,"",VLOOKUP($B33,formula!$A$15:$BI$124,formula!$AM$9,FALSE)))) ->  | E33: =IF($B33="","",VLOOKUP($B33,formula!$A$15:$BI$124,formula!$AN$9,FALSE)) -> 6427125 | H33: =IF($B33="","",VLOOKUP($B33,formula!$A$15:$BI$124,formula!$C$9,FALSE)) -> 10000000 | K33: =IF($B33="","",VLOOKUP($B33,formula!$A$15:$BI$124,formula!$E$9,FALSE)) -> 6397972.5 | M33: =IF($B33="","",VLOOKUP($B33,formula!$A$15:$BI$124,formula!$D$9,FALSE)) -> 6397972.5
B34: 25 | C34: 64 | D34: =IF(C33=MaxCoverageYear-1,"***以下空白***",IF($B34="","",IF($B34>plan,"",VLOOKUP($B34,formula!$A$15:$BI$124,formula!$AM$9,FALSE)))) ->  | E34: =IF($B34="","",VLOOKUP($B34,formula!$A$15:$BI$124,formula!$AN$9,FALSE)) -> 6427125 | H34: =IF($B34="","",VLOOKUP($B34,formula!$A$15:$BI$124,formula!$C$9,FALSE)) -> 10000000 | K34: =IF($B34="","",VLOOKUP($B34,formula!$A$15:$BI$124,formula!$E$9,FALSE)) -> 6505720 | M34: =IF($B34="","",VLOOKUP($B34,formula!$A$15:$BI$124,formula!$D$9,FALSE)) -> 6505720
B35: 26 | C35: 65 | D35: =IF(C34=MaxCoverageYear-1,"***以下空白***",IF($B35="","",IF($B35>plan,"",VLOOKUP($B35,formula!$A$15:$BI$124,formula!$AM$9,FALSE)))) ->  | E35: =IF($B35="","",VLOOKUP($B35,formula!$A$15:$BI$124,formula!$AN$9,FALSE)) -> 6427125 | H35: =IF($B35="","",VLOOKUP($B35,formula!$A$15:$BI$124,formula!$C$9,FALSE)) -> 10000000 | K35: =IF($B35="","",VLOOKUP($B35,formula!$A$15:$BI$124,formula!$E$9,FALSE)) -> 6612687.5 | M35: =IF($B35="","",VLOOKUP($B35,formula!$A$15:$BI$124,formula!$D$9,FALSE)) -> 6612687.5
B36: 27 | C36: 66 | D36: =IF(C35=MaxCoverageYear-1,"***以下空白***",IF($B36="","",IF($B36>plan,"",VLOOKUP($B36,formula!$A$15:$BI$124,formula!$AM$9,FALSE)))) ->  | E36: =IF($B36="","",VLOOKUP($B36,formula!$A$15:$BI$124,formula!$AN$9,FALSE)) -> 6427125 | H36: =IF($B36="","",VLOOKUP($B36,formula!$A$15:$BI$124,formula!$C$9,FALSE)) -> 10000000 | K36: =IF($B36="","",VLOOKUP($B36,formula!$A$15:$BI$124,formula!$E$9,FALSE)) -> 6719980 | M36: =IF($B36="","",VLOOKUP($B36,formula!$A$15:$BI$124,formula!$D$9,FALSE)) -> 6719980
B37: 28 | C37: 67 | D37: =IF(C36=MaxCoverageYear-1,"***以下空白***",IF($B37="","",IF($B37>plan,"",VLOOKUP($B37,formula!$A$15:$BI$124,formula!$AM$9,FALSE)))) ->  | E37: =IF($B37="","",VLOOKUP($B37,formula!$A$15:$BI$124,formula!$AN$9,FALSE)) -> 6427125 | H37: =IF($B37="","",VLOOKUP($B37,formula!$A$15:$BI$124,formula!$C$9,FALSE)) -> 10000000 | K37: =IF($B37="","",VLOOKUP($B37,formula!$A$15:$BI$124,formula!$E$9,FALSE)) -> 6827340 | M37: =IF($B37="","",VLOOKUP($B37,formula!$A$15:$BI$124,formula!$D$9,FALSE)) -> 6827340
B38: 29 | C38: 68 | D38: =IF(C37=MaxCoverageYear-1,"***以下空白***",IF($B38="","",IF($B38>plan,"",VLOOKUP($B38,formula!$A$15:$BI$124,formula!$AM$9,FALSE)))) ->  | E38: =IF($B38="","",VLOOKUP($B38,formula!$A$15:$BI$124,formula!$AN$9,FALSE)) -> 6427125 | H38: =IF($B38="","",VLOOKUP($B38,formula!$A$15:$BI$124,formula!$C$9,FALSE)) -> 10000000 | K38: =IF($B38="","",VLOOKUP($B38,formula!$A$15:$BI$124,formula!$E$9,FALSE)) -> 6934525 | M38: =IF($B38="","",VLOOKUP($B38,formula!$A$15:$BI$124,formula!$D$9,FALSE)) -> 6934525
B39: 30 | C39: 69 | D39: =IF(C38=MaxCoverageYear-1,"***以下空白***",IF($B39="","",IF($B39>plan,"",VLOOKUP($B39,formula!$A$15:$BI$124,formula!$AM$9,FALSE)))) ->  | E39: =IF($B39="","",VLOOKUP($B39,formula!$A$15:$BI$124,formula!$AN$9,FALSE)) -> 6427125 | H39: =IF($B39="","",VLOOKUP($B39,formula!$A$15:$BI$124,formula!$C$9,FALSE)) -> 10000000 | K39: =IF($B39="","",VLOOKUP($B39,formula!$A$15:$BI$124,formula!$E$9,FALSE)) -> 7041320 | M39: =IF($B39="","",VLOOKUP($B39,formula!$A$15:$BI$124,formula!$D$9,FALSE)) -> 7041320
B40: 31 | C40: 70 | D40: =IF(C39=MaxCoverageYear-1,"***以下空白***",IF($B40="","",IF($B40>plan,"",VLOOKUP($B40,formula!$A$15:$BI$124,formula!$AM$9,FALSE)))) ->  | E40: =IF($B40="","",VLOOKUP($B40,formula!$A$15:$BI$124,formula!$AN$9,FALSE)) -> 6427125 | H40: =IF($B40="","",VLOOKUP($B40,formula!$A$15:$BI$124,formula!$C$9,FALSE)) -> 10000000 | K40: =IF($B40="","",VLOOKUP($B40,formula!$A$15:$BI$124,formula!$E$9,FALSE)) -> 7144835 | M40: =IF($B40="","",VLOOKUP($B40,formula!$A$15:$BI$124,formula!$D$9,FALSE)) -> 7144835
B41: 32 | C41: 71 | D41: =IF(C40=MaxCoverageYear-1,"***以下空白***",IF($B41="","",IF($B41>plan,"",VLOOKUP($B41,formula!$A$15:$BI$124,formula!$AM$9,FALSE)))) ->  | E41: =IF($B41="","",VLOOKUP($B41,formula!$A$15:$BI$124,formula!$AN$9,FALSE)) -> 6427125 | H41: =IF($B41="","",VLOOKUP($B41,formula!$A$15:$BI$124,formula!$C$9,FALSE)) -> 10000000 | K41: =IF($B41="","",VLOOKUP($B41,formula!$A$15:$BI$124,formula!$E$9,FALSE)) -> 7247662.5 | M41: =IF($B41="","",VLOOKUP($B41,formula!$A$15:$BI$124,formula!$D$9,FALSE)) -> 7247662.5
B42: 33 | C42: 72 | D42: =IF(C41=MaxCoverageYear-1,"***以下空白***",IF($B42="","",IF($B42>plan,"",VLOOKUP($B42,formula!$A$15:$BI$124,formula!$AM$9,FALSE)))) ->  | E42: =IF($B42="","",VLOOKUP($B42,formula!$A$15:$BI$124,formula!$AN$9,FALSE)) -> 6427125 | H42: =IF($B42="","",VLOOKUP($B42,formula!$A$15:$BI$124,formula!$C$9,FALSE)) -> 10000000 | K42: =IF($B42="","",VLOOKUP($B42,formula!$A$15:$BI$124,formula!$E$9,FALSE)) -> 7349662.5 | M42: =IF($B42="","",VLOOKUP($B42,formula!$A$15:$BI$124,formula!$D$9,FALSE)) -> 7349662.5 | O42: =IF(B42="", "", IFERROR(IF(SA * VLOOKUP(index, RPU_Tab, 4 + B42, FALSE) / 10000 = 0, "", SA * VLOOKUP(index, RPU_Tab, 4 + B42, FALSE) / 10000), "")) -> 
B43: 34 | C43: 73 | D43: =IF(C42=MaxCoverageYear-1,"***以下空白***",IF($B43="","",IF($B43>plan,"",VLOOKUP($B43,formula!$A$15:$BI$124,formula!$AM$9,FALSE)))) ->  | E43: =IF($B43="","",VLOOKUP($B43,formula!$A$15:$BI$124,formula!$AN$9,FALSE)) -> 6427125 | H43: =IF($B43="","",VLOOKUP($B43,formula!$A$15:$BI$124,formula!$C$9,FALSE)) -> 10000000 | K43: =IF($B43="","",VLOOKUP($B43,formula!$A$15:$BI$124,formula!$E$9,FALSE)) -> 7450717.5 | M43: =IF($B43="","",VLOOKUP($B43,formula!$A$15:$BI$124,formula!$D$9,FALSE)) -> 7450717.5
B44: 35 | C44: 74 | D44: =IF(C43=MaxCoverageYear-1,"***以下空白***",IF($B44="","",IF($B44>plan,"",VLOOKUP($B44,formula!$A$15:$BI$124,formula!$AM$9,FALSE)))) ->  | E44: =IF($B44="","",VLOOKUP($B44,formula!$A$15:$BI$124,formula!$AN$9,FALSE)) -> 6427125 | H44: =IF($B44="","",VLOOKUP($B44,formula!$A$15:$BI$124,formula!$C$9,FALSE)) -> 10000000 | K44: =IF($B44="","",VLOOKUP($B44,formula!$A$15:$BI$124,formula!$E$9,FALSE)) -> 7550690 | M44: =IF($B44="","",VLOOKUP($B44,formula!$A$15:$BI$124,formula!$D$9,FALSE)) -> 7550690
B45: 36 | C45: 75 | D45: =IF(C44=MaxCoverageYear-1,"***以下空白***",IF($B45="","",IF($B45>plan,"",VLOOKUP($B45,formula!$A$15:$BI$124,formula!$AM$9,FALSE)))) ->  | E45: =IF($B45="","",VLOOKUP($B45,formula!$A$15:$BI$124,formula!$AN$9,FALSE)) -> 6427125 | H45: =IF($B45="","",VLOOKUP($B45,formula!$A$15:$BI$124,formula!$C$9,FALSE)) -> 10000000 | K45: =IF($B45="","",VLOOKUP($B45,formula!$A$15:$BI$124,formula!$E$9,FALSE)) -> 7649962.5 | M45: =IF($B45="","",VLOOKUP($B45,formula!$A$15:$BI$124,formula!$D$9,FALSE)) -> 7649962.5
B46: 37 | C46: 76 | D46: =IF(C45=MaxCoverageYear-1,"***以下空白***",IF($B46="","",IF($B46>plan,"",VLOOKUP($B46,formula!$A$15:$BI$124,formula!$AM$9,FALSE)))) ->  | E46: =IF($B46="","",VLOOKUP($B46,formula!$A$15:$BI$124,formula!$AN$9,FALSE)) -> 6427125 | H46: =IF($B46="","",VLOOKUP($B46,formula!$A$15:$BI$124,formula!$C$9,FALSE)) -> 10000000 | K46: =IF($B46="","",VLOOKUP($B46,formula!$A$15:$BI$124,formula!$E$9,FALSE)) -> 7747857.5 | M46: =IF($B46="","",VLOOKUP($B46,formula!$A$15:$BI$124,formula!$D$9,FALSE)) -> 7747857.5
B47: 38 | C47: 77 | D47: =IF(C46=MaxCoverageYear-1,"***以下空白***",IF($B47="","",IF($B47>plan,"",VLOOKUP($B47,formula!$A$15:$BI$124,formula!$AM$9,FALSE)))) ->  | E47: =IF($B47="","",VLOOKUP($B47,formula!$A$15:$BI$124,formula!$AN$9,FALSE)) -> 6427125 | H47: =IF($B47="","",VLOOKUP($B47,formula!$A$15:$BI$124,formula!$C$9,FALSE)) -> 10000000 | K47: =IF($B47="","",VLOOKUP($B47,formula!$A$15:$BI$124,formula!$E$9,FALSE)) -> 7844192.5 | M47: =IF($B47="","",VLOOKUP($B47,formula!$A$15:$BI$124,formula!$D$9,FALSE)) -> 7844192.5
B48: 39 | C48: 78 | D48: =IF(C47=MaxCoverageYear-1,"***以下空白***",IF($B48="","",IF($B48>plan,"",VLOOKUP($B48,formula!$A$15:$BI$124,formula!$AM$9,FALSE)))) ->  | E48: =IF($B48="","",VLOOKUP($B48,formula!$A$15:$BI$124,formula!$AN$9,FALSE)) -> 6427125 | H48: =IF($B48="","",VLOOKUP($B48,formula!$A$15:$BI$124,formula!$C$9,FALSE)) -> 10000000 | K48: =IF($B48="","",VLOOKUP($B48,formula!$A$15:$BI$124,formula!$E$9,FALSE)) -> 7938792.5 | M48: =IF($B48="","",VLOOKUP($B48,formula!$A$15:$BI$124,formula!$D$9,FALSE)) -> 7938792.5
B49: 40 | C49: 79 | D49: =IF(C48=MaxCoverageYear-1,"***以下空白***",IF($B49="","",IF($B49>plan,"",VLOOKUP($B49,formula!$A$15:$BI$124,formula!$AM$9,FALSE)))) ->  | E49: =IF($B49="","",VLOOKUP($B49,formula!$A$15:$BI$124,formula!$AN$9,FALSE)) -> 6427125 | H49: =IF($B49="","",VLOOKUP($B49,formula!$A$15:$BI$124,formula!$C$9,FALSE)) -> 10000000 | K49: =IF($B49="","",VLOOKUP($B49,formula!$A$15:$BI$124,formula!$E$9,FALSE)) -> 8031532.5 | M49: =IF($B49="","",VLOOKUP($B49,formula!$A$15:$BI$124,formula!$D$9,FALSE)) -> 8031532.5
B50: 41 | C50: 80 | D50: =IF(C49=MaxCoverageYear-1,"***以下空白***",IF($B50="","",IF($B50>plan,"",VLOOKUP($B50,formula!$A$15:$BI$124,formula!$AM$9,FALSE)))) ->  | E50: =IF($B50="","",VLOOKUP($B50,formula!$A$15:$BI$124,formula!$AN$9,FALSE)) -> 6427125 | H50: =IF($B50="","",VLOOKUP($B50,formula!$A$15:$BI$124,formula!$C$9,FALSE)) -> 10000000 | K50: =IF($B50="","",VLOOKUP($B50,formula!$A$15:$BI$124,formula!$E$9,FALSE)) -> 8122357.5 | M50: =IF($B50="","",VLOOKUP($B50,formula!$A$15:$BI$124,formula!$D$9,FALSE)) -> 8122357.5
B51: 42 | C51: 81 | D51: =IF(C50=MaxCoverageYear-1,"***以下空白***",IF($B51="","",IF($B51>plan,"",VLOOKUP($B51,formula!$A$15:$BI$124,formula!$AM$9,FALSE)))) ->  | E51: =IF($B51="","",VLOOKUP($B51,formula!$A$15:$BI$124,formula!$AN$9,FALSE)) -> 6427125 | H51: =IF($B51="","",VLOOKUP($B51,formula!$A$15:$BI$124,formula!$C$9,FALSE)) -> 10000000 | K51: =IF($B51="","",VLOOKUP($B51,formula!$A$15:$BI$124,formula!$E$9,FALSE)) -> 8211260 | M51: =IF($B51="","",VLOOKUP($B51,formula!$A$15:$BI$124,formula!$D$9,FALSE)) -> 8211260
B52: 43 | C52: 82 | D52: =IF(C51=MaxCoverageYear-1,"***以下空白***",IF($B52="","",IF($B52>plan,"",VLOOKUP($B52,formula!$A$15:$BI$124,formula!$AM$9,FALSE)))) ->  | E52: =IF($B52="","",VLOOKUP($B52,formula!$A$15:$BI$124,formula!$AN$9,FALSE)) -> 6427125 | H52: =IF($B52="","",VLOOKUP($B52,formula!$A$15:$BI$124,formula!$C$9,FALSE)) -> 10000000 | K52: =IF($B52="","",VLOOKUP($B52,formula!$A$15:$BI$124,formula!$E$9,FALSE)) -> 8298225 | M52: =IF($B52="","",VLOOKUP($B52,formula!$A$15:$BI$124,formula!$D$9,FALSE)) -> 8298225
B53: 44 | C53: 83 | D53: =IF(C52=MaxCoverageYear-1,"***以下空白***",IF($B53="","",IF($B53>plan,"",VLOOKUP($B53,formula!$A$15:$BI$124,formula!$AM$9,FALSE)))) ->  | E53: =IF($B53="","",VLOOKUP($B53,formula!$A$15:$BI$124,formula!$AN$9,FALSE)) -> 6427125 | H53: =IF($B53="","",VLOOKUP($B53,formula!$A$15:$BI$124,formula!$C$9,FALSE)) -> 10000000 | K53: =IF($B53="","",VLOOKUP($B53,formula!$A$15:$BI$124,formula!$E$9,FALSE)) -> 8383207.5 | M53: =IF($B53="","",VLOOKUP($B53,formula!$A$15:$BI$124,formula!$D$9,FALSE)) -> 8383207.5
B54: 45 | C54: 84 | D54: =IF(C53=MaxCoverageYear-1,"***以下空白***",IF($B54="","",IF($B54>plan,"",VLOOKUP($B54,formula!$A$15:$BI$124,formula!$AM$9,FALSE)))) ->  | E54: =IF($B54="","",VLOOKUP($B54,formula!$A$15:$BI$124,formula!$AN$9,FALSE)) -> 6427125 | H54: =IF($B54="","",VLOOKUP($B54,formula!$A$15:$BI$124,formula!$C$9,FALSE)) -> 10000000 | K54: =IF($B54="","",VLOOKUP($B54,formula!$A$15:$BI$124,formula!$E$9,FALSE)) -> 8466115 | M54: =IF($B54="","",VLOOKUP($B54,formula!$A$15:$BI$124,formula!$D$9,FALSE)) -> 8466115
B55: 46 | C55: 85 | D55: =IF(C54=MaxCoverageYear-1,"***以下空白***",IF($B55="","",IF($B55>plan,"",VLOOKUP($B55,formula!$A$15:$BI$124,formula!$AM$9,FALSE)))) ->  | E55: =IF($B55="","",VLOOKUP($B55,formula!$A$15:$BI$124,formula!$AN$9,FALSE)) -> 6427125 | H55: =IF($B55="","",VLOOKUP($B55,formula!$A$15:$BI$124,formula!$C$9,FALSE)) -> 10000000 | K55: =IF($B55="","",VLOOKUP($B55,formula!$A$15:$BI$124,formula!$E$9,FALSE)) -> 8546805 | M55: =IF($B55="","",VLOOKUP($B55,formula!$A$15:$BI$124,formula!$D$9,FALSE)) -> 8546805
B56: 47 | C56: 86 | D56: =IF(C55=MaxCoverageYear-1,"***以下空白***",IF($B56="","",IF($B56>plan,"",VLOOKUP($B56,formula!$A$15:$BI$124,formula!$AM$9,FALSE)))) ->  | E56: =IF($B56="","",VLOOKUP($B56,formula!$A$15:$BI$124,formula!$AN$9,FALSE)) -> 6427125 | H56: =IF($B56="","",VLOOKUP($B56,formula!$A$15:$BI$124,formula!$C$9,FALSE)) -> 10000000 | K56: =IF($B56="","",VLOOKUP($B56,formula!$A$15:$BI$124,formula!$E$9,FALSE)) -> 8625105 | M56: =IF($B56="","",VLOOKUP($B56,formula!$A$15:$BI$124,formula!$D$9,FALSE)) -> 8625105
B57: 48 | C57: 87 | D57: =IF(C56=MaxCoverageYear-1,"***以下空白***",IF($B57="","",IF($B57>plan,"",VLOOKUP($B57,formula!$A$15:$BI$124,formula!$AM$9,FALSE)))) ->  | E57: =IF($B57="","",VLOOKUP($B57,formula!$A$15:$BI$124,formula!$AN$9,FALSE)) -> 6427125 | H57: =IF($B57="","",VLOOKUP($B57,formula!$A$15:$BI$124,formula!$C$9,FALSE)) -> 10000000 | K57: =IF($B57="","",VLOOKUP($B57,formula!$A$15:$BI$124,formula!$E$9,FALSE)) -> 8700837.5 | M57: =IF($B57="","",VLOOKUP($B57,formula!$A$15:$BI$124,formula!$D$9,FALSE)) -> 8700837.5
B58: 49 | C58: 88 | D58: =IF(C57=MaxCoverageYear-1,"***以下空白***",IF($B58="","",IF($B58>plan,"",VLOOKUP($B58,formula!$A$15:$BI$124,formula!$AM$9,FALSE)))) ->  | E58: =IF($B58="","",VLOOKUP($B58,formula!$A$15:$BI$124,formula!$AN$9,FALSE)) -> 6427125 | H58: =IF($B58="","",VLOOKUP($B58,formula!$A$15:$BI$124,formula!$C$9,FALSE)) -> 10000000 | K58: =IF($B58="","",VLOOKUP($B58,formula!$A$15:$BI$124,formula!$E$9,FALSE)) -> 8774205 | M58: =IF($B58="","",VLOOKUP($B58,formula!$A$15:$BI$124,formula!$D$9,FALSE)) -> 8774205
B59: 50 | C59: 89 | D59: =IF(C58=MaxCoverageYear-1,"***以下空白***",IF($B59="","",IF($B59>plan,"",VLOOKUP($B59,formula!$A$15:$BI$124,formula!$AM$9,FALSE)))) ->  | E59: =IF($B59="","",VLOOKUP($B59,formula!$A$15:$BI$124,formula!$AN$9,FALSE)) -> 6427125 | H59: =IF($B59="","",VLOOKUP($B59,formula!$A$15:$BI$124,formula!$C$9,FALSE)) -> 10000000 | K59: =IF($B59="","",VLOOKUP($B59,formula!$A$15:$BI$124,formula!$E$9,FALSE)) -> 8845560 | M59: =IF($B59="","",VLOOKUP($B59,formula!$A$15:$BI$124,formula!$D$9,FALSE)) -> 8845560
B60: 51 | C60: 90 | D60: =IF(C59=MaxCoverageYear-1,"***以下空白***",IF($B60="","",IF($B60>plan,"",VLOOKUP($B60,formula!$A$15:$BI$124,formula!$AM$9,FALSE)))) ->  | E60: =IF($B60="","",VLOOKUP($B60,formula!$A$15:$BI$124,formula!$AN$9,FALSE)) -> 6427125 | H60: =IF($B60="","",VLOOKUP($B60,formula!$A$15:$BI$124,formula!$C$9,FALSE)) -> 10000000 | K60: =IF($B60="","",VLOOKUP($B60,formula!$A$15:$BI$124,formula!$E$9,FALSE)) -> 8914267.5 | M60: =IF($B60="","",VLOOKUP($B60,formula!$A$15:$BI$124,formula!$D$9,FALSE)) -> 8914267.5
B61: 52 | C61: 91 | D61: =IF(C60=MaxCoverageYear-1,"***以下空白***",IF($B61="","",IF($B61>plan,"",VLOOKUP($B61,formula!$A$15:$BI$124,formula!$AM$9,FALSE)))) ->  | E61: =IF($B61="","",VLOOKUP($B61,formula!$A$15:$BI$124,formula!$AN$9,FALSE)) -> 6427125 | H61: =IF($B61="","",VLOOKUP($B61,formula!$A$15:$BI$124,formula!$C$9,FALSE)) -> 10000000 | K61: =IF($B61="","",VLOOKUP($B61,formula!$A$15:$BI$124,formula!$E$9,FALSE)) -> 8979495 | M61: =IF($B61="","",VLOOKUP($B61,formula!$A$15:$BI$124,formula!$D$9,FALSE)) -> 8979495
B62: 53 | C62: 92 | D62: =IF(C61=MaxCoverageYear-1,"***以下空白***",IF($B62="","",IF($B62>plan,"",VLOOKUP($B62,formula!$A$15:$BI$124,formula!$AM$9,FALSE)))) ->  | E62: =IF($B62="","",VLOOKUP($B62,formula!$A$15:$BI$124,formula!$AN$9,FALSE)) -> 6427125 | H62: =IF($B62="","",VLOOKUP($B62,formula!$A$15:$BI$124,formula!$C$9,FALSE)) -> 10000000 | K62: =IF($B62="","",VLOOKUP($B62,formula!$A$15:$BI$124,formula!$E$9,FALSE)) -> 9042345 | M62: =IF($B62="","",VLOOKUP($B62,formula!$A$15:$BI$124,formula!$D$9,FALSE)) -> 9042345
B63: 54 | C63: 93 | D63: =IF(C62=MaxCoverageYear-1,"***以下空白***",IF($B63="","",IF($B63>plan,"",VLOOKUP($B63,formula!$A$15:$BI$124,formula!$AM$9,FALSE)))) ->  | E63: =IF($B63="","",VLOOKUP($B63,formula!$A$15:$BI$124,formula!$AN$9,FALSE)) -> 6427125 | H63: =IF($B63="","",VLOOKUP($B63,formula!$A$15:$BI$124,formula!$C$9,FALSE)) -> 10000000 | K63: =IF($B63="","",VLOOKUP($B63,formula!$A$15:$BI$124,formula!$E$9,FALSE)) -> 9102797.5 | M63: =IF($B63="","",VLOOKUP($B63,formula!$A$15:$BI$124,formula!$D$9,FALSE)) -> 9102797.5
B64: 55 | C64: 94 | D64: =IF(C63=MaxCoverageYear-1,"***以下空白***",IF($B64="","",IF($B64>plan,"",VLOOKUP($B64,formula!$A$15:$BI$124,formula!$AM$9,FALSE)))) ->  | E64: =IF($B64="","",VLOOKUP($B64,formula!$A$15:$BI$124,formula!$AN$9,FALSE)) -> 6427125 | H64: =IF($B64="","",VLOOKUP($B64,formula!$A$15:$BI$124,formula!$C$9,FALSE)) -> 10000000 | K64: =IF($B64="","",VLOOKUP($B64,formula!$A$15:$BI$124,formula!$E$9,FALSE)) -> 9160832.5 | M64: =IF($B64="","",VLOOKUP($B64,formula!$A$15:$BI$124,formula!$D$9,FALSE)) -> 9160832.5
B65: 56 | C65: 95 | D65: =IF(C64=MaxCoverageYear-1,"***以下空白***",IF($B65="","",IF($B65>plan,"",VLOOKUP($B65,formula!$A$15:$BI$124,formula!$AM$9,FALSE)))) ->  | E65: =IF($B65="","",VLOOKUP($B65,formula!$A$15:$BI$124,formula!$AN$9,FALSE)) -> 6427125 | H65: =IF($B65="","",VLOOKUP($B65,formula!$A$15:$BI$124,formula!$C$9,FALSE)) -> 10000000 | K65: =IF($B65="","",VLOOKUP($B65,formula!$A$15:$BI$124,formula!$E$9,FALSE)) -> 9216440 | M65: =IF($B65="","",VLOOKUP($B65,formula!$A$15:$BI$124,formula!$D$9,FALSE)) -> 9216440
B66: 57 | C66: 96 | D66: =IF(C65=MaxCoverageYear-1,"***以下空白***",IF($B66="","",IF($B66>plan,"",VLOOKUP($B66,formula!$A$15:$BI$124,formula!$AM$9,FALSE)))) ->  | E66: =IF($B66="","",VLOOKUP($B66,formula!$A$15:$BI$124,formula!$AN$9,FALSE)) -> 6427125 | H66: =IF($B66="","",VLOOKUP($B66,formula!$A$15:$BI$124,formula!$C$9,FALSE)) -> 10000000 | K66: =IF($B66="","",VLOOKUP($B66,formula!$A$15:$BI$124,formula!$E$9,FALSE)) -> 9269605 | M66: =IF($B66="","",VLOOKUP($B66,formula!$A$15:$BI$124,formula!$D$9,FALSE)) -> 9269605
B67: 58 | C67: 97 | D67: =IF(C66=MaxCoverageYear-1,"***以下空白***",IF($B67="","",IF($B67>plan,"",VLOOKUP($B67,formula!$A$15:$BI$124,formula!$AM$9,FALSE)))) ->  | E67: =IF($B67="","",VLOOKUP($B67,formula!$A$15:$BI$124,formula!$AN$9,FALSE)) -> 6427125 | H67: =IF($B67="","",VLOOKUP($B67,formula!$A$15:$BI$124,formula!$C$9,FALSE)) -> 10000000 | K67: =IF($B67="","",VLOOKUP($B67,formula!$A$15:$BI$124,formula!$E$9,FALSE)) -> 9320310 | M67: =IF($B67="","",VLOOKUP($B67,formula!$A$15:$BI$124,formula!$D$9,FALSE)) -> 9320310
B68: 59 | C68: 98 | D68: =IF(C67=MaxCoverageYear-1,"***以下空白***",IF($B68="","",IF($B68>plan,"",VLOOKUP($B68,formula!$A$15:$BI$124,formula!$AM$9,FALSE)))) ->  | E68: =IF($B68="","",VLOOKUP($B68,formula!$A$15:$BI$124,formula!$AN$9,FALSE)) -> 6427125 | H68: =IF($B68="","",VLOOKUP($B68,formula!$A$15:$BI$124,formula!$C$9,FALSE)) -> 10000000 | K68: =IF($B68="","",VLOOKUP($B68,formula!$A$15:$BI$124,formula!$E$9,FALSE)) -> 9368525 | M68: =IF($B68="","",VLOOKUP($B68,formula!$A$15:$BI$124,formula!$D$9,FALSE)) -> 9368525
B69: 60 | C69: 99 | D69: =IF(C68=MaxCoverageYear-1,"***以下空白***",IF($B69="","",IF($B69>plan,"",VLOOKUP($B69,formula!$A$15:$BI$124,formula!$AM$9,FALSE)))) ->  | E69: =IF($B69="","",VLOOKUP($B69,formula!$A$15:$BI$124,formula!$AN$9,FALSE)) -> 6427125 | H69: =IF($B69="","",VLOOKUP($B69,formula!$A$15:$BI$124,formula!$C$9,FALSE)) -> 10000000 | K69: =IF($B69="","",VLOOKUP($B69,formula!$A$15:$BI$124,formula!$E$9,FALSE)) -> 9414195 | M69: =IF($B69="","",VLOOKUP($B69,formula!$A$15:$BI$124,formula!$D$9,FALSE)) -> 9414195
B70: 61 | C70: 100 | D70: =IF(C69=MaxCoverageYear-1,"***以下空白***",IF($B70="","",IF($B70>plan,"",VLOOKUP($B70,formula!$A$15:$BI$124,formula!$AM$9,FALSE)))) ->  | E70: =IF($B70="","",VLOOKUP($B70,formula!$A$15:$BI$124,formula!$AN$9,FALSE)) -> 6427125 | H70: =IF($B70="","",VLOOKUP($B70,formula!$A$15:$BI$124,formula!$C$9,FALSE)) -> 10000000 | K70: =IF($B70="","",VLOOKUP($B70,formula!$A$15:$BI$124,formula!$E$9,FALSE)) -> 9457210 | M70: =IF($B70="","",VLOOKUP($B70,formula!$A$15:$BI$124,formula!$D$9,FALSE)) -> 9457210
B71: 62 | C71: 101 | D71: =IF(C70=MaxCoverageYear-1,"***以下空白***",IF($B71="","",IF($B71>plan,"",VLOOKUP($B71,formula!$A$15:$BI$124,formula!$AM$9,FALSE)))) ->  | E71: =IF($B71="","",VLOOKUP($B71,formula!$A$15:$BI$124,formula!$AN$9,FALSE)) -> 6427125 | H71: =IF($B71="","",VLOOKUP($B71,formula!$A$15:$BI$124,formula!$C$9,FALSE)) -> 10000000 | K71: =IF($B71="","",VLOOKUP($B71,formula!$A$15:$BI$124,formula!$E$9,FALSE)) -> 9497927.5 | M71: =IF($B71="","",VLOOKUP($B71,formula!$A$15:$BI$124,formula!$D$9,FALSE)) -> 9497927.5
B72: 63 | C72: 102 | D72: =IF(C71=MaxCoverageYear-1,"***以下空白***",IF($B72="","",IF($B72>plan,"",VLOOKUP($B72,formula!$A$15:$BI$124,formula!$AM$9,FALSE)))) ->  | E72: =IF($B72="","",VLOOKUP($B72,formula!$A$15:$BI$124,formula!$AN$9,FALSE)) -> 6427125 | H72: =IF($B72="","",VLOOKUP($B72,formula!$A$15:$BI$124,formula!$C$9,FALSE)) -> 10000000 | K72: =IF($B72="","",VLOOKUP($B72,formula!$A$15:$BI$124,formula!$E$9,FALSE)) -> 9537325 | M72: =IF($B72="","",VLOOKUP($B72,formula!$A$15:$BI$124,formula!$D$9,FALSE)) -> 9537325
B73: 64 | C73: 103 | D73: =IF(C72=MaxCoverageYear-1,"***以下空白***",IF($B73="","",IF($B73>plan,"",VLOOKUP($B73,formula!$A$15:$BI$124,formula!$AM$9,FALSE)))) ->  | E73: =IF($B73="","",VLOOKUP($B73,formula!$A$15:$BI$124,formula!$AN$9,FALSE)) -> 6427125 | H73: =IF($B73="","",VLOOKUP($B73,formula!$A$15:$BI$124,formula!$C$9,FALSE)) -> 10000000 | K73: =IF($B73="","",VLOOKUP($B73,formula!$A$15:$BI$124,formula!$E$9,FALSE)) -> 9576267.5 | M73: =IF($B73="","",VLOOKUP($B73,formula!$A$15:$BI$124,formula!$D$9,FALSE)) -> 9576267.5
B74: 65 | C74: =IF(B74="","",age+B74-1) -> 104 | D74: =IF(C73=MaxCoverageYear-1,"***以下空白***",IF($B74="","",IF($B74>plan,"",VLOOKUP($B74,formula!$A$15:$BI$124,formula!$AM$9,FALSE)))) ->  | E74: =IF($B74="","",VLOOKUP($B74,formula!$A$15:$BI$124,formula!$AN$9,FALSE)) -> 6427125 | H74: =IF($B74="","",VLOOKUP($B74,formula!$A$15:$BI$124,formula!$C$9,FALSE)) -> 10000000 | K74: =IF($B74="","",VLOOKUP($B74,formula!$A$15:$BI$124,formula!$E$9,FALSE)) -> 9616350 | M74: =IF($B74="","",VLOOKUP($B74,formula!$A$15:$BI$124,formula!$D$9,FALSE)) -> 9616350 | O74: =IF(B74="", "", IFERROR(IF(SA * VLOOKUP(index, RPU_Tab, 4 + B74, FALSE) / 10000 = 0, "", SA * VLOOKUP(index, RPU_Tab, 4 + B74, FALSE) / 10000), "")) -> 
B75: =IF(B74>=109-age+1,"",B74+1) -> 66 | C75: 105 | D75: =IF(C74=MaxCoverageYear-1,"***以下空白***",IF($B75="","",IF($B75>plan,"",VLOOKUP($B75,formula!$A$15:$BI$124,formula!$AM$9,FALSE)))) ->  | E75: =IF($B75="","",VLOOKUP($B75,formula!$A$15:$BI$124,formula!$AN$9,FALSE)) -> 6427125 | H75: =IF($B75="","",VLOOKUP($B75,formula!$A$15:$BI$124,formula!$C$9,FALSE)) -> 10000000 | K75: =IF($B75="","",VLOOKUP($B75,formula!$A$15:$BI$124,formula!$E$9,FALSE)) -> 9660635 | M75: =IF($B75="","",VLOOKUP($B75,formula!$A$15:$BI$124,formula!$D$9,FALSE)) -> 9660635
B76: 67 | C76: 106 | D76: =IF(C75=MaxCoverageYear-1,"***以下空白***",IF($B76="","",IF($B76>plan,"",VLOOKUP($B76,formula!$A$15:$BI$124,formula!$AM$9,FALSE)))) ->  | E76: =IF($B76="","",VLOOKUP($B76,formula!$A$15:$BI$124,formula!$AN$9,FALSE)) -> 6427125 | H76: =IF($B76="","",VLOOKUP($B76,formula!$A$15:$BI$124,formula!$C$9,FALSE)) -> 10000000 | K76: =IF($B76="","",VLOOKUP($B76,formula!$A$15:$BI$124,formula!$E$9,FALSE)) -> 9706527.5 | M76: =IF($B76="","",VLOOKUP($B76,formula!$A$15:$BI$124,formula!$D$9,FALSE)) -> 9706527.5
B77: 68 | C77: 107 | D77: =IF(C76=MaxCoverageYear-1,"***以下空白***",IF($B77="","",IF($B77>plan,"",VLOOKUP($B77,formula!$A$15:$BI$124,formula!$AM$9,FALSE)))) ->  | E77: =IF($B77="","",VLOOKUP($B77,formula!$A$15:$BI$124,formula!$AN$9,FALSE)) -> 6427125 | H77: =IF($B77="","",VLOOKUP($B77,formula!$A$15:$BI$124,formula!$C$9,FALSE)) -> 10000000 | K77: =IF($B77="","",VLOOKUP($B77,formula!$A$15:$BI$124,formula!$E$9,FALSE)) -> 9760262.5 | M77: =IF($B77="","",VLOOKUP($B77,formula!$A$15:$BI$124,formula!$D$9,FALSE)) -> 9760262.5
B78: 69 | C78: 108 | D78: =IF(C77=MaxCoverageYear-1,"***以下空白***",IF($B78="","",IF($B78>plan,"",VLOOKUP($B78,formula!$A$15:$BI$124,formula!$AM$9,FALSE)))) ->  | E78: =IF($B78="","",VLOOKUP($B78,formula!$A$15:$BI$124,formula!$AN$9,FALSE)) -> 6427125 | H78: =IF($B78="","",VLOOKUP($B78,formula!$A$15:$BI$124,formula!$C$9,FALSE)) -> 10000000 | K78: =IF($B78="","",VLOOKUP($B78,formula!$A$15:$BI$124,formula!$E$9,FALSE)) -> 9841067.5 | M78: =IF($B78="","",VLOOKUP($B78,formula!$A$15:$BI$124,formula!$D$9,FALSE)) -> 9841067.5
B79: 70 | C79: 109 | D79: =IF(C78=MaxCoverageYear-1,"***以下空白***",IF($B79="","",IF($B79>plan,"",VLOOKUP($B79,formula!$A$15:$BI$124,formula!$AM$9,FALSE)))) ->  | E79: =IF($B79="","",VLOOKUP($B79,formula!$A$15:$BI$124,formula!$AN$9,FALSE)) -> 6427125 | H79: =IF($B79="","",VLOOKUP($B79,formula!$A$15:$BI$124,formula!$C$9,FALSE)) -> 10000000 | K79: =IF($B79="","",VLOOKUP($B79,formula!$A$15:$BI$124,formula!$E$9,FALSE)) -> 10000000 | M79: =IF($B79="","",VLOOKUP($B79,formula!$A$15:$BI$124,formula!$D$9,FALSE)) -> 10000000
D80: =IF(C79=MaxCoverageYear-1,"***以下空白***",IF($B80="","",IF($B80>plan,"",VLOOKUP($B80,formula!$A$15:$BI$124,formula!$AM$9,FALSE)))) -> ***以下空白*** | E80: =IF($B80="","",VLOOKUP($B80,formula!$A$15:$BI$124,formula!$AN$9,FALSE)) ->  | H80: =IF($B80="","",VLOOKUP($B80,formula!$A$15:$BI$124,formula!$C$9,FALSE)) ->  | K80: =IF($B80="","",VLOOKUP($B80,formula!$A$15:$BI$124,formula!$E$9,FALSE)) ->  | M80: =IF($B80="","",VLOOKUP($B80,formula!$A$15:$BI$124,formula!$D$9,FALSE)) -> 
D81: =IF(C80=MaxCoverageYear-1,"***以下空白***",IF($B81="","",IF($B81>plan,"",VLOOKUP($B81,formula!$A$15:$BI$124,formula!$AM$9,FALSE)))) ->  | E81: =IF($B81="","",VLOOKUP($B81,formula!$A$15:$BI$124,formula!$AN$9,FALSE)) ->  | H81: =IF($B81="","",VLOOKUP($B81,formula!$A$15:$BI$124,formula!$C$9,FALSE)) ->  | K81: =IF($B81="","",VLOOKUP($B81,formula!$A$15:$BI$124,formula!$E$9,FALSE)) ->  | M81: =IF($B81="","",VLOOKUP($B81,formula!$A$15:$BI$124,formula!$D$9,FALSE)) -> 
D82: =IF(C81=MaxCoverageYear-1,"***以下空白***",IF($B82="","",IF($B82>plan,"",VLOOKUP($B82,formula!$A$15:$BI$124,formula!$AM$9,FALSE)))) ->  | E82: =IF($B82="","",VLOOKUP($B82,formula!$A$15:$BI$124,formula!$AN$9,FALSE)) ->  | H82: =IF($B82="","",VLOOKUP($B82,formula!$A$15:$BI$124,formula!$C$9,FALSE)) ->  | K82: =IF($B82="","",VLOOKUP($B82,formula!$A$15:$BI$124,formula!$E$9,FALSE)) ->  | M82: =IF($B82="","",VLOOKUP($B82,formula!$A$15:$BI$124,formula!$D$9,FALSE)) -> 
D83: =IF(C82=MaxCoverageYear-1,"***以下空白***",IF($B83="","",IF($B83>plan,"",VLOOKUP($B83,formula!$A$15:$BI$124,formula!$AM$9,FALSE)))) ->  | E83: =IF($B83="","",VLOOKUP($B83,formula!$A$15:$BI$124,formula!$AN$9,FALSE)) ->  | H83: =IF($B83="","",VLOOKUP($B83,formula!$A$15:$BI$124,formula!$C$9,FALSE)) ->  | K83: =IF($B83="","",VLOOKUP($B83,formula!$A$15:$BI$124,formula!$E$9,FALSE)) ->  | M83: =IF($B83="","",VLOOKUP($B83,formula!$A$15:$BI$124,formula!$D$9,FALSE)) -> 
D84: =IF(C83=MaxCoverageYear-1,"***以下空白***",IF($B84="","",IF($B84>plan,"",VLOOKUP($B84,formula!$A$15:$BI$124,formula!$AM$9,FALSE)))) ->  | E84: =IF($B84="","",VLOOKUP($B84,formula!$A$15:$BI$124,formula!$AN$9,FALSE)) ->  | H84: =IF($B84="","",VLOOKUP($B84,formula!$A$15:$BI$124,formula!$C$9,FALSE)) ->  | K84: =IF($B84="","",VLOOKUP($B84,formula!$A$15:$BI$124,formula!$E$9,FALSE)) ->  | M84: =IF($B84="","",VLOOKUP($B84,formula!$A$15:$BI$124,formula!$D$9,FALSE)) -> 
D85: =IF(C84=MaxCoverageYear-1,"***以下空白***",IF($B85="","",IF($B85>plan,"",VLOOKUP($B85,formula!$A$15:$BI$124,formula!$AM$9,FALSE)))) ->  | E85: =IF($B85="","",VLOOKUP($B85,formula!$A$15:$BI$124,formula!$AN$9,FALSE)) ->  | H85: =IF($B85="","",VLOOKUP($B85,formula!$A$15:$BI$124,formula!$C$9,FALSE)) ->  | K85: =IF($B85="","",VLOOKUP($B85,formula!$A$15:$BI$124,formula!$E$9,FALSE)) ->  | M85: =IF($B85="","",VLOOKUP($B85,formula!$A$15:$BI$124,formula!$D$9,FALSE)) -> 
D86: =IF(C85=MaxCoverageYear-1,"***以下空白***",IF($B86="","",IF($B86>plan,"",VLOOKUP($B86,formula!$A$15:$BI$124,formula!$AM$9,FALSE)))) ->  | E86: =IF($B86="","",VLOOKUP($B86,formula!$A$15:$BI$124,formula!$AN$9,FALSE)) ->  | H86: =IF($B86="","",VLOOKUP($B86,formula!$A$15:$BI$124,formula!$C$9,FALSE)) ->  | K86: =IF($B86="","",VLOOKUP($B86,formula!$A$15:$BI$124,formula!$E$9,FALSE)) ->  | M86: =IF($B86="","",VLOOKUP($B86,formula!$A$15:$BI$124,formula!$D$9,FALSE)) -> 
D87: =IF(C86=MaxCoverageYear-1,"***以下空白***",IF($B87="","",IF($B87>plan,"",VLOOKUP($B87,formula!$A$15:$BI$124,formula!$AM$9,FALSE)))) ->  | E87: =IF($B87="","",VLOOKUP($B87,formula!$A$15:$BI$124,formula!$AN$9,FALSE)) ->  | H87: =IF($B87="","",VLOOKUP($B87,formula!$A$15:$BI$124,formula!$C$9,FALSE)) ->  | K87: =IF($B87="","",VLOOKUP($B87,formula!$A$15:$BI$124,formula!$E$9,FALSE)) ->  | M87: =IF($B87="","",VLOOKUP($B87,formula!$A$15:$BI$124,formula!$D$9,FALSE)) -> 
D88: =IF(C87=MaxCoverageYear-1,"***以下空白***",IF($B88="","",IF($B88>plan,"",VLOOKUP($B88,formula!$A$15:$BI$124,formula!$AM$9,FALSE)))) ->  | E88: =IF($B88="","",VLOOKUP($B88,formula!$A$15:$BI$124,formula!$AN$9,FALSE)) ->  | H88: =IF($B88="","",VLOOKUP($B88,formula!$A$15:$BI$124,formula!$C$9,FALSE)) ->  | K88: =IF($B88="","",VLOOKUP($B88,formula!$A$15:$BI$124,formula!$E$9,FALSE)) ->  | M88: =IF($B88="","",VLOOKUP($B88,formula!$A$15:$BI$124,formula!$D$9,FALSE)) -> 
D89: =IF(C88=MaxCoverageYear-1,"***以下空白***",IF($B89="","",IF($B89>plan,"",VLOOKUP($B89,formula!$A$15:$BI$124,formula!$AM$9,FALSE)))) ->  | E89: =IF($B89="","",VLOOKUP($B89,formula!$A$15:$BI$124,formula!$AN$9,FALSE)) ->  | H89: =IF($B89="","",VLOOKUP($B89,formula!$A$15:$BI$124,formula!$C$9,FALSE)) ->  | K89: =IF($B89="","",VLOOKUP($B89,formula!$A$15:$BI$124,formula!$E$9,FALSE)) ->  | M89: =IF($B89="","",VLOOKUP($B89,formula!$A$15:$BI$124,formula!$D$9,FALSE)) -> 
D90: =IF(C89=MaxCoverageYear-1,"***以下空白***",IF($B90="","",IF($B90>plan,"",VLOOKUP($B90,formula!$A$15:$BI$124,formula!$AM$9,FALSE)))) ->  | E90: =IF($B90="","",VLOOKUP($B90,formula!$A$15:$BI$124,formula!$AN$9,FALSE)) ->  | H90: =IF($B90="","",VLOOKUP($B90,formula!$A$15:$BI$124,formula!$C$9,FALSE)) ->  | K90: =IF($B90="","",VLOOKUP($B90,formula!$A$15:$BI$124,formula!$E$9,FALSE)) ->  | M90: =IF($B90="","",VLOOKUP($B90,formula!$A$15:$BI$124,formula!$D$9,FALSE)) -> 
D91: =IF(C90=MaxCoverageYear-1,"***以下空白***",IF($B91="","",IF($B91>plan,"",VLOOKUP($B91,formula!$A$15:$BI$124,formula!$AM$9,FALSE)))) ->  | E91: =IF($B91="","",VLOOKUP($B91,formula!$A$15:$BI$124,formula!$AN$9,FALSE)) ->  | H91: =IF($B91="","",VLOOKUP($B91,formula!$A$15:$BI$124,formula!$C$9,FALSE)) ->  | K91: =IF($B91="","",VLOOKUP($B91,formula!$A$15:$BI$124,formula!$E$9,FALSE)) ->  | M91: =IF($B91="","",VLOOKUP($B91,formula!$A$15:$BI$124,formula!$D$9,FALSE)) -> 
D92: =IF(C91=MaxCoverageYear-1,"***以下空白***",IF($B92="","",IF($B92>plan,"",VLOOKUP($B92,formula!$A$15:$BI$124,formula!$AM$9,FALSE)))) ->  | E92: =IF($B92="","",VLOOKUP($B92,formula!$A$15:$BI$124,formula!$AN$9,FALSE)) ->  | H92: =IF($B92="","",VLOOKUP($B92,formula!$A$15:$BI$124,formula!$C$9,FALSE)) ->  | K92: =IF($B92="","",VLOOKUP($B92,formula!$A$15:$BI$124,formula!$E$9,FALSE)) ->  | M92: =IF($B92="","",VLOOKUP($B92,formula!$A$15:$BI$124,formula!$D$9,FALSE)) -> 
D93: =IF(C92=MaxCoverageYear-1,"***以下空白***",IF($B93="","",IF($B93>plan,"",VLOOKUP($B93,formula!$A$15:$BI$124,formula!$AM$9,FALSE)))) ->  | E93: =IF($B93="","",VLOOKUP($B93,formula!$A$15:$BI$124,formula!$AN$9,FALSE)) ->  | H93: =IF($B93="","",VLOOKUP($B93,formula!$A$15:$BI$124,formula!$C$9,FALSE)) ->  | K93: =IF($B93="","",VLOOKUP($B93,formula!$A$15:$BI$124,formula!$E$9,FALSE)) ->  | M93: =IF($B93="","",VLOOKUP($B93,formula!$A$15:$BI$124,formula!$D$9,FALSE)) -> 
D94: =IF(C93=MaxCoverageYear-1,"***以下空白***",IF($B94="","",IF($B94>plan,"",VLOOKUP($B94,formula!$A$15:$BI$124,formula!$AM$9,FALSE)))) ->  | E94: =IF($B94="","",VLOOKUP($B94,formula!$A$15:$BI$124,formula!$AN$9,FALSE)) ->  | H94: =IF($B94="","",VLOOKUP($B94,formula!$A$15:$BI$124,formula!$C$9,FALSE)) ->  | K94: =IF($B94="","",VLOOKUP($B94,formula!$A$15:$BI$124,formula!$E$9,FALSE)) ->  | M94: =IF($B94="","",VLOOKUP($B94,formula!$A$15:$BI$124,formula!$D$9,FALSE)) -> 
D95: =IF(C94=MaxCoverageYear-1,"***以下空白***",IF($B95="","",IF($B95>plan,"",VLOOKUP($B95,formula!$A$15:$BI$124,formula!$AM$9,FALSE)))) ->  | E95: =IF($B95="","",VLOOKUP($B95,formula!$A$15:$BI$124,formula!$AN$9,FALSE)) ->  | H95: =IF($B95="","",VLOOKUP($B95,formula!$A$15:$BI$124,formula!$C$9,FALSE)) ->  | K95: =IF($B95="","",VLOOKUP($B95,formula!$A$15:$BI$124,formula!$E$9,FALSE)) ->  | M95: =IF($B95="","",VLOOKUP($B95,formula!$A$15:$BI$124,formula!$D$9,FALSE)) -> 
D96: =IF(C95=MaxCoverageYear-1,"***以下空白***",IF($B96="","",IF($B96>plan,"",VLOOKUP($B96,formula!$A$15:$BI$124,formula!$AM$9,FALSE)))) ->  | E96: =IF($B96="","",VLOOKUP($B96,formula!$A$15:$BI$124,formula!$AN$9,FALSE)) ->  | H96: =IF($B96="","",VLOOKUP($B96,formula!$A$15:$BI$124,formula!$C$9,FALSE)) ->  | K96: =IF($B96="","",VLOOKUP($B96,formula!$A$15:$BI$124,formula!$E$9,FALSE)) ->  | M96: =IF($B96="","",VLOOKUP($B96,formula!$A$15:$BI$124,formula!$D$9,FALSE)) -> 
D97: =IF(C96=MaxCoverageYear-1,"***以下空白***",IF($B97="","",IF($B97>plan,"",VLOOKUP($B97,formula!$A$15:$BI$124,formula!$AM$9,FALSE)))) ->  | E97: =IF($B97="","",VLOOKUP($B97,formula!$A$15:$BI$124,formula!$AN$9,FALSE)) ->  | H97: =IF($B97="","",VLOOKUP($B97,formula!$A$15:$BI$124,formula!$C$9,FALSE)) ->  | K97: =IF($B97="","",VLOOKUP($B97,formula!$A$15:$BI$124,formula!$E$9,FALSE)) ->  | M97: =IF($B97="","",VLOOKUP($B97,formula!$A$15:$BI$124,formula!$D$9,FALSE)) -> 
D98: =IF(C97=MaxCoverageYear-1,"***以下空白***",IF($B98="","",IF($B98>plan,"",VLOOKUP($B98,formula!$A$15:$BI$124,formula!$AM$9,FALSE)))) ->  | E98: =IF($B98="","",VLOOKUP($B98,formula!$A$15:$BI$124,formula!$AN$9,FALSE)) ->  | H98: =IF($B98="","",VLOOKUP($B98,formula!$A$15:$BI$124,formula!$C$9,FALSE)) ->  | K98: =IF($B98="","",VLOOKUP($B98,formula!$A$15:$BI$124,formula!$E$9,FALSE)) ->  | M98: =IF($B98="","",VLOOKUP($B98,formula!$A$15:$BI$124,formula!$D$9,FALSE)) -> 
D99: =IF(C98=MaxCoverageYear-1,"***以下空白***",IF($B99="","",IF($B99>plan,"",VLOOKUP($B99,formula!$A$15:$BI$124,formula!$AM$9,FALSE)))) ->  | E99: =IF($B99="","",VLOOKUP($B99,formula!$A$15:$BI$124,formula!$AN$9,FALSE)) ->  | H99: =IF($B99="","",VLOOKUP($B99,formula!$A$15:$BI$124,formula!$C$9,FALSE)) ->  | K99: =IF($B99="","",VLOOKUP($B99,formula!$A$15:$BI$124,formula!$E$9,FALSE)) ->  | M99: =IF($B99="","",VLOOKUP($B99,formula!$A$15:$BI$124,formula!$D$9,FALSE)) -> 
D100: =IF(C99=MaxCoverageYear-1,"***以下空白***",IF($B100="","",IF($B100>plan,"",VLOOKUP($B100,formula!$A$15:$BI$124,formula!$AM$9,FALSE)))) ->  | E100: =IF($B100="","",VLOOKUP($B100,formula!$A$15:$BI$124,formula!$AN$9,FALSE)) ->  | H100: =IF($B100="","",VLOOKUP($B100,formula!$A$15:$BI$124,formula!$C$9,FALSE)) ->  | K100: =IF($B100="","",VLOOKUP($B100,formula!$A$15:$BI$124,formula!$E$9,FALSE)) ->  | M100: =IF($B100="","",VLOOKUP($B100,formula!$A$15:$BI$124,formula!$D$9,FALSE)) -> 
D101: =IF(C100=MaxCoverageYear-1,"***以下空白***",IF($B101="","",IF($B101>plan,"",VLOOKUP($B101,formula!$A$15:$BI$124,formula!$AM$9,FALSE)))) ->  | E101: =IF($B101="","",VLOOKUP($B101,formula!$A$15:$BI$124,formula!$AN$9,FALSE)) ->  | H101: =IF($B101="","",VLOOKUP($B101,formula!$A$15:$BI$124,formula!$C$9,FALSE)) ->  | K101: =IF($B101="","",VLOOKUP($B101,formula!$A$15:$BI$124,formula!$E$9,FALSE)) ->  | M101: =IF($B101="","",VLOOKUP($B101,formula!$A$15:$BI$124,formula!$D$9,FALSE)) -> 
D102: =IF(C101=MaxCoverageYear-1,"***以下空白***",IF($B102="","",IF($B102>plan,"",VLOOKUP($B102,formula!$A$15:$BI$124,formula!$AM$9,FALSE)))) ->  | E102: =IF($B102="","",VLOOKUP($B102,formula!$A$15:$BI$124,formula!$AN$9,FALSE)) ->  | H102: =IF($B102="","",VLOOKUP($B102,formula!$A$15:$BI$124,formula!$C$9,FALSE)) ->  | K102: =IF($B102="","",VLOOKUP($B102,formula!$A$15:$BI$124,formula!$E$9,FALSE)) ->  | M102: =IF($B102="","",VLOOKUP($B102,formula!$A$15:$BI$124,formula!$D$9,FALSE)) -> 
D103: =IF(C102=MaxCoverageYear-1,"***以下空白***",IF($B103="","",IF($B103>plan,"",VLOOKUP($B103,formula!$A$15:$BI$124,formula!$AM$9,FALSE)))) ->  | E103: =IF($B103="","",VLOOKUP($B103,formula!$A$15:$BI$124,formula!$AN$9,FALSE)) ->  | H103: =IF($B103="","",VLOOKUP($B103,formula!$A$15:$BI$124,formula!$C$9,FALSE)) ->  | K103: =IF($B103="","",VLOOKUP($B103,formula!$A$15:$BI$124,formula!$E$9,FALSE)) ->  | M103: =IF($B103="","",VLOOKUP($B103,formula!$A$15:$BI$124,formula!$D$9,FALSE)) -> 
D104: =IF(C103=MaxCoverageYear-1,"***以下空白***",IF($B104="","",IF($B104>plan,"",VLOOKUP($B104,formula!$A$15:$BI$124,formula!$AM$9,FALSE)))) ->  | E104: =IF($B104="","",VLOOKUP($B104,formula!$A$15:$BI$124,formula!$AN$9,FALSE)) ->  | H104: =IF($B104="","",VLOOKUP($B104,formula!$A$15:$BI$124,formula!$C$9,FALSE)) ->  | K104: =IF($B104="","",VLOOKUP($B104,formula!$A$15:$BI$124,formula!$E$9,FALSE)) ->  | M104: =IF($B104="","",VLOOKUP($B104,formula!$A$15:$BI$124,formula!$D$9,FALSE)) -> 
D105: =IF(C104=MaxCoverageYear-1,"***以下空白***",IF($B105="","",IF($B105>plan,"",VLOOKUP($B105,formula!$A$15:$BI$124,formula!$AM$9,FALSE)))) ->  | E105: =IF($B105="","",VLOOKUP($B105,formula!$A$15:$BI$124,formula!$AN$9,FALSE)) ->  | H105: =IF($B105="","",VLOOKUP($B105,formula!$A$15:$BI$124,formula!$C$9,FALSE)) ->  | K105: =IF($B105="","",VLOOKUP($B105,formula!$A$15:$BI$124,formula!$E$9,FALSE)) ->  | M105: =IF($B105="","",VLOOKUP($B105,formula!$A$15:$BI$124,formula!$D$9,FALSE)) -> 
D106: =IF(C105=MaxCoverageYear-1,"***以下空白***",IF($B106="","",IF($B106>plan,"",VLOOKUP($B106,formula!$A$15:$BI$124,formula!$AM$9,FALSE)))) ->  | E106: =IF($B106="","",VLOOKUP($B106,formula!$A$15:$BI$124,formula!$AN$9,FALSE)) ->  | H106: =IF($B106="","",VLOOKUP($B106,formula!$A$15:$BI$124,formula!$C$9,FALSE)) ->  | K106: =IF($B106="","",VLOOKUP($B106,formula!$A$15:$BI$124,formula!$E$9,FALSE)) ->  | M106: =IF($B106="","",VLOOKUP($B106,formula!$A$15:$BI$124,formula!$D$9,FALSE)) ->  | O106: =IF(B106="", "", IFERROR(IF(SA * VLOOKUP(index, RPU_Tab, 4 + B106, FALSE) / 10000 = 0, "", SA * VLOOKUP(index, RPU_Tab, 4 + B106, FALSE) / 10000), "")) -> 
D107: =IF(C106=MaxCoverageYear-1,"***以下空白***",IF($B107="","",IF($B107>plan,"",VLOOKUP($B107,formula!$A$15:$BI$124,formula!$AM$9,FALSE)))) ->  | E107: =IF($B107="","",VLOOKUP($B107,formula!$A$15:$BI$124,formula!$AN$9,FALSE)) ->  | H107: =IF($B107="","",VLOOKUP($B107,formula!$A$15:$BI$124,formula!$C$9,FALSE)) ->  | K107: =IF($B107="","",VLOOKUP($B107,formula!$A$15:$BI$124,formula!$E$9,FALSE)) ->  | M107: =IF($B107="","",VLOOKUP($B107,formula!$A$15:$BI$124,formula!$D$9,FALSE)) -> 
D108: =IF(C107=MaxCoverageYear-1,"***以下空白***",IF($B108="","",IF($B108>plan,"",VLOOKUP($B108,formula!$A$15:$BI$124,formula!$AM$9,FALSE)))) ->  | E108: =IF($B108="","",VLOOKUP($B108,formula!$A$15:$BI$124,formula!$AN$9,FALSE)) ->  | H108: =IF($B108="","",VLOOKUP($B108,formula!$A$15:$BI$124,formula!$C$9,FALSE)) ->  | K108: =IF($B108="","",VLOOKUP($B108,formula!$A$15:$BI$124,formula!$E$9,FALSE)) ->  | M108: =IF($B108="","",VLOOKUP($B108,formula!$A$15:$BI$124,formula!$D$9,FALSE)) -> 
D109: =IF(C108=MaxCoverageYear-1,"***以下空白***",IF($B109="","",IF($B109>plan,"",VLOOKUP($B109,formula!$A$15:$BI$124,formula!$AM$9,FALSE)))) ->  | E109: =IF($B109="","",VLOOKUP($B109,formula!$A$15:$BI$124,formula!$AN$9,FALSE)) ->  | H109: =IF($B109="","",VLOOKUP($B109,formula!$A$15:$BI$124,formula!$C$9,FALSE)) ->  | K109: =IF($B109="","",VLOOKUP($B109,formula!$A$15:$BI$124,formula!$E$9,FALSE)) ->  | M109: =IF($B109="","",VLOOKUP($B109,formula!$A$15:$BI$124,formula!$D$9,FALSE)) -> 
D110: =IF(C109=MaxCoverageYear-1,"***以下空白***",IF($B110="","",IF($B110>plan,"",VLOOKUP($B110,formula!$A$15:$BI$124,formula!$AM$9,FALSE)))) ->  | E110: =IF($B110="","",VLOOKUP($B110,formula!$A$15:$BI$124,formula!$AN$9,FALSE)) ->  | H110: =IF($B110="","",VLOOKUP($B110,formula!$A$15:$BI$124,formula!$C$9,FALSE)) ->  | K110: =IF($B110="","",VLOOKUP($B110,formula!$A$15:$BI$124,formula!$E$9,FALSE)) ->  | M110: =IF($B110="","",VLOOKUP($B110,formula!$A$15:$BI$124,formula!$D$9,FALSE)) -> 
D111: =IF(C110=MaxCoverageYear-1,"***以下空白***",IF($B111="","",IF($B111>plan,"",VLOOKUP($B111,formula!$A$15:$BI$124,formula!$AM$9,FALSE)))) ->  | E111: =IF($B111="","",VLOOKUP($B111,formula!$A$15:$BI$124,formula!$AN$9,FALSE)) ->  | H111: =IF($B111="","",VLOOKUP($B111,formula!$A$15:$BI$124,formula!$C$9,FALSE)) ->  | K111: =IF($B111="","",VLOOKUP($B111,formula!$A$15:$BI$124,formula!$E$9,FALSE)) ->  | M111: =IF($B111="","",VLOOKUP($B111,formula!$A$15:$BI$124,formula!$D$9,FALSE)) -> 
D112: =IF(C111=MaxCoverageYear-1,"***以下空白***",IF($B112="","",IF($B112>plan,"",VLOOKUP($B112,formula!$A$15:$BI$124,formula!$AM$9,FALSE)))) ->  | E112: =IF($B112="","",VLOOKUP($B112,formula!$A$15:$BI$124,formula!$AN$9,FALSE)) ->  | H112: =IF($B112="","",VLOOKUP($B112,formula!$A$15:$BI$124,formula!$C$9,FALSE)) ->  | K112: =IF($B112="","",VLOOKUP($B112,formula!$A$15:$BI$124,formula!$E$9,FALSE)) ->  | M112: =IF($B112="","",VLOOKUP($B112,formula!$A$15:$BI$124,formula!$D$9,FALSE)) -> 
D113: =IF(C112=MaxCoverageYear-1,"***以下空白***",IF($B113="","",IF($B113>plan,"",VLOOKUP($B113,formula!$A$15:$BI$124,formula!$AM$9,FALSE)))) ->  | E113: =IF($B113="","",VLOOKUP($B113,formula!$A$15:$BI$124,formula!$AN$9,FALSE)) ->  | H113: =IF($B113="","",VLOOKUP($B113,formula!$A$15:$BI$124,formula!$C$9,FALSE)) ->  | K113: =IF($B113="","",VLOOKUP($B113,formula!$A$15:$BI$124,formula!$E$9,FALSE)) ->  | M113: =IF($B113="","",VLOOKUP($B113,formula!$A$15:$BI$124,formula!$D$9,FALSE)) -> 
D114: =IF(C113=MaxCoverageYear-1,"***以下空白***",IF($B114="","",IF($B114>plan,"",VLOOKUP($B114,formula!$A$15:$BI$124,formula!$AM$9,FALSE)))) ->  | E114: =IF($B114="","",VLOOKUP($B114,formula!$A$15:$BI$124,formula!$AN$9,FALSE)) ->  | H114: =IF($B114="","",VLOOKUP($B114,formula!$A$15:$BI$124,formula!$C$9,FALSE)) ->  | K114: =IF($B114="","",VLOOKUP($B114,formula!$A$15:$BI$124,formula!$E$9,FALSE)) ->  | M114: =IF($B114="","",VLOOKUP($B114,formula!$A$15:$BI$124,formula!$D$9,FALSE)) -> 
D115: =IF(C114=MaxCoverageYear-1,"***以下空白***",IF($B115="","",IF($B115>plan,"",VLOOKUP($B115,formula!$A$15:$BI$124,formula!$AM$9,FALSE)))) ->  | E115: =IF($B115="","",VLOOKUP($B115,formula!$A$15:$BI$124,formula!$AN$9,FALSE)) ->  | H115: =IF($B115="","",VLOOKUP($B115,formula!$A$15:$BI$124,formula!$C$9,FALSE)) ->  | K115: =IF($B115="","",VLOOKUP($B115,formula!$A$15:$BI$124,formula!$E$9,FALSE)) ->  | M115: =IF($B115="","",VLOOKUP($B115,formula!$A$15:$BI$124,formula!$D$9,FALSE)) -> 
D116: =IF(C115=MaxCoverageYear-1,"***以下空白***",IF($B116="","",IF($B116>plan,"",VLOOKUP($B116,formula!$A$15:$BI$124,formula!$AM$9,FALSE)))) ->  | E116: =IF($B116="","",VLOOKUP($B116,formula!$A$15:$BI$124,formula!$AN$9,FALSE)) ->  | H116: =IF($B116="","",VLOOKUP($B116,formula!$A$15:$BI$124,formula!$C$9,FALSE)) ->  | K116: =IF($B116="","",VLOOKUP($B116,formula!$A$15:$BI$124,formula!$E$9,FALSE)) ->  | M116: =IF($B116="","",VLOOKUP($B116,formula!$A$15:$BI$124,formula!$D$9,FALSE)) -> 
D117: =IF(C116=MaxCoverageYear-1,"***以下空白***",IF($B117="","",IF($B117>plan,"",VLOOKUP($B117,formula!$A$15:$BI$124,formula!$AM$9,FALSE)))) ->  | E117: =IF($B117="","",VLOOKUP($B117,formula!$A$15:$BI$124,formula!$AN$9,FALSE)) ->  | H117: =IF($B117="","",VLOOKUP($B117,formula!$A$15:$BI$124,formula!$C$9,FALSE)) ->  | K117: =IF($B117="","",VLOOKUP($B117,formula!$A$15:$BI$124,formula!$E$9,FALSE)) ->  | M117: =IF($B117="","",VLOOKUP($B117,formula!$A$15:$BI$124,formula!$D$9,FALSE)) -> 
D118: =IF(C117=MaxCoverageYear-1,"***以下空白***",IF($B118="","",IF($B118>plan,"",VLOOKUP($B118,formula!$A$15:$BI$124,formula!$AM$9,FALSE)))) ->  | E118: =IF($B118="","",VLOOKUP($B118,formula!$A$15:$BI$124,formula!$AN$9,FALSE)) ->  | H118: =IF($B118="","",VLOOKUP($B118,formula!$A$15:$BI$124,formula!$C$9,FALSE)) ->  | K118: =IF($B118="","",VLOOKUP($B118,formula!$A$15:$BI$124,formula!$E$9,FALSE)) ->  | M118: =IF($B118="","",VLOOKUP($B118,formula!$A$15:$BI$124,formula!$D$9,FALSE)) -> 
D119: =IF(C118=MaxCoverageYear-1,"***以下空白***",IF($B119="","",IF($B119>plan,"",VLOOKUP($B119,formula!$A$15:$BI$124,formula!$AM$9,FALSE)))) ->  | E119: =IF($B119="","",VLOOKUP($B119,formula!$A$15:$BI$124,formula!$AN$9,FALSE)) ->  | H119: =IF($B119="","",VLOOKUP($B119,formula!$A$15:$BI$124,formula!$C$9,FALSE)) ->  | K119: =IF($B119="","",VLOOKUP($B119,formula!$A$15:$BI$124,formula!$E$9,FALSE)) ->  | M119: =IF($B119="","",VLOOKUP($B119,formula!$A$15:$BI$124,formula!$D$9,FALSE)) -> 

Sheet 參數 (hidden)
A1: 被保人姓名 | B1: =InsName -> 被保人 | E1: 要保人姓名 | F1: =HolderName -> 要保人 | G1: 繳費人姓名 | H1: =Payer -> 繳費人
A2: 被保人生日 | B2: =(LEFT(InsBirthEntry,LEN(InsBirthEntry)-4) + 1911) & "/" & MID(RIGHT(InsBirthEntry,4),1,2) & "/" & RIGHT(InsBirthEntry,2) -> 1985/03/03 | D2: 表示有欄位名稱定義 | E2: 要保人生日 | F2: =(LEFT(資料輸入!H10,LEN(資料輸入!H10)-4) + 1911) & "/" & MID(RIGHT(資料輸入!H10,4),1,2) & "/" & RIGHT(資料輸入!H10,2) -> 1949/01/01 | G2: 繳費人生日 | H2: =(LEFT(資料輸入!K10,LEN(資料輸入!K10)-4) + 1911) & "/" & MID(RIGHT(資料輸入!K10,4),1,2) & "/" & RIGHT(資料輸入!K10,2) -> 1947/01/01
A3: 被保人性別 | B3: =IF(資料輸入!E12="男性",1,2) -> 1 | C3: 1表示男性；2表示女性 | E3: 要保人性別 | F3: =IF(資料輸入!I12="男性",1,2) -> 2 | G3: 繳費人性別 | H3: =IF(資料輸入!K12="男性",1,2) -> 1
A4: 足歲年齡 | B4: =IF((TEXT(MONTH(NOW()),"0#") & TEXT(DAY(NOW()),"0#")) - RIGHT(InsBirthEntry,4) < 0, (YEAR(NOW())-YEAR(InsBirthDay))-1, (YEAR(NOW())-YEAR(InsBirthDay))) -> 40 | E4: 足歲年齡 | F4: =IF((TEXT(MONTH(NOW()),"0#") & TEXT(DAY(NOW()),"0#")) - RIGHT(資料輸入!H10,4) < 0, (YEAR(NOW())-YEAR(F2))-1, (YEAR(NOW())-YEAR(F2))) -> 76 | G4: 足歲年齡 | H4: =IF((TEXT(MONTH(NOW()),"0#") & TEXT(DAY(NOW()),"0#")) - RIGHT(資料輸入!K10,4) < 0, (YEAR(NOW())-YEAR(H2))-1, (YEAR(NOW())-YEAR(H2))) -> 78
A5: 保險年齡 | B5: =ROUND((DAYS360(InsBirthDay,TODAY())-1)/360,0) -> 40 | E5: 保險年齡 | F5: =ROUND((DAYS360(F2,TODAY())-1)/360,0) -> 76 | G5: 保險年齡 | H5: =ROUND((DAYS360(H2,TODAY())-1)/360,0) -> 78
A6: 繳費年期 | B6: =VALUE(LEFT(資料輸入!E25,FIND("年期",資料輸入!E25)-1)) -> 6
A7: 跳歲提醒 | B7: 0 | C7: 1表示要提醒；0表示無須提醒 | D7: 利用系統日+跳歲天數為新系統日下與被保人生日計算新的保險年齡，若新與舊的保險年齡不同表示需要提示會跳歲 | E7: 要保人同被保人 | F7: TRUE | G7: 錄音提示搞要保人年齡 | H7: =IF(F7, age, holderAge) -> 40
A8: 跳歲天數(需求定義) | B8: 30 | E8: 繳費人同要保人 | F8: TRUE | G8: 錄音提示搞要保人姓名 | H8: =IF(F7, B1, F1) -> 被保人
A9: 跳歲生日 | B9: =YEAR(TODAY()+B8) & MONTH(TODAY()+B8) & DAY(TODAY()+B8) -> 202552 | E9: 繳費人同被保人 | F9: FALSE | G9: 錄音提示搞要保人性別 | H9: =IF(F7, EntryGender, 資料輸入!H12) -> 男性
A10: 跳歲後年齡 | B10: 40 | G10: 錄音提示搞繳費人年齡 | H10: =IF(F8, IF(F7, age, holderAge), IF(F9, age, payerAge)) -> 40
A11: 保額 | B11: =資料輸入!E31 -> 2500000 | G11: 錄音提示搞繳費人姓名 | H11: =IF(F8, IF(F7, InsName, HolderName), IF(F9, InsName, Payer)) -> 被保人
A12: Index | B12: =VALUE(plan&sex&age) -> 6140 | G12: 錄音提示搞繳費人性別 | H12: =IF(F8, IF(F7, EntryGender, 資料輸入!H12), IF(F9, EntryGender, 資料輸入!K12)) -> 男性
A13: 繳別係數 | B13: =VLOOKUP(LEFT(ChargeMode,1),$J$23:$K$27,2,FALSE) -> 1
E14: 給付祝壽保險金-中 | F14: =VLOOKUP(110,formula!B15:W125,2,0) + VLOOKUP(110,formula!B15:W125,20+1,0) -> 14077320
A15: 最大年齡 | B15: 110 | E15: 假設紅利分紅保額-中 | F15: =VLOOKUP(110,formula!B15:W125,11+1,0) -> 29044980
A16: 紅利運用方式 | B16: 4 | C16: 抵繳保費=1，現金給付=2，儲存生息=3，增額繳清=4 | D16: 本次以紅利保額形式發放紅利，固定為4 | E16: 給付祝壽保險金-低 | F16: =VLOOKUP(110,formula!B15:W125,2,0) + VLOOKUP(110,formula!B15:W125,20+2,0) -> 10310360
A17: 選擇分紅(DivLevel) | B17: 中 | E17: 假設紅利分紅保額-低 | F17: =VLOOKUP(110,formula!B15:W125,11+2,0) -> 2533185
A18: 職業等級 | B18: =資料輸入!#REF! ->  | E18: 給付祝壽保險金-零 | F18: =VLOOKUP(110,formula!B15:W125,2,0) + VLOOKUP(110,formula!B15:W125,20,0) -> 10000000
A19: 分期定期保險金每期領取下限 | B19: 4000 | E19: 假設紅利分紅保額-零 | F19: =VLOOKUP(110,formula!B15:W125,11,0) -> 0
A20: 核保規則-1 | B20: =IF(age<>"NA",IF(OR(AND(plan=6,age>74),AND(plan=10,age>70),AND(plan=20,age>60)),1,0),0) -> 0 | C20: 1表示要提醒；0表示無須提醒 | D20: 保險年齡與繳費年期關係
A21: 核保規則-2 | B21: 1 | C21: 1表示要提醒；0表示無須提醒 | D21: 免體檢額度
A22: 首期繳費方式折扣 | B22: =VLOOKUP(PayMode1&PayMode2,$F$37:$J$40,4,0) -> 0 | F22: 繳費方式折扣說明 | J22: 繳別係數
A23: 續期繳費方式折扣 | B23: =VLOOKUP(PayMode1&PayMode2,$F$37:$J$40,5,0) -> 0 | F23: 首期繳費方式 | G23: 續期繳費方式 | H23: 首期折扣 | I23: 續期折扣 | J23: 繳別 | K23: 係數 | L23: 繳費次數
A24: 高保額折扣 | B24: =VLOOKUP(SA,$F$31:$G$34,2) -> 0 | F24: C | G24: B | H24: V | I24: V | J24: 年 | K24: 1 | L24: 1
A25: 高保費折扣 | B25: =VLOOKUP(SA*VLOOKUP(index,GP!$A$2:$E$407,5,0)/10000,$H$31:$I$34,2) -> 0.015 | C25: =SA*VLOOKUP(index,GP!$A$2:$E$407,5,0)/10000 -> 1087500 | F25: C | G25: C | H25: X | I25: X | J25: 半 | K25: 0.52 | L25: 2
A26: 首期保費折扣 | B26: =PayModeDisc1+SA_disc+Prem_disc -> 0.015 | F26: B | G26: C | H26: V | I26: X | J26: 季 | K26: 0.262 | L26: 4
A27: 續期保費折扣 | B27: =PayModeDisc2+SA_disc+Prem_disc -> 0.015 | F27: B | G27: B | H27: V | I27: V | J27: 月 | K27: 0.088 | L27: 12
A28: 首期保費(GP_bf_disc) | B28: =ROUND(SA*VLOOKUP(index,GP!$A$2:$E$407,5,0)/10000*PremRate,2)*IF(LEFT(ChargeMode,1)="月",2,1) -> 1087500 | D28: 在繳別為月繳，首期保費為2個月
A29: 續期保費(RP_bf_disc) | B29: =ROUND(SA*VLOOKUP(index,GP!$A$2:$E$407,5,0)/10000*PremRate,2) -> 1087500 | F29: 高保額折扣表 | H29: 高保費折扣表 | J29: 保險金預定利率
A30: 首期折扣後保費(GP_af_disc) | B30: =ROUND(ROUND(SA*VLOOKUP(index,GP!$A$2:$E$407,5,0)/10000*PremRate*(1-SA_disc-Prem_disc),2)*(1-PayModeDisc1),2)*IF(LEFT(ChargeMode,1)="月",2,1) -> 1071187.5 | F30: SA | G30: % | H30: Prem | I30: % | J30: 期間 | K30: %
A31: 續期折扣後保費(RP_af_disc) | B31: =ROUND(ROUND(SA*VLOOKUP(index,GP!$A$2:$E$407,5,0)/10000*PremRate*(1-SA_disc-Prem_disc),2)*(1-PayModeDisc2),2) -> 1071187.5 | F31: 0 | G31: 0 | H31: 0 | I31: 0 | J31: 5 | K31: 0.015
A32: 身故退保費之利率 | B32: 0.03 | C32: <<這商品沒有用 | F32: 400000 | G32: 0 | H32: 10000 | I32: 0.005 | J32: 7 | K32: 0.015
A33: PUA身故退保費之利率 | B33: 0.0305 | C33: <<這商品沒有用 | F33: 1000000 | G33: 0 | H33: 15000 | I33: 0.01 | J33: 11 | K33: 0.0175
A34: 儲存生息利率(DoD) | B34: 0.022 | C34: <<這商品沒有用 | H34: 20000 | I34: 0.015 | J34: 20 | K34: 0.0175
A35: 分期定期保險金給付期間 installment_period | B35: =資料輸入!E36 -> 5 | C35: 5~20
A36: 分期定期保險金預定利率 installment_int | B36: =VLOOKUP(B35,$J$31:$K$34,2) -> 0.015 | G36: 首期 | H36: 續期 | I36: 首期折扣 | J36: 續期
A37: 分期定期保險金給付比例 installment_rate | B37: =資料輸入!E40/100 -> 0.6 | F37: =G37&H37 -> 金融機構自動轉帳金融機構自動轉帳 | G37: 金融機構自動轉帳 | H37: 金融機構自動轉帳 | I37: 0.01 | J37: 0.01
F38: =G38&H38 -> 匯款金融機構自動轉帳 | G38: 匯款 | H38: 金融機構自動轉帳 | I38: 0.01 | J38: 0.01
A39: 核保規則-3 | B39: =IF(AND(RealAge<15,SA>150000),1,0) -> 0 | C39: 1表示要提醒；0表示無須提醒 | D39: 未滿15足歲之未成年人最高保額為15萬美元限制 | F39: 金融機構自動轉帳匯款 | G39: 金融機構自動轉帳 | H39: 匯款 | I39: 0.01 | J39: 0
A40: 核保規則-4 | B40: =IF(AND(Occup_Level<=3,Occup_Level>=1,OR(SA<100000,SA>12000000)),1,0) ->  | C40: 1表示要提醒；0表示無須提醒 | D40: 職業等級1~3 :最低保額10 萬美元，最高保額1,200 萬美元。 | F40: 匯款匯款 | G40: 匯款 | H40: 匯款 | I40: 0 | J40: 0
A41: 核保規則-5 | B41: =IF(AND(Occup_Level=4,OR(SA<100000,SA>300000)),1,0) ->  | C41: 1表示要提醒；0表示無須提醒 | D41: 職業等級4 : 最低保額10 萬美元，最高保額30 萬美元。如有不符，需限制輸入及警語提示。
A42: 核保規則-6 | B42: =IF(AND(Occup_Level<=6,Occup_Level>=5,OR(SA<100000,SA>150000)),1,0) ->  | C42: 1表示要提醒；0表示無須提醒 | D42: 職業等級5-6 : 最低保額10 萬美元，最高保額15 萬美元。如有不符，需限制輸入及警語提示。
F44: 門檻 | G44: %
F45: 0 | G45: 2.1
F46: 31 | G46: 1.8
F47: 41 | G47: 1.6
F48: 51 | G48: 1.3
F49: 61 | G49: 1.2
F50: 71 | G50: 1.05
F51: 91 | G51: 1
A54: 定額提領 | B54: 年齡(起) | D54: 提領金額 | E54: 金額chk | F54: 年chk
G55: 1為卡控 | H55: 0為通過 | I55: 年齡限制反紅
A56: 年齡一 | B56: =定額提領年齡一 -> 47 | D56: =IF(G57="1",0,定額提領金額一) -> 1000 | G56: 定額提領1 | I56: 定額提領1
G57: =IF(定額提領年齡一-age>6,"0","1") -> 0 | I57: =IF(定額提領年齡一="",0,IF(定額提領年齡一-age>6,"0","1")) -> 0
A58: 年齡二 | B58: =定額提領年齡二 -> 0 | D58: =IF(G59="1",0,定額提領金額二) -> 0 | G58: 定額提領2 | I58: 定額提領2
G59: =IF(AND(定額提領年齡二>定額提領年齡一,定額提領年齡二-age>6),"0","1") -> 1 | I59: =IF(定額提領年齡二="","0",IF(AND(定額提領年齡二>定額提領年齡一,定額提領年齡二-age>6),"0","1")) -> 0
A60: 年齡三 | B60: =定額提領年齡三 -> 0 | D60: =IF(G61="1",0,定額提領金額三) -> 0 | G60: 定額提領3 | I60: 定額提領3
G61: =IF(AND(定額提領年齡三>定額提領年齡二,定額提領年齡三-age>6),"0","1") -> 1 | I61: =IF(定額提領年齡三="","0",IF(AND(定額提領年齡三>定額提領年齡二,定額提領年齡三-age>6),"0","1")) -> 0
A62: 年齡Max | E62: 整體檢核PageCheck
A63: 年齡Min
A65: 階段金額Max
A66: 階段金額Min
A69: 額外一次提領 | B69: 年齡(起) | D69: 提領金額 | E69: 金額chk | F69: 年chk
A71: 年齡一 | B71: =額外提領年齡一 -> 0 | D71: =IF(G72="1",0,額外提領金額一) -> 0 | G71: 定額提領1 | I71: 定額提領1
G72: =IF(額外提領年齡一-age>6,"0","1") -> 1 | I72: =IF(額外提領年齡一="",0,IF(額外提領年齡一-age>6,"0","1")) -> 0
A73: 年齡二 | B73: =額外提領年齡二 -> 0 | D73: =IF(G74="1",0,額外提領金額二) -> 0 | G73: 定額提領2 | I73: 定額提領2
G74: =IF(AND(額外提領年齡二>額外提領年齡一,額外提領年齡二-age>6),"0","1") -> 1 | I74: =IF(額外提領年齡二="","0",IF(AND(額外提領年齡二>額外提領年齡一,額外提領年齡二-age>6),"0","1")) -> 0
A75: 年齡三 | B75: =額外提領年齡三 -> 0 | D75: =IF(G76="1",0,額外提領金額三) -> 0 | G75: 定額提領3 | I75: 定額提領3
G76: =IF(AND(額外提領年齡三>額外提領年齡二,額外提領年齡三-age>6),"0","1") -> 1 | I76: =IF(額外提領年齡三="","0",IF(AND(額外提領年齡三>額外提領年齡二,額外提領年齡三-age>6),"0","1")) -> 0
A77: 年齡Max | E77: 整體檢核PageCheck
A78: 年齡Min
A80: 階段金額Max
A81: 階段金額Min

Sheet 錄音提示稿 (hidden)
C1: 錄音專線：0800-727-123
A3: 安達人壽傳統型分紅商品招攬過程提示稿
A4: =" □新件 □照會件，要保單號碼 _______________________" -> □新件 □照會件，要保單號碼 _______________________
A5: ="業務員：" &資料輸入!E65 -> 業務員：TEST
A6: =IF(age<65,"□","■") & " 被保人：" & InsName & "(" & age & "歳/" & IF(sex=1, "男性","女性") & ")" -> □ 被保人：被保人(40歳/男性)
A7: =IF(參數!H7<65,"□","■") & " 要保人：" &參數!H8 & "(" & 參數!H7 & "歳/" & 參數!H9 & ")" -> □ 要保人：被保人(40歳/男性)
A8: =IF(參數!H10<65,"□","■") & " 繳費人：" &參數!H11 & "(" & 參數!H10 & "歳/" & 參數!H12 & ")" -> □ 繳費人：被保人(40歳/男性)
A9: 同一保單若要保人、被保人、繳費人有二人以上符合高齡，可錄製在同一通音檔內，理專(業務員)唸完該題問項詢問客戶答案時，須逐一唸出客戶名字並請客戶依序回覆。 重要提醒：銷售過程之錄音或錄影紀錄作業時，不得僅依照提示稿逐字宣讀銷售過程，應以淺顯易懂口語化向當事人進行相關內容之解說（例如:商品重要條款內容、除外責任及商品說明書重要內容等等），充分提醒當事人知悉及進行相關錄音作業。
A10: 項次 | B10: 問項內容（傳統型分紅）
A11: 1 | B11: =IF(age >= 65,資料輸入!E8 & "(被保人)","") & IF(holderAge >= 65,參數!H8 & "(要保人)","") & IF(payerAge >= 65,參數!H11 & "(繳費人)","") & "先生/女士，您好！我是服務於"&資料輸入!E64&"的"&資料輸入!E65&"，業務員登錄字號是"&資料輸入!E66&"，獲得授權可招攬本保險商品。根據法令規定，我將以錄音方式記錄本次銷售過程。請您說出同意或者不同意？(若要保人、被保人或繳費人其中一人不同意，則本次銷售過程終止)。" -> 被保人(要保人)被保人(繳費人)先生/女士，您好！我是服務於的TEST，業務員登錄字號是TEST123456789，獲得授權可招攬本保險商品。根據法令規定，我將以錄音方式記錄本次銷售過程。請您說出同意或者不同意？(若要保人、被保人或繳費人其中一人不同意，則本次銷售過程終止)。
A12: 2 | B12: ="這次購買的是安達人壽發行的保險商品-"&ProductName&"，此保單是透過"&資料輸入!E64&"為銷售通路。 以下我將說明本商品內容及重要事項，請聽完後逐一回答。" -> 這次購買的是安達人壽發行的保險商品-紅運旺旺美元分紅終身壽險，此保單是透過為銷售通路。 以下我將說明本商品內容及重要事項，請聽完後逐一回答。
A13: 3 | B13: ="此次投保本商品的目的及需求為"&_xlfn.TEXTJOIN("、",TRUE,IF(UPPER(資料輸入!E68:E71)="V",資料輸入!F68:F71,""),IF(UPPER(資料輸入!E72)="V",資料輸入!G72,""))&"，已完成且確認本商品有符合需求，請問是否正確?" -> 此次投保本商品的目的及需求為，已完成且確認本商品有符合需求，請問是否正確?
A14: 4 | B14: 您是否清楚本次繳交之保險費是用來購買保險商品，不是辦理定存?
A15: 5 | B15: ="選擇投保本商品繳費年期"&參數!B6&"年期，保障年期至被保險人於保險年齡達110歲，保額為"&TEXT(參數!B11,"###,###,##")&"美元，請問正確嗎?" -> 選擇投保本商品繳費年期6年期，保障年期至被保險人於保險年齡達110歲，保額為2,500,000美元，請問正確嗎?
A16: 6 | B16: ="選擇投保本商品的繳別為"&ChargeMode&"；本次繳交之折扣前保費約為 "&Currency& TEXT(GP_bf_disc," ###,###,##0.00")&"元，每年需繳交之折扣前保費總計為"& TEXT(參數!B28/IF(LEFT(ChargeMode,1)="月",2,1)*VLOOKUP(LEFT(ChargeMode,1),參數!$J$23:$L$27,3,FALSE),"###,###,##0.00")&"元。並且確認可以負擔此保費，請問正確嗎?" -> 選擇投保本商品的繳別為年繳；本次繳交之折扣前保費約為 美元 1,087,500.00元，每年需繳交之折扣前保費總計為1,087,500.00元。並且確認可以負擔此保費，請問正確嗎?
A17: 7 | B17: 本商品是以美元繳納保險費，給付各項保險金額也是以美元給付，如果自行以新臺幣兌換美元或以美元兌換新臺幣時匯率有可能漲或跌，這部份是由客戶自行承擔，請問您清楚嗎？
A18: 8 | B18: 紅利為非保證給付項目，紅利數值僅供參考，不能作為未來各年度實際分紅的保證或推論，請問清楚嗎？
A19: 9 | B19: 本商品若辦理保險契約終止(解約)，保險公司將給付解約金，解約金將可能低於所繳的保費，請問您清楚嗎?
A20: 10_1 | B20: 本商品重要條款內容及除外責任包括： (1) 就保單條款中除外責任(例如要保人故意致被保險人於死、被保險人故意自殺或自成完全失能、被保險人因犯罪處死或拒捕或越獄致死或完全失能等事項)，請問您清楚嗎?
A21: 10_2 | B21: (2) 就保單條款中重要條款內容(例如契約效力的停止、恢復及終止事由、告知義務與本契約的解除等事項)，請問您清楚嗎?
A22: 11 | B22: 本商品要保書上的健康詢問事項須由被保險人本人確認及勾選的，請問您清楚嗎？
A23: 12 | B23: 自簽收保單隔日起算，有10日撤銷契約的權益，請問您清楚嗎?
A24: 13 | B24: 指定受益人領取的死亡給付和確定年金給付，依照保險法是不得作為被保險人的遺產，但是如果有規避遺產稅之情形時，稽徵機關還是可依照實質課稅原則辦理。請問您清楚嗎？
A25: 14 | B25: ="最後請您唸出以下聲明文字以確認投保意願。(以下聲明業務人員請勿導讀，如果保戶具有多重身份，可以免唸重複文字。) " & IF(參數!H7>=65,CHAR(10) & "要保人請唸出：我，"& 參數!H8 &"已充分了解本商品且符合保險需求，所有文件都會由本人親自簽名投保。","") & IF(age>=65,CHAR(10) &"被保人請唸出：我，"&資料輸入!E8 &"已充分了解本商品且符合保險需求，所有文件都會由本人親自簽名投保。","")& IF(參數!H10>=65,CHAR(10) &"繳費人請唸出：我，"&參數!H11&"已充分了解所付款項是為繳付要保人購買本保險之應繳保險費。","") -> 最後請您唸出以下聲明文字以確認投保意願。(以下聲明業務人員請勿導讀，如果保戶具有多重身份，可以免唸重複文字。)
A27: 保險公司專用欄
B28: 審核結果 | C28: □音檔內容與提示稿內容相符。 □第 點如上。 □此通音檔只錄第 點。 □其他： 。
A30: ※錄音提示稿的各項內容需與要保文件內容一致 ※錄音完成請記得按『＃』鍵產出錄音編號，並填入【業務員報告書】。

Sheet 商品揭露與注意事項 (hidden)
A1: 商品揭露及注意事項
A2: 商品名稱: 安達人壽美利如星美元分紅終身壽險 | J2: 列印
A3: 商品文號: 中華民國113.07.31安達精字第1130000105號函備查
A5: 給付項目: 身故保險金或喪葬費用保險金、完全失能保險金、祝壽保險金、生命末期提前給付保險金(保額)
J6: 回到資料輸入
A7: ※本契約於訂立契約前已提供要保人不低於三日之審閱期間。
A8: ※本保險為分紅保險單，保單紅利部分非本保險單之保證給付項目，安達人壽不保證其給付金額(保額)。
A9: ※本保險為以外幣收付之非投資型人身保險契約，不得與以新臺幣收付之人身保險契約辦理契約轉換。
A11: ║給付項目║
A12: ｢身故保險金或喪葬費用保險金、完全失能保險金｣:被保險人於本契約有效期間內身故或致成保單條款附表所列之完全失能程度之一者，安達人壽分別以保險金額及累計增額分紅保額為基礎各自計算所得金額後，依其加總之值給付「身故保險金」或「完全失能保險金」。 身故保險金或完全失能保險金為下列三者中之最大者： 1.身故日或完全失能診斷確定日對應之當年度保險金額。 2.身故日或完全失能診斷確定日對應之保單價值準備金乘以保單價值準備金比率。 3.身故日或完全失能診斷確定日對應之年繳保險費總和。 ■ 安達人壽除依前項給付外，另將當時有效之「終極紅利」合併給付。 ■ 訂立本契約時，以未滿十五足歲之未成年人為被保險人，除喪葬費用之給付外，其餘死亡給付之約定於被保險人滿十五足歲之日起發生效力； ■ 被保險人滿十五足歲前死亡者，其身故保險金變更為喪葬費用保險金。 ■ 訂立本契約時，以受監護宣告尚未撤銷者為被保險人，其身故保險金變更為喪葬費用保險金。 ■ 被保險人同時或先後致成保單條款附表所列兩項以上之完全失能程度者，安達人壽僅給付一項「完全失能保險金」。 ■ 安達人壽給付「身故保險金」或「喪葬費用保險金」後，本契約效力即行終止，不再負給付其餘保險金之責。但要保人有指定分期方式給付身故保險金者，改依保單條款約定辦理。
A13: ｢祝壽保險金｣: 被保險人於保險年齡達一百一十歲之保單週年日仍生存且本契約仍屬有效時，安達人壽分別以保險金額及累計增額分紅保額為基礎各自計算所得金額後，依其加總之值給付「祝壽保險金」。祝壽保險金為下列二款計算方式所得金額之較大者： 1. 保險年齡達一百一十歲之當年度保險金額。 2. 保險年齡達一百一十歲之年繳保險費總和。 安達人壽除依前項給付外，另將當時有效之「終極紅利」合併給付。安達人壽給付「祝壽保險金」後，本契約效力即行終止，不再負給付其餘保險金之責。
A14: ｢生命末期提前給付保險金｣:被保險人於本契約有效期間內，得因保單條款所約定之「生命末期」，且本契約未變更為減額繳清保險或展期定期保險者，向安達人壽申請一次「生命末期提前給付保險金」，安達人壽將在身故保險金範圍內，按被保險人所指定之比例，將該部分之身故保險金計算六個月貼現給付「生命末期提前給付保險金」。
A15: 『分期定期保險金』係指要保人與本分公司約定身故保險金分期給付者，自分期定期給付開始日起，本分公司依分期定期保險金給付期間及保單條款第二條定義之分期定期保險金預定利率將指定保險金換算成每月初應給付之金額，按約定將每期之分期定期保險金給付予受益人。分期定期保險金給付期間屆滿時，本契約即行終止。
A16: ║紅利給付項目-非保證給付║
A17: ｢保險單紅利的計算與給付(非保證給付)｣  本契約有效期間內，安達人壽每一會計年度終了，根據該會計年度分紅保險單的實際經營狀況，依保險單之分紅公式（如保單條款附表），計算該保單年度之保險單紅利，若該保單年度有可分配之保險單紅利，安達人壽依保單條款約定辦理。 ■ 週年紅利： 本契約有效期間且自第二保單週年日(即第三保單年度首日)起，安達人壽於每一保單週年日以增額分紅保額分配方式給付週年紅利。但保險期間屆滿當年度之週年紅利，將於保險期間屆滿時改以現金方式一併給付予祝壽保險金受益人。 ■ 終極紅利： 本契約有效期間且自第五保單週年日(即第六保單年度首日)起，依下列方式辦理： (一) 被保險人身故或致成保單條款附表所列完全失能程度之一者，安達人壽給付終極保額紅利予受益人。 (二) 要保人依保單條款約定終止本契約時，安達人壽給付終極現金紅利予要保人。 (三) 被保險人於保險年齡達一百一十歲之保單週年日仍生存者，安達人壽給付終極現金紅利予受益人。
A18: ║注意事項║
A19: 1.消費者投保前應審慎瞭解本保險商品承保範圍、除外不保事項及商品風險，安達人壽各商品承保範圍及除外不保事項請至https://life.chubb.com/tw-zh/footer/insurance-product.aspx 查詢。
A20: 2.本契約於訂立契約前已提供要保人不低於三日之審閱期間。
A21: 3.本商品經安達人壽合格簽署人員檢視其內容業已符合一般精算原則及保險法令，惟為確保權益，基於保險公司與消費者衡平對等原則，消費者仍應詳加閱讀保險單條款與相關文件，審慎選擇保險商品。本商品如有虛偽不實或違法情事，應由安達人壽及負責人依法負責。
A22: 4.本商品為保險商品，受人身保險安定基金保障，非屬存款，故不受存款保險之保障。
A23: 5.本保險為分紅保險單，保單紅利部分非本保險單之保證給付項目，安達人壽不保證其給付金額(保額)。
A24: 6.本保險為以外幣收付之非投資型人身保險契約，不得與以新臺幣收付之人身保險契約辦理契約轉換。
A25: 7.保險契約各項權利義務皆詳列於保單條款，消費者務必詳加閱讀了解，並把握保單契約撤銷之時效（收到保單翌日起算十日內）。
A26: 8.投保後解約或不繼續繳費可能不利消費者，請慎選符合需求之保險商品。
A27: 9.消費者於購買本商品前，應詳閱各種銷售文件，本商品之附加費用率最低16.3%、最高31.8%；如要詳細了解其他相關資訊，安達人壽財務、業務或本商品等公開資訊，歡迎至www.chubblife.com.tw查詢，或電洽免費服務及申訴電話：0800-011-709，或至安達人壽(台北市中正區中華路一段39號6樓)洽詢索取，以保障您的權益。
A28: 10.人壽保險之死亡給付及年金保險之確定年金給付於被保險人死亡後給付於指定受益人者，依保險法第一百十二條規定不得作為被保險人之遺產，惟如涉有規避遺產稅等稅捐情事者，稽徵機關仍得依據有關稅法規定或納稅者權利保護法第七條所定實質課稅原則辦理。相關例示性案例可至安達人壽網站(www.chubblife.com.tw)下載查詢。
A29: 11.本商品文件「僅供參考」，詳細內容依保單條款為準。
A30: 12.稅法相關規定之改變可能會影響本商品之相關稅賦。
A31: 13.商品保險之收取或返還、支付、年金給付及其他款項收付之幣別，皆以美元為貨幣單位，要保人及受益人須留意美元在未來兌換費成其他外幣將會因匯率不同而產生匯兌上的差異，此差異可能產生收益或造成損失，要保人及受益人需自行承擔該匯率之風險及該幣別所屬國家之政治、經濟變動風險。
A32: 14.本保險相關款項之收付，除另有約定外，若產生匯款相關費用時，由匯款人負擔匯款銀行及中間行所收取之相關費用，收款人負擔收款銀行收取之收款手續費。
A33: 15.各招攬單位備有本商品之保單條款及相關文件，要保人須詳細閱讀，商品詳細內容以保單條款為憑。
A34: 16.本商品銷售文件係由安達人壽核定後統一提供予各招攬單位，其上皆載有安達人壽審核編號。
A35: 17.本商品係由安達人壽所發行，並交由合作之保險代理人代為招攬，惟安達人壽與該保險代理人並無僱傭、合夥等關係存在。

Sheet 建議書摘要 (hidden)
B2: ="安達人壽"&ProductName & " - 建議書摘要" -> 安達人壽紅運旺旺美元分紅終身壽險 - 建議書摘要
B3: 商品名稱: 安達人壽紅運旺旺美元分紅終身壽險 商品文號: 中華民國113.11.29安達精字第1130000149號函備查 身故保險金或喪葬費用保險金、完全失能保險金、祝壽保險金、生命末期提前給付保險金 ※本保險為分紅保險單，保單紅利部分非本保險單之保證給付項目，安達人壽不保證其給付金額(保額)。 ※本保險為以外幣收付之非投資型人身保險契約，不得與以新臺幣收付之人身保險契約辦理契約轉換。 ※本建議書係招攬人員於銷售過程中提供予要保人參考，當建議書所列投保資料與要保書填寫不同時，試算金額也將隨之異動，詳細金額仍須以要保書／保單面頁填寫內容為準。 ※本頁非完整文件，請與〈商品揭露及注意事項〉併為審閱。
B4: ="要保險人："&參數!H8 -> 要保險人：被保人 | E4: ="保險年齡: "&age & " 歲" -> 保險年齡: 40 歲 | F4: ="繳 別： "&ChargeMode -> 繳 別： 年繳 | G4: ="首期繳費方式 :"&PayMode1 -> 首期繳費方式 :匯款 | I4: ="首期保費："&TEXT(GP_bf_disc,"###,###,###.00") & " 美元" -> 首期保費：1,087,500.00 美元 | K4: ="首期折扣後保費："&TEXT(GP_af_disc,"###,###,###.00") & " 美元" -> 首期折扣後保費：1,071,187.50 美元 | M4: ="基本保險金額："&TEXT(SA,"###,###,###.00")&" 美元" -> 基本保險金額：2,500,000.00 美元 | O4: ="高保費折扣:"&TEXT(Prem_disc,"0.00%") -> 高保費折扣:1.50% | W4: 列印
B5: ="被保險人："&InsName -> 被保險人：被保人 | E5: ="性 別： "&EntryGender -> 性 別： 男性 | F5: ="繳費年期: "&plan & " 年期" -> 繳費年期: 6 年期 | G5: ="續期繳費方式 :"&PayMode2 -> 續期繳費方式 :匯款 | I5: ="續期保費："&TEXT(RP_bf_disc,"###,###,###.00") & " 美元" -> 續期保費：1,087,500.00 美元 | K5: ="續期折扣後保費："&TEXT(RP_af_disc,"###,###,###.00") & " 美元" -> 續期折扣後保費：1,071,187.50 美元 | M5: ="繳費方式折扣 : "&IF(PayModeDisc1=1%,TEXT(PayModeDisc1,"0.00%"),IF(PayModeDisc2=1%,TEXT(PayModeDisc2,"0.00%"),TEXT(0,"0.00%"))) -> 繳費方式折扣 : 0.00%
P7: (幣別/單位：美元/元) | W7: 回到資料輸入
B8: 保單年度末 | C8: 保險年齡 | D8: 每期折扣後 所繳保險費 | E8: 累計折扣後 所繳保險費 | F8: 保證給付項目 | H8: 【非保證給付項目】假設分紅-最可能紅利金額(保額)(中分紅) | O8: 身故/完全失能保障 (含假設紅利) | P8: 可能領取 總現金金額 (含假設紅利) | R8: (A+E+F)/ 折扣後累計 所繳保險費 (單位: % ) | V8: (B+H+I)/ 折扣後累計 所繳保險費 (單位: % )
F9: 身故/完全失能保障 | G9: 解約金 | H9: 分紅保額 | L9: 解約可領取之金額
H10: 增額分紅保額 | I10: 累計增額 分紅保額 | J10: 累計增額分紅保額 身故/完全失能保障 | K10: 終極 保額紅利 | L10: 當年度末增額分紅保額保單價值準備金 | M10: 累計增額 分紅保額保單價值準備金 | N10: 終極 現金紅利
F11: ( A ) | G11: ( B ) | H11: ( C ) | I11: ( D ) | J11: ( E ) | K11: ( F ) | L11: ( G ) | M11: ( H ) | N11: ( I ) | O11: (A)+(E)+(F) | P11: ( B )+( H )+( I )
B12: 1 | C12: =IF(B12="","",age+B12-1) -> 40 | D12: =IF(C12="","***以下空白***",IF($B12="","",IF($B12>plan,"",VLOOKUP($B12,formula!$A$15:$BI$124,formula!$AM$9,FALSE)))) -> 1071187.5 | E12: =IF($B12="","",VLOOKUP($B12,formula!$A$15:$BI$124,formula!$AN$9,FALSE)) -> 1071187.5 | F12: =IF($B12="","",VLOOKUP($B12,formula!$A$15:$AI$124,formula!$C$9,FALSE)) -> 1087500 | G12: =IF($B12="","",VLOOKUP($B12,formula!$A$15:$AI$124,formula!$E$9,FALSE)) -> 362207.5 | H12: =IF($B12="","",VLOOKUP($B12,formula!$A$15:$AI$124,formula!$J$9,FALSE)) -> 0 | I12: =IF($B12="","",VLOOKUP($B12,formula!$A$15:$AI$124,formula!$S$9,FALSE)) -> 0 | J12: =IF($B12="","",VLOOKUP($B12,formula!$A$15:$AI$124,formula!$V$9,FALSE)) -> 0 | K12: =IF($B12="","",VLOOKUP($B12,formula!$A$15:$AI$124,formula!$M$9,FALSE)) -> 0 | L12: =IF($B12="","",VLOOKUP($B12,formula!$A$15:$EA$124,formula!$DZ$9,FALSE)) -> 0 | M12: =IF($B12="","",VLOOKUP($B12,formula!$A$15:$AI$124,formula!$Y$9,FALSE)) -> 0 | N12: =IF($B12="","",VLOOKUP($B12,formula!$A$15:$AI$124,formula!$P$9,FALSE)) -> 0 | O12: =IF($B12="","",VLOOKUP($B12,formula!$A$15:$AI$124,formula!$AE$9,FALSE)) -> 1087500 | P12: =IF($B12="","",VLOOKUP($B12,formula!$A$15:$AI$124,formula!$AH$9,FALSE)) -> 362207.5 | R12: =IFERROR(O12/E12,"") -> 1.015228426 | V12: =IFERROR(P12/E12,"") -> 0.338136414
B13: =IF(B12>=109-age+1,"",B12+1) -> 2 | C13: 41 | D13: =IF(C12=MaxCoverageYear-1,"***以下空白***",IF($B13="","",IF($B13>plan,"",VLOOKUP($B13,formula!$A$15:$BI$124,formula!$AM$9,FALSE)))) -> 1071187.5 | E13: =IF($B13="","",VLOOKUP($B13,formula!$A$15:$BI$124,formula!$AN$9,FALSE)) -> 2142375 | F13: =IF($B13="","",VLOOKUP($B13,formula!$A$15:$AI$124,formula!$C$9,FALSE)) -> 2175000 | G13: =IF($B13="","",VLOOKUP($B13,formula!$A$15:$AI$124,formula!$E$9,FALSE)) -> 971885 | H13: =IF($B13="","",VLOOKUP($B13,formula!$A$15:$AI$124,formula!$J$9,FALSE)) -> 0 | I13: =IF($B13="","",VLOOKUP($B13,formula!$A$15:$AI$124,formula!$S$9,FALSE)) -> 0 | J13: =IF($B13="","",VLOOKUP($B13,formula!$A$15:$AI$124,formula!$V$9,FALSE)) -> 0 | K13: =IF($B13="","",VLOOKUP($B13,formula!$A$15:$AI$124,formula!$M$9,FALSE)) -> 0 | L13: =IF($B13="","",VLOOKUP($B13,formula!$A$15:$EA$124,formula!$DZ$9,FALSE)) -> 0 | M13: =IF($B13="","",VLOOKUP($B13,formula!$A$15:$AI$124,formula!$Y$9,FALSE)) -> 0 | N13: =IF($B13="","",VLOOKUP($B13,formula!$A$15:$AI$124,formula!$P$9,FALSE)) -> 0 | O13: =IF($B13="","",VLOOKUP($B13,formula!$A$15:$AI$124,formula!$AE$9,FALSE)) -> 2175000 | P13: =IF($B13="","",VLOOKUP($B13,formula!$A$15:$AI$124,formula!$AH$9,FALSE)) -> 971885 | R13: =IFERROR(O13/E13,"") -> 1.015228426 | V13: =IFERROR(P13/E13,"") -> 0.4536484042
B14: 3 | C14: 42 | D14: =IF(C13=MaxCoverageYear-1,"***以下空白***",IF($B14="","",IF($B14>plan,"",VLOOKUP($B14,formula!$A$15:$BI$124,formula!$AM$9,FALSE)))) -> 1071187.5 | E14: =IF($B14="","",VLOOKUP($B14,formula!$A$15:$BI$124,formula!$AN$9,FALSE)) -> 3213562.5 | F14: =IF($B14="","",VLOOKUP($B14,formula!$A$15:$AI$124,formula!$C$9,FALSE)) -> 3402264 | G14: =IF($B14="","",VLOOKUP($B14,formula!$A$15:$AI$124,formula!$E$9,FALSE)) -> 1594812.5 | H14: =IF($B14="","",VLOOKUP($B14,formula!$A$15:$AI$124,formula!$J$9,FALSE)) -> 0 | I14: =IF($B14="","",VLOOKUP($B14,formula!$A$15:$AI$124,formula!$S$9,FALSE)) -> 0 | J14: =IF($B14="","",VLOOKUP($B14,formula!$A$15:$AI$124,formula!$V$9,FALSE)) -> 0 | K14: =IF($B14="","",VLOOKUP($B14,formula!$A$15:$AI$124,formula!$M$9,FALSE)) -> 0 | L14: =IF($B14="","",VLOOKUP($B14,formula!$A$15:$EA$124,formula!$DZ$9,FALSE)) -> 0 | M14: =IF($B14="","",VLOOKUP($B14,formula!$A$15:$AI$124,formula!$Y$9,FALSE)) -> 0 | N14: =IF($B14="","",VLOOKUP($B14,formula!$A$15:$AI$124,formula!$P$9,FALSE)) -> 0 | O14: =IF($B14="","",VLOOKUP($B14,formula!$A$15:$AI$124,formula!$AE$9,FALSE)) -> 3402264 | P14: =IF($B14="","",VLOOKUP($B14,formula!$A$15:$AI$124,formula!$AH$9,FALSE)) -> 1594812.5 | R14: =IFERROR(O14/E14,"") -> 1.058720345 | V14: =IFERROR(P14/E14,"") -> 0.4962755509
B15: 4 | C15: 43 | D15: =IF(C14=MaxCoverageYear-1,"***以下空白***",IF($B15="","",IF($B15>plan,"",VLOOKUP($B15,formula!$A$15:$BI$124,formula!$AM$9,FALSE)))) -> 1071187.5 | E15: =IF($B15="","",VLOOKUP($B15,formula!$A$15:$BI$124,formula!$AN$9,FALSE)) -> 4284750 | F15: =IF($B15="","",VLOOKUP($B15,formula!$A$15:$AI$124,formula!$C$9,FALSE)) -> 10000000 | G15: =IF($B15="","",VLOOKUP($B15,formula!$A$15:$AI$124,formula!$E$9,FALSE)) -> 2667332.5 | H15: =IF($B15="","",VLOOKUP($B15,formula!$A$15:$AI$124,formula!$J$9,FALSE)) -> 0 | I15: =IF($B15="","",VLOOKUP($B15,formula!$A$15:$AI$124,formula!$S$9,FALSE)) -> 0 | J15: =IF($B15="","",VLOOKUP($B15,formula!$A$15:$AI$124,formula!$V$9,FALSE)) -> 0 | K15: =IF($B15="","",VLOOKUP($B15,formula!$A$15:$AI$124,formula!$M$9,FALSE)) -> 0 | L15: =IF($B15="","",VLOOKUP($B15,formula!$A$15:$EA$124,formula!$DZ$9,FALSE)) -> 0 | M15: =IF($B15="","",VLOOKUP($B15,formula!$A$15:$AI$124,formula!$Y$9,FALSE)) -> 0 | N15: =IF($B15="","",VLOOKUP($B15,formula!$A$15:$AI$124,formula!$P$9,FALSE)) -> 0 | O15: =IF($B15="","",VLOOKUP($B15,formula!$A$15:$AI$124,formula!$AE$9,FALSE)) -> 10000000 | P15: =IF($B15="","",VLOOKUP($B15,formula!$A$15:$AI$124,formula!$AH$9,FALSE)) -> 2667332.5 | R15: 2.333858451 | V15: 0.6225176498
B16: 5 | C16: 44 | D16: =IF(C15=MaxCoverageYear-1,"***以下空白***",IF($B16="","",IF($B16>plan,"",VLOOKUP($B16,formula!$A$15:$BI$124,formula!$AM$9,FALSE)))) -> 1071187.5 | E16: =IF($B16="","",VLOOKUP($B16,formula!$A$15:$BI$124,formula!$AN$9,FALSE)) -> 5355937.5 | F16: =IF($B16="","",VLOOKUP($B16,formula!$A$15:$AI$124,formula!$C$9,FALSE)) -> 12500000 | G16: =IF($B16="","",VLOOKUP($B16,formula!$A$15:$AI$124,formula!$E$9,FALSE)) -> 3624280 | H16: =IF($B16="","",VLOOKUP($B16,formula!$A$15:$AI$124,formula!$J$9,FALSE)) -> 0 | I16: =IF($B16="","",VLOOKUP($B16,formula!$A$15:$AI$124,formula!$S$9,FALSE)) -> 0 | J16: =IF($B16="","",VLOOKUP($B16,formula!$A$15:$AI$124,formula!$V$9,FALSE)) -> 0 | K16: =IF($B16="","",VLOOKUP($B16,formula!$A$15:$AI$124,formula!$M$9,FALSE)) -> 0 | L16: =IF($B16="","",VLOOKUP($B16,formula!$A$15:$EA$124,formula!$DZ$9,FALSE)) -> 0 | M16: =IF($B16="","",VLOOKUP($B16,formula!$A$15:$AI$124,formula!$Y$9,FALSE)) -> 0 | N16: =IF($B16="","",VLOOKUP($B16,formula!$A$15:$AI$124,formula!$P$9,FALSE)) -> 0 | O16: =IF($B16="","",VLOOKUP($B16,formula!$A$15:$AI$124,formula!$AE$9,FALSE)) -> 12500000 | P16: =IF($B16="","",VLOOKUP($B16,formula!$A$15:$AI$124,formula!$AH$9,FALSE)) -> 3624280 | R16: 2.333858451 | V16: 0.6766845207
B17: 6 | C17: 45 | D17: =IF(C16=MaxCoverageYear-1,"***以下空白***",IF($B17="","",IF($B17>plan,"",VLOOKUP($B17,formula!$A$15:$BI$124,formula!$AM$9,FALSE)))) -> 1071187.5 | E17: =IF($B17="","",VLOOKUP($B17,formula!$A$15:$BI$124,formula!$AN$9,FALSE)) -> 6427125 | F17: =IF($B17="","",VLOOKUP($B17,formula!$A$15:$AI$124,formula!$C$9,FALSE)) -> 15000000 | G17: =IF($B17="","",VLOOKUP($B17,formula!$A$15:$AI$124,formula!$E$9,FALSE)) -> 4679057.5 | H17: =IF($B17="","",VLOOKUP($B17,formula!$A$15:$AI$124,formula!$J$9,FALSE)) -> 8815 | I17: =IF($B17="","",VLOOKUP($B17,formula!$A$15:$AI$124,formula!$S$9,FALSE)) -> 8815 | J17: =IF($B17="","",VLOOKUP($B17,formula!$A$15:$AI$124,formula!$V$9,FALSE)) -> 52890 | K17: =IF($B17="","",VLOOKUP($B17,formula!$A$15:$AI$124,formula!$M$9,FALSE)) -> 11789635 | L17: =IF($B17="","",VLOOKUP($B17,formula!$A$15:$EA$124,formula!$DZ$9,FALSE)) -> 16498.36 | M17: =IF($B17="","",VLOOKUP($B17,formula!$A$15:$AI$124,formula!$Y$9,FALSE)) -> 16498.36 | N17: =IF($B17="","",VLOOKUP($B17,formula!$A$15:$AI$124,formula!$P$9,FALSE)) -> 1836423 | O17: =IF($B17="","",VLOOKUP($B17,formula!$A$15:$AI$124,formula!$AE$9,FALSE)) -> 26842525 | P17: =IF($B17="","",VLOOKUP($B17,formula!$A$15:$AI$124,formula!$AH$9,FALSE)) -> 6531978.86 | R17: 4.176443589 | V17: 1.016314271
B18: 7 | C18: 46 | D18: =IF(C17=MaxCoverageYear-1,"***以下空白***",IF($B18="","",IF($B18>plan,"",VLOOKUP($B18,formula!$A$15:$BI$124,formula!$AM$9,FALSE)))) ->  | E18: =IF($B18="","",VLOOKUP($B18,formula!$A$15:$BI$124,formula!$AN$9,FALSE)) -> 6427125 | F18: =IF($B18="","",VLOOKUP($B18,formula!$A$15:$AI$124,formula!$C$9,FALSE)) -> 14500000 | G18: =IF($B18="","",VLOOKUP($B18,formula!$A$15:$AI$124,formula!$E$9,FALSE)) -> 4758517.5 | H18: =IF($B18="","",VLOOKUP($B18,formula!$A$15:$AI$124,formula!$J$9,FALSE)) -> 10598 | I18: =IF($B18="","",VLOOKUP($B18,formula!$A$15:$AI$124,formula!$S$9,FALSE)) -> 19413 | J18: =IF($B18="","",VLOOKUP($B18,formula!$A$15:$AI$124,formula!$V$9,FALSE)) -> 112595.4 | K18: =IF($B18="","",VLOOKUP($B18,formula!$A$15:$AI$124,formula!$M$9,FALSE)) -> 12435450 | L18: =IF($B18="","",VLOOKUP($B18,formula!$A$15:$EA$124,formula!$DZ$9,FALSE)) -> 20172.31 | M18: =IF($B18="","",VLOOKUP($B18,formula!$A$15:$AI$124,formula!$Y$9,FALSE)) -> 36950.84 | N18: =IF($B18="","",VLOOKUP($B18,formula!$A$15:$AI$124,formula!$P$9,FALSE)) -> 1874695 | O18: =IF($B18="","",VLOOKUP($B18,formula!$A$15:$AI$124,formula!$AE$9,FALSE)) -> 27048045.4 | P18: =IF($B18="","",VLOOKUP($B18,formula!$A$15:$AI$124,formula!$AH$9,FALSE)) -> 6670163.34 | R18: 4.208420624 | V18: 1.037814472
B19: 8 | C19: 47 | D19: =IF(C18=MaxCoverageYear-1,"***以下空白***",IF($B19="","",IF($B19>plan,"",VLOOKUP($B19,formula!$A$15:$BI$124,formula!$AM$9,FALSE)))) ->  | E19: =IF($B19="","",VLOOKUP($B19,formula!$A$15:$BI$124,formula!$AN$9,FALSE)) -> 6427125 | F19: =IF($B19="","",VLOOKUP($B19,formula!$A$15:$AI$124,formula!$C$9,FALSE)) -> 14000000 | G19: =IF($B19="","",VLOOKUP($B19,formula!$A$15:$AI$124,formula!$E$9,FALSE)) -> 4839410 | H19: =IF($B19="","",VLOOKUP($B19,formula!$A$15:$AI$124,formula!$J$9,FALSE)) -> 12769 | I19: =IF($B19="","",VLOOKUP($B19,formula!$A$15:$AI$124,formula!$S$9,FALSE)) -> 32182 | J19: =IF($B19="","",VLOOKUP($B19,formula!$A$15:$AI$124,formula!$V$9,FALSE)) -> 180219.2 | K19: =IF($B19="","",VLOOKUP($B19,formula!$A$15:$AI$124,formula!$M$9,FALSE)) -> 13081438 | L19: =IF($B19="","",VLOOKUP($B19,formula!$A$15:$EA$124,formula!$DZ$9,FALSE)) -> 24717.77 | M19: =IF($B19="","",VLOOKUP($B19,formula!$A$15:$AI$124,formula!$Y$9,FALSE)) -> 62296.76 | N19: =IF($B19="","",VLOOKUP($B19,formula!$A$15:$AI$124,formula!$P$9,FALSE)) -> 1912968 | O19: =IF($B19="","",VLOOKUP($B19,formula!$A$15:$AI$124,formula!$AE$9,FALSE)) -> 27261657.2 | P19: =IF($B19="","",VLOOKUP($B19,formula!$A$15:$AI$124,formula!$AH$9,FALSE)) -> 6814674.76 | R19: 4.241656604 | V19: 1.060299086
B20: 9 | C20: 48 | D20: =IF(C19=MaxCoverageYear-1,"***以下空白***",IF($B20="","",IF($B20>plan,"",VLOOKUP($B20,formula!$A$15:$BI$124,formula!$AM$9,FALSE)))) ->  | E20: =IF($B20="","",VLOOKUP($B20,formula!$A$15:$BI$124,formula!$AN$9,FALSE)) -> 6427125 | F20: =IF($B20="","",VLOOKUP($B20,formula!$A$15:$AI$124,formula!$C$9,FALSE)) -> 13500000 | G20: =IF($B20="","",VLOOKUP($B20,formula!$A$15:$AI$124,formula!$E$9,FALSE)) -> 4921910 | H20: =IF($B20="","",VLOOKUP($B20,formula!$A$15:$AI$124,formula!$J$9,FALSE)) -> 12813 | I20: =IF($B20="","",VLOOKUP($B20,formula!$A$15:$AI$124,formula!$S$9,FALSE)) -> 44995 | J20: =IF($B20="","",VLOOKUP($B20,formula!$A$15:$AI$124,formula!$V$9,FALSE)) -> 242973 | K20: =IF($B20="","",VLOOKUP($B20,formula!$A$15:$AI$124,formula!$M$9,FALSE)) -> 13738353 | L20: =IF($B20="","",VLOOKUP($B20,formula!$A$15:$EA$124,formula!$DZ$9,FALSE)) -> 25225.77 | M20: =IF($B20="","",VLOOKUP($B20,formula!$A$15:$AI$124,formula!$Y$9,FALSE)) -> 88584.54 | N20: =IF($B20="","",VLOOKUP($B20,formula!$A$15:$AI$124,formula!$P$9,FALSE)) -> 1951240 | O20: =IF($B20="","",VLOOKUP($B20,formula!$A$15:$AI$124,formula!$AE$9,FALSE)) -> 27481326 | P20: =IF($B20="","",VLOOKUP($B20,formula!$A$15:$AI$124,formula!$AH$9,FALSE)) -> 6961734.54 | R20: 4.275834996 | V20: 1.0831802
B21: 10 | C21: 49 | D21: =IF(C20=MaxCoverageYear-1,"***以下空白***",IF($B21="","",IF($B21>plan,"",VLOOKUP($B21,formula!$A$15:$BI$124,formula!$AM$9,FALSE)))) ->  | E21: =IF($B21="","",VLOOKUP($B21,formula!$A$15:$BI$124,formula!$AN$9,FALSE)) -> 6427125 | F21: =IF($B21="","",VLOOKUP($B21,formula!$A$15:$AI$124,formula!$C$9,FALSE)) -> 13000000 | G21: =IF($B21="","",VLOOKUP($B21,formula!$A$15:$AI$124,formula!$E$9,FALSE)) -> 5006200 | H21: =IF($B21="","",VLOOKUP($B21,formula!$A$15:$AI$124,formula!$J$9,FALSE)) -> 12855 | I21: =IF($B21="","",VLOOKUP($B21,formula!$A$15:$AI$124,formula!$S$9,FALSE)) -> 57850 | J21: =IF($B21="","",VLOOKUP($B21,formula!$A$15:$AI$124,formula!$V$9,FALSE)) -> 300820 | K21: =IF($B21="","",VLOOKUP($B21,formula!$A$15:$AI$124,formula!$M$9,FALSE)) -> 14407585 | L21: =IF($B21="","",VLOOKUP($B21,formula!$A$15:$EA$124,formula!$DZ$9,FALSE)) -> 25741.88 | M21: =IF($B21="","",VLOOKUP($B21,formula!$A$15:$AI$124,formula!$Y$9,FALSE)) -> 115843.47 | N21: =IF($B21="","",VLOOKUP($B21,formula!$A$15:$AI$124,formula!$P$9,FALSE)) -> 1989518 | O21: =IF($B21="","",VLOOKUP($B21,formula!$A$15:$AI$124,formula!$AE$9,FALSE)) -> 27708405 | P21: =IF($B21="","",VLOOKUP($B21,formula!$A$15:$AI$124,formula!$AH$9,FALSE)) -> 7111561.47 | R21: 4.311166346 | V21: 1.106491856
B22: 11 | C22: 50 | D22: =IF(C21=MaxCoverageYear-1,"***以下空白***",IF($B22="","",IF($B22>plan,"",VLOOKUP($B22,formula!$A$15:$BI$124,formula!$AM$9,FALSE)))) ->  | E22: =IF($B22="","",VLOOKUP($B22,formula!$A$15:$BI$124,formula!$AN$9,FALSE)) -> 6427125 | F22: =IF($B22="","",VLOOKUP($B22,formula!$A$15:$AI$124,formula!$C$9,FALSE)) -> 12500000 | G22: =IF($B22="","",VLOOKUP($B22,formula!$A$15:$AI$124,formula!$E$9,FALSE)) -> 5092712.5 | H22: =IF($B22="","",VLOOKUP($B22,formula!$A$15:$AI$124,formula!$J$9,FALSE)) -> 12890 | I22: =IF($B22="","",VLOOKUP($B22,formula!$A$15:$AI$124,formula!$S$9,FALSE)) -> 70740 | J22: =IF($B22="","",VLOOKUP($B22,formula!$A$15:$AI$124,formula!$V$9,FALSE)) -> 353700 | K22: =IF($B22="","",VLOOKUP($B22,formula!$A$15:$AI$124,formula!$M$9,FALSE)) -> 15088523 | L22: =IF($B22="","",VLOOKUP($B22,formula!$A$15:$EA$124,formula!$DZ$9,FALSE)) -> 26258.03 | M22: =IF($B22="","",VLOOKUP($B22,formula!$A$15:$AI$124,formula!$Y$9,FALSE)) -> 144103.39 | N22: =IF($B22="","",VLOOKUP($B22,formula!$A$15:$AI$124,formula!$P$9,FALSE)) -> 2031218 | O22: =IF($B22="","",VLOOKUP($B22,formula!$A$15:$AI$124,formula!$AE$9,FALSE)) -> 27942223 | P22: =IF($B22="","",VLOOKUP($B22,formula!$A$15:$AI$124,formula!$AH$9,FALSE)) -> 7268033.89 | R22: 4.34754622 | V22: 1.130837488
B23: 12 | C23: 51 | D23: =IF(C22=MaxCoverageYear-1,"***以下空白***",IF($B23="","",IF($B23>plan,"",VLOOKUP($B23,formula!$A$15:$BI$124,formula!$AM$9,FALSE)))) ->  | E23: =IF($B23="","",VLOOKUP($B23,formula!$A$15:$BI$124,formula!$AN$9,FALSE)) -> 6427125 | F23: =IF($B23="","",VLOOKUP($B23,formula!$A$15:$AI$124,formula!$C$9,FALSE)) -> 12000000 | G23: =IF($B23="","",VLOOKUP($B23,formula!$A$15:$AI$124,formula!$E$9,FALSE)) -> 5181460 | H23: =IF($B23="","",VLOOKUP($B23,formula!$A$15:$AI$124,formula!$J$9,FALSE)) -> 12924 | I23: =IF($B23="","",VLOOKUP($B23,formula!$A$15:$AI$124,formula!$S$9,FALSE)) -> 83664 | J23: =IF($B23="","",VLOOKUP($B23,formula!$A$15:$AI$124,formula!$V$9,FALSE)) -> 401587.2 | K23: =IF($B23="","",VLOOKUP($B23,formula!$A$15:$AI$124,formula!$M$9,FALSE)) -> 15781870 | L23: =IF($B23="","",VLOOKUP($B23,formula!$A$15:$EA$124,formula!$DZ$9,FALSE)) -> 26786.08 | M23: =IF($B23="","",VLOOKUP($B23,formula!$A$15:$AI$124,formula!$Y$9,FALSE)) -> 173400.67 | N23: =IF($B23="","",VLOOKUP($B23,formula!$A$15:$AI$124,formula!$P$9,FALSE)) -> 2072918 | O23: =IF($B23="","",VLOOKUP($B23,formula!$A$15:$AI$124,formula!$AE$9,FALSE)) -> 28183457.2 | P23: =IF($B23="","",VLOOKUP($B23,formula!$A$15:$AI$124,formula!$AH$9,FALSE)) -> 7427778.67 | R23: 4.385079985 | V23: 1.155692268
B24: 13 | C24: 52 | D24: =IF(C23=MaxCoverageYear-1,"***以下空白***",IF($B24="","",IF($B24>plan,"",VLOOKUP($B24,formula!$A$15:$BI$124,formula!$AM$9,FALSE)))) ->  | E24: =IF($B24="","",VLOOKUP($B24,formula!$A$15:$BI$124,formula!$AN$9,FALSE)) -> 6427125 | F24: =IF($B24="","",VLOOKUP($B24,formula!$A$15:$AI$124,formula!$C$9,FALSE)) -> 11500000 | G24: =IF($B24="","",VLOOKUP($B24,formula!$A$15:$AI$124,formula!$E$9,FALSE)) -> 5272702.5 | H24: =IF($B24="","",VLOOKUP($B24,formula!$A$15:$AI$124,formula!$J$9,FALSE)) -> 12978 | I24: =IF($B24="","",VLOOKUP($B24,formula!$A$15:$AI$124,formula!$S$9,FALSE)) -> 96642 | J24: =IF($B24="","",VLOOKUP($B24,formula!$A$15:$AI$124,formula!$V$9,FALSE)) -> 444553.2 | K24: =IF($B24="","",VLOOKUP($B24,formula!$A$15:$AI$124,formula!$M$9,FALSE)) -> 16487548 | L24: =IF($B24="","",VLOOKUP($B24,formula!$A$15:$EA$124,formula!$DZ$9,FALSE)) -> 27371.65 | M24: =IF($B24="","",VLOOKUP($B24,formula!$A$15:$AI$124,formula!$Y$9,FALSE)) -> 203825.81 | N24: =IF($B24="","",VLOOKUP($B24,formula!$A$15:$AI$124,formula!$P$9,FALSE)) -> 2114618 | O24: =IF($B24="","",VLOOKUP($B24,formula!$A$15:$AI$124,formula!$AE$9,FALSE)) -> 28432101.2 | P24: =IF($B24="","",VLOOKUP($B24,formula!$A$15:$AI$124,formula!$AH$9,FALSE)) -> 7591146.31 | R24: 4.423766645 | V24: 1.181110731
B25: 14 | C25: 53 | D25: =IF(C24=MaxCoverageYear-1,"***以下空白***",IF($B25="","",IF($B25>plan,"",VLOOKUP($B25,formula!$A$15:$BI$124,formula!$AM$9,FALSE)))) ->  | E25: =IF($B25="","",VLOOKUP($B25,formula!$A$15:$BI$124,formula!$AN$9,FALSE)) -> 6427125 | F25: =IF($B25="","",VLOOKUP($B25,formula!$A$15:$AI$124,formula!$C$9,FALSE)) -> 11000000 | G25: =IF($B25="","",VLOOKUP($B25,formula!$A$15:$AI$124,formula!$E$9,FALSE)) -> 5366725 | H25: =IF($B25="","",VLOOKUP($B25,formula!$A$15:$AI$124,formula!$J$9,FALSE)) -> 13033 | I25: =IF($B25="","",VLOOKUP($B25,formula!$A$15:$AI$124,formula!$S$9,FALSE)) -> 109675 | J25: =IF($B25="","",VLOOKUP($B25,formula!$A$15:$AI$124,formula!$V$9,FALSE)) -> 482570 | K25: =IF($B25="","",VLOOKUP($B25,formula!$A$15:$AI$124,formula!$M$9,FALSE)) -> 17205585 | L25: =IF($B25="","",VLOOKUP($B25,formula!$A$15:$EA$124,formula!$DZ$9,FALSE)) -> 27977.81 | M25: =IF($B25="","",VLOOKUP($B25,formula!$A$15:$AI$124,formula!$Y$9,FALSE)) -> 235438.23 | N25: =IF($B25="","",VLOOKUP($B25,formula!$A$15:$AI$124,formula!$P$9,FALSE)) -> 2156318 | O25: =IF($B25="","",VLOOKUP($B25,formula!$A$15:$AI$124,formula!$AE$9,FALSE)) -> 28688155 | P25: =IF($B25="","",VLOOKUP($B25,formula!$A$15:$AI$124,formula!$AH$9,FALSE)) -> 7758481.23 | R25: 4.4636062 | V25: 1.207146466
B26: 15 | C26: 54 | D26: =IF(C25=MaxCoverageYear-1,"***以下空白***",IF($B26="","",IF($B26>plan,"",VLOOKUP($B26,formula!$A$15:$BI$124,formula!$AM$9,FALSE)))) ->  | E26: =IF($B26="","",VLOOKUP($B26,formula!$A$15:$BI$124,formula!$AN$9,FALSE)) -> 6427125 | F26: =IF($B26="","",VLOOKUP($B26,formula!$A$15:$AI$124,formula!$C$9,FALSE)) -> 10500000 | G26: =IF($B26="","",VLOOKUP($B26,formula!$A$15:$AI$124,formula!$E$9,FALSE)) -> 5463845 | H26: =IF($B26="","",VLOOKUP($B26,formula!$A$15:$AI$124,formula!$J$9,FALSE)) -> 13098 | I26: =IF($B26="","",VLOOKUP($B26,formula!$A$15:$AI$124,formula!$S$9,FALSE)) -> 122773 | J26: =IF($B26="","",VLOOKUP($B26,formula!$A$15:$AI$124,formula!$V$9,FALSE)) -> 515646.6 | K26: =IF($B26="","",VLOOKUP($B26,formula!$A$15:$AI$124,formula!$M$9,FALSE)) -> 17935303 | L26: =IF($B26="","",VLOOKUP($B26,formula!$A$15:$EA$124,formula!$DZ$9,FALSE)) -> 28626.18 | M26: =IF($B26="","",VLOOKUP($B26,formula!$A$15:$AI$124,formula!$Y$9,FALSE)) -> 268325.06 | N26: =IF($B26="","",VLOOKUP($B26,formula!$A$15:$AI$124,formula!$P$9,FALSE)) -> 2198018 | O26: =IF($B26="","",VLOOKUP($B26,formula!$A$15:$AI$124,formula!$AE$9,FALSE)) -> 28950949.6 | P26: =IF($B26="","",VLOOKUP($B26,formula!$A$15:$AI$124,formula!$AH$9,FALSE)) -> 7930188.06 | R26: 4.50449456 | V26: 1.233862428
B27: 16 | C27: 55 | D27: =IF(C26=MaxCoverageYear-1,"***以下空白***",IF($B27="","",IF($B27>plan,"",VLOOKUP($B27,formula!$A$15:$BI$124,formula!$AM$9,FALSE)))) ->  | E27: =IF($B27="","",VLOOKUP($B27,formula!$A$15:$BI$124,formula!$AN$9,FALSE)) -> 6427125 | F27: =IF($B27="","",VLOOKUP($B27,formula!$A$15:$AI$124,formula!$C$9,FALSE)) -> 10000000 | G27: =IF($B27="","",VLOOKUP($B27,formula!$A$15:$AI$124,formula!$E$9,FALSE)) -> 5563770 | H27: =IF($B27="","",VLOOKUP($B27,formula!$A$15:$AI$124,formula!$J$9,FALSE)) -> 13172 | I27: =IF($B27="","",VLOOKUP($B27,formula!$A$15:$AI$124,formula!$S$9,FALSE)) -> 135945 | J27: =IF($B27="","",VLOOKUP($B27,formula!$A$15:$AI$124,formula!$V$9,FALSE)) -> 543780 | K27: =IF($B27="","",VLOOKUP($B27,formula!$A$15:$AI$124,formula!$M$9,FALSE)) -> 18677370 | L27: =IF($B27="","",VLOOKUP($B27,formula!$A$15:$EA$124,formula!$DZ$9,FALSE)) -> 29314.39 | M27: =IF($B27="","",VLOOKUP($B27,formula!$A$15:$AI$124,formula!$Y$9,FALSE)) -> 302546.69 | N27: =IF($B27="","",VLOOKUP($B27,formula!$A$15:$AI$124,formula!$P$9,FALSE)) -> 2239718 | O27: =IF($B27="","",VLOOKUP($B27,formula!$A$15:$AI$124,formula!$AE$9,FALSE)) -> 29221150 | P27: =IF($B27="","",VLOOKUP($B27,formula!$A$15:$AI$124,formula!$AH$9,FALSE)) -> 8106034.69 | R27: 4.546535193 | V27: 1.261222505
B28: 17 | C28: 56 | D28: =IF(C27=MaxCoverageYear-1,"***以下空白***",IF($B28="","",IF($B28>plan,"",VLOOKUP($B28,formula!$A$15:$BI$124,formula!$AM$9,FALSE)))) ->  | E28: =IF($B28="","",VLOOKUP($B28,formula!$A$15:$BI$124,formula!$AN$9,FALSE)) -> 6427125 | F28: =IF($B28="","",VLOOKUP($B28,formula!$A$15:$AI$124,formula!$C$9,FALSE)) -> 10000000 | G28: =IF($B28="","",VLOOKUP($B28,formula!$A$15:$AI$124,formula!$E$9,FALSE)) -> 5664870 | H28: =IF($B28="","",VLOOKUP($B28,formula!$A$15:$AI$124,formula!$J$9,FALSE)) -> 13299 | I28: =IF($B28="","",VLOOKUP($B28,formula!$A$15:$AI$124,formula!$S$9,FALSE)) -> 149244 | J28: =IF($B28="","",VLOOKUP($B28,formula!$A$15:$AI$124,formula!$V$9,FALSE)) -> 596976 | K28: =IF($B28="","",VLOOKUP($B28,formula!$A$15:$AI$124,formula!$M$9,FALSE)) -> 18870128 | L28: =IF($B28="","",VLOOKUP($B28,formula!$A$15:$EA$124,formula!$DZ$9,FALSE)) -> 30134.84 | M28: =IF($B28="","",VLOOKUP($B28,formula!$A$15:$AI$124,formula!$Y$9,FALSE)) -> 338179.14 | N28: =IF($B28="","",VLOOKUP($B28,formula!$A$15:$AI$124,formula!$P$9,FALSE)) -> 2281418 | O28: =IF($B28="","",VLOOKUP($B28,formula!$A$15:$AI$124,formula!$AE$9,FALSE)) -> 29467104 | P28: =IF($B28="","",VLOOKUP($B28,formula!$A$15:$AI$124,formula!$AH$9,FALSE)) -> 8284467.14 | R28: 4.584803314 | V28: 1.28898491
B29: 18 | C29: 57 | D29: =IF(C28=MaxCoverageYear-1,"***以下空白***",IF($B29="","",IF($B29>plan,"",VLOOKUP($B29,formula!$A$15:$BI$124,formula!$AM$9,FALSE)))) ->  | E29: =IF($B29="","",VLOOKUP($B29,formula!$A$15:$BI$124,formula!$AN$9,FALSE)) -> 6427125 | F29: =IF($B29="","",VLOOKUP($B29,formula!$A$15:$AI$124,formula!$C$9,FALSE)) -> 10000000 | G29: =IF($B29="","",VLOOKUP($B29,formula!$A$15:$AI$124,formula!$E$9,FALSE)) -> 5767120 | H29: =IF($B29="","",VLOOKUP($B29,formula!$A$15:$AI$124,formula!$J$9,FALSE)) -> 13374 | I29: =IF($B29="","",VLOOKUP($B29,formula!$A$15:$AI$124,formula!$S$9,FALSE)) -> 162618 | J29: =IF($B29="","",VLOOKUP($B29,formula!$A$15:$AI$124,formula!$V$9,FALSE)) -> 650472 | K29: =IF($B29="","",VLOOKUP($B29,formula!$A$15:$AI$124,formula!$M$9,FALSE)) -> 19063930 | L29: =IF($B29="","",VLOOKUP($B29,formula!$A$15:$EA$124,formula!$DZ$9,FALSE)) -> 30851.79 | M29: =IF($B29="","",VLOOKUP($B29,formula!$A$15:$AI$124,formula!$Y$9,FALSE)) -> 375135.01 | N29: =IF($B29="","",VLOOKUP($B29,formula!$A$15:$AI$124,formula!$P$9,FALSE)) -> 2323118 | O29: =IF($B29="","",VLOOKUP($B29,formula!$A$15:$AI$124,formula!$AE$9,FALSE)) -> 29714402 | P29: =IF($B29="","",VLOOKUP($B29,formula!$A$15:$AI$124,formula!$AH$9,FALSE)) -> 8465373.01 | R29: 4.623280549 | V29: 1.317132156
B30: 19 | C30: 58 | D30: =IF(C29=MaxCoverageYear-1,"***以下空白***",IF($B30="","",IF($B30>plan,"",VLOOKUP($B30,formula!$A$15:$BI$124,formula!$AM$9,FALSE)))) ->  | E30: =IF($B30="","",VLOOKUP($B30,formula!$A$15:$BI$124,formula!$AN$9,FALSE)) -> 6427125 | F30: =IF($B30="","",VLOOKUP($B30,formula!$A$15:$AI$124,formula!$C$9,FALSE)) -> 10000000 | G30: =IF($B30="","",VLOOKUP($B30,formula!$A$15:$AI$124,formula!$E$9,FALSE)) -> 5870490 | H30: =IF($B30="","",VLOOKUP($B30,formula!$A$15:$AI$124,formula!$J$9,FALSE)) -> 13428 | I30: =IF($B30="","",VLOOKUP($B30,formula!$A$15:$AI$124,formula!$S$9,FALSE)) -> 176046 | J30: =IF($B30="","",VLOOKUP($B30,formula!$A$15:$AI$124,formula!$V$9,FALSE)) -> 704184 | K30: =IF($B30="","",VLOOKUP($B30,formula!$A$15:$AI$124,formula!$M$9,FALSE)) -> 19259538 | L30: =IF($B30="","",VLOOKUP($B30,formula!$A$15:$EA$124,formula!$DZ$9,FALSE)) -> 31531.58 | M30: =IF($B30="","",VLOOKUP($B30,formula!$A$15:$AI$124,formula!$Y$9,FALSE)) -> 413390.51 | N30: =IF($B30="","",VLOOKUP($B30,formula!$A$15:$AI$124,formula!$P$9,FALSE)) -> 2364818 | O30: =IF($B30="","",VLOOKUP($B30,formula!$A$15:$AI$124,formula!$AE$9,FALSE)) -> 29963722 | P30: =IF($B30="","",VLOOKUP($B30,formula!$A$15:$AI$124,formula!$AH$9,FALSE)) -> 8648698.51 | R30: 4.662072389 | V30: 1.345655874
B31: 20 | C31: 59 | D31: =IF(C30=MaxCoverageYear-1,"***以下空白***",IF($B31="","",IF($B31>plan,"",VLOOKUP($B31,formula!$A$15:$BI$124,formula!$AM$9,FALSE)))) ->  | E31: =IF($B31="","",VLOOKUP($B31,formula!$A$15:$BI$124,formula!$AN$9,FALSE)) -> 6427125 | F31: =IF($B31="","",VLOOKUP($B31,formula!$A$15:$AI$124,formula!$C$9,FALSE)) -> 10000000 | G31: =IF($B31="","",VLOOKUP($B31,formula!$A$15:$AI$124,formula!$E$9,FALSE)) -> 5974950 | H31: =IF($B31="","",VLOOKUP($B31,formula!$A$15:$AI$124,formula!$J$9,FALSE)) -> 13464 | I31: =IF($B31="","",VLOOKUP($B31,formula!$A$15:$AI$124,formula!$S$9,FALSE)) -> 189510 | J31: =IF($B31="","",VLOOKUP($B31,formula!$A$15:$AI$124,formula!$V$9,FALSE)) -> 758040 | K31: =IF($B31="","",VLOOKUP($B31,formula!$A$15:$AI$124,formula!$M$9,FALSE)) -> 19457023 | L31: =IF($B31="","",VLOOKUP($B31,formula!$A$15:$EA$124,formula!$DZ$9,FALSE)) -> 32178.69 | M31: =IF($B31="","",VLOOKUP($B31,formula!$A$15:$AI$124,formula!$Y$9,FALSE)) -> 452925.11 | N31: =IF($B31="","",VLOOKUP($B31,formula!$A$15:$AI$124,formula!$P$9,FALSE)) -> 2406530 | O31: =IF($B31="","",VLOOKUP($B31,formula!$A$15:$AI$124,formula!$AE$9,FALSE)) -> 30215063 | P31: =IF($B31="","",VLOOKUP($B31,formula!$A$15:$AI$124,formula!$AH$9,FALSE)) -> 8834405.11 | R31: 4.701178676 | V31: 1.374550069
B32: 21 | C32: 60 | D32: =IF(C31=MaxCoverageYear-1,"***以下空白***",IF($B32="","",IF($B32>plan,"",VLOOKUP($B32,formula!$A$15:$BI$124,formula!$AM$9,FALSE)))) ->  | E32: =IF($B32="","",VLOOKUP($B32,formula!$A$15:$BI$124,formula!$AN$9,FALSE)) -> 6427125 | F32: =IF($B32="","",VLOOKUP($B32,formula!$A$15:$AI$124,formula!$C$9,FALSE)) -> 10000000 | G32: =IF($B32="","",VLOOKUP($B32,formula!$A$15:$AI$124,formula!$E$9,FALSE)) -> 6079300 | H32: =IF($B32="","",VLOOKUP($B32,formula!$A$15:$AI$124,formula!$J$9,FALSE)) -> 13475 | I32: =IF($B32="","",VLOOKUP($B32,formula!$A$15:$AI$124,formula!$S$9,FALSE)) -> 202985 | J32: =IF($B32="","",VLOOKUP($B32,formula!$A$15:$AI$124,formula!$V$9,FALSE)) -> 811940 | K32: =IF($B32="","",VLOOKUP($B32,formula!$A$15:$AI$124,formula!$M$9,FALSE)) -> 19656483 | L32: =IF($B32="","",VLOOKUP($B32,formula!$A$15:$EA$124,formula!$DZ$9,FALSE)) -> 32767.43 | M32: =IF($B32="","",VLOOKUP($B32,formula!$A$15:$AI$124,formula!$Y$9,FALSE)) -> 493602.68 | N32: =IF($B32="","",VLOOKUP($B32,formula!$A$15:$AI$124,formula!$P$9,FALSE)) -> 2472865 | O32: =IF($B32="","",VLOOKUP($B32,formula!$A$15:$AI$124,formula!$AE$9,FALSE)) -> 30468423 | P32: =IF($B32="","",VLOOKUP($B32,formula!$A$15:$AI$124,formula!$AH$9,FALSE)) -> 9045767.68 | R32: 4.740599101 | V32: 1.40743609
B33: 22 | C33: 61 | D33: =IF(C32=MaxCoverageYear-1,"***以下空白***",IF($B33="","",IF($B33>plan,"",VLOOKUP($B33,formula!$A$15:$BI$124,formula!$AM$9,FALSE)))) ->  | E33: =IF($B33="","",VLOOKUP($B33,formula!$A$15:$BI$124,formula!$AN$9,FALSE)) -> 6427125 | F33: =IF($B33="","",VLOOKUP($B33,formula!$A$15:$AI$124,formula!$C$9,FALSE)) -> 10000000 | G33: =IF($B33="","",VLOOKUP($B33,formula!$A$15:$AI$124,formula!$E$9,FALSE)) -> 6184647.5 | H33: =IF($B33="","",VLOOKUP($B33,formula!$A$15:$AI$124,formula!$J$9,FALSE)) -> 13607 | I33: =IF($B33="","",VLOOKUP($B33,formula!$A$15:$AI$124,formula!$S$9,FALSE)) -> 216592 | J33: =IF($B33="","",VLOOKUP($B33,formula!$A$15:$AI$124,formula!$V$9,FALSE)) -> 866368 | K33: =IF($B33="","",VLOOKUP($B33,formula!$A$15:$AI$124,formula!$M$9,FALSE)) -> 19857433 | L33: =IF($B33="","",VLOOKUP($B33,formula!$A$15:$EA$124,formula!$DZ$9,FALSE)) -> 33661.8 | M33: =IF($B33="","",VLOOKUP($B33,formula!$A$15:$AI$124,formula!$Y$9,FALSE)) -> 535818.07 | N33: =IF($B33="","",VLOOKUP($B33,formula!$A$15:$AI$124,formula!$P$9,FALSE)) -> 2541030 | O33: =IF($B33="","",VLOOKUP($B33,formula!$A$15:$AI$124,formula!$AE$9,FALSE)) -> 30723801 | P33: =IF($B33="","",VLOOKUP($B33,formula!$A$15:$AI$124,formula!$AH$9,FALSE)) -> 9261495.57 | R33: 4.780333508 | V33: 1.441001314
B34: 23 | C34: 62 | D34: =IF(C33=MaxCoverageYear-1,"***以下空白***",IF($B34="","",IF($B34>plan,"",VLOOKUP($B34,formula!$A$15:$BI$124,formula!$AM$9,FALSE)))) ->  | E34: =IF($B34="","",VLOOKUP($B34,formula!$A$15:$BI$124,formula!$AN$9,FALSE)) -> 6427125 | F34: =IF($B34="","",VLOOKUP($B34,formula!$A$15:$AI$124,formula!$C$9,FALSE)) -> 10000000 | G34: =IF($B34="","",VLOOKUP($B34,formula!$A$15:$AI$124,formula!$E$9,FALSE)) -> 6290902.5 | H34: =IF($B34="","",VLOOKUP($B34,formula!$A$15:$AI$124,formula!$J$9,FALSE)) -> 13692 | I34: =IF($B34="","",VLOOKUP($B34,formula!$A$15:$AI$124,formula!$S$9,FALSE)) -> 230284 | J34: =IF($B34="","",VLOOKUP($B34,formula!$A$15:$AI$124,formula!$V$9,FALSE)) -> 921136 | K34: =IF($B34="","",VLOOKUP($B34,formula!$A$15:$AI$124,formula!$M$9,FALSE)) -> 20060063 | L34: =IF($B34="","",VLOOKUP($B34,formula!$A$15:$EA$124,formula!$DZ$9,FALSE)) -> 34454.01 | M34: =IF($B34="","",VLOOKUP($B34,formula!$A$15:$AI$124,formula!$Y$9,FALSE)) -> 579477.68 | N34: =IF($B34="","",VLOOKUP($B34,formula!$A$15:$AI$124,formula!$P$9,FALSE)) -> 2611073 | O34: =IF($B34="","",VLOOKUP($B34,formula!$A$15:$AI$124,formula!$AE$9,FALSE)) -> 30981199 | P34: =IF($B34="","",VLOOKUP($B34,formula!$A$15:$AI$124,formula!$AH$9,FALSE)) -> 9481453.18 | R34: 4.820382208 | V34: 1.475224642
B35: 24 | C35: 63 | D35: =IF(C34=MaxCoverageYear-1,"***以下空白***",IF($B35="","",IF($B35>plan,"",VLOOKUP($B35,formula!$A$15:$BI$124,formula!$AM$9,FALSE)))) ->  | E35: =IF($B35="","",VLOOKUP($B35,formula!$A$15:$BI$124,formula!$AN$9,FALSE)) -> 6427125 | F35: =IF($B35="","",VLOOKUP($B35,formula!$A$15:$AI$124,formula!$C$9,FALSE)) -> 10000000 | G35: =IF($B35="","",VLOOKUP($B35,formula!$A$15:$AI$124,formula!$E$9,FALSE)) -> 6397972.5 | H35: =IF($B35="","",VLOOKUP($B35,formula!$A$15:$AI$124,formula!$J$9,FALSE)) -> 13761 | I35: =IF($B35="","",VLOOKUP($B35,formula!$A$15:$AI$124,formula!$S$9,FALSE)) -> 244045 | J35: =IF($B35="","",VLOOKUP($B35,formula!$A$15:$AI$124,formula!$V$9,FALSE)) -> 976180 | K35: =IF($B35="","",VLOOKUP($B35,formula!$A$15:$AI$124,formula!$M$9,FALSE)) -> 20264448 | L35: =IF($B35="","",VLOOKUP($B35,formula!$A$15:$EA$124,formula!$DZ$9,FALSE)) -> 35217 | M35: =IF($B35="","",VLOOKUP($B35,formula!$A$15:$AI$124,formula!$Y$9,FALSE)) -> 624557.28 | N35: =IF($B35="","",VLOOKUP($B35,formula!$A$15:$AI$124,formula!$P$9,FALSE)) -> 2683048 | O35: =IF($B35="","",VLOOKUP($B35,formula!$A$15:$AI$124,formula!$AE$9,FALSE)) -> 31240628 | P35: =IF($B35="","",VLOOKUP($B35,formula!$A$15:$AI$124,formula!$AH$9,FALSE)) -> 9705577.78 | R35: 4.860746912 | V35: 1.510096315
B36: 25 | C36: 64 | D36: =IF(C35=MaxCoverageYear-1,"***以下空白***",IF($B36="","",IF($B36>plan,"",VLOOKUP($B36,formula!$A$15:$BI$124,formula!$AM$9,FALSE)))) ->  | E36: =IF($B36="","",VLOOKUP($B36,formula!$A$15:$BI$124,formula!$AN$9,FALSE)) -> 6427125 | F36: =IF($B36="","",VLOOKUP($B36,formula!$A$15:$AI$124,formula!$C$9,FALSE)) -> 10000000 | G36: =IF($B36="","",VLOOKUP($B36,formula!$A$15:$AI$124,formula!$E$9,FALSE)) -> 6505720 | H36: =IF($B36="","",VLOOKUP($B36,formula!$A$15:$AI$124,formula!$J$9,FALSE)) -> 13814 | I36: =IF($B36="","",VLOOKUP($B36,formula!$A$15:$AI$124,formula!$S$9,FALSE)) -> 257859 | J36: =IF($B36="","",VLOOKUP($B36,formula!$A$15:$AI$124,formula!$V$9,FALSE)) -> 1031436 | K36: =IF($B36="","",VLOOKUP($B36,formula!$A$15:$AI$124,formula!$M$9,FALSE)) -> 20470640 | L36: =IF($B36="","",VLOOKUP($B36,formula!$A$15:$EA$124,formula!$DZ$9,FALSE)) -> 35948.01 | M36: =IF($B36="","",VLOOKUP($B36,formula!$A$15:$AI$124,formula!$Y$9,FALSE)) -> 671023.38 | N36: =IF($B36="","",VLOOKUP($B36,formula!$A$15:$AI$124,formula!$P$9,FALSE)) -> 2757005 | O36: =IF($B36="","",VLOOKUP($B36,formula!$A$15:$AI$124,formula!$AE$9,FALSE)) -> 31502076 | P36: =IF($B36="","",VLOOKUP($B36,formula!$A$15:$AI$124,formula!$AH$9,FALSE)) -> 9933748.38 | R36: 4.901425754 | V36: 1.545597507
B37: 26 | C37: 65 | D37: =IF(C36=MaxCoverageYear-1,"***以下空白***",IF($B37="","",IF($B37>plan,"",VLOOKUP($B37,formula!$A$15:$BI$124,formula!$AM$9,FALSE)))) ->  | E37: =IF($B37="","",VLOOKUP($B37,formula!$A$15:$BI$124,formula!$AN$9,FALSE)) -> 6427125 | F37: =IF($B37="","",VLOOKUP($B37,formula!$A$15:$AI$124,formula!$C$9,FALSE)) -> 10000000 | G37: =IF($B37="","",VLOOKUP($B37,formula!$A$15:$AI$124,formula!$E$9,FALSE)) -> 6612687.5 | H37: =IF($B37="","",VLOOKUP($B37,formula!$A$15:$AI$124,formula!$J$9,FALSE)) -> 13859 | I37: =IF($B37="","",VLOOKUP($B37,formula!$A$15:$AI$124,formula!$S$9,FALSE)) -> 271718 | J37: =IF($B37="","",VLOOKUP($B37,formula!$A$15:$AI$124,formula!$V$9,FALSE)) -> 1086872 | K37: =IF($B37="","",VLOOKUP($B37,formula!$A$15:$AI$124,formula!$M$9,FALSE)) -> 20678678 | L37: =IF($B37="","",VLOOKUP($B37,formula!$A$15:$EA$124,formula!$DZ$9,FALSE)) -> 36658.09 | M37: =IF($B37="","",VLOOKUP($B37,formula!$A$15:$AI$124,formula!$Y$9,FALSE)) -> 718714.49 | N37: =IF($B37="","",VLOOKUP($B37,formula!$A$15:$AI$124,formula!$P$9,FALSE)) -> 2833003 | O37: =IF($B37="","",VLOOKUP($B37,formula!$A$15:$AI$124,formula!$AE$9,FALSE)) -> 31765550 | P37: =IF($B37="","",VLOOKUP($B37,formula!$A$15:$AI$124,formula!$AH$9,FALSE)) -> 10164404.99 | R37: 4.942419822 | V37: 1.581485499
B38: 27 | C38: 66 | D38: =IF(C37=MaxCoverageYear-1,"***以下空白***",IF($B38="","",IF($B38>plan,"",VLOOKUP($B38,formula!$A$15:$BI$124,formula!$AM$9,FALSE)))) ->  | E38: =IF($B38="","",VLOOKUP($B38,formula!$A$15:$BI$124,formula!$AN$9,FALSE)) -> 6427125 | F38: =IF($B38="","",VLOOKUP($B38,formula!$A$15:$AI$124,formula!$C$9,FALSE)) -> 10000000 | G38: =IF($B38="","",VLOOKUP($B38,formula!$A$15:$AI$124,formula!$E$9,FALSE)) -> 6719980 | H38: =IF($B38="","",VLOOKUP($B38,formula!$A$15:$AI$124,formula!$J$9,FALSE)) -> 14009 | I38: =IF($B38="","",VLOOKUP($B38,formula!$A$15:$AI$124,formula!$S$9,FALSE)) -> 285727 | J38: =IF($B38="","",VLOOKUP($B38,formula!$A$15:$AI$124,formula!$V$9,FALSE)) -> 1142908 | K38: =IF($B38="","",VLOOKUP($B38,formula!$A$15:$AI$124,formula!$M$9,FALSE)) -> 20888135 | L38: =IF($B38="","",VLOOKUP($B38,formula!$A$15:$EA$124,formula!$DZ$9,FALSE)) -> 37656.08 | M38: =IF($B38="","",VLOOKUP($B38,formula!$A$15:$AI$124,formula!$Y$9,FALSE)) -> 768031.89 | N38: =IF($B38="","",VLOOKUP($B38,formula!$A$15:$AI$124,formula!$P$9,FALSE)) -> 2911095 | O38: =IF($B38="","",VLOOKUP($B38,formula!$A$15:$AI$124,formula!$AE$9,FALSE)) -> 32031043 | P38: =IF($B38="","",VLOOKUP($B38,formula!$A$15:$AI$124,formula!$AH$9,FALSE)) -> 10399106.89 | R38: 4.983728028 | V38: 1.6180029
B39: 28 | C39: 67 | D39: =IF(C38=MaxCoverageYear-1,"***以下空白***",IF($B39="","",IF($B39>plan,"",VLOOKUP($B39,formula!$A$15:$BI$124,formula!$AM$9,FALSE)))) ->  | E39: =IF($B39="","",VLOOKUP($B39,formula!$A$15:$BI$124,formula!$AN$9,FALSE)) -> 6427125 | F39: =IF($B39="","",VLOOKUP($B39,formula!$A$15:$AI$124,formula!$C$9,FALSE)) -> 10000000 | G39: =IF($B39="","",VLOOKUP($B39,formula!$A$15:$AI$124,formula!$E$9,FALSE)) -> 6827340 | H39: =IF($B39="","",VLOOKUP($B39,formula!$A$15:$AI$124,formula!$J$9,FALSE)) -> 14077 | I39: =IF($B39="","",VLOOKUP($B39,formula!$A$15:$AI$124,formula!$S$9,FALSE)) -> 299804 | J39: =IF($B39="","",VLOOKUP($B39,formula!$A$15:$AI$124,formula!$V$9,FALSE)) -> 1199216 | K39: =IF($B39="","",VLOOKUP($B39,formula!$A$15:$AI$124,formula!$M$9,FALSE)) -> 21098670 | L39: =IF($B39="","",VLOOKUP($B39,formula!$A$15:$EA$124,formula!$DZ$9,FALSE)) -> 38443.39 | M39: =IF($B39="","",VLOOKUP($B39,formula!$A$15:$AI$124,formula!$Y$9,FALSE)) -> 818745.54 | N39: =IF($B39="","",VLOOKUP($B39,formula!$A$15:$AI$124,formula!$P$9,FALSE)) -> 2991340 | O39: =IF($B39="","",VLOOKUP($B39,formula!$A$15:$AI$124,formula!$AE$9,FALSE)) -> 32297886 | P39: =IF($B39="","",VLOOKUP($B39,formula!$A$15:$AI$124,formula!$AH$9,FALSE)) -> 10637425.54 | R39: 5.02524628 | V39: 1.655083033
B40: 29 | C40: 68 | D40: =IF(C39=MaxCoverageYear-1,"***以下空白***",IF($B40="","",IF($B40>plan,"",VLOOKUP($B40,formula!$A$15:$BI$124,formula!$AM$9,FALSE)))) ->  | E40: =IF($B40="","",VLOOKUP($B40,formula!$A$15:$BI$124,formula!$AN$9,FALSE)) -> 6427125 | F40: =IF($B40="","",VLOOKUP($B40,formula!$A$15:$AI$124,formula!$C$9,FALSE)) -> 10000000 | G40: =IF($B40="","",VLOOKUP($B40,formula!$A$15:$AI$124,formula!$E$9,FALSE)) -> 6934525 | H40: =IF($B40="","",VLOOKUP($B40,formula!$A$15:$AI$124,formula!$J$9,FALSE)) -> 14162 | I40: =IF($B40="","",VLOOKUP($B40,formula!$A$15:$AI$124,formula!$S$9,FALSE)) -> 313966 | J40: =IF($B40="","",VLOOKUP($B40,formula!$A$15:$AI$124,formula!$V$9,FALSE)) -> 1255864 | K40: =IF($B40="","",VLOOKUP($B40,formula!$A$15:$AI$124,formula!$M$9,FALSE)) -> 21311550 | L40: =IF($B40="","",VLOOKUP($B40,formula!$A$15:$EA$124,formula!$DZ$9,FALSE)) -> 39282.7 | M40: =IF($B40="","",VLOOKUP($B40,formula!$A$15:$AI$124,formula!$Y$9,FALSE)) -> 870882.03 | N40: =IF($B40="","",VLOOKUP($B40,formula!$A$15:$AI$124,formula!$P$9,FALSE)) -> 3073798 | O40: =IF($B40="","",VLOOKUP($B40,formula!$A$15:$AI$124,formula!$AE$9,FALSE)) -> 32567414 | P40: =IF($B40="","",VLOOKUP($B40,formula!$A$15:$AI$124,formula!$AH$9,FALSE)) -> 10879205.03 | R40: 5.067182294 | V40: 1.69270164
B41: 30 | C41: 69 | D41: =IF(C40=MaxCoverageYear-1,"***以下空白***",IF($B41="","",IF($B41>plan,"",VLOOKUP($B41,formula!$A$15:$BI$124,formula!$AM$9,FALSE)))) ->  | E41: =IF($B41="","",VLOOKUP($B41,formula!$A$15:$BI$124,formula!$AN$9,FALSE)) -> 6427125 | F41: =IF($B41="","",VLOOKUP($B41,formula!$A$15:$AI$124,formula!$C$9,FALSE)) -> 10000000 | G41: =IF($B41="","",VLOOKUP($B41,formula!$A$15:$AI$124,formula!$E$9,FALSE)) -> 7041320 | H41: =IF($B41="","",VLOOKUP($B41,formula!$A$15:$AI$124,formula!$J$9,FALSE)) -> 14248 | I41: =IF($B41="","",VLOOKUP($B41,formula!$A$15:$AI$124,formula!$S$9,FALSE)) -> 328214 | J41: =IF($B41="","",VLOOKUP($B41,formula!$A$15:$AI$124,formula!$V$9,FALSE)) -> 1312856 | K41: =IF($B41="","",VLOOKUP($B41,formula!$A$15:$AI$124,formula!$M$9,FALSE)) -> 21526785 | L41: =IF($B41="","",VLOOKUP($B41,formula!$A$15:$EA$124,formula!$DZ$9,FALSE)) -> 40129.89 | M41: =IF($B41="","",VLOOKUP($B41,formula!$A$15:$AI$124,formula!$Y$9,FALSE)) -> 924423.92 | N41: =IF($B41="","",VLOOKUP($B41,formula!$A$15:$AI$124,formula!$P$9,FALSE)) -> 3158540 | O41: =IF($B41="","",VLOOKUP($B41,formula!$A$15:$AI$124,formula!$AE$9,FALSE)) -> 32839641 | P41: =IF($B41="","",VLOOKUP($B41,formula!$A$15:$AI$124,formula!$AH$9,FALSE)) -> 11124283.92 | R41: 5.109538246 | V41: 1.730833603
B42: 31 | C42: 70 | D42: =IF(C41=MaxCoverageYear-1,"***以下空白***",IF($B42="","",IF($B42>plan,"",VLOOKUP($B42,formula!$A$15:$BI$124,formula!$AM$9,FALSE)))) ->  | E42: =IF($B42="","",VLOOKUP($B42,formula!$A$15:$BI$124,formula!$AN$9,FALSE)) -> 6427125 | F42: =IF($B42="","",VLOOKUP($B42,formula!$A$15:$AI$124,formula!$C$9,FALSE)) -> 10000000 | G42: =IF($B42="","",VLOOKUP($B42,formula!$A$15:$AI$124,formula!$E$9,FALSE)) -> 7144835 | H42: =IF($B42="","",VLOOKUP($B42,formula!$A$15:$AI$124,formula!$J$9,FALSE)) -> 14337 | I42: =IF($B42="","",VLOOKUP($B42,formula!$A$15:$AI$124,formula!$S$9,FALSE)) -> 342551 | J42: =IF($B42="","",VLOOKUP($B42,formula!$A$15:$AI$124,formula!$V$9,FALSE)) -> 1370204 | K42: =IF($B42="","",VLOOKUP($B42,formula!$A$15:$AI$124,formula!$M$9,FALSE)) -> 21530393 | L42: =IF($B42="","",VLOOKUP($B42,formula!$A$15:$EA$124,formula!$DZ$9,FALSE)) -> 40974.2 | M42: =IF($B42="","",VLOOKUP($B42,formula!$A$15:$AI$124,formula!$Y$9,FALSE)) -> 978988.15 | N42: =IF($B42="","",VLOOKUP($B42,formula!$A$15:$AI$124,formula!$P$9,FALSE)) -> 3301783 | O42: =IF($B42="","",VLOOKUP($B42,formula!$A$15:$AI$124,formula!$AE$9,FALSE)) -> 32900597 | P42: =IF($B42="","",VLOOKUP($B42,formula!$A$15:$AI$124,formula!$AH$9,FALSE)) -> 11425606.15 | R42: 5.119022424 | V42: 1.777716498
B43: 32 | C43: 71 | D43: =IF(C42=MaxCoverageYear-1,"***以下空白***",IF($B43="","",IF($B43>plan,"",VLOOKUP($B43,formula!$A$15:$BI$124,formula!$AM$9,FALSE)))) ->  | E43: =IF($B43="","",VLOOKUP($B43,formula!$A$15:$BI$124,formula!$AN$9,FALSE)) -> 6427125 | F43: =IF($B43="","",VLOOKUP($B43,formula!$A$15:$AI$124,formula!$C$9,FALSE)) -> 10000000 | G43: =IF($B43="","",VLOOKUP($B43,formula!$A$15:$AI$124,formula!$E$9,FALSE)) -> 7247662.5 | H43: =IF($B43="","",VLOOKUP($B43,formula!$A$15:$AI$124,formula!$J$9,FALSE)) -> 14628 | I43: =IF($B43="","",VLOOKUP($B43,formula!$A$15:$AI$124,formula!$S$9,FALSE)) -> 357179 | J43: =IF($B43="","",VLOOKUP($B43,formula!$A$15:$AI$124,formula!$V$9,FALSE)) -> 1428716 | K43: =IF($B43="","",VLOOKUP($B43,formula!$A$15:$AI$124,formula!$M$9,FALSE)) -> 21534468 | L43: =IF($B43="","",VLOOKUP($B43,formula!$A$15:$EA$124,formula!$DZ$9,FALSE)) -> 42407.52 | M43: =IF($B43="","",VLOOKUP($B43,formula!$A$15:$AI$124,formula!$Y$9,FALSE)) -> 1035485.14 | N43: =IF($B43="","",VLOOKUP($B43,formula!$A$15:$AI$124,formula!$P$9,FALSE)) -> 3451523 | O43: =IF($B43="","",VLOOKUP($B43,formula!$A$15:$AI$124,formula!$AE$9,FALSE)) -> 32963184 | P43: =IF($B43="","",VLOOKUP($B43,formula!$A$15:$AI$124,formula!$AH$9,FALSE)) -> 11734670.64 | R43: 5.128760371 | V43: 1.825804017
B44: 33 | C44: 72 | D44: =IF(C43=MaxCoverageYear-1,"***以下空白***",IF($B44="","",IF($B44>plan,"",VLOOKUP($B44,formula!$A$15:$BI$124,formula!$AM$9,FALSE)))) ->  | E44: =IF($B44="","",VLOOKUP($B44,formula!$A$15:$BI$124,formula!$AN$9,FALSE)) -> 6427125 | F44: =IF($B44="","",VLOOKUP($B44,formula!$A$15:$AI$124,formula!$C$9,FALSE)) -> 10000000 | G44: =IF($B44="","",VLOOKUP($B44,formula!$A$15:$AI$124,formula!$E$9,FALSE)) -> 7349662.5 | H44: =IF($B44="","",VLOOKUP($B44,formula!$A$15:$AI$124,formula!$J$9,FALSE)) -> 14718 | I44: =IF($B44="","",VLOOKUP($B44,formula!$A$15:$AI$124,formula!$S$9,FALSE)) -> 371897 | J44: =IF($B44="","",VLOOKUP($B44,formula!$A$15:$AI$124,formula!$V$9,FALSE)) -> 1487588 | K44: =IF($B44="","",VLOOKUP($B44,formula!$A$15:$AI$124,formula!$M$9,FALSE)) -> 21539855 | L44: =IF($B44="","",VLOOKUP($B44,formula!$A$15:$EA$124,formula!$DZ$9,FALSE)) -> 43268.93 | M44: =IF($B44="","",VLOOKUP($B44,formula!$A$15:$AI$124,formula!$Y$9,FALSE)) -> 1093326.97 | N44: =IF($B44="","",VLOOKUP($B44,formula!$A$15:$AI$124,formula!$P$9,FALSE)) -> 3608053 | O44: =IF($B44="","",VLOOKUP($B44,formula!$A$15:$AI$124,formula!$AE$9,FALSE)) -> 33027443 | P44: =IF($B44="","",VLOOKUP($B44,formula!$A$15:$AI$124,formula!$AH$9,FALSE)) -> 12051042.47 | R44: 5.138758465 | V44: 1.875028488
B45: =IF(B44>=109-age+1,"",B44+1) -> 34 | C45: 73 | D45: =IF(C44=MaxCoverageYear-1,"***以下空白***",IF($B45="","",IF($B45>plan,"",VLOOKUP($B45,formula!$A$15:$BI$124,formula!$AM$9,FALSE)))) ->  | E45: =IF($B45="","",VLOOKUP($B45,formula!$A$15:$BI$124,formula!$AN$9,FALSE)) -> 6427125 | F45: =IF($B45="","",VLOOKUP($B45,formula!$A$15:$AI$124,formula!$C$9,FALSE)) -> 10000000 | G45: =IF($B45="","",VLOOKUP($B45,formula!$A$15:$AI$124,formula!$E$9,FALSE)) -> 7450717.5 | H45: =IF($B45="","",VLOOKUP($B45,formula!$A$15:$AI$124,formula!$J$9,FALSE)) -> 14822 | I45: =IF($B45="","",VLOOKUP($B45,formula!$A$15:$AI$124,formula!$S$9,FALSE)) -> 386719 | J45: =IF($B45="","",VLOOKUP($B45,formula!$A$15:$AI$124,formula!$V$9,FALSE)) -> 1546876 | K45: =IF($B45="","",VLOOKUP($B45,formula!$A$15:$AI$124,formula!$M$9,FALSE)) -> 21543993 | L45: =IF($B45="","",VLOOKUP($B45,formula!$A$15:$EA$124,formula!$DZ$9,FALSE)) -> 44173.81 | M45: =IF($B45="","",VLOOKUP($B45,formula!$A$15:$AI$124,formula!$Y$9,FALSE)) -> 1152533.61 | N45: =IF($B45="","",VLOOKUP($B45,formula!$A$15:$AI$124,formula!$P$9,FALSE)) -> 3771683 | O45: =IF($B45="","",VLOOKUP($B45,formula!$A$15:$AI$124,formula!$AE$9,FALSE)) -> 33090869 | P45: =IF($B45="","",VLOOKUP($B45,formula!$A$15:$AI$124,formula!$AH$9,FALSE)) -> 12374934.11 | R45: 5.148626952 | V45: 1.925422971
B46: =IF(B45>=109-age+1,"",B45+1) -> 35 | C46: 74 | D46: =IF(C45=MaxCoverageYear-1,"***以下空白***",IF($B46="","",IF($B46>plan,"",VLOOKUP($B46,formula!$A$15:$BI$124,formula!$AM$9,FALSE)))) ->  | E46: =IF($B46="","",VLOOKUP($B46,formula!$A$15:$BI$124,formula!$AN$9,FALSE)) -> 6427125 | F46: =IF($B46="","",VLOOKUP($B46,formula!$A$15:$AI$124,formula!$C$9,FALSE)) -> 10000000 | G46: =IF($B46="","",VLOOKUP($B46,formula!$A$15:$AI$124,formula!$E$9,FALSE)) -> 7550690 | H46: =IF($B46="","",VLOOKUP($B46,formula!$A$15:$AI$124,formula!$J$9,FALSE)) -> 14925 | I46: =IF($B46="","",VLOOKUP($B46,formula!$A$15:$AI$124,formula!$S$9,FALSE)) -> 401644 | J46: =IF($B46="","",VLOOKUP($B46,formula!$A$15:$AI$124,formula!$V$9,FALSE)) -> 1606576 | K46: =IF($B46="","",VLOOKUP($B46,formula!$A$15:$AI$124,formula!$M$9,FALSE)) -> 21549413 | L46: =IF($B46="","",VLOOKUP($B46,formula!$A$15:$EA$124,formula!$DZ$9,FALSE)) -> 45077.62 | M46: =IF($B46="","",VLOOKUP($B46,formula!$A$15:$AI$124,formula!$Y$9,FALSE)) -> 1213075.73 | N46: =IF($B46="","",VLOOKUP($B46,formula!$A$15:$AI$124,formula!$P$9,FALSE)) -> 3942733 | O46: =IF($B46="","",VLOOKUP($B46,formula!$A$15:$AI$124,formula!$AE$9,FALSE)) -> 33155989 | P46: =IF($B46="","",VLOOKUP($B46,formula!$A$15:$AI$124,formula!$AH$9,FALSE)) -> 12706498.73 | R46: 5.15875901 | V46: 1.977011297
B47: =IF(B46>=109-age+1,"",B46+1) -> 36 | C47: 75 | D47: =IF(C46=MaxCoverageYear-1,"***以下空白***",IF($B47="","",IF($B47>plan,"",VLOOKUP($B47,formula!$A$15:$BI$124,formula!$AM$9,FALSE)))) ->  | E47: =IF($B47="","",VLOOKUP($B47,formula!$A$15:$BI$124,formula!$AN$9,FALSE)) -> 6427125 | F47: =IF($B47="","",VLOOKUP($B47,formula!$A$15:$AI$124,formula!$C$9,FALSE)) -> 10000000 | G47: =IF($B47="","",VLOOKUP($B47,formula!$A$15:$AI$124,formula!$E$9,FALSE)) -> 7649962.5 | H47: =IF($B47="","",VLOOKUP($B47,formula!$A$15:$AI$124,formula!$J$9,FALSE)) -> 15040 | I47: =IF($B47="","",VLOOKUP($B47,formula!$A$15:$AI$124,formula!$S$9,FALSE)) -> 416684 | J47: =IF($B47="","",VLOOKUP($B47,formula!$A$15:$AI$124,formula!$V$9,FALSE)) -> 1666736 | K47: =IF($B47="","",VLOOKUP($B47,formula!$A$15:$AI$124,formula!$M$9,FALSE)) -> 21552855 | L47: =IF($B47="","",VLOOKUP($B47,formula!$A$15:$EA$124,formula!$DZ$9,FALSE)) -> 46022.17 | M47: =IF($B47="","",VLOOKUP($B47,formula!$A$15:$AI$124,formula!$Y$9,FALSE)) -> 1275046.79 | N47: =IF($B47="","",VLOOKUP($B47,formula!$A$15:$AI$124,formula!$P$9,FALSE)) -> 4121540 | O47: =IF($B47="","",VLOOKUP($B47,formula!$A$15:$AI$124,formula!$AE$9,FALSE)) -> 33219591 | P47: =IF($B47="","",VLOOKUP($B47,formula!$A$15:$AI$124,formula!$AH$9,FALSE)) -> 13046549.29 | R47: 5.168654881 | V47: =IFERROR(P47/E47,"") -> 2.029919955
B48: 37 | C48: 76 | D48: =IF(C47=MaxCoverageYear-1,"***以下空白***",IF($B48="","",IF($B48>plan,"",VLOOKUP($B48,formula!$A$15:$BI$124,formula!$AM$9,FALSE)))) ->  | E48: =IF($B48="","",VLOOKUP($B48,formula!$A$15:$BI$124,formula!$AN$9,FALSE)) -> 6427125 | F48: =IF($B48="","",VLOOKUP($B48,formula!$A$15:$AI$124,formula!$C$9,FALSE)) -> 10000000 | G48: =IF($B48="","",VLOOKUP($B48,formula!$A$15:$AI$124,formula!$E$9,FALSE)) -> 7747857.5 | H48: =IF($B48="","",VLOOKUP($B48,formula!$A$15:$AI$124,formula!$J$9,FALSE)) -> 15124 | I48: =IF($B48="","",VLOOKUP($B48,formula!$A$15:$AI$124,formula!$S$9,FALSE)) -> 431808 | J48: =IF($B48="","",VLOOKUP($B48,formula!$A$15:$AI$124,formula!$V$9,FALSE)) -> 1727232 | K48: =IF($B48="","",VLOOKUP($B48,formula!$A$15:$AI$124,formula!$M$9,FALSE)) -> 21557695 | L48: =IF($B48="","",VLOOKUP($B48,formula!$A$15:$EA$124,formula!$DZ$9,FALSE)) -> 46871.44 | M48: =IF($B48="","",VLOOKUP($B48,formula!$A$15:$AI$124,formula!$Y$9,FALSE)) -> 1338234.74 | N48: =IF($B48="","",VLOOKUP($B48,formula!$A$15:$AI$124,formula!$P$9,FALSE)) -> 4308458 | O48: =IF($B48="","",VLOOKUP($B48,formula!$A$15:$AI$124,formula!$AE$9,FALSE)) -> 33284927 | P48: =IF($B48="","",VLOOKUP($B48,formula!$A$15:$AI$124,formula!$AH$9,FALSE)) -> 13394550.24 | R48: 5.178820546 | V48: =IFERROR(P48/E48,"") -> 2.084065619
B49: 38 | C49: 77 | D49: =IF(C48=MaxCoverageYear-1,"***以下空白***",IF($B49="","",IF($B49>plan,"",VLOOKUP($B49,formula!$A$15:$BI$124,formula!$AM$9,FALSE)))) ->  | E49: =IF($B49="","",VLOOKUP($B49,formula!$A$15:$BI$124,formula!$AN$9,FALSE)) -> 6427125 | F49: =IF($B49="","",VLOOKUP($B49,formula!$A$15:$AI$124,formula!$C$9,FALSE)) -> 10000000 | G49: =IF($B49="","",VLOOKUP($B49,formula!$A$15:$AI$124,formula!$E$9,FALSE)) -> 7844192.5 | H49: =IF($B49="","",VLOOKUP($B49,formula!$A$15:$AI$124,formula!$J$9,FALSE)) -> 15258 | I49: =IF($B49="","",VLOOKUP($B49,formula!$A$15:$AI$124,formula!$S$9,FALSE)) -> 447066 | J49: =IF($B49="","",VLOOKUP($B49,formula!$A$15:$AI$124,formula!$V$9,FALSE)) -> 1788264 | K49: =IF($B49="","",VLOOKUP($B49,formula!$A$15:$AI$124,formula!$M$9,FALSE)) -> 21561095 | L49: =IF($B49="","",VLOOKUP($B49,formula!$A$15:$EA$124,formula!$DZ$9,FALSE)) -> 47874.68 | M49: =IF($B49="","",VLOOKUP($B49,formula!$A$15:$AI$124,formula!$Y$9,FALSE)) -> 1402748.71 | N49: =IF($B49="","",VLOOKUP($B49,formula!$A$15:$AI$124,formula!$P$9,FALSE)) -> 4503853 | O49: =IF($B49="","",VLOOKUP($B49,formula!$A$15:$AI$124,formula!$AE$9,FALSE)) -> 33349359 | P49: =IF($B49="","",VLOOKUP($B49,formula!$A$15:$AI$124,formula!$AH$9,FALSE)) -> 13750794.21 | R49: 5.188845557 | V49: =IFERROR(P49/E49,"") -> 2.139493819
B50: 39 | C50: 78 | D50: =IF(C49=MaxCoverageYear-1,"***以下空白***",IF($B50="","",IF($B50>plan,"",VLOOKUP($B50,formula!$A$15:$BI$124,formula!$AM$9,FALSE)))) ->  | E50: =IF($B50="","",VLOOKUP($B50,formula!$A$15:$BI$124,formula!$AN$9,FALSE)) -> 6427125 | F50: =IF($B50="","",VLOOKUP($B50,formula!$A$15:$AI$124,formula!$C$9,FALSE)) -> 10000000 | G50: =IF($B50="","",VLOOKUP($B50,formula!$A$15:$AI$124,formula!$E$9,FALSE)) -> 7938792.5 | H50: =IF($B50="","",VLOOKUP($B50,formula!$A$15:$AI$124,formula!$J$9,FALSE)) -> 15399 | I50: =IF($B50="","",VLOOKUP($B50,formula!$A$15:$AI$124,formula!$S$9,FALSE)) -> 462465 | J50: =IF($B50="","",VLOOKUP($B50,formula!$A$15:$AI$124,formula!$V$9,FALSE)) -> 1849860 | K50: =IF($B50="","",VLOOKUP($B50,formula!$A$15:$AI$124,formula!$M$9,FALSE)) -> 21565693 | L50: =IF($B50="","",VLOOKUP($B50,formula!$A$15:$EA$124,formula!$DZ$9,FALSE)) -> 48899.79 | M50: =IF($B50="","",VLOOKUP($B50,formula!$A$15:$AI$124,formula!$Y$9,FALSE)) -> 1468565.47 | N50: =IF($B50="","",VLOOKUP($B50,formula!$A$15:$AI$124,formula!$P$9,FALSE)) -> 4708108 | O50: =IF($B50="","",VLOOKUP($B50,formula!$A$15:$AI$124,formula!$AE$9,FALSE)) -> 33415553 | P50: =IF($B50="","",VLOOKUP($B50,formula!$A$15:$AI$124,formula!$AH$9,FALSE)) -> 14115465.97 | R50: 5.199144719 | V50: =IFERROR(P50/E50,"") -> 2.196233303
B51: =IF(B50>=109-age+1,"",B50+1) -> 40 | C51: 79 | D51: =IF(C50=MaxCoverageYear-1,"***以下空白***",IF($B51="","",IF($B51>plan,"",VLOOKUP($B51,formula!$A$15:$BI$124,formula!$AM$9,FALSE)))) ->  | E51: =IF($B51="","",VLOOKUP($B51,formula!$A$15:$BI$124,formula!$AN$9,FALSE)) -> 6427125 | F51: =IF($B51="","",VLOOKUP($B51,formula!$A$15:$AI$124,formula!$C$9,FALSE)) -> 10000000 | G51: =IF($B51="","",VLOOKUP($B51,formula!$A$15:$AI$124,formula!$E$9,FALSE)) -> 8031532.5 | H51: =IF($B51="","",VLOOKUP($B51,formula!$A$15:$AI$124,formula!$J$9,FALSE)) -> 15545 | I51: =IF($B51="","",VLOOKUP($B51,formula!$A$15:$AI$124,formula!$S$9,FALSE)) -> 478010 | J51: =IF($B51="","",VLOOKUP($B51,formula!$A$15:$AI$124,formula!$V$9,FALSE)) -> 1912040 | K51: =IF($B51="","",VLOOKUP($B51,formula!$A$15:$AI$124,formula!$M$9,FALSE)) -> 21773615 | L51: =IF($B51="","",VLOOKUP($B51,formula!$A$15:$EA$124,formula!$DZ$9,FALSE)) -> 49940.07 | M51: =IF($B51="","",VLOOKUP($B51,formula!$A$15:$AI$124,formula!$Y$9,FALSE)) -> 1535661.14 | N51: =IF($B51="","",VLOOKUP($B51,formula!$A$15:$AI$124,formula!$P$9,FALSE)) -> 4921628 | O51: =IF($B51="","",VLOOKUP($B51,formula!$A$15:$AI$124,formula!$AE$9,FALSE)) -> 33685655 | P51: =IF($B51="","",VLOOKUP($B51,formula!$A$15:$AI$124,formula!$AH$9,FALSE)) -> 14488821.64 | R51: 5.241170041 | V51: =IFERROR(P51/E51,"") -> 2.254323922
P52: (幣別/單位：美元/元)
B53: 保單年度末 | C53: 保險年齡 | D53: 每期折扣後 所繳保險費 | E53: 累計折扣後 所繳保險費 | F53: 保證給付項目 | H53: 【非保證給付項目】假設分紅-最可能紅利金額(保額)(中分紅) | O53: 身故/完全失能保障 (含假設紅利) | P53: 可能領取 總現金金額 (含假設紅利) | R53: (A+E+F)/ 折扣後累計 所繳保險費 (單位: % ) | V53: (B+H+I)/ 折扣後累計 所繳保險費 (單位: % )
F54: 身故/完全失能保障 | G54: 解約金 | H54: 分紅保額 | L54: 解約可領取之金額
H55: 增額分紅保額 | I55: 累計增額 分紅保額 | J55: 累計增額分紅保額 身故/完全失能保障 | K55: 終極 保額紅利 | L55: 當年度末增額分紅保額保單價值準備金 | M55: 累計增額 分紅保額保單價值準備金 | N55: 終極 現金紅利
F56: ( A ) | G56: ( B ) | H56: ( C ) | I56: ( D ) | J56: ( E ) | K56: ( F ) | L56: ( G ) | M56: ( H ) | N56: ( I ) | O56: (A)+(E)+(F) | P56: ( B )+( H )+( I )
B57: =IF(B51>=109-age+1,"",B51+1) -> 41 | C57: 80 | D57: =IF(C51=MaxCoverageYear-1,"***以下空白***",IF($B57="","",IF($B57>plan,"",VLOOKUP($B57,formula!$A$15:$BI$124,formula!$AM$9,FALSE)))) ->  | E57: =IF($B57="","",VLOOKUP($B57,formula!$A$15:$BI$124,formula!$AN$9,FALSE)) -> 6427125 | F57: =IF($B57="","",VLOOKUP($B57,formula!$A$15:$AI$124,formula!$C$9,FALSE)) -> 10000000 | G57: =IF($B57="","",VLOOKUP($B57,formula!$A$15:$AI$124,formula!$E$9,FALSE)) -> 8122357.5 | H57: =IF($B57="","",VLOOKUP($B57,formula!$A$15:$AI$124,formula!$J$9,FALSE)) -> 15692 | I57: =IF($B57="","",VLOOKUP($B57,formula!$A$15:$AI$124,formula!$S$9,FALSE)) -> 493702 | J57: =IF($B57="","",VLOOKUP($B57,formula!$A$15:$AI$124,formula!$V$9,FALSE)) -> 1974808 | K57: =IF($B57="","",VLOOKUP($B57,formula!$A$15:$AI$124,formula!$M$9,FALSE)) -> 21990183 | L57: =IF($B57="","",VLOOKUP($B57,formula!$A$15:$EA$124,formula!$DZ$9,FALSE)) -> 50982.41 | M57: =IF($B57="","",VLOOKUP($B57,formula!$A$15:$AI$124,formula!$Y$9,FALSE)) -> 1604009.66 | N57: =IF($B57="","",VLOOKUP($B57,formula!$A$15:$AI$124,formula!$P$9,FALSE)) -> 5144830 | O57: =IF($B57="","",VLOOKUP($B57,formula!$A$15:$AI$124,formula!$AE$9,FALSE)) -> 33964991 | P57: =IF($B57="","",VLOOKUP($B57,formula!$A$15:$AI$124,formula!$AH$9,FALSE)) -> 14871197.16 | R57: 5.284632087 | V57: =IFERROR(P57/E57,"") -> 2.313817945
B58: 42 | C58: 81 | D58: =IF(C57=MaxCoverageYear-1,"***以下空白***",IF($B58="","",IF($B58>plan,"",VLOOKUP($B58,formula!$A$15:$BI$124,formula!$AM$9,FALSE)))) ->  | E58: =IF($B58="","",VLOOKUP($B58,formula!$A$15:$BI$124,formula!$AN$9,FALSE)) -> 6427125 | F58: =IF($B58="","",VLOOKUP($B58,formula!$A$15:$AI$124,formula!$C$9,FALSE)) -> 10000000 | G58: =IF($B58="","",VLOOKUP($B58,formula!$A$15:$AI$124,formula!$E$9,FALSE)) -> 8211260 | H58: =IF($B58="","",VLOOKUP($B58,formula!$A$15:$AI$124,formula!$J$9,FALSE)) -> 15831 | I58: =IF($B58="","",VLOOKUP($B58,formula!$A$15:$AI$124,formula!$S$9,FALSE)) -> 509533 | J58: =IF($B58="","",VLOOKUP($B58,formula!$A$15:$AI$124,formula!$V$9,FALSE)) -> 2038132 | K58: =IF($B58="","",VLOOKUP($B58,formula!$A$15:$AI$124,formula!$M$9,FALSE)) -> 22207465 | L58: =IF($B58="","",VLOOKUP($B58,formula!$A$15:$EA$124,formula!$DZ$9,FALSE)) -> 51996.98 | M58: =IF($B58="","",VLOOKUP($B58,formula!$A$15:$AI$124,formula!$Y$9,FALSE)) -> 1673563.18 | N58: =IF($B58="","",VLOOKUP($B58,formula!$A$15:$AI$124,formula!$P$9,FALSE)) -> 5378155 | O58: =IF($B58="","",VLOOKUP($B58,formula!$A$15:$AI$124,formula!$AE$9,FALSE)) -> 34245597 | P58: =IF($B58="","",VLOOKUP($B58,formula!$A$15:$AI$124,formula!$AH$9,FALSE)) -> 15262978.18 | R58: 5.328291732 | V58: 2.374775375
B59: 43 | C59: 82 | D59: =IF(C58=MaxCoverageYear-1,"***以下空白***",IF($B59="","",IF($B59>plan,"",VLOOKUP($B59,formula!$A$15:$BI$124,formula!$AM$9,FALSE)))) ->  | E59: =IF($B59="","",VLOOKUP($B59,formula!$A$15:$BI$124,formula!$AN$9,FALSE)) -> 6427125 | F59: =IF($B59="","",VLOOKUP($B59,formula!$A$15:$AI$124,formula!$C$9,FALSE)) -> 10000000 | G59: =IF($B59="","",VLOOKUP($B59,formula!$A$15:$AI$124,formula!$E$9,FALSE)) -> 8298225 | H59: =IF($B59="","",VLOOKUP($B59,formula!$A$15:$AI$124,formula!$J$9,FALSE)) -> 15966 | I59: =IF($B59="","",VLOOKUP($B59,formula!$A$15:$AI$124,formula!$S$9,FALSE)) -> 525499 | J59: =IF($B59="","",VLOOKUP($B59,formula!$A$15:$AI$124,formula!$V$9,FALSE)) -> 2101996 | K59: =IF($B59="","",VLOOKUP($B59,formula!$A$15:$AI$124,formula!$M$9,FALSE)) -> 22427388 | L59: =IF($B59="","",VLOOKUP($B59,formula!$A$15:$EA$124,formula!$DZ$9,FALSE)) -> 52995.78 | M59: =IF($B59="","",VLOOKUP($B59,formula!$A$15:$AI$124,formula!$Y$9,FALSE)) -> 1744283.58 | N59: =IF($B59="","",VLOOKUP($B59,formula!$A$15:$AI$124,formula!$P$9,FALSE)) -> 5622063 | O59: =IF($B59="","",VLOOKUP($B59,formula!$A$15:$AI$124,formula!$AE$9,FALSE)) -> 34529384 | P59: =IF($B59="","",VLOOKUP($B59,formula!$A$15:$AI$124,formula!$AH$9,FALSE)) -> 15664571.58 | R59: 5.372446312 | V59: 2.437259518
B60: =IF(B59>=109-age+1,"",B59+1) -> 44 | C60: 83 | D60: =IF(C59=MaxCoverageYear-1,"***以下空白***",IF($B60="","",IF($B60>plan,"",VLOOKUP($B60,formula!$A$15:$BI$124,formula!$AM$9,FALSE)))) ->  | E60: =IF($B60="","",VLOOKUP($B60,formula!$A$15:$BI$124,formula!$AN$9,FALSE)) -> 6427125 | F60: =IF($B60="","",VLOOKUP($B60,formula!$A$15:$AI$124,formula!$C$9,FALSE)) -> 10000000 | G60: =IF($B60="","",VLOOKUP($B60,formula!$A$15:$AI$124,formula!$E$9,FALSE)) -> 8383207.5 | H60: =IF($B60="","",VLOOKUP($B60,formula!$A$15:$AI$124,formula!$J$9,FALSE)) -> 16099 | I60: =IF($B60="","",VLOOKUP($B60,formula!$A$15:$AI$124,formula!$S$9,FALSE)) -> 541598 | J60: =IF($B60="","",VLOOKUP($B60,formula!$A$15:$AI$124,formula!$V$9,FALSE)) -> 2166392 | K60: =IF($B60="","",VLOOKUP($B60,formula!$A$15:$AI$124,formula!$M$9,FALSE)) -> 22648055 | L60: =IF($B60="","",VLOOKUP($B60,formula!$A$15:$EA$124,formula!$DZ$9,FALSE)) -> 53984.5 | M60: =IF($B60="","",VLOOKUP($B60,formula!$A$15:$AI$124,formula!$Y$9,FALSE)) -> 1816131.37 | N60: =IF($B60="","",VLOOKUP($B60,formula!$A$15:$AI$124,formula!$P$9,FALSE)) -> 5877030 | O60: =IF($B60="","",VLOOKUP($B60,formula!$A$15:$AI$124,formula!$AE$9,FALSE)) -> 34814447 | P60: =IF($B60="","",VLOOKUP($B60,formula!$A$15:$AI$124,formula!$AH$9,FALSE)) -> 16076368.87 | R60: 5.416799424 | V60: 2.50133129
B61: =IF(B60>=109-age+1,"",B60+1) -> 45 | C61: 84 | D61: =IF(C60=MaxCoverageYear-1,"***以下空白***",IF($B61="","",IF($B61>plan,"",VLOOKUP($B61,formula!$A$15:$BI$124,formula!$AM$9,FALSE)))) ->  | E61: =IF($B61="","",VLOOKUP($B61,formula!$A$15:$BI$124,formula!$AN$9,FALSE)) -> 6427125 | F61: =IF($B61="","",VLOOKUP($B61,formula!$A$15:$AI$124,formula!$C$9,FALSE)) -> 10000000 | G61: =IF($B61="","",VLOOKUP($B61,formula!$A$15:$AI$124,formula!$E$9,FALSE)) -> 8466115 | H61: =IF($B61="","",VLOOKUP($B61,formula!$A$15:$AI$124,formula!$J$9,FALSE)) -> 16234 | I61: =IF($B61="","",VLOOKUP($B61,formula!$A$15:$AI$124,formula!$S$9,FALSE)) -> 557832 | J61: =IF($B61="","",VLOOKUP($B61,formula!$A$15:$AI$124,formula!$V$9,FALSE)) -> 2231328 | K61: =IF($B61="","",VLOOKUP($B61,formula!$A$15:$AI$124,formula!$M$9,FALSE)) -> 22870725 | L61: =IF($B61="","",VLOOKUP($B61,formula!$A$15:$EA$124,formula!$DZ$9,FALSE)) -> 54975.56 | M61: =IF($B61="","",VLOOKUP($B61,formula!$A$15:$AI$124,formula!$Y$9,FALSE)) -> 1889067.95 | N61: =IF($B61="","",VLOOKUP($B61,formula!$A$15:$AI$124,formula!$P$9,FALSE)) -> 6143560 | O61: =IF($B61="","",VLOOKUP($B61,formula!$A$15:$AI$124,formula!$AE$9,FALSE)) -> 35102053 | P61: =IF($B61="","",VLOOKUP($B61,formula!$A$15:$AI$124,formula!$AH$9,FALSE)) -> 16498742.95 | R61: 5.461548204 | V61: 2.567048712
B62: 46 | C62: 85 | D62: =IF(C61=MaxCoverageYear-1,"***以下空白***",IF($B62="","",IF($B62>plan,"",VLOOKUP($B62,formula!$A$15:$BI$124,formula!$AM$9,FALSE)))) ->  | E62: =IF($B62="","",VLOOKUP($B62,formula!$A$15:$BI$124,formula!$AN$9,FALSE)) -> 6427125 | F62: =IF($B62="","",VLOOKUP($B62,formula!$A$15:$AI$124,formula!$C$9,FALSE)) -> 10000000 | G62: =IF($B62="","",VLOOKUP($B62,formula!$A$15:$AI$124,formula!$E$9,FALSE)) -> 8546805 | H62: =IF($B62="","",VLOOKUP($B62,formula!$A$15:$AI$124,formula!$J$9,FALSE)) -> 16375 | I62: =IF($B62="","",VLOOKUP($B62,formula!$A$15:$AI$124,formula!$S$9,FALSE)) -> 574207 | J62: =IF($B62="","",VLOOKUP($B62,formula!$A$15:$AI$124,formula!$V$9,FALSE)) -> 2296828 | K62: =IF($B62="","",VLOOKUP($B62,formula!$A$15:$AI$124,formula!$M$9,FALSE)) -> 23095370 | L62: =IF($B62="","",VLOOKUP($B62,formula!$A$15:$EA$124,formula!$DZ$9,FALSE)) -> 55981.57 | M62: =IF($B62="","",VLOOKUP($B62,formula!$A$15:$AI$124,formula!$Y$9,FALSE)) -> 1963054.1 | N62: =IF($B62="","",VLOOKUP($B62,formula!$A$15:$AI$124,formula!$P$9,FALSE)) -> 6422180 | O62: =IF($B62="","",VLOOKUP($B62,formula!$A$15:$AI$124,formula!$AE$9,FALSE)) -> 35392198 | P62: =IF($B62="","",VLOOKUP($B62,formula!$A$15:$AI$124,formula!$AH$9,FALSE)) -> 16932039.1 | R62: 5.506692028 | V62: 2.634465504
B63: 47 | C63: 86 | D63: =IF(C62=MaxCoverageYear-1,"***以下空白***",IF($B63="","",IF($B63>plan,"",VLOOKUP($B63,formula!$A$15:$BI$124,formula!$AM$9,FALSE)))) ->  | E63: =IF($B63="","",VLOOKUP($B63,formula!$A$15:$BI$124,formula!$AN$9,FALSE)) -> 6427125 | F63: =IF($B63="","",VLOOKUP($B63,formula!$A$15:$AI$124,formula!$C$9,FALSE)) -> 10000000 | G63: =IF($B63="","",VLOOKUP($B63,formula!$A$15:$AI$124,formula!$E$9,FALSE)) -> 8625105 | H63: =IF($B63="","",VLOOKUP($B63,formula!$A$15:$AI$124,formula!$J$9,FALSE)) -> 16527 | I63: =IF($B63="","",VLOOKUP($B63,formula!$A$15:$AI$124,formula!$S$9,FALSE)) -> 590734 | J63: =IF($B63="","",VLOOKUP($B63,formula!$A$15:$AI$124,formula!$V$9,FALSE)) -> 2362936 | K63: =IF($B63="","",VLOOKUP($B63,formula!$A$15:$AI$124,formula!$M$9,FALSE)) -> 23321315 | L63: =IF($B63="","",VLOOKUP($B63,formula!$A$15:$EA$124,formula!$DZ$9,FALSE)) -> 57018.84 | M63: =IF($B63="","",VLOOKUP($B63,formula!$A$15:$AI$124,formula!$Y$9,FALSE)) -> 2038057.11 | N63: =IF($B63="","",VLOOKUP($B63,formula!$A$15:$AI$124,formula!$P$9,FALSE)) -> 6713435 | O63: =IF($B63="","",VLOOKUP($B63,formula!$A$15:$AI$124,formula!$AE$9,FALSE)) -> 35684251 | P63: =IF($B63="","",VLOOKUP($B63,formula!$A$15:$AI$124,formula!$AH$9,FALSE)) -> 17376597.11 | R63: 5.552132719 | V63: 2.703634535
B64: 48 | C64: 87 | D64: =IF(C63=MaxCoverageYear-1,"***以下空白***",IF($B64="","",IF($B64>plan,"",VLOOKUP($B64,formula!$A$15:$BI$124,formula!$AM$9,FALSE)))) ->  | E64: =IF($B64="","",VLOOKUP($B64,formula!$A$15:$BI$124,formula!$AN$9,FALSE)) -> 6427125 | F64: =IF($B64="","",VLOOKUP($B64,formula!$A$15:$AI$124,formula!$C$9,FALSE)) -> 10000000 | G64: =IF($B64="","",VLOOKUP($B64,formula!$A$15:$AI$124,formula!$E$9,FALSE)) -> 8700837.5 | H64: =IF($B64="","",VLOOKUP($B64,formula!$A$15:$AI$124,formula!$J$9,FALSE)) -> 16687 | I64: =IF($B64="","",VLOOKUP($B64,formula!$A$15:$AI$124,formula!$S$9,FALSE)) -> 607421 | J64: =IF($B64="","",VLOOKUP($B64,formula!$A$15:$AI$124,formula!$V$9,FALSE)) -> 2429684 | K64: =IF($B64="","",VLOOKUP($B64,formula!$A$15:$AI$124,formula!$M$9,FALSE)) -> 23548530 | L64: =IF($B64="","",VLOOKUP($B64,formula!$A$15:$EA$124,formula!$DZ$9,FALSE)) -> 58076.35 | M64: =IF($B64="","",VLOOKUP($B64,formula!$A$15:$AI$124,formula!$Y$9,FALSE)) -> 2114028.57 | N64: =IF($B64="","",VLOOKUP($B64,formula!$A$15:$AI$124,formula!$P$9,FALSE)) -> 7017898 | O64: =IF($B64="","",VLOOKUP($B64,formula!$A$15:$AI$124,formula!$AE$9,FALSE)) -> 35978214 | P64: =IF($B64="","",VLOOKUP($B64,formula!$A$15:$AI$124,formula!$AH$9,FALSE)) -> 17832764.07 | R64: 5.597870588 | V64: 2.774609809
